Workbook

Sheet Welcome
B2: HFC Emissions Accounting Tool
B3: Purpose: | D3: This tool assists US Federal Agencies in estimating HFC emissions from equipment containing refrigerants.
B4: Version Number: | D4: Version 1.1
B5: Version Date: | D5: 2016-10-20
B6: Activity Type: | D6: HFC emissions from refrigerants*
B9: Getting Started
B10: Note: Please enable macros before beginning. For assistance, see the section at the bottom of this page.
B11: Instructions:
B12: Step 1: Enter in the names of each facility or region into the Inputs page.
B13: Step 2: Go to the Method Selection page to select the HFC calculation approach based on the level of detail you have on refrigerant use.
B14: At this point the worksheets for the methods you have selected will become visible as blue tabs in the workbook.
B15: Step 3: Go to the relevant calculation approach worksheets (blue tabs) and enter in the relevant data to calculate emissions.
B16: For explanations of how different building types or equipment are defined, please see the "Definitions" worksheet.
B17: Step 4: Go to the GHG Emissions page to view total HFC emissions.
B18: Legend:
C19: Cell Color Legend:
D20: Yellow cells are Input Fields.
D21: Green cells are Optional Input Fields.
D22: White cells are Calculations Fields and are not editable.
B24: *All default refrigerants (i.e. refrigerants that are not specified by the user) are based on refrigerants leading to HFC emissions. However, users can also select from a
B25: broader list of refrigerants consistent with the FEMP reporting tool; some of these refrigerants also lead to PFC emissions.
B26: Version 1.1 Updates:
B27: 1. Additional vehicle type options have been added across calculation approaches to include buses, passenger vehicles, light-duty and
B28: heavy-duty trucks, and refrigerated transport for land and marine transportation. This update impacts only the emissions for vehicle types
B29: estimated using the Simplified Screening 2 approach, where this field is used for calculation purposes; and
B30: 2. Additional navigation buttons have been added to move forwards and backwards throughout the tool.
B31: Acknowledgements
B32: The HFC Emissions Accounting Tool was developed by ICF International (Pam Mathis, Manager; Jessica Kyle, Manager; Cory Jemison, Developer;
B33: Kasey Knoell, Technical Analyst) for the Federal Leadership in Reducing Emissions of Hydrofluorocarbons program under EPA contract
B34: EP-14-H-000494 (Led by Bella Maranion and Dave Godwin). The development team wishes to thank everyone who took part in the formal peer review
B35: of the tool including Glenn Gallagher (CARB), Michael Deru (NREL), Jed Ela (GSA) and Lena Kofas (GSA).
B38: Instructions for Enabling Macros:
B39: How to enable macros in Microsoft Excel 2007, 2010, and 2013
B40: Option 1: If your computer is set to the default settings: "Disable all macros with notification".
B41: To enable macros in the HFC Tool, click “Enable Content” on the Message Bar that comes up.
B43: If an additional security dialogue box pops up, select “Enable content for this session” to allow macros to run in the HFC tool.
B61: Option 2: If your computer is set to high security settings: "Disable all macros without notification"
B62: You will need to adjust your security settings to allow you to choose to enable macros. To do so:
B63: 1. Click on the Microsoft Office Button or the File button depending on your version of Excel, and go to Options.
B64: 2. Click on Trust Center in the Excel Options menu that pops up. From here, click Trust Center Settings, then Macro Settings.
B65: 3. Click on the "Disable all macros with notification" option and then the OK button to change your settings.
B66: 4. You may then need to close and re-open the file for the new security settings to take place, then follow instructions under "Option 1" above to enable macros for the file.
B67: For additional assistance, please visit the Microsoft Office help page:
B68: http://office.microsoft.com/en-us/excel-help/enable-or-disable-macros-in-office-documents-HA010031071.aspx#BM12
B70: How to enable macros in Microsoft Excel 2003
B71: If the Security Warning box appears as shown below, select the Enable Macros button to allow macros to run in the HFC tool.
B79: If the Security Warning box does not appear, you need to adjust your macro settings. To allow unsigned macros to run, the Trust all installed add-ins and templates check box must be selected on the Trusted Publishers tab of the Security dialog box. This option is selected by default. If it is not selected (recommended), Excel allows you to run only macros that have trusted digital signatures.
B82: 1. On the Tools menu, point to Macro, and then click Security.
B83: 2. On the Trusted Publishers tab, select the Trust all installed add-ins and templates check box.
B85: For additional assistance in changing Macro security settings in Excel, please visit the Microsoft Office help page:
B86: http://office.microsoft.com/en-us/excel-help/change-macro-security-settings-in-excel-HP010096919.aspx

Sheet Inputs
D2: General Input Data
D4: Before you begin, please list all the facilities or regions for which you will estimate disaggregated GHG emissions. You will be able to select these facilities/regions from drop down menus on subsequent worksheets.
E7: Basic Information | G7: Drop Down
D8: Agency Name | G8: Global Warming Potential Source
D9: Contact Name | G9: IPCC Fourth Assessment Report (AR4)
D10: Contact Email
D11: Contact Phone
D12: Reporting Year | E12: 2016
A14: =MAX(A16:A35)+1 -> 1 | B14: Facility or Region Number | D14: Enter Your Facility or Region Names Below
B15: -- | D15: Agency (unspecified)
A16: =IF(COUNTIF(D16:$D$35,"")=ROWS(D16:$D$35),0,B16) -> 0 | B16: 1
A17: =IF(COUNTIF(D17:$D$35,"")=ROWS(D17:$D$35),0,B17) -> 0 | B17: 2
A18: =IF(COUNTIF(D18:$D$35,"")=ROWS(D18:$D$35),0,B18) -> 0 | B18: 3
A19: =IF(COUNTIF(D19:$D$35,"")=ROWS(D19:$D$35),0,B19) -> 0 | B19: 4
A20: =IF(COUNTIF(D20:$D$35,"")=ROWS(D20:$D$35),0,B20) -> 0 | B20: 5
A21: =IF(COUNTIF(D21:$D$35,"")=ROWS(D21:$D$35),0,B21) -> 0 | B21: 6
A22: =IF(COUNTIF(D22:$D$35,"")=ROWS(D22:$D$35),0,B22) -> 0 | B22: 7
A23: =IF(COUNTIF(D23:$D$35,"")=ROWS(D23:$D$35),0,B23) -> 0 | B23: 8
A24: =IF(COUNTIF(D24:$D$35,"")=ROWS(D24:$D$35),0,B24) -> 0 | B24: 9
A25: =IF(COUNTIF(D25:$D$35,"")=ROWS(D25:$D$35),0,B25) -> 0 | B25: 10
A26: =IF(COUNTIF(D26:$D$35,"")=ROWS(D26:$D$35),0,B26) -> 0 | B26: 11
A27: =IF(COUNTIF(D27:$D$35,"")=ROWS(D27:$D$35),0,B27) -> 0 | B27: 12
A28: =IF(COUNTIF(D28:$D$35,"")=ROWS(D28:$D$35),0,B28) -> 0 | B28: 13
A29: =IF(COUNTIF(D29:$D$35,"")=ROWS(D29:$D$35),0,B29) -> 0 | B29: 14
A30: =IF(COUNTIF(D30:$D$35,"")=ROWS(D30:$D$35),0,B30) -> 0 | B30: 15
A31: =IF(COUNTIF(D31:$D$35,"")=ROWS(D31:$D$35),0,B31) -> 0 | B31: 16
A32: =IF(COUNTIF(D32:$D$35,"")=ROWS(D32:$D$35),0,B32) -> 0 | B32: 17
A33: =IF(COUNTIF(D33:$D$35,"")=ROWS(D33:$D$35),0,B33) -> 0 | B33: 18
A34: =IF(COUNTIF(D34:$D$35,"")=ROWS(D34:$D$35),0,B34) -> 0 | B34: 19
A35: =IF(COUNTIF(D35:$D$35,"")=ROWS(D35:$D$35),0,B35) -> 0 | B35: 20

Sheet Method Selection
B2: Method Selection
B4: Please check one or more of the calculation approach boxes you wish to use to calculate GHG emissions.
B5: As you move down the options, the accuracy improves but the level of data required is greater.
B7: Need help determining which emission estimation method to select? | AB7: Approach Screening Tool: Select “Yes” or “No” from the drop down menus in this table to determine which approach(es) are available for you to use based on the data you have. Since you may have unique datasets for different equipment, facilities, and/or regions, three columns are provided for you to determine the available approaches for each dataset. If more than three unique datasets will be used to estimate HFC emissions, you may copy/paste as many additional columns are needed.
E8: Calculation Approach
B9: 1 | AB9: Data Type | AC9: Dataset 1 | AD9: Dataset 2 | AE9: Dataset 3
C10: FALSE | AB10: General questions regarding building type, equipment type, and number of units/building size
AB11: Building type
AB12: Vehicle category
AB13: Building square feet
AB14: Building or vehicle equipment type
AB15: Number of vehicles
AB16: Number of refrigerant-containing units
C17: FALSE | AB17: Refrigerants purchased, used, and recovered
AB18: Amount of refrigerant purchased/issued from supply
AB19: Amount of refrigerant returned to the supply system
AB20: Amount of refrigerant charged into new equipment
AB21: Amount of refrigerant purchased to fill new equipment at installation
AB22: Amount of refrigerant used to service equipment
AB23: Amount of refrigerant recovered from retiring equipment
AB24: Equipment capacity and refrigerant stocks
C25: FALSE | AB25: Charge capacity of existing equipment
AB26: Charge capacity of retiring equipment
AB27: Charge capacity of new equipment
AB28: Charge capacity at beginning of the year
AB29: Charge capacity at end of the year
AB30: Quantity of refrigerant in storage at beginning of year
AB31: Quantity of refrigerant in storage at end of the year
AB32: Available Approaches
AB33: Simplified Screening 2 | AC33: =IF(OR(AND(AC11="Yes",AC13="Yes"),AND(AC12="Yes",AC15="Yes")),"Available","More data needed") -> More data needed | AD33: =IF(OR(AND(AD11="Yes",AD13="Yes"),AND(AD12="Yes",AD15="Yes")),"Available","More data needed") -> More data needed | AE33: =IF(OR(AND(AE11="Yes",AE13="Yes"),AND(AE12="Yes",AE15="Yes")),"Available","More data needed") -> More data needed
AB34: Simplified Screening 1 | AC34: =IF(AND(AC14="Yes",OR(AC16="Yes",AC15="Yes")),"Available","More data needed") -> More data needed | AD34: =IF(AND(AD14="Yes",OR(AD16="Yes",AD15="Yes")),"Available","More data needed") -> More data needed | AE34: =IF(AND(AE14="Yes",OR(AE16="Yes",AE15="Yes")),"Available","More data needed") -> More data needed
C35: FALSE | AB35: Default Methodology Approach | AC35: =IF(AND(AC18="Yes",AC19="Yes"),"Available","More data needed") -> More data needed | AD35: =IF(AND(AD18="Yes",AD19="Yes"),"Available","More data needed") -> More data needed | AE35: =IF(AND(AE18="Yes",AE19="Yes"),"Available","More data needed") -> More data needed
AB36: Screening | AC36: =IF(AND(AC14="Yes",AC20="Yes",AC25="Yes",AC26="Yes"),"Available","More data needed") -> More data needed | AD36: =IF(AND(AD14="Yes",AD20="Yes",AD25="Yes",AD26="Yes"),"Available","More data needed") -> More data needed | AE36: =IF(AND(AE14="Yes",AE20="Yes",AE25="Yes",AE26="Yes"),"Available","More data needed") -> More data needed
AB37: Simplified Material Balance | AC37: =IF(AND(AC21="Yes",AC27="Yes",AC22="Yes",AC26="Yes",AC23="Yes"),"Available","More data needed") -> More data needed | AD37: =IF(AND(AD21="Yes",AD27="Yes",AD22="Yes",AD26="Yes",AD23="Yes"),"Available","More data needed") -> More data needed | AE37: =IF(AND(AE21="Yes",AE27="Yes",AE22="Yes",AE26="Yes",AE23="Yes"),"Available","More data needed") -> More data needed
AB38: Material Balance | AC38: =IF(AND(AC30="Yes",AC31="Yes",AC18="Yes",AC19="Yes",AC28="Yes",AC29="Yes"),"Available","More data needed") -> More data needed | AD38: =IF(AND(AD30="Yes",AD31="Yes",AD18="Yes",AD19="Yes",AD28="Yes",AD29="Yes"),"Available","More data needed") -> More data needed | AE38: =IF(AND(AE30="Yes",AE31="Yes",AE18="Yes",AE19="Yes",AE28="Yes",AE29="Yes"),"Available","More data needed") -> More data needed
C47: FALSE
C59: FALSE

Sheet Definitions
B2: Building and Equipment Definitions
B5: The two tables below list available building and equipment types available for use throughout the tool.
B7: Available Building & Vehicle Types | E7: Available Equipment Types
B8: Building/Vehicle Type | C8: Description | E8: Equipment Type | F8: Description
B9: Office | C9: Buildings primarily used for office space or military headquarters. | E9: Room A/C | F9: A self-contained air conditioning unit designed to be window-mounted, portable, or installed through the wall of a room (e.g., window units, packaged terminal A/C [PTAC]). Inside of the unit is a compressor, condensing coil, evaporator coil, blower, controls. Window and wall unit capacities are generally 5,000 to 24,000 BTU/hour, but heavy-duty units can reach 30,000 BTU/hour. PTAC capacities are 7,000 – 15,000 BTU/hr.
B10: School | C10: Buildings primarily used for formally organized instruction, such as schools for dependent children of Federal employees, Indian schools, and military training buildings including specialized training facilities. | E10: Other residential A/C and heat pumps | F10: Other air conditioning systems and heat pumps used in residential buildings, including ducted split systems (central A/C) and ductless split systems (e.g., mini-splits, multi-splits). Capacities are generally less than 65,000 BTU/hr.
B11: Family housing | C11: Buildings primarily used as dwellings for families/dependents. Includes apartment houses, single houses, row houses, public housing, military personnel housing, Federal employee housing, and housing for institutional personnel. | E11: Other commercial A/C and heat pumps | F11: Other air conditioning systems and heat pumps used in commercial buildings, including ducted split systems (central A/C), ductless split systems (e.g., variable refrigerant flow systems, other multi-splits), and packaged rooftop units. Capacities are generally 65,000–135,000 BTU/hour for small units and 135,000–240,000 BTU/hour for larger units. Does not include chillers.
B12: Dormitories/ barracks | C12: Buildings primarily used as dwellings for families/dependents. Includes apartment houses, single houses, row houses, public housing, military personnel housing, Federal employee housing, and housing for institutional personnel. | E12: Chillers | F12: Centralized air conditioning systems used in medium and large buildings—including offices, hotels, shopping centers, and other large buildings—as well as in specialty applications on ships, submarines, nuclear power plants, and other industrial applications. May use centrifugal, screw, scroll, or reciprocating compressors. Chilled water is typically distributed to heat exchangers, or coils, in air handling units or other types of terminal devices which cool the air in their respective space(s), and then the water is re-circulated back to the chiller to be cooled again. Capacities generally range from 360,000 to 2,400,000 BTU/hr for scroll, screw, rotary and reciprocating compressors and 1,800,000 to 24,000,000 BTU/h for centrifugal compressors.
B13: Post office | C13: Buildings or portions of buildings used as a Post Office. | E13: Household refrigerators and/or freezers | F13: A refrigeration system used for short-term preservation of food products in households which typically has a compression machine designed for continuous automatic operation.
B14: Prisons and detention centers | C14: Buildings used to forcibly contain individuals under the authority of a government, including facilities such as living quarters, kitchen and dining, health care, education, recreation and fitness. | E14: Stand-alone retail refrigerators and freezers | F14: Includes stand-alone retail refrigeration equipment such as reach-in refrigerators and freezers, beverage coolers and water coolers.
B15: Museum | C15: Buildings used for the housing and/or display of tangible objects or collections for the purpose of displaying said objects or collections for public view and benefit on a regular basis. | E15: Walk-in refrigerators and freezers | F15: Includes walk-in refrigerators and freezers with single or multiple condensing unit systems.
B16: Other institutional uses | C16: Buildings used for institutional purposes other than schools, hospitals, and prisons, such as libraries, chapels, out-patient clinics, land ports of entry, and courthouses. This category also includes food preparation and dining facilities, buildings housing entertainment and recreational activities, and visitor’s centers. | E16: Supermarket refrigeration and condensing units | F16: Includes large refrigeration systems used in supermarkets such as systems consisting of racks of multiple compressors and other components that are connected to a remote condenser and linked to display cases, reach-ins, and walk-in cold rooms through a piping network (e.g., centralized, distributed, indirect, or cascade designs).
B17: Supermarkets/ commissaries | C17: Buildings used for storing and selling food and supplies and/or a food service establishment. | E17: Medium cold storage | F17: Refrigerated storage rooms or warehouses that are entirely temperature controlled, primarily used to store perishable, chilled and/or frozen food products or other temperature-sensitive chemicals/products. Medium units range from 12,000-120,000 square feet of floor space, or a capacity charge of between 200 and 2,000 lbs.
B18: Warehouse, service & industrial | C18: Warehouses - Buildings used for storage, such as ammunition storage, covered sheds, and buildings primarily used for storage of vehicles or materials. Also included are underground or earth covered ammunition storage bunkers and magazines. This category excludes water reservoirs and petroleum, oil, and lubricant (POL) storage tanks which are storage structures. Service Buildings - Buildings used for service activities, such as maintenance and repair shops, dry cleaning plants, post exchange stores, airport hangars, and buildings primarily used for vehicle maintenance and repair. Industrial Buildings - Buildings specifically designed and primarily used for production or manufacturing, such as the production or manufacture of ammunition, aircraft, ships, vehicles, electronic equipment, fish production, chemicals, aluminum, and magnesium. Included are buildings that house utility plants or utility system components such as pump stations or valves. | E18: Large cold storage | F18: Refrigerated storage rooms or warehouses that are entirely temperature controlled, primarily used to store perishable, chilled and/or frozen food products or other temperature-sensitive chemicals/products. Large units are greater than 120,000 square feet of floor space, or a capacity charge of greater than 2,000 lbs.
E19: Refrigerated transport - land | F19: Refrigerated vehicle that moves products from one place to another on land while maintaining necessary temperatures, and include truck trailers, railway freight cars, and other shipping containers.
E20: Refrigerated transport - marine | F20: Refrigerated ship that moves products from one place to another in a body of water while maintaining necessary temperatures, and include refrigerated ship holds and other shipping containers.
B21: Refrigerated warehouse | C21: Buildings used for refrigerated storage that are entirely temperature controlled, primarily used to store perishable, chilled and/or frozen food products or other temperature-sensitive chemicals/products. | E21: Passenger car A/C | F21: Light-duty passenger vehicle equipped with an air conditioning system.1
B22: Communications systems | C22: Buildings used for telephone and telegraph systems, data transmission, satellite communications, and/or associated with radio towers or other communications facilities. | E22: Light-duty or heavy-duty truck A/C | F22: Light-duty or heavy-duty truck a equipped with an air conditioning system; includes sport utility vehicles (SUVs).1
B23: Navigation and traffic aids | C23: Includes buildings that house aircraft or ship navigation and traffic aids, such as beacon lights, antenna systems, ground control approach systems, and obstruction lighting. | E23: Bus A/C | F23: A bus equipped with an air conditioning system.
B24: Hospital | C24: Buildings used primarily for furnishing in-patient diagnosis and treatment under physician supervision and having 24-hour-a-day registered graduate nursing services. This category also includes medical laboratories used for routine testing. This category excludes buildings used directly in basic or applied medical research. | E24: 1Vehicle category defined by EPA by gross vehicle weight rating (GVWR); light-duty (GVWR < 8,500 lb) or heavy-duty (GVWR > 8,501 lb).
B25: Laboratories | C25: Buildings used directly in basic or applied research in the sciences (including medicine) and in engineering, such as medical laboratories; meteorological research laboratories; and buildings used in designing, developing, and testing of prototypes and processes for chemistry and physics. This category excludes medical or industrial laboratories used for routine testing.
B26: Refrigerated transport | C26: Refrigerated vehicles that are used to transport perishable goods, such as frozen foods, fruit and vegetables, and temperature-sensitive chemicals.
B27: Passenger vehicles | C27: Light-duty passenger vehicle equipped with an air conditioning system.1
B28: Light-duty or heavy-duty trucks | C28: Light-duty or heavy-duty truck a equipped with an air conditioning system; includes sport utility vehicles (SUVs).1
B29: Buses | C29: Bus equipped with an air conditioning system.
B31: 1Vehicle category defined by EPA by gross vehicle weight rating (GVWR); light-duty (GVWR < 8,500 lb) or heavy-duty (GVWR > 8,501 lb).

Sheet Simplified Screening 2 (hidden)
C2: Simplified Screening Approach 2
C5: Use this page to calculate emissions if you have data on the federal building type, refrigerant equipment category, and the total square feet of each facility.
B7: Do you plan to report on emissions from vehicles? | D7: Light Yellow = Required input fields if a row is used | F7: =IF(B9=1,IF(COUNTIF($D$15:$D$54,"Refrigerated Transport")+COUNTIF($D$15:$D$54,"Passenger Vehicles")>0,"Transportation Included","Did you forget your fleet?"),"") ->  | I7: More details on building and equipment types?
D8: Light Green = Optional input fields
B9: 2 | D9: White = Calculation cells which are not editable
C11: drop down | D11: drop down
B12: Completion flag | C12: Facility or region name | D12: Federal building type / vehicle type | E12: Total square footage / number of vehicles | F12: Not utilized space | G12: Utilized building space / number of vehicles | H12: Annual emissions | I12: Annual emissions | J12: Refrigerant type final | K12: Annual greenhouse gas emissions
E13: (#) | F13: (square feet) | G13: (sqft or vehicles) | H13: (MT Refrigerant) | I13: (MT F-gas) | K13: (MT CO2-e)
B14: =IF(AND(C14=0,D14=0,E14=0),"",IF(OR(C14=0,D14=0,E14=0),"INCOMPLETE","OK")) -> OK | C14: Example | D14: School | E14: 10000 | F14: 1500 | G14: =E14-F14 -> 8500 | H14: =IF($D14=0,0,VLOOKUP($D14,'Default Values'!$B$78:$C$97,2,0)/1000*$G14/1000) -> 0.001862015133 | I14: ='Emissions Database'!AR264 -> 0.0009928491881 | J14: =IF(D14=0,"","Weighted Average") -> Weighted Average | K14: =IF(J14="","",H14*VLOOKUP(D14&" (All)",Lists!$C$213:$S$232,COLUMNS(Lists!$C$213:$S$213),0)) -> 2.557108484
B15: =IF(AND(C15=0,D15=0,E15=0),"",IF(OR(C15=0,D15=0,E15=0),"INCOMPLETE","OK")) ->  | G15: =E15-F15 -> 0 | H15: =IF($D15=0,0,VLOOKUP($D15,'Default Values'!$B$78:$C$97,2,0)/1000*$G15/1000) -> 0 | I15: =TRANSPOSE('Emissions Database'!D264:AQ264) -> 0 | K15: ='Emissions Database'!BS164 -> 0
G16: =E16-F16 -> 0 | H16: =IF($D16=0,0,VLOOKUP($D16,'Default Values'!$B$78:$C$97,2,0)/1000*$G16/1000) -> 0 | I16: 0 | K16: ='Emissions Database'!BS165 -> 0
G17: 0 | H17: =IF($D17=0,0,VLOOKUP($D17,'Default Values'!$B$78:$C$97,2,0)/1000*$G17/1000) -> 0 | I17: 0 | K17: ='Emissions Database'!BS166 -> 0
G18: 0 | H18: =IF($D18=0,0,VLOOKUP($D18,'Default Values'!$B$78:$C$97,2,0)/1000*$G18/1000) -> 0 | I18: 0 | K18: ='Emissions Database'!BS167 -> 0
G19: 0 | H19: =IF($D19=0,0,VLOOKUP($D19,'Default Values'!$B$78:$C$97,2,0)/1000*$G19/1000) -> 0 | I19: 0 | K19: ='Emissions Database'!BS168 -> 0
G20: 0 | H20: =IF($D20=0,0,VLOOKUP($D20,'Default Values'!$B$78:$C$97,2,0)/1000*$G20/1000) -> 0 | I20: 0 | K20: ='Emissions Database'!BS169 -> 0
G21: 0 | H21: =IF($D21=0,0,VLOOKUP($D21,'Default Values'!$B$78:$C$97,2,0)/1000*$G21/1000) -> 0 | I21: 0 | K21: ='Emissions Database'!BS170 -> 0
G22: 0 | H22: =IF($D22=0,0,VLOOKUP($D22,'Default Values'!$B$78:$C$97,2,0)/1000*$G22/1000) -> 0 | I22: 0 | K22: ='Emissions Database'!BS171 -> 0
G23: 0 | H23: =IF($D23=0,0,VLOOKUP($D23,'Default Values'!$B$78:$C$97,2,0)/1000*$G23/1000) -> 0 | I23: 0 | K23: ='Emissions Database'!BS172 -> 0
G24: 0 | H24: =IF($D24=0,0,VLOOKUP($D24,'Default Values'!$B$78:$C$97,2,0)/1000*$G24/1000) -> 0 | I24: 0 | K24: ='Emissions Database'!BS173 -> 0
G25: =E25-F25 -> 0 | H25: =IF($D25=0,0,VLOOKUP($D25,'Default Values'!$B$78:$C$97,2,0)/1000*$G25/1000) -> 0 | I25: 0 | K25: ='Emissions Database'!BS174 -> 0
G26: 0 | H26: =IF($D26=0,0,VLOOKUP($D26,'Default Values'!$B$78:$C$97,2,0)/1000*$G26/1000) -> 0 | I26: 0 | K26: ='Emissions Database'!BS175 -> 0
G27: 0 | H27: =IF($D27=0,0,VLOOKUP($D27,'Default Values'!$B$78:$C$97,2,0)/1000*$G27/1000) -> 0 | I27: 0 | K27: ='Emissions Database'!BS176 -> 0
G28: 0 | H28: =IF($D28=0,0,VLOOKUP($D28,'Default Values'!$B$78:$C$97,2,0)/1000*$G28/1000) -> 0 | I28: 0 | K28: ='Emissions Database'!BS177 -> 0
G29: 0 | H29: =IF($D29=0,0,VLOOKUP($D29,'Default Values'!$B$78:$C$97,2,0)/1000*$G29/1000) -> 0 | I29: 0 | K29: ='Emissions Database'!BS178 -> 0
G30: 0 | H30: =IF($D30=0,0,VLOOKUP($D30,'Default Values'!$B$78:$C$97,2,0)/1000*$G30/1000) -> 0 | I30: 0 | K30: ='Emissions Database'!BS179 -> 0
G31: 0 | H31: =IF($D31=0,0,VLOOKUP($D31,'Default Values'!$B$78:$C$97,2,0)/1000*$G31/1000) -> 0 | I31: 0 | K31: ='Emissions Database'!BS180 -> 0
G32: 0 | H32: =IF($D32=0,0,VLOOKUP($D32,'Default Values'!$B$78:$C$97,2,0)/1000*$G32/1000) -> 0 | I32: 0 | K32: ='Emissions Database'!BS181 -> 0
G33: 0 | H33: =IF($D33=0,0,VLOOKUP($D33,'Default Values'!$B$78:$C$97,2,0)/1000*$G33/1000) -> 0 | I33: 0 | K33: ='Emissions Database'!BS182 -> 0
G34: 0 | H34: =IF($D34=0,0,VLOOKUP($D34,'Default Values'!$B$78:$C$97,2,0)/1000*$G34/1000) -> 0 | I34: 0 | K34: ='Emissions Database'!BS183 -> 0
G35: 0 | H35: =IF($D35=0,0,VLOOKUP($D35,'Default Values'!$B$78:$C$97,2,0)/1000*$G35/1000) -> 0 | I35: 0 | K35: ='Emissions Database'!BS184 -> 0
G36: 0 | H36: =IF($D36=0,0,VLOOKUP($D36,'Default Values'!$B$78:$C$97,2,0)/1000*$G36/1000) -> 0 | I36: 0 | K36: ='Emissions Database'!BS185 -> 0
G37: 0 | H37: =IF($D37=0,0,VLOOKUP($D37,'Default Values'!$B$78:$C$97,2,0)/1000*$G37/1000) -> 0 | I37: 0 | K37: ='Emissions Database'!BS186 -> 0
G38: 0 | H38: =IF($D38=0,0,VLOOKUP($D38,'Default Values'!$B$78:$C$97,2,0)/1000*$G38/1000) -> 0 | I38: 0 | K38: ='Emissions Database'!BS187 -> 0
G39: 0 | H39: =IF($D39=0,0,VLOOKUP($D39,'Default Values'!$B$78:$C$97,2,0)/1000*$G39/1000) -> 0 | I39: 0 | K39: ='Emissions Database'!BS188 -> 0
G40: 0 | H40: =IF($D40=0,0,VLOOKUP($D40,'Default Values'!$B$78:$C$97,2,0)/1000*$G40/1000) -> 0 | I40: 0 | K40: ='Emissions Database'!BS189 -> 0
G41: 0 | H41: =IF($D41=0,0,VLOOKUP($D41,'Default Values'!$B$78:$C$97,2,0)/1000*$G41/1000) -> 0 | I41: 0 | K41: ='Emissions Database'!BS190 -> 0
G42: 0 | H42: =IF($D42=0,0,VLOOKUP($D42,'Default Values'!$B$78:$C$97,2,0)/1000*$G42/1000) -> 0 | I42: 0 | K42: ='Emissions Database'!BS191 -> 0
G43: 0 | H43: =IF($D43=0,0,VLOOKUP($D43,'Default Values'!$B$78:$C$97,2,0)/1000*$G43/1000) -> 0 | I43: 0 | K43: ='Emissions Database'!BS192 -> 0
G44: 0 | H44: =IF($D44=0,0,VLOOKUP($D44,'Default Values'!$B$78:$C$97,2,0)/1000*$G44/1000) -> 0 | I44: 0 | K44: ='Emissions Database'!BS193 -> 0
G45: 0 | H45: =IF($D45=0,0,VLOOKUP($D45,'Default Values'!$B$78:$C$97,2,0)/1000*$G45/1000) -> 0 | I45: 0 | K45: ='Emissions Database'!BS194 -> 0
G46: 0 | H46: =IF($D46=0,0,VLOOKUP($D46,'Default Values'!$B$78:$C$97,2,0)/1000*$G46/1000) -> 0 | I46: 0 | K46: ='Emissions Database'!BS195 -> 0
G47: 0 | H47: =IF($D47=0,0,VLOOKUP($D47,'Default Values'!$B$78:$C$97,2,0)/1000*$G47/1000) -> 0 | I47: 0 | K47: ='Emissions Database'!BS196 -> 0
G48: 0 | H48: =IF($D48=0,0,VLOOKUP($D48,'Default Values'!$B$78:$C$97,2,0)/1000*$G48/1000) -> 0 | I48: 0 | K48: ='Emissions Database'!BS197 -> 0
G49: 0 | H49: =IF($D49=0,0,VLOOKUP($D49,'Default Values'!$B$78:$C$97,2,0)/1000*$G49/1000) -> 0 | I49: 0 | K49: ='Emissions Database'!BS198 -> 0
G50: 0 | H50: =IF($D50=0,0,VLOOKUP($D50,'Default Values'!$B$78:$C$97,2,0)/1000*$G50/1000) -> 0 | I50: 0 | K50: ='Emissions Database'!BS199 -> 0
G51: 0 | H51: =IF($D51=0,0,VLOOKUP($D51,'Default Values'!$B$78:$C$97,2,0)/1000*$G51/1000) -> 0 | I51: 0 | K51: ='Emissions Database'!BS200 -> 0
G52: 0 | H52: =IF($D52=0,0,VLOOKUP($D52,'Default Values'!$B$78:$C$97,2,0)/1000*$G52/1000) -> 0 | I52: 0 | K52: ='Emissions Database'!BS201 -> 0
G53: 0 | H53: =IF($D53=0,0,VLOOKUP($D53,'Default Values'!$B$78:$C$97,2,0)/1000*$G53/1000) -> 0 | I53: 0 | K53: ='Emissions Database'!BS202 -> 0
G54: 0 | H54: =IF($D54=0,0,VLOOKUP($D54,'Default Values'!$B$78:$C$97,2,0)/1000*$G54/1000) -> 0 | I54: 0 | K54: ='Emissions Database'!BS203 -> 0
C55: Total | H55: =SUM(H15:H54) -> 0 | I55: =SUM(I15:I54) -> 0 | K55: =SUM(K15:K54) -> 0

Sheet Simplified Screening 1 (hidden)
C2: Simplified Screening Approach 1
C5: Use this page to calculate emissions if you have data on the federal building type, refrigerant equipment category, and the number of units of equipment.
B7: Do you plan to report on emissions from vehicles? | D7: Light Yellow = Required input fields if a row is used | F7: =IF(B9=1,IF(SUM(Lists!B39:B53)>0,"Transportation Included","Did you forget your fleet?"),"") ->  | Q7: Equipment assumption details?
D8: Light Green = Optional input fields
B9: 2 | D9: White = Calculation cells which are not editable
C11: drop down | D11: drop down | E11: drop down | G11: drop down
B12: Completion flag | C12: Facility or region name | D12: Federal building type / vehicle type | E12: Equipment type | F12: Number of units | G12: Refrigerant type | H12: Quantity of F-gas charged into the new equipment | I12: Total full charge capacity of the equipment | J12: Time equipment was in use | K12: Total full charge capacity of equipment being disposed | L12: Installation emission factor | M12: Operation emission factor | N12: Refrigerant remaining at disposal | O12: Recovery efficiency | P12: Annual emissions | Q12: Annual emissions | R12: Refrigerant type final | S12: Annual greenhouse gas emissions
F13: (#) | H13: (lb) | I13: (lb) | J13: (years) | K13: (lb) | L13: (%) | M13: (%) | N13: (%) | O13: (%) | P13: (MT Refrigerant) | Q13: (MT F-gas) | S13: (MT CO2-e)
B14: =IF(AND(C14=0,E14=0,F14=0),"",IF(OR(C14=0,E14=0,F14=0),"INCOMPLETE","OK")) -> OK | C14: Example | D14: School | E14: Walk-in refrigerators and freezers | F14: 2 | G14: R-404A | H14: =IF($E14=0,0,$I14*VLOOKUP($E14,'Default Values'!$B$5:$I$20,8,0)) -> 2.204585538 | I14: =IF($E14=0,0,VLOOKUP($E14,'Default Values'!$B$5:$G$20,2,0)*Conversions!$C$5*F14) -> 44.09171076 | J14: 1 | K14: =IF($E14=0,0,$I14*VLOOKUP($E14,'Default Values'!$B$5:$I$20,8,0)) -> 2.204585538 | L14: =IF($E14=0,0,VLOOKUP($E14,'Default Values'!$B$5:$G$20,3,0)) -> 0.02 | M14: =IF($E14=0,0,VLOOKUP($E14,'Default Values'!$B$5:$G$20,4,0)) -> 0.12 | N14: =IF($E14=0,0,VLOOKUP($E14,'Default Values'!$B$5:$G$20,5,0)) -> 0.9 | O14: =IF($E14=0,0,VLOOKUP($E14,'Default Values'!$B$5:$G$20,6,0)) -> 0.7 | P14: =((H14*L14)+(I14*M14*J14)+(K14*N14*(1-O14)))*Conversions!$C$4 -> 0.00269 | Q14: =IF(G14=0,P14*HLOOKUP(E14,'Equipment Assumptions'!$C$30:$Q$31,2,0),IF(G14="Non-HFC",0,P14)) -> 0.00269 | R14: =IF(E14=0,"",IF(OR(G14=0,G14="I Don't Know"),VLOOKUP(E14,'Default Values'!$B$5:$J$20,9,0),G14)) -> R-404A | S14: =IF(R14="","",P14*VLOOKUP(R14,Lists!$C$72:$S$152,COLUMNS(Lists!$C$72:$S$72),0)) -> 10.549104
B15: =IF(AND(C15=0,E15=0,F15=0),"",IF(OR(C15=0,E15=0,F15=0),"INCOMPLETE","OK")) ->  | H15: =IF($E15=0,0,$I15*VLOOKUP($E15,'Default Values'!$B$5:$I$20,8,0)) -> 0 | I15: =IF($E15=0,0,VLOOKUP($E15,'Default Values'!$B$5:$G$20,2,0)*Conversions!$C$5*F15) -> 0 | J15: 1 | K15: =IF($E15=0,0,$I15*VLOOKUP($E15,'Default Values'!$B$5:$I$20,8,0)) -> 0 | L15: =IF($E15=0,0,VLOOKUP($E15,'Default Values'!$B$5:$G$20,3,0)) -> 0 | M15: =IF($E15=0,0,VLOOKUP($E15,'Default Values'!$B$5:$G$20,4,0)) -> 0 | N15: =IF($E15=0,0,VLOOKUP($E15,'Default Values'!$B$5:$G$20,5,0)) -> 0 | O15: =IF($E15=0,0,VLOOKUP($E15,'Default Values'!$B$5:$G$20,6,0)) -> 0 | P15: =((H15*L15)+(I15*M15*J15)+(K15*N15*(1-O15)))*Conversions!$C$4 -> 0 | Q15: ='Emissions Database'!K124 -> 0 | R15: =IF(E15=0,"",IF(OR(G15=0,G15="I Don't Know"),VLOOKUP(E15,'Default Values'!$B$5:$J$20,9,0),G15)) ->  | S15: ='Emissions Database'!BS124 -> 0
H16: =IF($E16=0,0,$I16*VLOOKUP($E16,'Default Values'!$B$5:$I$20,8,0)) -> 0 | I16: =IF($E16=0,0,VLOOKUP($E16,'Default Values'!$B$5:$G$20,2,0)*Conversions!$C$5*F16) -> 0 | J16: 1 | K16: =IF($E16=0,0,$I16*VLOOKUP($E16,'Default Values'!$B$5:$I$20,8,0)) -> 0 | L16: =IF($E16=0,0,VLOOKUP($E16,'Default Values'!$B$5:$G$20,3,0)) -> 0 | M16: =IF($E16=0,0,VLOOKUP($E16,'Default Values'!$B$5:$G$20,4,0)) -> 0 | N16: =IF($E16=0,0,VLOOKUP($E16,'Default Values'!$B$5:$G$20,5,0)) -> 0 | O16: =IF($E16=0,0,VLOOKUP($E16,'Default Values'!$B$5:$G$20,6,0)) -> 0 | P16: =((H16*L16)+(I16*M16*J16)+(K16*N16*(1-O16)))*Conversions!$C$4 -> 0 | Q16: ='Emissions Database'!K125 -> 0 | R16: =IF(E16=0,"",IF(OR(G16=0,G16="I Don't Know"),VLOOKUP(E16,'Default Values'!$B$5:$J$20,9,0),G16)) ->  | S16: ='Emissions Database'!BS125 -> 0
H17: =IF($E17=0,0,$I17*VLOOKUP($E17,'Default Values'!$B$5:$I$20,8,0)) -> 0 | I17: =IF($E17=0,0,VLOOKUP($E17,'Default Values'!$B$5:$G$20,2,0)*Conversions!$C$5*F17) -> 0 | J17: 1 | K17: =IF($E17=0,0,$I17*VLOOKUP($E17,'Default Values'!$B$5:$I$20,8,0)) -> 0 | L17: =IF($E17=0,0,VLOOKUP($E17,'Default Values'!$B$5:$G$20,3,0)) -> 0 | M17: =IF($E17=0,0,VLOOKUP($E17,'Default Values'!$B$5:$G$20,4,0)) -> 0 | N17: =IF($E17=0,0,VLOOKUP($E17,'Default Values'!$B$5:$G$20,5,0)) -> 0 | O17: =IF($E17=0,0,VLOOKUP($E17,'Default Values'!$B$5:$G$20,6,0)) -> 0 | P17: =((H17*L17)+(I17*M17*J17)+(K17*N17*(1-O17)))*Conversions!$C$4 -> 0 | Q17: ='Emissions Database'!K126 -> 0 | R17: =IF(E17=0,"",IF(OR(G17=0,G17="I Don't Know"),VLOOKUP(E17,'Default Values'!$B$5:$J$20,9,0),G17)) ->  | S17: ='Emissions Database'!BS126 -> 0
H18: =IF($E18=0,0,$I18*VLOOKUP($E18,'Default Values'!$B$5:$I$20,8,0)) -> 0 | I18: =IF($E18=0,0,VLOOKUP($E18,'Default Values'!$B$5:$G$20,2,0)*Conversions!$C$5*F18) -> 0 | J18: 1 | K18: =IF($E18=0,0,$I18*VLOOKUP($E18,'Default Values'!$B$5:$I$20,8,0)) -> 0 | L18: =IF($E18=0,0,VLOOKUP($E18,'Default Values'!$B$5:$G$20,3,0)) -> 0 | M18: =IF($E18=0,0,VLOOKUP($E18,'Default Values'!$B$5:$G$20,4,0)) -> 0 | N18: =IF($E18=0,0,VLOOKUP($E18,'Default Values'!$B$5:$G$20,5,0)) -> 0 | O18: =IF($E18=0,0,VLOOKUP($E18,'Default Values'!$B$5:$G$20,6,0)) -> 0 | P18: =((H18*L18)+(I18*M18*J18)+(K18*N18*(1-O18)))*Conversions!$C$4 -> 0 | Q18: ='Emissions Database'!K127 -> 0 | R18: =IF(E18=0,"",IF(OR(G18=0,G18="I Don't Know"),VLOOKUP(E18,'Default Values'!$B$5:$J$20,9,0),G18)) ->  | S18: ='Emissions Database'!BS127 -> 0
H19: =IF($E19=0,0,$I19*VLOOKUP($E19,'Default Values'!$B$5:$I$20,8,0)) -> 0 | I19: =IF($E19=0,0,VLOOKUP($E19,'Default Values'!$B$5:$G$20,2,0)*Conversions!$C$5*F19) -> 0 | J19: 1 | K19: =IF($E19=0,0,$I19*VLOOKUP($E19,'Default Values'!$B$5:$I$20,8,0)) -> 0 | L19: =IF($E19=0,0,VLOOKUP($E19,'Default Values'!$B$5:$G$20,3,0)) -> 0 | M19: =IF($E19=0,0,VLOOKUP($E19,'Default Values'!$B$5:$G$20,4,0)) -> 0 | N19: =IF($E19=0,0,VLOOKUP($E19,'Default Values'!$B$5:$G$20,5,0)) -> 0 | O19: =IF($E19=0,0,VLOOKUP($E19,'Default Values'!$B$5:$G$20,6,0)) -> 0 | P19: =((H19*L19)+(I19*M19*J19)+(K19*N19*(1-O19)))*Conversions!$C$4 -> 0 | Q19: ='Emissions Database'!K128 -> 0 | R19: =IF(E19=0,"",IF(OR(G19=0,G19="I Don't Know"),VLOOKUP(E19,'Default Values'!$B$5:$J$20,9,0),G19)) ->  | S19: ='Emissions Database'!BS128 -> 0
H20: =IF($E20=0,0,$I20*VLOOKUP($E20,'Default Values'!$B$5:$I$20,8,0)) -> 0 | I20: =IF($E20=0,0,VLOOKUP($E20,'Default Values'!$B$5:$G$20,2,0)*Conversions!$C$5*F20) -> 0 | J20: 1 | K20: =IF($E20=0,0,$I20*VLOOKUP($E20,'Default Values'!$B$5:$I$20,8,0)) -> 0 | L20: =IF($E20=0,0,VLOOKUP($E20,'Default Values'!$B$5:$G$20,3,0)) -> 0 | M20: =IF($E20=0,0,VLOOKUP($E20,'Default Values'!$B$5:$G$20,4,0)) -> 0 | N20: =IF($E20=0,0,VLOOKUP($E20,'Default Values'!$B$5:$G$20,5,0)) -> 0 | O20: =IF($E20=0,0,VLOOKUP($E20,'Default Values'!$B$5:$G$20,6,0)) -> 0 | P20: =((H20*L20)+(I20*M20*J20)+(K20*N20*(1-O20)))*Conversions!$C$4 -> 0 | Q20: ='Emissions Database'!K129 -> 0 | R20: =IF(E20=0,"",IF(OR(G20=0,G20="I Don't Know"),VLOOKUP(E20,'Default Values'!$B$5:$J$20,9,0),G20)) ->  | S20: ='Emissions Database'!BS129 -> 0
H21: =IF($E21=0,0,$I21*VLOOKUP($E21,'Default Values'!$B$5:$I$20,8,0)) -> 0 | I21: =IF($E21=0,0,VLOOKUP($E21,'Default Values'!$B$5:$G$20,2,0)*Conversions!$C$5*F21) -> 0 | J21: 1 | K21: =IF($E21=0,0,$I21*VLOOKUP($E21,'Default Values'!$B$5:$I$20,8,0)) -> 0 | L21: =IF($E21=0,0,VLOOKUP($E21,'Default Values'!$B$5:$G$20,3,0)) -> 0 | M21: =IF($E21=0,0,VLOOKUP($E21,'Default Values'!$B$5:$G$20,4,0)) -> 0 | N21: =IF($E21=0,0,VLOOKUP($E21,'Default Values'!$B$5:$G$20,5,0)) -> 0 | O21: =IF($E21=0,0,VLOOKUP($E21,'Default Values'!$B$5:$G$20,6,0)) -> 0 | P21: =((H21*L21)+(I21*M21*J21)+(K21*N21*(1-O21)))*Conversions!$C$4 -> 0 | Q21: ='Emissions Database'!K130 -> 0 | R21: =IF(E21=0,"",IF(OR(G21=0,G21="I Don't Know"),VLOOKUP(E21,'Default Values'!$B$5:$J$20,9,0),G21)) ->  | S21: ='Emissions Database'!BS130 -> 0
H22: =IF($E22=0,0,$I22*VLOOKUP($E22,'Default Values'!$B$5:$I$20,8,0)) -> 0 | I22: =IF($E22=0,0,VLOOKUP($E22,'Default Values'!$B$5:$G$20,2,0)*Conversions!$C$5*F22) -> 0 | J22: 1 | K22: =IF($E22=0,0,$I22*VLOOKUP($E22,'Default Values'!$B$5:$I$20,8,0)) -> 0 | L22: =IF($E22=0,0,VLOOKUP($E22,'Default Values'!$B$5:$G$20,3,0)) -> 0 | M22: =IF($E22=0,0,VLOOKUP($E22,'Default Values'!$B$5:$G$20,4,0)) -> 0 | N22: =IF($E22=0,0,VLOOKUP($E22,'Default Values'!$B$5:$G$20,5,0)) -> 0 | O22: =IF($E22=0,0,VLOOKUP($E22,'Default Values'!$B$5:$G$20,6,0)) -> 0 | P22: =((H22*L22)+(I22*M22*J22)+(K22*N22*(1-O22)))*Conversions!$C$4 -> 0 | Q22: ='Emissions Database'!K131 -> 0 | R22: =IF(E22=0,"",IF(OR(G22=0,G22="I Don't Know"),VLOOKUP(E22,'Default Values'!$B$5:$J$20,9,0),G22)) ->  | S22: ='Emissions Database'!BS131 -> 0
H23: =IF($E23=0,0,$I23*VLOOKUP($E23,'Default Values'!$B$5:$I$20,8,0)) -> 0 | I23: =IF($E23=0,0,VLOOKUP($E23,'Default Values'!$B$5:$G$20,2,0)*Conversions!$C$5*F23) -> 0 | J23: 1 | K23: =IF($E23=0,0,$I23*VLOOKUP($E23,'Default Values'!$B$5:$I$20,8,0)) -> 0 | L23: =IF($E23=0,0,VLOOKUP($E23,'Default Values'!$B$5:$G$20,3,0)) -> 0 | M23: =IF($E23=0,0,VLOOKUP($E23,'Default Values'!$B$5:$G$20,4,0)) -> 0 | N23: =IF($E23=0,0,VLOOKUP($E23,'Default Values'!$B$5:$G$20,5,0)) -> 0 | O23: =IF($E23=0,0,VLOOKUP($E23,'Default Values'!$B$5:$G$20,6,0)) -> 0 | P23: =((H23*L23)+(I23*M23*J23)+(K23*N23*(1-O23)))*Conversions!$C$4 -> 0 | Q23: ='Emissions Database'!K132 -> 0 | R23: =IF(E23=0,"",IF(OR(G23=0,G23="I Don't Know"),VLOOKUP(E23,'Default Values'!$B$5:$J$20,9,0),G23)) ->  | S23: ='Emissions Database'!BS132 -> 0
H24: =IF($E24=0,0,$I24*VLOOKUP($E24,'Default Values'!$B$5:$I$20,8,0)) -> 0 | I24: =IF($E24=0,0,VLOOKUP($E24,'Default Values'!$B$5:$G$20,2,0)*Conversions!$C$5*F24) -> 0 | J24: 1 | K24: =IF($E24=0,0,$I24*VLOOKUP($E24,'Default Values'!$B$5:$I$20,8,0)) -> 0 | L24: =IF($E24=0,0,VLOOKUP($E24,'Default Values'!$B$5:$G$20,3,0)) -> 0 | M24: =IF($E24=0,0,VLOOKUP($E24,'Default Values'!$B$5:$G$20,4,0)) -> 0 | N24: =IF($E24=0,0,VLOOKUP($E24,'Default Values'!$B$5:$G$20,5,0)) -> 0 | O24: =IF($E24=0,0,VLOOKUP($E24,'Default Values'!$B$5:$G$20,6,0)) -> 0 | P24: =((H24*L24)+(I24*M24*J24)+(K24*N24*(1-O24)))*Conversions!$C$4 -> 0 | Q24: ='Emissions Database'!K133 -> 0 | R24: =IF(E24=0,"",IF(OR(G24=0,G24="I Don't Know"),VLOOKUP(E24,'Default Values'!$B$5:$J$20,9,0),G24)) ->  | S24: ='Emissions Database'!BS133 -> 0
H25: =IF($E25=0,0,$I25*VLOOKUP($E25,'Default Values'!$B$5:$I$20,8,0)) -> 0 | I25: =IF($E25=0,0,VLOOKUP($E25,'Default Values'!$B$5:$G$20,2,0)*Conversions!$C$5*F25) -> 0 | J25: 1 | K25: =IF($E25=0,0,$I25*VLOOKUP($E25,'Default Values'!$B$5:$I$20,8,0)) -> 0 | L25: =IF($E25=0,0,VLOOKUP($E25,'Default Values'!$B$5:$G$20,3,0)) -> 0 | M25: =IF($E25=0,0,VLOOKUP($E25,'Default Values'!$B$5:$G$20,4,0)) -> 0 | N25: =IF($E25=0,0,VLOOKUP($E25,'Default Values'!$B$5:$G$20,5,0)) -> 0 | O25: =IF($E25=0,0,VLOOKUP($E25,'Default Values'!$B$5:$G$20,6,0)) -> 0 | P25: =((H25*L25)+(I25*M25*J25)+(K25*N25*(1-O25)))*Conversions!$C$4 -> 0 | Q25: ='Emissions Database'!K134 -> 0 | R25: =IF(E25=0,"",IF(OR(G25=0,G25="I Don't Know"),VLOOKUP(E25,'Default Values'!$B$5:$J$20,9,0),G25)) ->  | S25: ='Emissions Database'!BS134 -> 0
H26: =IF($E26=0,0,$I26*VLOOKUP($E26,'Default Values'!$B$5:$I$20,8,0)) -> 0 | I26: =IF($E26=0,0,VLOOKUP($E26,'Default Values'!$B$5:$G$20,2,0)*Conversions!$C$5*F26) -> 0 | J26: 1 | K26: =IF($E26=0,0,$I26*VLOOKUP($E26,'Default Values'!$B$5:$I$20,8,0)) -> 0 | L26: =IF($E26=0,0,VLOOKUP($E26,'Default Values'!$B$5:$G$20,3,0)) -> 0 | M26: =IF($E26=0,0,VLOOKUP($E26,'Default Values'!$B$5:$G$20,4,0)) -> 0 | N26: =IF($E26=0,0,VLOOKUP($E26,'Default Values'!$B$5:$G$20,5,0)) -> 0 | O26: =IF($E26=0,0,VLOOKUP($E26,'Default Values'!$B$5:$G$20,6,0)) -> 0 | P26: =((H26*L26)+(I26*M26*J26)+(K26*N26*(1-O26)))*Conversions!$C$4 -> 0 | Q26: ='Emissions Database'!K135 -> 0 | R26: =IF(E26=0,"",IF(OR(G26=0,G26="I Don't Know"),VLOOKUP(E26,'Default Values'!$B$5:$J$20,9,0),G26)) ->  | S26: ='Emissions Database'!BS135 -> 0
H27: =IF($E27=0,0,$I27*VLOOKUP($E27,'Default Values'!$B$5:$I$20,8,0)) -> 0 | I27: =IF($E27=0,0,VLOOKUP($E27,'Default Values'!$B$5:$G$20,2,0)*Conversions!$C$5*F27) -> 0 | J27: 1 | K27: =IF($E27=0,0,$I27*VLOOKUP($E27,'Default Values'!$B$5:$I$20,8,0)) -> 0 | L27: =IF($E27=0,0,VLOOKUP($E27,'Default Values'!$B$5:$G$20,3,0)) -> 0 | M27: =IF($E27=0,0,VLOOKUP($E27,'Default Values'!$B$5:$G$20,4,0)) -> 0 | N27: =IF($E27=0,0,VLOOKUP($E27,'Default Values'!$B$5:$G$20,5,0)) -> 0 | O27: =IF($E27=0,0,VLOOKUP($E27,'Default Values'!$B$5:$G$20,6,0)) -> 0 | P27: =((H27*L27)+(I27*M27*J27)+(K27*N27*(1-O27)))*Conversions!$C$4 -> 0 | Q27: ='Emissions Database'!K136 -> 0 | R27: =IF(E27=0,"",IF(OR(G27=0,G27="I Don't Know"),VLOOKUP(E27,'Default Values'!$B$5:$J$20,9,0),G27)) ->  | S27: ='Emissions Database'!BS136 -> 0
H28: =IF($E28=0,0,$I28*VLOOKUP($E28,'Default Values'!$B$5:$I$20,8,0)) -> 0 | I28: =IF($E28=0,0,VLOOKUP($E28,'Default Values'!$B$5:$G$20,2,0)*Conversions!$C$5*F28) -> 0 | J28: 1 | K28: =IF($E28=0,0,$I28*VLOOKUP($E28,'Default Values'!$B$5:$I$20,8,0)) -> 0 | L28: =IF($E28=0,0,VLOOKUP($E28,'Default Values'!$B$5:$G$20,3,0)) -> 0 | M28: =IF($E28=0,0,VLOOKUP($E28,'Default Values'!$B$5:$G$20,4,0)) -> 0 | N28: =IF($E28=0,0,VLOOKUP($E28,'Default Values'!$B$5:$G$20,5,0)) -> 0 | O28: =IF($E28=0,0,VLOOKUP($E28,'Default Values'!$B$5:$G$20,6,0)) -> 0 | P28: =((H28*L28)+(I28*M28*J28)+(K28*N28*(1-O28)))*Conversions!$C$4 -> 0 | Q28: ='Emissions Database'!K137 -> 0 | R28: =IF(E28=0,"",IF(OR(G28=0,G28="I Don't Know"),VLOOKUP(E28,'Default Values'!$B$5:$J$20,9,0),G28)) ->  | S28: ='Emissions Database'!BS137 -> 0
H29: =IF($E29=0,0,$I29*VLOOKUP($E29,'Default Values'!$B$5:$I$20,8,0)) -> 0 | I29: =IF($E29=0,0,VLOOKUP($E29,'Default Values'!$B$5:$G$20,2,0)*Conversions!$C$5*F29) -> 0 | J29: 1 | K29: =IF($E29=0,0,$I29*VLOOKUP($E29,'Default Values'!$B$5:$I$20,8,0)) -> 0 | L29: =IF($E29=0,0,VLOOKUP($E29,'Default Values'!$B$5:$G$20,3,0)) -> 0 | M29: =IF($E29=0,0,VLOOKUP($E29,'Default Values'!$B$5:$G$20,4,0)) -> 0 | N29: =IF($E29=0,0,VLOOKUP($E29,'Default Values'!$B$5:$G$20,5,0)) -> 0 | O29: =IF($E29=0,0,VLOOKUP($E29,'Default Values'!$B$5:$G$20,6,0)) -> 0 | P29: =((H29*L29)+(I29*M29*J29)+(K29*N29*(1-O29)))*Conversions!$C$4 -> 0 | Q29: ='Emissions Database'!K138 -> 0 | R29: =IF(E29=0,"",IF(OR(G29=0,G29="I Don't Know"),VLOOKUP(E29,'Default Values'!$B$5:$J$20,9,0),G29)) ->  | S29: ='Emissions Database'!BS138 -> 0
H30: =IF($E30=0,0,$I30*VLOOKUP($E30,'Default Values'!$B$5:$I$20,8,0)) -> 0 | I30: =IF($E30=0,0,VLOOKUP($E30,'Default Values'!$B$5:$G$20,2,0)*Conversions!$C$5*F30) -> 0 | J30: 1 | K30: =IF($E30=0,0,$I30*VLOOKUP($E30,'Default Values'!$B$5:$I$20,8,0)) -> 0 | L30: =IF($E30=0,0,VLOOKUP($E30,'Default Values'!$B$5:$G$20,3,0)) -> 0 | M30: =IF($E30=0,0,VLOOKUP($E30,'Default Values'!$B$5:$G$20,4,0)) -> 0 | N30: =IF($E30=0,0,VLOOKUP($E30,'Default Values'!$B$5:$G$20,5,0)) -> 0 | O30: =IF($E30=0,0,VLOOKUP($E30,'Default Values'!$B$5:$G$20,6,0)) -> 0 | P30: =((H30*L30)+(I30*M30*J30)+(K30*N30*(1-O30)))*Conversions!$C$4 -> 0 | Q30: ='Emissions Database'!K139 -> 0 | R30: =IF(E30=0,"",IF(OR(G30=0,G30="I Don't Know"),VLOOKUP(E30,'Default Values'!$B$5:$J$20,9,0),G30)) ->  | S30: ='Emissions Database'!BS139 -> 0
H31: =IF($E31=0,0,$I31*VLOOKUP($E31,'Default Values'!$B$5:$I$20,8,0)) -> 0 | I31: =IF($E31=0,0,VLOOKUP($E31,'Default Values'!$B$5:$G$20,2,0)*Conversions!$C$5*F31) -> 0 | J31: 1 | K31: =IF($E31=0,0,$I31*VLOOKUP($E31,'Default Values'!$B$5:$I$20,8,0)) -> 0 | L31: =IF($E31=0,0,VLOOKUP($E31,'Default Values'!$B$5:$G$20,3,0)) -> 0 | M31: =IF($E31=0,0,VLOOKUP($E31,'Default Values'!$B$5:$G$20,4,0)) -> 0 | N31: =IF($E31=0,0,VLOOKUP($E31,'Default Values'!$B$5:$G$20,5,0)) -> 0 | O31: =IF($E31=0,0,VLOOKUP($E31,'Default Values'!$B$5:$G$20,6,0)) -> 0 | P31: =((H31*L31)+(I31*M31*J31)+(K31*N31*(1-O31)))*Conversions!$C$4 -> 0 | Q31: ='Emissions Database'!K140 -> 0 | R31: =IF(E31=0,"",IF(OR(G31=0,G31="I Don't Know"),VLOOKUP(E31,'Default Values'!$B$5:$J$20,9,0),G31)) ->  | S31: ='Emissions Database'!BS140 -> 0
H32: =IF($E32=0,0,$I32*VLOOKUP($E32,'Default Values'!$B$5:$I$20,8,0)) -> 0 | I32: =IF($E32=0,0,VLOOKUP($E32,'Default Values'!$B$5:$G$20,2,0)*Conversions!$C$5*F32) -> 0 | J32: 1 | K32: =IF($E32=0,0,$I32*VLOOKUP($E32,'Default Values'!$B$5:$I$20,8,0)) -> 0 | L32: =IF($E32=0,0,VLOOKUP($E32,'Default Values'!$B$5:$G$20,3,0)) -> 0 | M32: =IF($E32=0,0,VLOOKUP($E32,'Default Values'!$B$5:$G$20,4,0)) -> 0 | N32: =IF($E32=0,0,VLOOKUP($E32,'Default Values'!$B$5:$G$20,5,0)) -> 0 | O32: =IF($E32=0,0,VLOOKUP($E32,'Default Values'!$B$5:$G$20,6,0)) -> 0 | P32: =((H32*L32)+(I32*M32*J32)+(K32*N32*(1-O32)))*Conversions!$C$4 -> 0 | Q32: ='Emissions Database'!K141 -> 0 | R32: =IF(E32=0,"",IF(OR(G32=0,G32="I Don't Know"),VLOOKUP(E32,'Default Values'!$B$5:$J$20,9,0),G32)) ->  | S32: ='Emissions Database'!BS141 -> 0
H33: =IF($E33=0,0,$I33*VLOOKUP($E33,'Default Values'!$B$5:$I$20,8,0)) -> 0 | I33: =IF($E33=0,0,VLOOKUP($E33,'Default Values'!$B$5:$G$20,2,0)*Conversions!$C$5*F33) -> 0 | J33: 1 | K33: =IF($E33=0,0,$I33*VLOOKUP($E33,'Default Values'!$B$5:$I$20,8,0)) -> 0 | L33: =IF($E33=0,0,VLOOKUP($E33,'Default Values'!$B$5:$G$20,3,0)) -> 0 | M33: =IF($E33=0,0,VLOOKUP($E33,'Default Values'!$B$5:$G$20,4,0)) -> 0 | N33: =IF($E33=0,0,VLOOKUP($E33,'Default Values'!$B$5:$G$20,5,0)) -> 0 | O33: =IF($E33=0,0,VLOOKUP($E33,'Default Values'!$B$5:$G$20,6,0)) -> 0 | P33: =((H33*L33)+(I33*M33*J33)+(K33*N33*(1-O33)))*Conversions!$C$4 -> 0 | Q33: ='Emissions Database'!K142 -> 0 | R33: =IF(E33=0,"",IF(OR(G33=0,G33="I Don't Know"),VLOOKUP(E33,'Default Values'!$B$5:$J$20,9,0),G33)) ->  | S33: ='Emissions Database'!BS142 -> 0
H34: =IF($E34=0,0,$I34*VLOOKUP($E34,'Default Values'!$B$5:$I$20,8,0)) -> 0 | I34: =IF($E34=0,0,VLOOKUP($E34,'Default Values'!$B$5:$G$20,2,0)*Conversions!$C$5*F34) -> 0 | J34: 1 | K34: =IF($E34=0,0,$I34*VLOOKUP($E34,'Default Values'!$B$5:$I$20,8,0)) -> 0 | L34: =IF($E34=0,0,VLOOKUP($E34,'Default Values'!$B$5:$G$20,3,0)) -> 0 | M34: =IF($E34=0,0,VLOOKUP($E34,'Default Values'!$B$5:$G$20,4,0)) -> 0 | N34: =IF($E34=0,0,VLOOKUP($E34,'Default Values'!$B$5:$G$20,5,0)) -> 0 | O34: =IF($E34=0,0,VLOOKUP($E34,'Default Values'!$B$5:$G$20,6,0)) -> 0 | P34: =((H34*L34)+(I34*M34*J34)+(K34*N34*(1-O34)))*Conversions!$C$4 -> 0 | Q34: ='Emissions Database'!K143 -> 0 | R34: =IF(E34=0,"",IF(OR(G34=0,G34="I Don't Know"),VLOOKUP(E34,'Default Values'!$B$5:$J$20,9,0),G34)) ->  | S34: ='Emissions Database'!BS143 -> 0
H35: =IF($E35=0,0,$I35*VLOOKUP($E35,'Default Values'!$B$5:$I$20,8,0)) -> 0 | I35: =IF($E35=0,0,VLOOKUP($E35,'Default Values'!$B$5:$G$20,2,0)*Conversions!$C$5*F35) -> 0 | J35: 1 | K35: =IF($E35=0,0,$I35*VLOOKUP($E35,'Default Values'!$B$5:$I$20,8,0)) -> 0 | L35: =IF($E35=0,0,VLOOKUP($E35,'Default Values'!$B$5:$G$20,3,0)) -> 0 | M35: =IF($E35=0,0,VLOOKUP($E35,'Default Values'!$B$5:$G$20,4,0)) -> 0 | N35: =IF($E35=0,0,VLOOKUP($E35,'Default Values'!$B$5:$G$20,5,0)) -> 0 | O35: =IF($E35=0,0,VLOOKUP($E35,'Default Values'!$B$5:$G$20,6,0)) -> 0 | P35: =((H35*L35)+(I35*M35*J35)+(K35*N35*(1-O35)))*Conversions!$C$4 -> 0 | Q35: ='Emissions Database'!K144 -> 0 | R35: =IF(E35=0,"",IF(OR(G35=0,G35="I Don't Know"),VLOOKUP(E35,'Default Values'!$B$5:$J$20,9,0),G35)) ->  | S35: ='Emissions Database'!BS144 -> 0
H36: =IF($E36=0,0,$I36*VLOOKUP($E36,'Default Values'!$B$5:$I$20,8,0)) -> 0 | I36: =IF($E36=0,0,VLOOKUP($E36,'Default Values'!$B$5:$G$20,2,0)*Conversions!$C$5*F36) -> 0 | J36: 1 | K36: =IF($E36=0,0,$I36*VLOOKUP($E36,'Default Values'!$B$5:$I$20,8,0)) -> 0 | L36: =IF($E36=0,0,VLOOKUP($E36,'Default Values'!$B$5:$G$20,3,0)) -> 0 | M36: =IF($E36=0,0,VLOOKUP($E36,'Default Values'!$B$5:$G$20,4,0)) -> 0 | N36: =IF($E36=0,0,VLOOKUP($E36,'Default Values'!$B$5:$G$20,5,0)) -> 0 | O36: =IF($E36=0,0,VLOOKUP($E36,'Default Values'!$B$5:$G$20,6,0)) -> 0 | P36: =((H36*L36)+(I36*M36*J36)+(K36*N36*(1-O36)))*Conversions!$C$4 -> 0 | Q36: ='Emissions Database'!K145 -> 0 | R36: =IF(E36=0,"",IF(OR(G36=0,G36="I Don't Know"),VLOOKUP(E36,'Default Values'!$B$5:$J$20,9,0),G36)) ->  | S36: ='Emissions Database'!BS145 -> 0
H37: =IF($E37=0,0,$I37*VLOOKUP($E37,'Default Values'!$B$5:$I$20,8,0)) -> 0 | I37: =IF($E37=0,0,VLOOKUP($E37,'Default Values'!$B$5:$G$20,2,0)*Conversions!$C$5*F37) -> 0 | J37: 1 | K37: =IF($E37=0,0,$I37*VLOOKUP($E37,'Default Values'!$B$5:$I$20,8,0)) -> 0 | L37: =IF($E37=0,0,VLOOKUP($E37,'Default Values'!$B$5:$G$20,3,0)) -> 0 | M37: =IF($E37=0,0,VLOOKUP($E37,'Default Values'!$B$5:$G$20,4,0)) -> 0 | N37: =IF($E37=0,0,VLOOKUP($E37,'Default Values'!$B$5:$G$20,5,0)) -> 0 | O37: =IF($E37=0,0,VLOOKUP($E37,'Default Values'!$B$5:$G$20,6,0)) -> 0 | P37: =((H37*L37)+(I37*M37*J37)+(K37*N37*(1-O37)))*Conversions!$C$4 -> 0 | Q37: ='Emissions Database'!K146 -> 0 | R37: =IF(E37=0,"",IF(OR(G37=0,G37="I Don't Know"),VLOOKUP(E37,'Default Values'!$B$5:$J$20,9,0),G37)) ->  | S37: ='Emissions Database'!BS146 -> 0
H38: =IF($E38=0,0,$I38*VLOOKUP($E38,'Default Values'!$B$5:$I$20,8,0)) -> 0 | I38: =IF($E38=0,0,VLOOKUP($E38,'Default Values'!$B$5:$G$20,2,0)*Conversions!$C$5*F38) -> 0 | J38: 1 | K38: =IF($E38=0,0,$I38*VLOOKUP($E38,'Default Values'!$B$5:$I$20,8,0)) -> 0 | L38: =IF($E38=0,0,VLOOKUP($E38,'Default Values'!$B$5:$G$20,3,0)) -> 0 | M38: =IF($E38=0,0,VLOOKUP($E38,'Default Values'!$B$5:$G$20,4,0)) -> 0 | N38: =IF($E38=0,0,VLOOKUP($E38,'Default Values'!$B$5:$G$20,5,0)) -> 0 | O38: =IF($E38=0,0,VLOOKUP($E38,'Default Values'!$B$5:$G$20,6,0)) -> 0 | P38: =((H38*L38)+(I38*M38*J38)+(K38*N38*(1-O38)))*Conversions!$C$4 -> 0 | Q38: ='Emissions Database'!K147 -> 0 | R38: =IF(E38=0,"",IF(OR(G38=0,G38="I Don't Know"),VLOOKUP(E38,'Default Values'!$B$5:$J$20,9,0),G38)) ->  | S38: ='Emissions Database'!BS147 -> 0
H39: =IF($E39=0,0,$I39*VLOOKUP($E39,'Default Values'!$B$5:$I$20,8,0)) -> 0 | I39: =IF($E39=0,0,VLOOKUP($E39,'Default Values'!$B$5:$G$20,2,0)*Conversions!$C$5*F39) -> 0 | J39: 1 | K39: =IF($E39=0,0,$I39*VLOOKUP($E39,'Default Values'!$B$5:$I$20,8,0)) -> 0 | L39: =IF($E39=0,0,VLOOKUP($E39,'Default Values'!$B$5:$G$20,3,0)) -> 0 | M39: =IF($E39=0,0,VLOOKUP($E39,'Default Values'!$B$5:$G$20,4,0)) -> 0 | N39: =IF($E39=0,0,VLOOKUP($E39,'Default Values'!$B$5:$G$20,5,0)) -> 0 | O39: =IF($E39=0,0,VLOOKUP($E39,'Default Values'!$B$5:$G$20,6,0)) -> 0 | P39: =((H39*L39)+(I39*M39*J39)+(K39*N39*(1-O39)))*Conversions!$C$4 -> 0 | Q39: ='Emissions Database'!K148 -> 0 | R39: =IF(E39=0,"",IF(OR(G39=0,G39="I Don't Know"),VLOOKUP(E39,'Default Values'!$B$5:$J$20,9,0),G39)) ->  | S39: ='Emissions Database'!BS148 -> 0
H40: =IF($E40=0,0,$I40*VLOOKUP($E40,'Default Values'!$B$5:$I$20,8,0)) -> 0 | I40: =IF($E40=0,0,VLOOKUP($E40,'Default Values'!$B$5:$G$20,2,0)*Conversions!$C$5*F40) -> 0 | J40: 1 | K40: =IF($E40=0,0,$I40*VLOOKUP($E40,'Default Values'!$B$5:$I$20,8,0)) -> 0 | L40: =IF($E40=0,0,VLOOKUP($E40,'Default Values'!$B$5:$G$20,3,0)) -> 0 | M40: =IF($E40=0,0,VLOOKUP($E40,'Default Values'!$B$5:$G$20,4,0)) -> 0 | N40: =IF($E40=0,0,VLOOKUP($E40,'Default Values'!$B$5:$G$20,5,0)) -> 0 | O40: =IF($E40=0,0,VLOOKUP($E40,'Default Values'!$B$5:$G$20,6,0)) -> 0 | P40: =((H40*L40)+(I40*M40*J40)+(K40*N40*(1-O40)))*Conversions!$C$4 -> 0 | Q40: ='Emissions Database'!K149 -> 0 | R40: =IF(E40=0,"",IF(OR(G40=0,G40="I Don't Know"),VLOOKUP(E40,'Default Values'!$B$5:$J$20,9,0),G40)) ->  | S40: ='Emissions Database'!BS149 -> 0
H41: =IF($E41=0,0,$I41*VLOOKUP($E41,'Default Values'!$B$5:$I$20,8,0)) -> 0 | I41: =IF($E41=0,0,VLOOKUP($E41,'Default Values'!$B$5:$G$20,2,0)*Conversions!$C$5*F41) -> 0 | J41: 1 | K41: =IF($E41=0,0,$I41*VLOOKUP($E41,'Default Values'!$B$5:$I$20,8,0)) -> 0 | L41: =IF($E41=0,0,VLOOKUP($E41,'Default Values'!$B$5:$G$20,3,0)) -> 0 | M41: =IF($E41=0,0,VLOOKUP($E41,'Default Values'!$B$5:$G$20,4,0)) -> 0 | N41: =IF($E41=0,0,VLOOKUP($E41,'Default Values'!$B$5:$G$20,5,0)) -> 0 | O41: =IF($E41=0,0,VLOOKUP($E41,'Default Values'!$B$5:$G$20,6,0)) -> 0 | P41: =((H41*L41)+(I41*M41*J41)+(K41*N41*(1-O41)))*Conversions!$C$4 -> 0 | Q41: ='Emissions Database'!K150 -> 0 | R41: =IF(E41=0,"",IF(OR(G41=0,G41="I Don't Know"),VLOOKUP(E41,'Default Values'!$B$5:$J$20,9,0),G41)) ->  | S41: ='Emissions Database'!BS150 -> 0
H42: =IF($E42=0,0,$I42*VLOOKUP($E42,'Default Values'!$B$5:$I$20,8,0)) -> 0 | I42: =IF($E42=0,0,VLOOKUP($E42,'Default Values'!$B$5:$G$20,2,0)*Conversions!$C$5*F42) -> 0 | J42: 1 | K42: =IF($E42=0,0,$I42*VLOOKUP($E42,'Default Values'!$B$5:$I$20,8,0)) -> 0 | L42: =IF($E42=0,0,VLOOKUP($E42,'Default Values'!$B$5:$G$20,3,0)) -> 0 | M42: =IF($E42=0,0,VLOOKUP($E42,'Default Values'!$B$5:$G$20,4,0)) -> 0 | N42: =IF($E42=0,0,VLOOKUP($E42,'Default Values'!$B$5:$G$20,5,0)) -> 0 | O42: =IF($E42=0,0,VLOOKUP($E42,'Default Values'!$B$5:$G$20,6,0)) -> 0 | P42: =((H42*L42)+(I42*M42*J42)+(K42*N42*(1-O42)))*Conversions!$C$4 -> 0 | Q42: ='Emissions Database'!K151 -> 0 | R42: =IF(E42=0,"",IF(OR(G42=0,G42="I Don't Know"),VLOOKUP(E42,'Default Values'!$B$5:$J$20,9,0),G42)) ->  | S42: ='Emissions Database'!BS151 -> 0
H43: =IF($E43=0,0,$I43*VLOOKUP($E43,'Default Values'!$B$5:$I$20,8,0)) -> 0 | I43: =IF($E43=0,0,VLOOKUP($E43,'Default Values'!$B$5:$G$20,2,0)*Conversions!$C$5*F43) -> 0 | J43: 1 | K43: =IF($E43=0,0,$I43*VLOOKUP($E43,'Default Values'!$B$5:$I$20,8,0)) -> 0 | L43: =IF($E43=0,0,VLOOKUP($E43,'Default Values'!$B$5:$G$20,3,0)) -> 0 | M43: =IF($E43=0,0,VLOOKUP($E43,'Default Values'!$B$5:$G$20,4,0)) -> 0 | N43: =IF($E43=0,0,VLOOKUP($E43,'Default Values'!$B$5:$G$20,5,0)) -> 0 | O43: =IF($E43=0,0,VLOOKUP($E43,'Default Values'!$B$5:$G$20,6,0)) -> 0 | P43: =((H43*L43)+(I43*M43*J43)+(K43*N43*(1-O43)))*Conversions!$C$4 -> 0 | Q43: ='Emissions Database'!K152 -> 0 | R43: =IF(E43=0,"",IF(OR(G43=0,G43="I Don't Know"),VLOOKUP(E43,'Default Values'!$B$5:$J$20,9,0),G43)) ->  | S43: ='Emissions Database'!BS152 -> 0
H44: =IF($E44=0,0,$I44*VLOOKUP($E44,'Default Values'!$B$5:$I$20,8,0)) -> 0 | I44: =IF($E44=0,0,VLOOKUP($E44,'Default Values'!$B$5:$G$20,2,0)*Conversions!$C$5*F44) -> 0 | J44: 1 | K44: =IF($E44=0,0,$I44*VLOOKUP($E44,'Default Values'!$B$5:$I$20,8,0)) -> 0 | L44: =IF($E44=0,0,VLOOKUP($E44,'Default Values'!$B$5:$G$20,3,0)) -> 0 | M44: =IF($E44=0,0,VLOOKUP($E44,'Default Values'!$B$5:$G$20,4,0)) -> 0 | N44: =IF($E44=0,0,VLOOKUP($E44,'Default Values'!$B$5:$G$20,5,0)) -> 0 | O44: =IF($E44=0,0,VLOOKUP($E44,'Default Values'!$B$5:$G$20,6,0)) -> 0 | P44: =((H44*L44)+(I44*M44*J44)+(K44*N44*(1-O44)))*Conversions!$C$4 -> 0 | Q44: ='Emissions Database'!K153 -> 0 | R44: =IF(E44=0,"",IF(OR(G44=0,G44="I Don't Know"),VLOOKUP(E44,'Default Values'!$B$5:$J$20,9,0),G44)) ->  | S44: ='Emissions Database'!BS153 -> 0
H45: =IF($E45=0,0,$I45*VLOOKUP($E45,'Default Values'!$B$5:$I$20,8,0)) -> 0 | I45: =IF($E45=0,0,VLOOKUP($E45,'Default Values'!$B$5:$G$20,2,0)*Conversions!$C$5*F45) -> 0 | J45: 1 | K45: =IF($E45=0,0,$I45*VLOOKUP($E45,'Default Values'!$B$5:$I$20,8,0)) -> 0 | L45: =IF($E45=0,0,VLOOKUP($E45,'Default Values'!$B$5:$G$20,3,0)) -> 0 | M45: =IF($E45=0,0,VLOOKUP($E45,'Default Values'!$B$5:$G$20,4,0)) -> 0 | N45: =IF($E45=0,0,VLOOKUP($E45,'Default Values'!$B$5:$G$20,5,0)) -> 0 | O45: =IF($E45=0,0,VLOOKUP($E45,'Default Values'!$B$5:$G$20,6,0)) -> 0 | P45: =((H45*L45)+(I45*M45*J45)+(K45*N45*(1-O45)))*Conversions!$C$4 -> 0 | Q45: ='Emissions Database'!K154 -> 0 | R45: =IF(E45=0,"",IF(OR(G45=0,G45="I Don't Know"),VLOOKUP(E45,'Default Values'!$B$5:$J$20,9,0),G45)) ->  | S45: ='Emissions Database'!BS154 -> 0
H46: =IF($E46=0,0,$I46*VLOOKUP($E46,'Default Values'!$B$5:$I$20,8,0)) -> 0 | I46: =IF($E46=0,0,VLOOKUP($E46,'Default Values'!$B$5:$G$20,2,0)*Conversions!$C$5*F46) -> 0 | J46: 1 | K46: =IF($E46=0,0,$I46*VLOOKUP($E46,'Default Values'!$B$5:$I$20,8,0)) -> 0 | L46: =IF($E46=0,0,VLOOKUP($E46,'Default Values'!$B$5:$G$20,3,0)) -> 0 | M46: =IF($E46=0,0,VLOOKUP($E46,'Default Values'!$B$5:$G$20,4,0)) -> 0 | N46: =IF($E46=0,0,VLOOKUP($E46,'Default Values'!$B$5:$G$20,5,0)) -> 0 | O46: =IF($E46=0,0,VLOOKUP($E46,'Default Values'!$B$5:$G$20,6,0)) -> 0 | P46: =((H46*L46)+(I46*M46*J46)+(K46*N46*(1-O46)))*Conversions!$C$4 -> 0 | Q46: ='Emissions Database'!K155 -> 0 | R46: =IF(E46=0,"",IF(OR(G46=0,G46="I Don't Know"),VLOOKUP(E46,'Default Values'!$B$5:$J$20,9,0),G46)) ->  | S46: ='Emissions Database'!BS155 -> 0
H47: =IF($E47=0,0,$I47*VLOOKUP($E47,'Default Values'!$B$5:$I$20,8,0)) -> 0 | I47: =IF($E47=0,0,VLOOKUP($E47,'Default Values'!$B$5:$G$20,2,0)*Conversions!$C$5*F47) -> 0 | J47: 1 | K47: =IF($E47=0,0,$I47*VLOOKUP($E47,'Default Values'!$B$5:$I$20,8,0)) -> 0 | L47: =IF($E47=0,0,VLOOKUP($E47,'Default Values'!$B$5:$G$20,3,0)) -> 0 | M47: =IF($E47=0,0,VLOOKUP($E47,'Default Values'!$B$5:$G$20,4,0)) -> 0 | N47: =IF($E47=0,0,VLOOKUP($E47,'Default Values'!$B$5:$G$20,5,0)) -> 0 | O47: =IF($E47=0,0,VLOOKUP($E47,'Default Values'!$B$5:$G$20,6,0)) -> 0 | P47: =((H47*L47)+(I47*M47*J47)+(K47*N47*(1-O47)))*Conversions!$C$4 -> 0 | Q47: ='Emissions Database'!K156 -> 0 | R47: =IF(E47=0,"",IF(OR(G47=0,G47="I Don't Know"),VLOOKUP(E47,'Default Values'!$B$5:$J$20,9,0),G47)) ->  | S47: ='Emissions Database'!BS156 -> 0
H48: =IF($E48=0,0,$I48*VLOOKUP($E48,'Default Values'!$B$5:$I$20,8,0)) -> 0 | I48: =IF($E48=0,0,VLOOKUP($E48,'Default Values'!$B$5:$G$20,2,0)*Conversions!$C$5*F48) -> 0 | J48: 1 | K48: =IF($E48=0,0,$I48*VLOOKUP($E48,'Default Values'!$B$5:$I$20,8,0)) -> 0 | L48: =IF($E48=0,0,VLOOKUP($E48,'Default Values'!$B$5:$G$20,3,0)) -> 0 | M48: =IF($E48=0,0,VLOOKUP($E48,'Default Values'!$B$5:$G$20,4,0)) -> 0 | N48: =IF($E48=0,0,VLOOKUP($E48,'Default Values'!$B$5:$G$20,5,0)) -> 0 | O48: =IF($E48=0,0,VLOOKUP($E48,'Default Values'!$B$5:$G$20,6,0)) -> 0 | P48: =((H48*L48)+(I48*M48*J48)+(K48*N48*(1-O48)))*Conversions!$C$4 -> 0 | Q48: ='Emissions Database'!K157 -> 0 | R48: =IF(E48=0,"",IF(OR(G48=0,G48="I Don't Know"),VLOOKUP(E48,'Default Values'!$B$5:$J$20,9,0),G48)) ->  | S48: ='Emissions Database'!BS157 -> 0
H49: =IF($E49=0,0,$I49*VLOOKUP($E49,'Default Values'!$B$5:$I$20,8,0)) -> 0 | I49: =IF($E49=0,0,VLOOKUP($E49,'Default Values'!$B$5:$G$20,2,0)*Conversions!$C$5*F49) -> 0 | J49: 1 | K49: =IF($E49=0,0,$I49*VLOOKUP($E49,'Default Values'!$B$5:$I$20,8,0)) -> 0 | L49: =IF($E49=0,0,VLOOKUP($E49,'Default Values'!$B$5:$G$20,3,0)) -> 0 | M49: =IF($E49=0,0,VLOOKUP($E49,'Default Values'!$B$5:$G$20,4,0)) -> 0 | N49: =IF($E49=0,0,VLOOKUP($E49,'Default Values'!$B$5:$G$20,5,0)) -> 0 | O49: =IF($E49=0,0,VLOOKUP($E49,'Default Values'!$B$5:$G$20,6,0)) -> 0 | P49: =((H49*L49)+(I49*M49*J49)+(K49*N49*(1-O49)))*Conversions!$C$4 -> 0 | Q49: ='Emissions Database'!K158 -> 0 | R49: =IF(E49=0,"",IF(OR(G49=0,G49="I Don't Know"),VLOOKUP(E49,'Default Values'!$B$5:$J$20,9,0),G49)) ->  | S49: ='Emissions Database'!BS158 -> 0
H50: =IF($E50=0,0,$I50*VLOOKUP($E50,'Default Values'!$B$5:$I$20,8,0)) -> 0 | I50: =IF($E50=0,0,VLOOKUP($E50,'Default Values'!$B$5:$G$20,2,0)*Conversions!$C$5*F50) -> 0 | J50: 1 | K50: =IF($E50=0,0,$I50*VLOOKUP($E50,'Default Values'!$B$5:$I$20,8,0)) -> 0 | L50: =IF($E50=0,0,VLOOKUP($E50,'Default Values'!$B$5:$G$20,3,0)) -> 0 | M50: =IF($E50=0,0,VLOOKUP($E50,'Default Values'!$B$5:$G$20,4,0)) -> 0 | N50: =IF($E50=0,0,VLOOKUP($E50,'Default Values'!$B$5:$G$20,5,0)) -> 0 | O50: =IF($E50=0,0,VLOOKUP($E50,'Default Values'!$B$5:$G$20,6,0)) -> 0 | P50: =((H50*L50)+(I50*M50*J50)+(K50*N50*(1-O50)))*Conversions!$C$4 -> 0 | Q50: ='Emissions Database'!K159 -> 0 | R50: =IF(E50=0,"",IF(OR(G50=0,G50="I Don't Know"),VLOOKUP(E50,'Default Values'!$B$5:$J$20,9,0),G50)) ->  | S50: ='Emissions Database'!BS159 -> 0
H51: =IF($E51=0,0,$I51*VLOOKUP($E51,'Default Values'!$B$5:$I$20,8,0)) -> 0 | I51: =IF($E51=0,0,VLOOKUP($E51,'Default Values'!$B$5:$G$20,2,0)*Conversions!$C$5*F51) -> 0 | J51: 1 | K51: =IF($E51=0,0,$I51*VLOOKUP($E51,'Default Values'!$B$5:$I$20,8,0)) -> 0 | L51: =IF($E51=0,0,VLOOKUP($E51,'Default Values'!$B$5:$G$20,3,0)) -> 0 | M51: =IF($E51=0,0,VLOOKUP($E51,'Default Values'!$B$5:$G$20,4,0)) -> 0 | N51: =IF($E51=0,0,VLOOKUP($E51,'Default Values'!$B$5:$G$20,5,0)) -> 0 | O51: =IF($E51=0,0,VLOOKUP($E51,'Default Values'!$B$5:$G$20,6,0)) -> 0 | P51: =((H51*L51)+(I51*M51*J51)+(K51*N51*(1-O51)))*Conversions!$C$4 -> 0 | Q51: ='Emissions Database'!K160 -> 0 | R51: =IF(E51=0,"",IF(OR(G51=0,G51="I Don't Know"),VLOOKUP(E51,'Default Values'!$B$5:$J$20,9,0),G51)) ->  | S51: ='Emissions Database'!BS160 -> 0
H52: =IF($E52=0,0,$I52*VLOOKUP($E52,'Default Values'!$B$5:$I$20,8,0)) -> 0 | I52: =IF($E52=0,0,VLOOKUP($E52,'Default Values'!$B$5:$G$20,2,0)*Conversions!$C$5*F52) -> 0 | J52: 1 | K52: =IF($E52=0,0,$I52*VLOOKUP($E52,'Default Values'!$B$5:$I$20,8,0)) -> 0 | L52: =IF($E52=0,0,VLOOKUP($E52,'Default Values'!$B$5:$G$20,3,0)) -> 0 | M52: =IF($E52=0,0,VLOOKUP($E52,'Default Values'!$B$5:$G$20,4,0)) -> 0 | N52: =IF($E52=0,0,VLOOKUP($E52,'Default Values'!$B$5:$G$20,5,0)) -> 0 | O52: =IF($E52=0,0,VLOOKUP($E52,'Default Values'!$B$5:$G$20,6,0)) -> 0 | P52: =((H52*L52)+(I52*M52*J52)+(K52*N52*(1-O52)))*Conversions!$C$4 -> 0 | Q52: ='Emissions Database'!K161 -> 0 | R52: =IF(E52=0,"",IF(OR(G52=0,G52="I Don't Know"),VLOOKUP(E52,'Default Values'!$B$5:$J$20,9,0),G52)) ->  | S52: ='Emissions Database'!BS161 -> 0
H53: =IF($E53=0,0,$I53*VLOOKUP($E53,'Default Values'!$B$5:$I$20,8,0)) -> 0 | I53: =IF($E53=0,0,VLOOKUP($E53,'Default Values'!$B$5:$G$20,2,0)*Conversions!$C$5*F53) -> 0 | J53: 1 | K53: =IF($E53=0,0,$I53*VLOOKUP($E53,'Default Values'!$B$5:$I$20,8,0)) -> 0 | L53: =IF($E53=0,0,VLOOKUP($E53,'Default Values'!$B$5:$G$20,3,0)) -> 0 | M53: =IF($E53=0,0,VLOOKUP($E53,'Default Values'!$B$5:$G$20,4,0)) -> 0 | N53: =IF($E53=0,0,VLOOKUP($E53,'Default Values'!$B$5:$G$20,5,0)) -> 0 | O53: =IF($E53=0,0,VLOOKUP($E53,'Default Values'!$B$5:$G$20,6,0)) -> 0 | P53: =((H53*L53)+(I53*M53*J53)+(K53*N53*(1-O53)))*Conversions!$C$4 -> 0 | Q53: ='Emissions Database'!K162 -> 0 | R53: =IF(E53=0,"",IF(OR(G53=0,G53="I Don't Know"),VLOOKUP(E53,'Default Values'!$B$5:$J$20,9,0),G53)) ->  | S53: ='Emissions Database'!BS162 -> 0
H54: =IF($E54=0,0,$I54*VLOOKUP($E54,'Default Values'!$B$5:$I$20,8,0)) -> 0 | I54: =IF($E54=0,0,VLOOKUP($E54,'Default Values'!$B$5:$G$20,2,0)*Conversions!$C$5*F54) -> 0 | J54: 1 | K54: =IF($E54=0,0,$I54*VLOOKUP($E54,'Default Values'!$B$5:$I$20,8,0)) -> 0 | L54: =IF($E54=0,0,VLOOKUP($E54,'Default Values'!$B$5:$G$20,3,0)) -> 0 | M54: =IF($E54=0,0,VLOOKUP($E54,'Default Values'!$B$5:$G$20,4,0)) -> 0 | N54: =IF($E54=0,0,VLOOKUP($E54,'Default Values'!$B$5:$G$20,5,0)) -> 0 | O54: =IF($E54=0,0,VLOOKUP($E54,'Default Values'!$B$5:$G$20,6,0)) -> 0 | P54: =((H54*L54)+(I54*M54*J54)+(K54*N54*(1-O54)))*Conversions!$C$4 -> 0 | Q54: ='Emissions Database'!K163 -> 0 | R54: =IF(E54=0,"",IF(OR(G54=0,G54="I Don't Know"),VLOOKUP(E54,'Default Values'!$B$5:$J$20,9,0),G54)) ->  | S54: ='Emissions Database'!BS163 -> 0
C55: Total | P55: =SUM(P15:P54) -> 0 | Q55: =SUM(Q15:Q54) -> 0 | S55: =SUM(S15:S54) -> 0

Sheet Screening (hidden)
C2: Screening Approach
C5: Use this page to calculate emissions if you have data on the purchases of new equipment, the services of existing equipment, the disposal of retiring equipment, and the time the equipment is in use.
B7: Enter custom leak/disposal rates? | D7: Light Yellow = Required input fields if a row is used
D8: Light Green = Optional input fields
B9: 2 | D9: White = Calculation cells which are not editable | G9: CN | H9: C | I9: T | J9: CD | K9: k | L9: x | M9: y | N9: z | O9: k | P9: x | Q9: y | R9: z
B11: Completion flag | C11: Facility or region name | D11: Federal building type / vehicle type | E11: Equipment type | F11: Refrigerant type | G11: Quantity of F-gas charged into the new equipment | H11: Total full charge capacity of the equipment | I11: Time equipment was in use throughout the year | J11: Total full charge capacity of equipment being disposed | K11: User specified installation emission rate | L11: User specified operation emission rate | M11: User specified refrigerant remaining at disposal | N11: User specified recovery efficiency | O11: Installation emission rate - final | P11: Operation emission rate - final | Q11: Refrigerant remaining at disposal - final | R11: Recovery efficiency - final | S11: Annual emissions | T11: Annual emissions | U11: Annual greenhouse gas emissions | W11: Screening Approach
G12: (lb) | H12: (lb) | I12: (years) | J12: (lb) | K12: (%) | L12: (%) | M12: (%) | N12: (%) | O12: (%) | P12: (%) | Q12: (%) | R12: (%) | S12: (MT Refrigerant) | T12: (MT F-gas) | U12: (MT CO2-e) | W12: Annual Emissions [MT F-gas] = (CN ∙ k) + (C ∙ x ∙ T) + (CD ∙ y ∙ (1- z)) ∙ 4.536 x 10-4 [MT/lb]
B13: =IF(AND(C13=0,E13=0,F13=0,ISBLANK(G13),ISBLANK(H13),ISBLANK(J13)),"",IF(OR(C13=0,E13=0,F13=0,ISBLANK(G13),ISBLANK(H13),ISBLANK(J13)),"INCOMPLETE","OK")) -> OK | C13: Example | D13: School | E13: Walk-in refrigerators and freezers | F13: R-404A | G13: 30 | H13: 60 | I13: 1 | J13: 30 | O13: =IF(ISBLANK(K13),IF(ISBLANK($E13),"",VLOOKUP($E13,'Default Values'!$B$5:$G$20,COLUMNS('Default Values'!$B$4:D$4),0)),K13) -> 0.02 | P13: =IF(ISBLANK(L13),IF(ISBLANK($E13),"",VLOOKUP($E13,'Default Values'!$B$5:$G$20,COLUMNS('Default Values'!$B$4:E$4),0)),L13) -> 0.12 | Q13: =IF(ISBLANK(M13),IF(ISBLANK($E13),"",VLOOKUP($E13,'Default Values'!$B$5:$G$20,COLUMNS('Default Values'!$B$4:F$4),0)),M13) -> 0.9 | R13: =IF(ISBLANK(N13),IF(ISBLANK($E13),"",VLOOKUP($E13,'Default Values'!$B$5:$G$20,COLUMNS('Default Values'!$B$4:G$4),0)),N13) -> 0.7 | S13: =((G13*O13)+(H13*P13*I13)+(J13*Q13*(1-R13)))*Conversions!$C$4 -> 0.00721224 | T13: =IF(F13="Non-HFC",0,S13) -> 0.00721224 | U13: =IF(F13=0,"",S13*VLOOKUP(F13,Lists!$C$72:$S$152,COLUMNS(Lists!$C$72:$S$72),0)) -> 28.28352038 | W13: Where:
B14: =IF(AND(C14=0,E14=0,F14=0,ISBLANK(G14),ISBLANK(H14),ISBLANK(J14)),"",IF(OR(C14=0,E14=0,F14=0,ISBLANK(G14),ISBLANK(H14),ISBLANK(J14)),"INCOMPLETE","OK")) ->  | I14: 1 | O14: =IF(ISBLANK(K14),IF(ISBLANK($E14),0,VLOOKUP($E14,'Default Values'!$B$5:$G$20,COLUMNS('Default Values'!$B$4:D$4),0)),K14) -> 0 | P14: =IF(ISBLANK(L14),IF(ISBLANK($E14),0,VLOOKUP($E14,'Default Values'!$B$5:$G$20,COLUMNS('Default Values'!$B$4:E$4),0)),L14) -> 0 | Q14: =IF(ISBLANK(M14),IF(ISBLANK($E14),0,VLOOKUP($E14,'Default Values'!$B$5:$G$20,COLUMNS('Default Values'!$B$4:F$4),0)),M14) -> 0 | R14: =IF(ISBLANK(N14),IF(ISBLANK($E14),0,VLOOKUP($E14,'Default Values'!$B$5:$G$20,COLUMNS('Default Values'!$B$4:G$4),0)),N14) -> 0 | S14: =((G14*O14)+(H14*P14*I14)+(J14*Q14*(1-R14)))*Conversions!$C$4 -> 0 | T14: =IF(F14="Non-HFC",0,S14) -> 0 | U14: ='Emissions Database'!BS84 -> 0 | W14: CN = Quantity of F-gas charged into the new equipment [lb]
I15: 1 | O15: =IF(ISBLANK(K15),IF(ISBLANK($E15),0,VLOOKUP($E15,'Default Values'!$B$5:$G$20,COLUMNS('Default Values'!$B$4:D$4),0)),K15) -> 0 | P15: =IF(ISBLANK(L15),IF(ISBLANK($E15),0,VLOOKUP($E15,'Default Values'!$B$5:$G$20,COLUMNS('Default Values'!$B$4:E$4),0)),L15) -> 0 | Q15: =IF(ISBLANK(M15),IF(ISBLANK($E15),0,VLOOKUP($E15,'Default Values'!$B$5:$G$20,COLUMNS('Default Values'!$B$4:F$4),0)),M15) -> 0 | R15: =IF(ISBLANK(N15),IF(ISBLANK($E15),0,VLOOKUP($E15,'Default Values'!$B$5:$G$20,COLUMNS('Default Values'!$B$4:G$4),0)),N15) -> 0 | S15: =((G15*O15)+(H15*P15*I15)+(J15*Q15*(1-R15)))*Conversions!$C$4 -> 0 | T15: =IF(F15="Non-HFC",0,S15) -> 0 | U15: ='Emissions Database'!BS85 -> 0 | W15: C = Total full charge capacity of the equipment [lb]
I16: 1 | O16: =IF(ISBLANK(K16),IF(ISBLANK($E16),0,VLOOKUP($E16,'Default Values'!$B$5:$G$20,COLUMNS('Default Values'!$B$4:D$4),0)),K16) -> 0 | P16: =IF(ISBLANK(L16),IF(ISBLANK($E16),0,VLOOKUP($E16,'Default Values'!$B$5:$G$20,COLUMNS('Default Values'!$B$4:E$4),0)),L16) -> 0 | Q16: =IF(ISBLANK(M16),IF(ISBLANK($E16),0,VLOOKUP($E16,'Default Values'!$B$5:$G$20,COLUMNS('Default Values'!$B$4:F$4),0)),M16) -> 0 | R16: =IF(ISBLANK(N16),IF(ISBLANK($E16),0,VLOOKUP($E16,'Default Values'!$B$5:$G$20,COLUMNS('Default Values'!$B$4:G$4),0)),N16) -> 0 | S16: =((G16*O16)+(H16*P16*I16)+(J16*Q16*(1-R16)))*Conversions!$C$4 -> 0 | T16: 0 | U16: ='Emissions Database'!BS86 -> 0 | W16: T = Time equipment was in use [yrs]
I17: 1 | O17: =IF(ISBLANK(K17),IF(ISBLANK($E17),0,VLOOKUP($E17,'Default Values'!$B$5:$G$20,COLUMNS('Default Values'!$B$4:D$4),0)),K17) -> 0 | P17: =IF(ISBLANK(L17),IF(ISBLANK($E17),0,VLOOKUP($E17,'Default Values'!$B$5:$G$20,COLUMNS('Default Values'!$B$4:E$4),0)),L17) -> 0 | Q17: =IF(ISBLANK(M17),IF(ISBLANK($E17),0,VLOOKUP($E17,'Default Values'!$B$5:$G$20,COLUMNS('Default Values'!$B$4:F$4),0)),M17) -> 0 | R17: =IF(ISBLANK(N17),IF(ISBLANK($E17),0,VLOOKUP($E17,'Default Values'!$B$5:$G$20,COLUMNS('Default Values'!$B$4:G$4),0)),N17) -> 0 | S17: =((G17*O17)+(H17*P17*I17)+(J17*Q17*(1-R17)))*Conversions!$C$4 -> 0 | T17: 0 | U17: ='Emissions Database'!BS87 -> 0 | W17: CD = Total full charge capacity of equipment being disposed [lb]
I18: 1 | O18: =IF(ISBLANK(K18),IF(ISBLANK($E18),0,VLOOKUP($E18,'Default Values'!$B$5:$G$20,COLUMNS('Default Values'!$B$4:D$4),0)),K18) -> 0 | P18: =IF(ISBLANK(L18),IF(ISBLANK($E18),0,VLOOKUP($E18,'Default Values'!$B$5:$G$20,COLUMNS('Default Values'!$B$4:E$4),0)),L18) -> 0 | Q18: =IF(ISBLANK(M18),IF(ISBLANK($E18),0,VLOOKUP($E18,'Default Values'!$B$5:$G$20,COLUMNS('Default Values'!$B$4:F$4),0)),M18) -> 0 | R18: =IF(ISBLANK(N18),IF(ISBLANK($E18),0,VLOOKUP($E18,'Default Values'!$B$5:$G$20,COLUMNS('Default Values'!$B$4:G$4),0)),N18) -> 0 | S18: =((G18*O18)+(H18*P18*I18)+(J18*Q18*(1-R18)))*Conversions!$C$4 -> 0 | T18: 0 | U18: ='Emissions Database'!BS88 -> 0 | W18: k = Installation emission factor [%]
I19: 1 | O19: =IF(ISBLANK(K19),IF(ISBLANK($E19),0,VLOOKUP($E19,'Default Values'!$B$5:$G$20,COLUMNS('Default Values'!$B$4:D$4),0)),K19) -> 0 | P19: =IF(ISBLANK(L19),IF(ISBLANK($E19),0,VLOOKUP($E19,'Default Values'!$B$5:$G$20,COLUMNS('Default Values'!$B$4:E$4),0)),L19) -> 0 | Q19: =IF(ISBLANK(M19),IF(ISBLANK($E19),0,VLOOKUP($E19,'Default Values'!$B$5:$G$20,COLUMNS('Default Values'!$B$4:F$4),0)),M19) -> 0 | R19: =IF(ISBLANK(N19),IF(ISBLANK($E19),0,VLOOKUP($E19,'Default Values'!$B$5:$G$20,COLUMNS('Default Values'!$B$4:G$4),0)),N19) -> 0 | S19: =((G19*O19)+(H19*P19*I19)+(J19*Q19*(1-R19)))*Conversions!$C$4 -> 0 | T19: 0 | U19: ='Emissions Database'!BS89 -> 0 | W19: x = Operation emission factor [%]
I20: 1 | O20: =IF(ISBLANK(K20),IF(ISBLANK($E20),0,VLOOKUP($E20,'Default Values'!$B$5:$G$20,COLUMNS('Default Values'!$B$4:D$4),0)),K20) -> 0 | P20: =IF(ISBLANK(L20),IF(ISBLANK($E20),0,VLOOKUP($E20,'Default Values'!$B$5:$G$20,COLUMNS('Default Values'!$B$4:E$4),0)),L20) -> 0 | Q20: =IF(ISBLANK(M20),IF(ISBLANK($E20),0,VLOOKUP($E20,'Default Values'!$B$5:$G$20,COLUMNS('Default Values'!$B$4:F$4),0)),M20) -> 0 | R20: =IF(ISBLANK(N20),IF(ISBLANK($E20),0,VLOOKUP($E20,'Default Values'!$B$5:$G$20,COLUMNS('Default Values'!$B$4:G$4),0)),N20) -> 0 | S20: =((G20*O20)+(H20*P20*I20)+(J20*Q20*(1-R20)))*Conversions!$C$4 -> 0 | T20: 0 | U20: ='Emissions Database'!BS90 -> 0 | W20: y = Refrigerant remaining at disposal [%]
I21: 1 | O21: =IF(ISBLANK(K21),IF(ISBLANK($E21),0,VLOOKUP($E21,'Default Values'!$B$5:$G$20,COLUMNS('Default Values'!$B$4:D$4),0)),K21) -> 0 | P21: =IF(ISBLANK(L21),IF(ISBLANK($E21),0,VLOOKUP($E21,'Default Values'!$B$5:$G$20,COLUMNS('Default Values'!$B$4:E$4),0)),L21) -> 0 | Q21: =IF(ISBLANK(M21),IF(ISBLANK($E21),0,VLOOKUP($E21,'Default Values'!$B$5:$G$20,COLUMNS('Default Values'!$B$4:F$4),0)),M21) -> 0 | R21: =IF(ISBLANK(N21),IF(ISBLANK($E21),0,VLOOKUP($E21,'Default Values'!$B$5:$G$20,COLUMNS('Default Values'!$B$4:G$4),0)),N21) -> 0 | S21: =((G21*O21)+(H21*P21*I21)+(J21*Q21*(1-R21)))*Conversions!$C$4 -> 0 | T21: 0 | U21: ='Emissions Database'!BS91 -> 0 | W21: z = Recovery efficiency [%]
I22: 1 | O22: =IF(ISBLANK(K22),IF(ISBLANK($E22),0,VLOOKUP($E22,'Default Values'!$B$5:$G$20,COLUMNS('Default Values'!$B$4:D$4),0)),K22) -> 0 | P22: =IF(ISBLANK(L22),IF(ISBLANK($E22),0,VLOOKUP($E22,'Default Values'!$B$5:$G$20,COLUMNS('Default Values'!$B$4:E$4),0)),L22) -> 0 | Q22: =IF(ISBLANK(M22),IF(ISBLANK($E22),0,VLOOKUP($E22,'Default Values'!$B$5:$G$20,COLUMNS('Default Values'!$B$4:F$4),0)),M22) -> 0 | R22: =IF(ISBLANK(N22),IF(ISBLANK($E22),0,VLOOKUP($E22,'Default Values'!$B$5:$G$20,COLUMNS('Default Values'!$B$4:G$4),0)),N22) -> 0 | S22: =((G22*O22)+(H22*P22*I22)+(J22*Q22*(1-R22)))*Conversions!$C$4 -> 0 | T22: 0 | U22: ='Emissions Database'!BS92 -> 0 | W22: Source: Federal Greenhouse Gas Accounting and Reporting Guidance - Technical Support Document
I23: 1 | O23: =IF(ISBLANK(K23),IF(ISBLANK($E23),0,VLOOKUP($E23,'Default Values'!$B$5:$G$20,COLUMNS('Default Values'!$B$4:D$4),0)),K23) -> 0 | P23: =IF(ISBLANK(L23),IF(ISBLANK($E23),0,VLOOKUP($E23,'Default Values'!$B$5:$G$20,COLUMNS('Default Values'!$B$4:E$4),0)),L23) -> 0 | Q23: =IF(ISBLANK(M23),IF(ISBLANK($E23),0,VLOOKUP($E23,'Default Values'!$B$5:$G$20,COLUMNS('Default Values'!$B$4:F$4),0)),M23) -> 0 | R23: =IF(ISBLANK(N23),IF(ISBLANK($E23),0,VLOOKUP($E23,'Default Values'!$B$5:$G$20,COLUMNS('Default Values'!$B$4:G$4),0)),N23) -> 0 | S23: =((G23*O23)+(H23*P23*I23)+(J23*Q23*(1-R23)))*Conversions!$C$4 -> 0 | T23: 0 | U23: ='Emissions Database'!BS93 -> 0 | W23: http://www.whitehouse.gov/administration/eop/ceq/sustainability/fed-ghg
I24: 1 | O24: =IF(ISBLANK(K24),IF(ISBLANK($E24),0,VLOOKUP($E24,'Default Values'!$B$5:$G$20,COLUMNS('Default Values'!$B$4:D$4),0)),K24) -> 0 | P24: =IF(ISBLANK(L24),IF(ISBLANK($E24),0,VLOOKUP($E24,'Default Values'!$B$5:$G$20,COLUMNS('Default Values'!$B$4:E$4),0)),L24) -> 0 | Q24: =IF(ISBLANK(M24),IF(ISBLANK($E24),0,VLOOKUP($E24,'Default Values'!$B$5:$G$20,COLUMNS('Default Values'!$B$4:F$4),0)),M24) -> 0 | R24: =IF(ISBLANK(N24),IF(ISBLANK($E24),0,VLOOKUP($E24,'Default Values'!$B$5:$G$20,COLUMNS('Default Values'!$B$4:G$4),0)),N24) -> 0 | S24: =((G24*O24)+(H24*P24*I24)+(J24*Q24*(1-R24)))*Conversions!$C$4 -> 0 | T24: 0 | U24: ='Emissions Database'!BS94 -> 0
I25: 1 | O25: =IF(ISBLANK(K25),IF(ISBLANK($E25),0,VLOOKUP($E25,'Default Values'!$B$5:$G$20,COLUMNS('Default Values'!$B$4:D$4),0)),K25) -> 0 | P25: =IF(ISBLANK(L25),IF(ISBLANK($E25),0,VLOOKUP($E25,'Default Values'!$B$5:$G$20,COLUMNS('Default Values'!$B$4:E$4),0)),L25) -> 0 | Q25: =IF(ISBLANK(M25),IF(ISBLANK($E25),0,VLOOKUP($E25,'Default Values'!$B$5:$G$20,COLUMNS('Default Values'!$B$4:F$4),0)),M25) -> 0 | R25: =IF(ISBLANK(N25),IF(ISBLANK($E25),0,VLOOKUP($E25,'Default Values'!$B$5:$G$20,COLUMNS('Default Values'!$B$4:G$4),0)),N25) -> 0 | S25: =((G25*O25)+(H25*P25*I25)+(J25*Q25*(1-R25)))*Conversions!$C$4 -> 0 | T25: 0 | U25: ='Emissions Database'!BS95 -> 0
I26: 1 | O26: =IF(ISBLANK(K26),IF(ISBLANK($E26),0,VLOOKUP($E26,'Default Values'!$B$5:$G$20,COLUMNS('Default Values'!$B$4:D$4),0)),K26) -> 0 | P26: =IF(ISBLANK(L26),IF(ISBLANK($E26),0,VLOOKUP($E26,'Default Values'!$B$5:$G$20,COLUMNS('Default Values'!$B$4:E$4),0)),L26) -> 0 | Q26: =IF(ISBLANK(M26),IF(ISBLANK($E26),0,VLOOKUP($E26,'Default Values'!$B$5:$G$20,COLUMNS('Default Values'!$B$4:F$4),0)),M26) -> 0 | R26: =IF(ISBLANK(N26),IF(ISBLANK($E26),0,VLOOKUP($E26,'Default Values'!$B$5:$G$20,COLUMNS('Default Values'!$B$4:G$4),0)),N26) -> 0 | S26: =((G26*O26)+(H26*P26*I26)+(J26*Q26*(1-R26)))*Conversions!$C$4 -> 0 | T26: 0 | U26: ='Emissions Database'!BS96 -> 0
I27: 1 | O27: =IF(ISBLANK(K27),IF(ISBLANK($E27),0,VLOOKUP($E27,'Default Values'!$B$5:$G$20,COLUMNS('Default Values'!$B$4:D$4),0)),K27) -> 0 | P27: =IF(ISBLANK(L27),IF(ISBLANK($E27),0,VLOOKUP($E27,'Default Values'!$B$5:$G$20,COLUMNS('Default Values'!$B$4:E$4),0)),L27) -> 0 | Q27: =IF(ISBLANK(M27),IF(ISBLANK($E27),0,VLOOKUP($E27,'Default Values'!$B$5:$G$20,COLUMNS('Default Values'!$B$4:F$4),0)),M27) -> 0 | R27: =IF(ISBLANK(N27),IF(ISBLANK($E27),0,VLOOKUP($E27,'Default Values'!$B$5:$G$20,COLUMNS('Default Values'!$B$4:G$4),0)),N27) -> 0 | S27: =((G27*O27)+(H27*P27*I27)+(J27*Q27*(1-R27)))*Conversions!$C$4 -> 0 | T27: 0 | U27: ='Emissions Database'!BS97 -> 0
I28: 1 | O28: =IF(ISBLANK(K28),IF(ISBLANK($E28),0,VLOOKUP($E28,'Default Values'!$B$5:$G$20,COLUMNS('Default Values'!$B$4:D$4),0)),K28) -> 0 | P28: =IF(ISBLANK(L28),IF(ISBLANK($E28),0,VLOOKUP($E28,'Default Values'!$B$5:$G$20,COLUMNS('Default Values'!$B$4:E$4),0)),L28) -> 0 | Q28: =IF(ISBLANK(M28),IF(ISBLANK($E28),0,VLOOKUP($E28,'Default Values'!$B$5:$G$20,COLUMNS('Default Values'!$B$4:F$4),0)),M28) -> 0 | R28: =IF(ISBLANK(N28),IF(ISBLANK($E28),0,VLOOKUP($E28,'Default Values'!$B$5:$G$20,COLUMNS('Default Values'!$B$4:G$4),0)),N28) -> 0 | S28: =((G28*O28)+(H28*P28*I28)+(J28*Q28*(1-R28)))*Conversions!$C$4 -> 0 | T28: 0 | U28: ='Emissions Database'!BS98 -> 0
I29: 1 | O29: =IF(ISBLANK(K29),IF(ISBLANK($E29),0,VLOOKUP($E29,'Default Values'!$B$5:$G$20,COLUMNS('Default Values'!$B$4:D$4),0)),K29) -> 0 | P29: =IF(ISBLANK(L29),IF(ISBLANK($E29),0,VLOOKUP($E29,'Default Values'!$B$5:$G$20,COLUMNS('Default Values'!$B$4:E$4),0)),L29) -> 0 | Q29: =IF(ISBLANK(M29),IF(ISBLANK($E29),0,VLOOKUP($E29,'Default Values'!$B$5:$G$20,COLUMNS('Default Values'!$B$4:F$4),0)),M29) -> 0 | R29: =IF(ISBLANK(N29),IF(ISBLANK($E29),0,VLOOKUP($E29,'Default Values'!$B$5:$G$20,COLUMNS('Default Values'!$B$4:G$4),0)),N29) -> 0 | S29: =((G29*O29)+(H29*P29*I29)+(J29*Q29*(1-R29)))*Conversions!$C$4 -> 0 | T29: 0 | U29: ='Emissions Database'!BS99 -> 0
I30: 1 | O30: =IF(ISBLANK(K30),IF(ISBLANK($E30),0,VLOOKUP($E30,'Default Values'!$B$5:$G$20,COLUMNS('Default Values'!$B$4:D$4),0)),K30) -> 0 | P30: =IF(ISBLANK(L30),IF(ISBLANK($E30),0,VLOOKUP($E30,'Default Values'!$B$5:$G$20,COLUMNS('Default Values'!$B$4:E$4),0)),L30) -> 0 | Q30: =IF(ISBLANK(M30),IF(ISBLANK($E30),0,VLOOKUP($E30,'Default Values'!$B$5:$G$20,COLUMNS('Default Values'!$B$4:F$4),0)),M30) -> 0 | R30: =IF(ISBLANK(N30),IF(ISBLANK($E30),0,VLOOKUP($E30,'Default Values'!$B$5:$G$20,COLUMNS('Default Values'!$B$4:G$4),0)),N30) -> 0 | S30: =((G30*O30)+(H30*P30*I30)+(J30*Q30*(1-R30)))*Conversions!$C$4 -> 0 | T30: 0 | U30: ='Emissions Database'!BS100 -> 0
I31: 1 | O31: =IF(ISBLANK(K31),IF(ISBLANK($E31),0,VLOOKUP($E31,'Default Values'!$B$5:$G$20,COLUMNS('Default Values'!$B$4:D$4),0)),K31) -> 0 | P31: =IF(ISBLANK(L31),IF(ISBLANK($E31),0,VLOOKUP($E31,'Default Values'!$B$5:$G$20,COLUMNS('Default Values'!$B$4:E$4),0)),L31) -> 0 | Q31: =IF(ISBLANK(M31),IF(ISBLANK($E31),0,VLOOKUP($E31,'Default Values'!$B$5:$G$20,COLUMNS('Default Values'!$B$4:F$4),0)),M31) -> 0 | R31: =IF(ISBLANK(N31),IF(ISBLANK($E31),0,VLOOKUP($E31,'Default Values'!$B$5:$G$20,COLUMNS('Default Values'!$B$4:G$4),0)),N31) -> 0 | S31: =((G31*O31)+(H31*P31*I31)+(J31*Q31*(1-R31)))*Conversions!$C$4 -> 0 | T31: 0 | U31: ='Emissions Database'!BS101 -> 0
I32: 1 | O32: =IF(ISBLANK(K32),IF(ISBLANK($E32),0,VLOOKUP($E32,'Default Values'!$B$5:$G$20,COLUMNS('Default Values'!$B$4:D$4),0)),K32) -> 0 | P32: =IF(ISBLANK(L32),IF(ISBLANK($E32),0,VLOOKUP($E32,'Default Values'!$B$5:$G$20,COLUMNS('Default Values'!$B$4:E$4),0)),L32) -> 0 | Q32: =IF(ISBLANK(M32),IF(ISBLANK($E32),0,VLOOKUP($E32,'Default Values'!$B$5:$G$20,COLUMNS('Default Values'!$B$4:F$4),0)),M32) -> 0 | R32: =IF(ISBLANK(N32),IF(ISBLANK($E32),0,VLOOKUP($E32,'Default Values'!$B$5:$G$20,COLUMNS('Default Values'!$B$4:G$4),0)),N32) -> 0 | S32: =((G32*O32)+(H32*P32*I32)+(J32*Q32*(1-R32)))*Conversions!$C$4 -> 0 | T32: 0 | U32: ='Emissions Database'!BS102 -> 0
I33: 1 | O33: =IF(ISBLANK(K33),IF(ISBLANK($E33),0,VLOOKUP($E33,'Default Values'!$B$5:$G$20,COLUMNS('Default Values'!$B$4:D$4),0)),K33) -> 0 | P33: =IF(ISBLANK(L33),IF(ISBLANK($E33),0,VLOOKUP($E33,'Default Values'!$B$5:$G$20,COLUMNS('Default Values'!$B$4:E$4),0)),L33) -> 0 | Q33: =IF(ISBLANK(M33),IF(ISBLANK($E33),0,VLOOKUP($E33,'Default Values'!$B$5:$G$20,COLUMNS('Default Values'!$B$4:F$4),0)),M33) -> 0 | R33: =IF(ISBLANK(N33),IF(ISBLANK($E33),0,VLOOKUP($E33,'Default Values'!$B$5:$G$20,COLUMNS('Default Values'!$B$4:G$4),0)),N33) -> 0 | S33: =((G33*O33)+(H33*P33*I33)+(J33*Q33*(1-R33)))*Conversions!$C$4 -> 0 | T33: 0 | U33: ='Emissions Database'!BS103 -> 0
I34: 1 | O34: =IF(ISBLANK(K34),IF(ISBLANK($E34),0,VLOOKUP($E34,'Default Values'!$B$5:$G$20,COLUMNS('Default Values'!$B$4:D$4),0)),K34) -> 0 | P34: =IF(ISBLANK(L34),IF(ISBLANK($E34),0,VLOOKUP($E34,'Default Values'!$B$5:$G$20,COLUMNS('Default Values'!$B$4:E$4),0)),L34) -> 0 | Q34: =IF(ISBLANK(M34),IF(ISBLANK($E34),0,VLOOKUP($E34,'Default Values'!$B$5:$G$20,COLUMNS('Default Values'!$B$4:F$4),0)),M34) -> 0 | R34: =IF(ISBLANK(N34),IF(ISBLANK($E34),0,VLOOKUP($E34,'Default Values'!$B$5:$G$20,COLUMNS('Default Values'!$B$4:G$4),0)),N34) -> 0 | S34: =((G34*O34)+(H34*P34*I34)+(J34*Q34*(1-R34)))*Conversions!$C$4 -> 0 | T34: 0 | U34: ='Emissions Database'!BS104 -> 0
I35: 1 | O35: =IF(ISBLANK(K35),IF(ISBLANK($E35),0,VLOOKUP($E35,'Default Values'!$B$5:$G$20,COLUMNS('Default Values'!$B$4:D$4),0)),K35) -> 0 | P35: =IF(ISBLANK(L35),IF(ISBLANK($E35),0,VLOOKUP($E35,'Default Values'!$B$5:$G$20,COLUMNS('Default Values'!$B$4:E$4),0)),L35) -> 0 | Q35: =IF(ISBLANK(M35),IF(ISBLANK($E35),0,VLOOKUP($E35,'Default Values'!$B$5:$G$20,COLUMNS('Default Values'!$B$4:F$4),0)),M35) -> 0 | R35: =IF(ISBLANK(N35),IF(ISBLANK($E35),0,VLOOKUP($E35,'Default Values'!$B$5:$G$20,COLUMNS('Default Values'!$B$4:G$4),0)),N35) -> 0 | S35: =((G35*O35)+(H35*P35*I35)+(J35*Q35*(1-R35)))*Conversions!$C$4 -> 0 | T35: 0 | U35: ='Emissions Database'!BS105 -> 0
I36: 1 | O36: =IF(ISBLANK(K36),IF(ISBLANK($E36),0,VLOOKUP($E36,'Default Values'!$B$5:$G$20,COLUMNS('Default Values'!$B$4:D$4),0)),K36) -> 0 | P36: =IF(ISBLANK(L36),IF(ISBLANK($E36),0,VLOOKUP($E36,'Default Values'!$B$5:$G$20,COLUMNS('Default Values'!$B$4:E$4),0)),L36) -> 0 | Q36: =IF(ISBLANK(M36),IF(ISBLANK($E36),0,VLOOKUP($E36,'Default Values'!$B$5:$G$20,COLUMNS('Default Values'!$B$4:F$4),0)),M36) -> 0 | R36: =IF(ISBLANK(N36),IF(ISBLANK($E36),0,VLOOKUP($E36,'Default Values'!$B$5:$G$20,COLUMNS('Default Values'!$B$4:G$4),0)),N36) -> 0 | S36: =((G36*O36)+(H36*P36*I36)+(J36*Q36*(1-R36)))*Conversions!$C$4 -> 0 | T36: 0 | U36: ='Emissions Database'!BS106 -> 0
I37: 1 | O37: =IF(ISBLANK(K37),IF(ISBLANK($E37),0,VLOOKUP($E37,'Default Values'!$B$5:$G$20,COLUMNS('Default Values'!$B$4:D$4),0)),K37) -> 0 | P37: =IF(ISBLANK(L37),IF(ISBLANK($E37),0,VLOOKUP($E37,'Default Values'!$B$5:$G$20,COLUMNS('Default Values'!$B$4:E$4),0)),L37) -> 0 | Q37: =IF(ISBLANK(M37),IF(ISBLANK($E37),0,VLOOKUP($E37,'Default Values'!$B$5:$G$20,COLUMNS('Default Values'!$B$4:F$4),0)),M37) -> 0 | R37: =IF(ISBLANK(N37),IF(ISBLANK($E37),0,VLOOKUP($E37,'Default Values'!$B$5:$G$20,COLUMNS('Default Values'!$B$4:G$4),0)),N37) -> 0 | S37: =((G37*O37)+(H37*P37*I37)+(J37*Q37*(1-R37)))*Conversions!$C$4 -> 0 | T37: 0 | U37: ='Emissions Database'!BS107 -> 0
I38: 1 | O38: =IF(ISBLANK(K38),IF(ISBLANK($E38),0,VLOOKUP($E38,'Default Values'!$B$5:$G$20,COLUMNS('Default Values'!$B$4:D$4),0)),K38) -> 0 | P38: =IF(ISBLANK(L38),IF(ISBLANK($E38),0,VLOOKUP($E38,'Default Values'!$B$5:$G$20,COLUMNS('Default Values'!$B$4:E$4),0)),L38) -> 0 | Q38: =IF(ISBLANK(M38),IF(ISBLANK($E38),0,VLOOKUP($E38,'Default Values'!$B$5:$G$20,COLUMNS('Default Values'!$B$4:F$4),0)),M38) -> 0 | R38: =IF(ISBLANK(N38),IF(ISBLANK($E38),0,VLOOKUP($E38,'Default Values'!$B$5:$G$20,COLUMNS('Default Values'!$B$4:G$4),0)),N38) -> 0 | S38: =((G38*O38)+(H38*P38*I38)+(J38*Q38*(1-R38)))*Conversions!$C$4 -> 0 | T38: 0 | U38: ='Emissions Database'!BS108 -> 0
I39: 1 | O39: =IF(ISBLANK(K39),IF(ISBLANK($E39),0,VLOOKUP($E39,'Default Values'!$B$5:$G$20,COLUMNS('Default Values'!$B$4:D$4),0)),K39) -> 0 | P39: =IF(ISBLANK(L39),IF(ISBLANK($E39),0,VLOOKUP($E39,'Default Values'!$B$5:$G$20,COLUMNS('Default Values'!$B$4:E$4),0)),L39) -> 0 | Q39: =IF(ISBLANK(M39),IF(ISBLANK($E39),0,VLOOKUP($E39,'Default Values'!$B$5:$G$20,COLUMNS('Default Values'!$B$4:F$4),0)),M39) -> 0 | R39: =IF(ISBLANK(N39),IF(ISBLANK($E39),0,VLOOKUP($E39,'Default Values'!$B$5:$G$20,COLUMNS('Default Values'!$B$4:G$4),0)),N39) -> 0 | S39: =((G39*O39)+(H39*P39*I39)+(J39*Q39*(1-R39)))*Conversions!$C$4 -> 0 | T39: 0 | U39: ='Emissions Database'!BS109 -> 0
I40: 1 | O40: =IF(ISBLANK(K40),IF(ISBLANK($E40),0,VLOOKUP($E40,'Default Values'!$B$5:$G$20,COLUMNS('Default Values'!$B$4:D$4),0)),K40) -> 0 | P40: =IF(ISBLANK(L40),IF(ISBLANK($E40),0,VLOOKUP($E40,'Default Values'!$B$5:$G$20,COLUMNS('Default Values'!$B$4:E$4),0)),L40) -> 0 | Q40: =IF(ISBLANK(M40),IF(ISBLANK($E40),0,VLOOKUP($E40,'Default Values'!$B$5:$G$20,COLUMNS('Default Values'!$B$4:F$4),0)),M40) -> 0 | R40: =IF(ISBLANK(N40),IF(ISBLANK($E40),0,VLOOKUP($E40,'Default Values'!$B$5:$G$20,COLUMNS('Default Values'!$B$4:G$4),0)),N40) -> 0 | S40: =((G40*O40)+(H40*P40*I40)+(J40*Q40*(1-R40)))*Conversions!$C$4 -> 0 | T40: 0 | U40: ='Emissions Database'!BS110 -> 0
I41: 1 | O41: =IF(ISBLANK(K41),IF(ISBLANK($E41),0,VLOOKUP($E41,'Default Values'!$B$5:$G$20,COLUMNS('Default Values'!$B$4:D$4),0)),K41) -> 0 | P41: =IF(ISBLANK(L41),IF(ISBLANK($E41),0,VLOOKUP($E41,'Default Values'!$B$5:$G$20,COLUMNS('Default Values'!$B$4:E$4),0)),L41) -> 0 | Q41: =IF(ISBLANK(M41),IF(ISBLANK($E41),0,VLOOKUP($E41,'Default Values'!$B$5:$G$20,COLUMNS('Default Values'!$B$4:F$4),0)),M41) -> 0 | R41: =IF(ISBLANK(N41),IF(ISBLANK($E41),0,VLOOKUP($E41,'Default Values'!$B$5:$G$20,COLUMNS('Default Values'!$B$4:G$4),0)),N41) -> 0 | S41: =((G41*O41)+(H41*P41*I41)+(J41*Q41*(1-R41)))*Conversions!$C$4 -> 0 | T41: 0 | U41: ='Emissions Database'!BS111 -> 0
I42: 1 | O42: =IF(ISBLANK(K42),IF(ISBLANK($E42),0,VLOOKUP($E42,'Default Values'!$B$5:$G$20,COLUMNS('Default Values'!$B$4:D$4),0)),K42) -> 0 | P42: =IF(ISBLANK(L42),IF(ISBLANK($E42),0,VLOOKUP($E42,'Default Values'!$B$5:$G$20,COLUMNS('Default Values'!$B$4:E$4),0)),L42) -> 0 | Q42: =IF(ISBLANK(M42),IF(ISBLANK($E42),0,VLOOKUP($E42,'Default Values'!$B$5:$G$20,COLUMNS('Default Values'!$B$4:F$4),0)),M42) -> 0 | R42: =IF(ISBLANK(N42),IF(ISBLANK($E42),0,VLOOKUP($E42,'Default Values'!$B$5:$G$20,COLUMNS('Default Values'!$B$4:G$4),0)),N42) -> 0 | S42: =((G42*O42)+(H42*P42*I42)+(J42*Q42*(1-R42)))*Conversions!$C$4 -> 0 | T42: 0 | U42: ='Emissions Database'!BS112 -> 0
I43: 1 | O43: =IF(ISBLANK(K43),IF(ISBLANK($E43),0,VLOOKUP($E43,'Default Values'!$B$5:$G$20,COLUMNS('Default Values'!$B$4:D$4),0)),K43) -> 0 | P43: =IF(ISBLANK(L43),IF(ISBLANK($E43),0,VLOOKUP($E43,'Default Values'!$B$5:$G$20,COLUMNS('Default Values'!$B$4:E$4),0)),L43) -> 0 | Q43: =IF(ISBLANK(M43),IF(ISBLANK($E43),0,VLOOKUP($E43,'Default Values'!$B$5:$G$20,COLUMNS('Default Values'!$B$4:F$4),0)),M43) -> 0 | R43: =IF(ISBLANK(N43),IF(ISBLANK($E43),0,VLOOKUP($E43,'Default Values'!$B$5:$G$20,COLUMNS('Default Values'!$B$4:G$4),0)),N43) -> 0 | S43: =((G43*O43)+(H43*P43*I43)+(J43*Q43*(1-R43)))*Conversions!$C$4 -> 0 | T43: 0 | U43: ='Emissions Database'!BS113 -> 0
I44: 1 | O44: =IF(ISBLANK(K44),IF(ISBLANK($E44),0,VLOOKUP($E44,'Default Values'!$B$5:$G$20,COLUMNS('Default Values'!$B$4:D$4),0)),K44) -> 0 | P44: =IF(ISBLANK(L44),IF(ISBLANK($E44),0,VLOOKUP($E44,'Default Values'!$B$5:$G$20,COLUMNS('Default Values'!$B$4:E$4),0)),L44) -> 0 | Q44: =IF(ISBLANK(M44),IF(ISBLANK($E44),0,VLOOKUP($E44,'Default Values'!$B$5:$G$20,COLUMNS('Default Values'!$B$4:F$4),0)),M44) -> 0 | R44: =IF(ISBLANK(N44),IF(ISBLANK($E44),0,VLOOKUP($E44,'Default Values'!$B$5:$G$20,COLUMNS('Default Values'!$B$4:G$4),0)),N44) -> 0 | S44: =((G44*O44)+(H44*P44*I44)+(J44*Q44*(1-R44)))*Conversions!$C$4 -> 0 | T44: 0 | U44: ='Emissions Database'!BS114 -> 0
I45: 1 | O45: =IF(ISBLANK(K45),IF(ISBLANK($E45),0,VLOOKUP($E45,'Default Values'!$B$5:$G$20,COLUMNS('Default Values'!$B$4:D$4),0)),K45) -> 0 | P45: =IF(ISBLANK(L45),IF(ISBLANK($E45),0,VLOOKUP($E45,'Default Values'!$B$5:$G$20,COLUMNS('Default Values'!$B$4:E$4),0)),L45) -> 0 | Q45: =IF(ISBLANK(M45),IF(ISBLANK($E45),0,VLOOKUP($E45,'Default Values'!$B$5:$G$20,COLUMNS('Default Values'!$B$4:F$4),0)),M45) -> 0 | R45: =IF(ISBLANK(N45),IF(ISBLANK($E45),0,VLOOKUP($E45,'Default Values'!$B$5:$G$20,COLUMNS('Default Values'!$B$4:G$4),0)),N45) -> 0 | S45: =((G45*O45)+(H45*P45*I45)+(J45*Q45*(1-R45)))*Conversions!$C$4 -> 0 | T45: 0 | U45: ='Emissions Database'!BS115 -> 0
I46: 1 | O46: =IF(ISBLANK(K46),IF(ISBLANK($E46),0,VLOOKUP($E46,'Default Values'!$B$5:$G$20,COLUMNS('Default Values'!$B$4:D$4),0)),K46) -> 0 | P46: =IF(ISBLANK(L46),IF(ISBLANK($E46),0,VLOOKUP($E46,'Default Values'!$B$5:$G$20,COLUMNS('Default Values'!$B$4:E$4),0)),L46) -> 0 | Q46: =IF(ISBLANK(M46),IF(ISBLANK($E46),0,VLOOKUP($E46,'Default Values'!$B$5:$G$20,COLUMNS('Default Values'!$B$4:F$4),0)),M46) -> 0 | R46: =IF(ISBLANK(N46),IF(ISBLANK($E46),0,VLOOKUP($E46,'Default Values'!$B$5:$G$20,COLUMNS('Default Values'!$B$4:G$4),0)),N46) -> 0 | S46: =((G46*O46)+(H46*P46*I46)+(J46*Q46*(1-R46)))*Conversions!$C$4 -> 0 | T46: 0 | U46: ='Emissions Database'!BS116 -> 0
I47: 1 | O47: =IF(ISBLANK(K47),IF(ISBLANK($E47),0,VLOOKUP($E47,'Default Values'!$B$5:$G$20,COLUMNS('Default Values'!$B$4:D$4),0)),K47) -> 0 | P47: =IF(ISBLANK(L47),IF(ISBLANK($E47),0,VLOOKUP($E47,'Default Values'!$B$5:$G$20,COLUMNS('Default Values'!$B$4:E$4),0)),L47) -> 0 | Q47: =IF(ISBLANK(M47),IF(ISBLANK($E47),0,VLOOKUP($E47,'Default Values'!$B$5:$G$20,COLUMNS('Default Values'!$B$4:F$4),0)),M47) -> 0 | R47: =IF(ISBLANK(N47),IF(ISBLANK($E47),0,VLOOKUP($E47,'Default Values'!$B$5:$G$20,COLUMNS('Default Values'!$B$4:G$4),0)),N47) -> 0 | S47: =((G47*O47)+(H47*P47*I47)+(J47*Q47*(1-R47)))*Conversions!$C$4 -> 0 | T47: 0 | U47: ='Emissions Database'!BS117 -> 0
I48: 1 | O48: =IF(ISBLANK(K48),IF(ISBLANK($E48),0,VLOOKUP($E48,'Default Values'!$B$5:$G$20,COLUMNS('Default Values'!$B$4:D$4),0)),K48) -> 0 | P48: =IF(ISBLANK(L48),IF(ISBLANK($E48),0,VLOOKUP($E48,'Default Values'!$B$5:$G$20,COLUMNS('Default Values'!$B$4:E$4),0)),L48) -> 0 | Q48: =IF(ISBLANK(M48),IF(ISBLANK($E48),0,VLOOKUP($E48,'Default Values'!$B$5:$G$20,COLUMNS('Default Values'!$B$4:F$4),0)),M48) -> 0 | R48: =IF(ISBLANK(N48),IF(ISBLANK($E48),0,VLOOKUP($E48,'Default Values'!$B$5:$G$20,COLUMNS('Default Values'!$B$4:G$4),0)),N48) -> 0 | S48: =((G48*O48)+(H48*P48*I48)+(J48*Q48*(1-R48)))*Conversions!$C$4 -> 0 | T48: 0 | U48: ='Emissions Database'!BS118 -> 0
I49: 1 | O49: =IF(ISBLANK(K49),IF(ISBLANK($E49),0,VLOOKUP($E49,'Default Values'!$B$5:$G$20,COLUMNS('Default Values'!$B$4:D$4),0)),K49) -> 0 | P49: =IF(ISBLANK(L49),IF(ISBLANK($E49),0,VLOOKUP($E49,'Default Values'!$B$5:$G$20,COLUMNS('Default Values'!$B$4:E$4),0)),L49) -> 0 | Q49: =IF(ISBLANK(M49),IF(ISBLANK($E49),0,VLOOKUP($E49,'Default Values'!$B$5:$G$20,COLUMNS('Default Values'!$B$4:F$4),0)),M49) -> 0 | R49: =IF(ISBLANK(N49),IF(ISBLANK($E49),0,VLOOKUP($E49,'Default Values'!$B$5:$G$20,COLUMNS('Default Values'!$B$4:G$4),0)),N49) -> 0 | S49: =((G49*O49)+(H49*P49*I49)+(J49*Q49*(1-R49)))*Conversions!$C$4 -> 0 | T49: 0 | U49: ='Emissions Database'!BS119 -> 0
I50: 1 | O50: =IF(ISBLANK(K50),IF(ISBLANK($E50),0,VLOOKUP($E50,'Default Values'!$B$5:$G$20,COLUMNS('Default Values'!$B$4:D$4),0)),K50) -> 0 | P50: =IF(ISBLANK(L50),IF(ISBLANK($E50),0,VLOOKUP($E50,'Default Values'!$B$5:$G$20,COLUMNS('Default Values'!$B$4:E$4),0)),L50) -> 0 | Q50: =IF(ISBLANK(M50),IF(ISBLANK($E50),0,VLOOKUP($E50,'Default Values'!$B$5:$G$20,COLUMNS('Default Values'!$B$4:F$4),0)),M50) -> 0 | R50: =IF(ISBLANK(N50),IF(ISBLANK($E50),0,VLOOKUP($E50,'Default Values'!$B$5:$G$20,COLUMNS('Default Values'!$B$4:G$4),0)),N50) -> 0 | S50: =((G50*O50)+(H50*P50*I50)+(J50*Q50*(1-R50)))*Conversions!$C$4 -> 0 | T50: 0 | U50: ='Emissions Database'!BS120 -> 0
I51: 1 | O51: =IF(ISBLANK(K51),IF(ISBLANK($E51),0,VLOOKUP($E51,'Default Values'!$B$5:$G$20,COLUMNS('Default Values'!$B$4:D$4),0)),K51) -> 0 | P51: =IF(ISBLANK(L51),IF(ISBLANK($E51),0,VLOOKUP($E51,'Default Values'!$B$5:$G$20,COLUMNS('Default Values'!$B$4:E$4),0)),L51) -> 0 | Q51: =IF(ISBLANK(M51),IF(ISBLANK($E51),0,VLOOKUP($E51,'Default Values'!$B$5:$G$20,COLUMNS('Default Values'!$B$4:F$4),0)),M51) -> 0 | R51: =IF(ISBLANK(N51),IF(ISBLANK($E51),0,VLOOKUP($E51,'Default Values'!$B$5:$G$20,COLUMNS('Default Values'!$B$4:G$4),0)),N51) -> 0 | S51: =((G51*O51)+(H51*P51*I51)+(J51*Q51*(1-R51)))*Conversions!$C$4 -> 0 | T51: 0 | U51: ='Emissions Database'!BS121 -> 0
I52: 1 | O52: =IF(ISBLANK(K52),IF(ISBLANK($E52),0,VLOOKUP($E52,'Default Values'!$B$5:$G$20,COLUMNS('Default Values'!$B$4:D$4),0)),K52) -> 0 | P52: =IF(ISBLANK(L52),IF(ISBLANK($E52),0,VLOOKUP($E52,'Default Values'!$B$5:$G$20,COLUMNS('Default Values'!$B$4:E$4),0)),L52) -> 0 | Q52: =IF(ISBLANK(M52),IF(ISBLANK($E52),0,VLOOKUP($E52,'Default Values'!$B$5:$G$20,COLUMNS('Default Values'!$B$4:F$4),0)),M52) -> 0 | R52: =IF(ISBLANK(N52),IF(ISBLANK($E52),0,VLOOKUP($E52,'Default Values'!$B$5:$G$20,COLUMNS('Default Values'!$B$4:G$4),0)),N52) -> 0 | S52: =((G52*O52)+(H52*P52*I52)+(J52*Q52*(1-R52)))*Conversions!$C$4 -> 0 | T52: 0 | U52: ='Emissions Database'!BS122 -> 0
I53: 1 | O53: =IF(ISBLANK(K53),IF(ISBLANK($E53),0,VLOOKUP($E53,'Default Values'!$B$5:$G$20,COLUMNS('Default Values'!$B$4:D$4),0)),K53) -> 0 | P53: =IF(ISBLANK(L53),IF(ISBLANK($E53),0,VLOOKUP($E53,'Default Values'!$B$5:$G$20,COLUMNS('Default Values'!$B$4:E$4),0)),L53) -> 0 | Q53: =IF(ISBLANK(M53),IF(ISBLANK($E53),0,VLOOKUP($E53,'Default Values'!$B$5:$G$20,COLUMNS('Default Values'!$B$4:F$4),0)),M53) -> 0 | R53: =IF(ISBLANK(N53),IF(ISBLANK($E53),0,VLOOKUP($E53,'Default Values'!$B$5:$G$20,COLUMNS('Default Values'!$B$4:G$4),0)),N53) -> 0 | S53: =((G53*O53)+(H53*P53*I53)+(J53*Q53*(1-R53)))*Conversions!$C$4 -> 0 | T53: 0 | U53: ='Emissions Database'!BS123 -> 0
C54: Total | S54: =SUM(S14:S53) -> 0 | T54: =SUM(T14:T53) -> 0 | U54: =SUM(U14:U53) -> 0

Sheet Simplified Material Balance (hidden)
C2: Simplified Material Balance Approach
C5: Use this page to calculate emissions if you have data on the purchases of new equipment, the services of existing equipment, and the disposal of retiring equipment.
C7: Light Yellow = Required input fields if a row is used
C8: Light Green = Optional input fields | F8: =IF(COUNTIF($B$14:$B$53,"CAPACITY")>0,"WARNING! F-gas recovered from retiring equipment should not exceed full capacity of retiring equipment.","") -> 
C9: White = Calculation cells which are not editable | G9: PN | H9: CN | I9: PS | J9: CD | K9: RD
B11: Completion flag | C11: Facility or region name | D11: Federal building type / vehicle type | E11: Equipment type | F11: Refrigerant type | G11: Purchases of F-gas used to fill new equipment at installation | H11: Total full capacity of the new equipment | I11: Quantity of F-gas used to service equipment | J11: Total full capacity of retiring equipment | K11: F-gas recovered from retiring equipment | L11: Annual emissions | M11: Annual emissions | N11: Annual greenhouse gas emissions | P11: Simplified Material Balance Approach
G12: (lb) | H12: (lb) | I12: (lb) | J12: (lb) | K12: (lb) | L12: (MT Refrigerant) | M12: (MT F-gas) | N12: (MT CO2-e) | P12: Annual emissions [MT F-gas] = (PN – CN + PS + CD – RD) ∙ 4.536 x 10-4 [MT/lb]
B13: =IF(AND(C13=0,F13=0,ISBLANK(G13),ISBLANK(H13),ISBLANK(I13),ISBLANK(J13),ISBLANK(K13)),"",IF(OR(C13=0,F13=0,ISBLANK(G13),ISBLANK(H13),ISBLANK(I13),ISBLANK(J13),ISBLANK(K13)),"INCOMPLETE",IF(K13>J13,"CAPACITY","OK"))) -> OK | C13: Example | D13: School | E13: Walk-in refrigerators and freezers | F13: R-404A | G13: 31 | H13: 30 | I13: 5 | J13: 30 | K13: 25 | L13: =IF(H13>G13,(I13+J13-K13)*Conversions!$C$4,(G13-H13+I13+J13-K13)*Conversions!$C$4) -> 0.0049896 | M13: =IF(F13="Non-HFC",0,L13) -> 0.0049896 | N13: =IF(F13=0,"",L13*VLOOKUP(F13,Lists!$C$72:$S$152,COLUMNS(Lists!$C$72:$S$72),0)) -> 19.56721536 | P13: Where:
L14: =IF(H14>G14,(I14+J14-K14)*Conversions!$C$4,(G14-H14+I14+J14-K14)*Conversions!$C$4) -> 0 | M14: =IF(F14="Non-HFC",0,L14) -> 0 | N14: ='Emissions Database'!BS44 -> 0 | P14: PN = Purchases of F-gas used to charge new equipment [lb]
L15: =IF(H15>G15,(I15+J15-K15)*Conversions!$C$4,(G15-H15+I15+J15-K15)*Conversions!$C$4) -> 0 | M15: 0 | N15: ='Emissions Database'!BS45 -> 0 | P15: CN = Total full capacity of the new equipment [lb]
L16: =IF(H16>G16,(I16+J16-K16)*Conversions!$C$4,(G16-H16+I16+J16-K16)*Conversions!$C$4) -> 0 | M16: 0 | N16: ='Emissions Database'!BS46 -> 0 | P16: PS = Quantity of F-gas used to service equipment [lb]
B17: =IF(AND(C17=0,F17=0,ISBLANK(G17),ISBLANK(H17),ISBLANK(I17),ISBLANK(J17),ISBLANK(K17)),"",IF(OR(C17=0,F17=0,ISBLANK(G17),ISBLANK(H17),ISBLANK(I17),ISBLANK(J17),ISBLANK(K17)),"INCOMPLETE",IF(K17>J17,"CAPACITY","OK"))) ->  | L17: =IF(H17>G17,(I17+J17-K17)*Conversions!$C$4,(G17-H17+I17+J17-K17)*Conversions!$C$4) -> 0 | M17: 0 | N17: ='Emissions Database'!BS47 -> 0 | P17: CD = Total full capacity of retiring equipment [lb]
B18: =IF(AND(C18=0,F18=0,ISBLANK(G18),ISBLANK(H18),ISBLANK(I18),ISBLANK(J18),ISBLANK(K18)),"",IF(OR(C18=0,F18=0,ISBLANK(G18),ISBLANK(H18),ISBLANK(I18),ISBLANK(J18),ISBLANK(K18)),"INCOMPLETE",IF(K18>J18,"CAPACITY","OK"))) ->  | L18: =IF(H18>G18,(I18+J18-K18)*Conversions!$C$4,(G18-H18+I18+J18-K18)*Conversions!$C$4) -> 0 | M18: 0 | N18: ='Emissions Database'!BS48 -> 0 | P18: RD = F-gas recovered from retiring equipment [lb]
L19: =IF(H19>G19,(I19+J19-K19)*Conversions!$C$4,(G19-H19+I19+J19-K19)*Conversions!$C$4) -> 0 | M19: 0 | N19: ='Emissions Database'!BS49 -> 0 | P19: Source: Federal Greenhouse Gas Accounting and Reporting Guidance - Technical Support Document
L20: =IF(H20>G20,(I20+J20-K20)*Conversions!$C$4,(G20-H20+I20+J20-K20)*Conversions!$C$4) -> 0 | M20: 0 | N20: ='Emissions Database'!BS50 -> 0 | P20: http://www.whitehouse.gov/administration/eop/ceq/sustainability/fed-ghg
L21: =IF(H21>G21,(I21+J21-K21)*Conversions!$C$4,(G21-H21+I21+J21-K21)*Conversions!$C$4) -> 0 | M21: 0 | N21: ='Emissions Database'!BS51 -> 0
L22: =IF(H22>G22,(I22+J22-K22)*Conversions!$C$4,(G22-H22+I22+J22-K22)*Conversions!$C$4) -> 0 | M22: 0 | N22: ='Emissions Database'!BS52 -> 0
L23: =IF(H23>G23,(I23+J23-K23)*Conversions!$C$4,(G23-H23+I23+J23-K23)*Conversions!$C$4) -> 0 | M23: 0 | N23: ='Emissions Database'!BS53 -> 0
L24: =IF(H24>G24,(I24+J24-K24)*Conversions!$C$4,(G24-H24+I24+J24-K24)*Conversions!$C$4) -> 0 | M24: 0 | N24: ='Emissions Database'!BS54 -> 0
L25: =IF(H25>G25,(I25+J25-K25)*Conversions!$C$4,(G25-H25+I25+J25-K25)*Conversions!$C$4) -> 0 | M25: 0 | N25: ='Emissions Database'!BS55 -> 0
L26: =IF(H26>G26,(I26+J26-K26)*Conversions!$C$4,(G26-H26+I26+J26-K26)*Conversions!$C$4) -> 0 | M26: 0 | N26: ='Emissions Database'!BS56 -> 0
L27: =IF(H27>G27,(I27+J27-K27)*Conversions!$C$4,(G27-H27+I27+J27-K27)*Conversions!$C$4) -> 0 | M27: 0 | N27: ='Emissions Database'!BS57 -> 0
L28: =IF(H28>G28,(I28+J28-K28)*Conversions!$C$4,(G28-H28+I28+J28-K28)*Conversions!$C$4) -> 0 | M28: 0 | N28: ='Emissions Database'!BS58 -> 0
L29: =IF(H29>G29,(I29+J29-K29)*Conversions!$C$4,(G29-H29+I29+J29-K29)*Conversions!$C$4) -> 0 | M29: 0 | N29: ='Emissions Database'!BS59 -> 0
L30: =IF(H30>G30,(I30+J30-K30)*Conversions!$C$4,(G30-H30+I30+J30-K30)*Conversions!$C$4) -> 0 | M30: 0 | N30: ='Emissions Database'!BS60 -> 0
L31: =IF(H31>G31,(I31+J31-K31)*Conversions!$C$4,(G31-H31+I31+J31-K31)*Conversions!$C$4) -> 0 | M31: 0 | N31: ='Emissions Database'!BS61 -> 0
L32: =IF(H32>G32,(I32+J32-K32)*Conversions!$C$4,(G32-H32+I32+J32-K32)*Conversions!$C$4) -> 0 | M32: 0 | N32: ='Emissions Database'!BS62 -> 0
L33: =IF(H33>G33,(I33+J33-K33)*Conversions!$C$4,(G33-H33+I33+J33-K33)*Conversions!$C$4) -> 0 | M33: 0 | N33: ='Emissions Database'!BS63 -> 0
L34: =IF(H34>G34,(I34+J34-K34)*Conversions!$C$4,(G34-H34+I34+J34-K34)*Conversions!$C$4) -> 0 | M34: 0 | N34: ='Emissions Database'!BS64 -> 0
L35: =IF(H35>G35,(I35+J35-K35)*Conversions!$C$4,(G35-H35+I35+J35-K35)*Conversions!$C$4) -> 0 | M35: 0 | N35: ='Emissions Database'!BS65 -> 0
L36: =IF(H36>G36,(I36+J36-K36)*Conversions!$C$4,(G36-H36+I36+J36-K36)*Conversions!$C$4) -> 0 | M36: 0 | N36: ='Emissions Database'!BS66 -> 0
L37: =IF(H37>G37,(I37+J37-K37)*Conversions!$C$4,(G37-H37+I37+J37-K37)*Conversions!$C$4) -> 0 | M37: 0 | N37: ='Emissions Database'!BS67 -> 0
L38: =IF(H38>G38,(I38+J38-K38)*Conversions!$C$4,(G38-H38+I38+J38-K38)*Conversions!$C$4) -> 0 | M38: 0 | N38: ='Emissions Database'!BS68 -> 0
L39: =IF(H39>G39,(I39+J39-K39)*Conversions!$C$4,(G39-H39+I39+J39-K39)*Conversions!$C$4) -> 0 | M39: 0 | N39: ='Emissions Database'!BS69 -> 0
L40: =IF(H40>G40,(I40+J40-K40)*Conversions!$C$4,(G40-H40+I40+J40-K40)*Conversions!$C$4) -> 0 | M40: 0 | N40: ='Emissions Database'!BS70 -> 0
L41: =IF(H41>G41,(I41+J41-K41)*Conversions!$C$4,(G41-H41+I41+J41-K41)*Conversions!$C$4) -> 0 | M41: 0 | N41: ='Emissions Database'!BS71 -> 0
L42: =IF(H42>G42,(I42+J42-K42)*Conversions!$C$4,(G42-H42+I42+J42-K42)*Conversions!$C$4) -> 0 | M42: 0 | N42: ='Emissions Database'!BS72 -> 0
L43: =IF(H43>G43,(I43+J43-K43)*Conversions!$C$4,(G43-H43+I43+J43-K43)*Conversions!$C$4) -> 0 | M43: 0 | N43: ='Emissions Database'!BS73 -> 0
L44: =IF(H44>G44,(I44+J44-K44)*Conversions!$C$4,(G44-H44+I44+J44-K44)*Conversions!$C$4) -> 0 | M44: 0 | N44: ='Emissions Database'!BS74 -> 0
L45: =IF(H45>G45,(I45+J45-K45)*Conversions!$C$4,(G45-H45+I45+J45-K45)*Conversions!$C$4) -> 0 | M45: 0 | N45: ='Emissions Database'!BS75 -> 0
L46: =IF(H46>G46,(I46+J46-K46)*Conversions!$C$4,(G46-H46+I46+J46-K46)*Conversions!$C$4) -> 0 | M46: 0 | N46: ='Emissions Database'!BS76 -> 0
L47: =IF(H47>G47,(I47+J47-K47)*Conversions!$C$4,(G47-H47+I47+J47-K47)*Conversions!$C$4) -> 0 | M47: 0 | N47: ='Emissions Database'!BS77 -> 0
L48: =IF(H48>G48,(I48+J48-K48)*Conversions!$C$4,(G48-H48+I48+J48-K48)*Conversions!$C$4) -> 0 | M48: 0 | N48: ='Emissions Database'!BS78 -> 0
L49: =IF(H49>G49,(I49+J49-K49)*Conversions!$C$4,(G49-H49+I49+J49-K49)*Conversions!$C$4) -> 0 | M49: 0 | N49: ='Emissions Database'!BS79 -> 0
L50: =IF(H50>G50,(I50+J50-K50)*Conversions!$C$4,(G50-H50+I50+J50-K50)*Conversions!$C$4) -> 0 | M50: 0 | N50: ='Emissions Database'!BS80 -> 0
L51: =IF(H51>G51,(I51+J51-K51)*Conversions!$C$4,(G51-H51+I51+J51-K51)*Conversions!$C$4) -> 0 | M51: 0 | N51: ='Emissions Database'!BS81 -> 0
L52: =IF(H52>G52,(I52+J52-K52)*Conversions!$C$4,(G52-H52+I52+J52-K52)*Conversions!$C$4) -> 0 | M52: 0 | N52: ='Emissions Database'!BS82 -> 0
L53: =IF(H53>G53,(I53+J53-K53)*Conversions!$C$4,(G53-H53+I53+J53-K53)*Conversions!$C$4) -> 0 | M53: 0 | N53: ='Emissions Database'!BS83 -> 0
C54: Total | L54: =SUM(L14:L53) -> 0 | M54: =SUM(M14:M53) -> 0 | N54: =SUM(N14:N53) -> 0

Sheet Default - Material Balance (hidden)
C2: Default Methodology / Material Balance Approach
C4: Use this page to calculate emissions if you have data on refrigerant inventory, acquisitions, disbursements, and capacity.
C5: If you have selected the Default Methodology approach, only data on F-gas acquisitions and disbursements are needed (columns I and J).
B7: Approach Selection Toggle | D7: Light Yellow = Required input fields if a row is used | I7: =IF(COUNTIF($B$14:$B$53,"Negative")>0,O29,"") -> 
D8: Light Green = Optional input fields
B9: 2 | D9: White = Calculation cells which are not editable | G9: IB | H9: IE | I9: I | J9: R | K9: CB | L9: CE
B11: Completion flag | C11: Facility or region name | D11: Federal building type / vehicle type | E11: Equipment type | F11: Refrigerant type | G11: Quantity of F-gas in storage at beginning of inventory year | H11: Quantity of F-gas in storage at end of inventory year | I11: F-gas issued from supply system | J11: F-gas returned to the supply system | K11: Total capacity of F-gas in equipment at beginning of inventory year | L11: Total capacity of F-gas in equipment at end of inventory year | M11: Annual emissions | N11: Annual greenhouse gas emissions | O11: Default Methodology Approach
G12: (lb) | H12: (lb) | I12: (lb) | J12: (lb) | K12: (lb) | L12: (lb) | M12: (MT F-gas) | N12: (MT CO2-e) | O12: Annual Emissions [MT F-gas] = (I –R) ● 4.536 x 10–4 [MT/lb]
B13: =IF(AND(C13=0,F13=0,ISBLANK(G13),ISBLANK(H13),ISBLANK(I13),ISBLANK(J13),ISBLANK(K13),ISBLANK(L13)),"",IF($B$9=2,IF(OR(C13=0,F13=0,ISBLANK(I13),ISBLANK(J13)),"INCOMPLETE",IF(M13<0,"NEGATIVE","OK")),IF(OR(C13=0,F13=0,ISBLANK(G13),ISBLANK(H13),ISBLANK(I13),ISBLANK(J13),ISBLANK(K13),ISBLANK(L13)),"INCOMPLETE",IF(M13<0,"NEGATIVE","OK")))) -> OK | C13: Example | D13: School | E13: Walk-in refrigerators and freezers | F13: R-404A | G13: 0 | H13: 0 | I13: 31 | J13: 0 | K13: 0 | L13: 0 | M13: =IF(F13="Non-HFC",0,(G13-H13+I13-J13+K13-L13)*Conversions!$C$4) -> 0.0140616 | N13: =IF(F13=0,"",M13*VLOOKUP(F13,Lists!$C$72:$S$152,COLUMNS(Lists!$C$72:$S$72),0)) -> 55.14397056 | O13: Where:
M14: =IF(F14="Non-HFC",0,(G14-H14+I14-J14+K14-L14)*Conversions!$C$4) -> 0 | N14: ='Emissions Database'!BS4 -> 0 | O14: I = Amount of F-gas issued from supply system [lb]
M15: =IF(F15="Non-HFC",0,(G15-H15+I15-J15+K15-L15)*Conversions!$C$4) -> 0 | N15: ='Emissions Database'!BS5 -> 0 | O15: R = Amount of F-gas returned to supply system from equipment, which includes the amount recovered from equipment during maintenance and the unused amount originally issued from supply [lb]
M16: =IF(F16="Non-HFC",0,(G16-H16+I16-J16+K16-L16)*Conversions!$C$4) -> 0 | N16: ='Emissions Database'!BS6 -> 0
B17: =IF(AND(C17=0,F17=0,ISBLANK(G17),ISBLANK(H17),ISBLANK(I17),ISBLANK(J17),ISBLANK(K17),ISBLANK(L17)),"",IF($B$9=2,IF(OR(C17=0,F17=0,ISBLANK(I17),ISBLANK(J17)),"INCOMPLETE",IF(M17<0,"NEGATIVE","OK")),IF(OR(C17=0,F17=0,ISBLANK(G17),ISBLANK(H17),ISBLANK(I17),ISBLANK(J17),ISBLANK(K17),ISBLANK(L17)),"INCOMPLETE",IF(M17<0,"NEGATIVE","OK")))) ->  | M17: =IF(F17="Non-HFC",0,(G17-H17+I17-J17+K17-L17)*Conversions!$C$4) -> 0 | N17: ='Emissions Database'!BS7 -> 0 | O17: Source: Federal Greenhouse Gas Accounting and Reporting Guidance - Technical Support Document
B18: =IF(AND(C18=0,F18=0,ISBLANK(G18),ISBLANK(H18),ISBLANK(I18),ISBLANK(J18),ISBLANK(K18),ISBLANK(L18)),"",IF($B$9=2,IF(OR(C18=0,F18=0,ISBLANK(I18),ISBLANK(J18)),"INCOMPLETE",IF(M18<0,"NEGATIVE","OK")),IF(OR(C18=0,F18=0,ISBLANK(G18),ISBLANK(H18),ISBLANK(I18),ISBLANK(J18),ISBLANK(K18),ISBLANK(L18)),"INCOMPLETE",IF(M18<0,"NEGATIVE","OK")))) ->  | M18: =IF(F18="Non-HFC",0,(G18-H18+I18-J18+K18-L18)*Conversions!$C$4) -> 0 | N18: ='Emissions Database'!BS8 -> 0
M19: =IF(F19="Non-HFC",0,(G19-H19+I19-J19+K19-L19)*Conversions!$C$4) -> 0 | N19: ='Emissions Database'!BS9 -> 0 | O19: Material Balance Approach
M20: =IF(F20="Non-HFC",0,(G20-H20+I20-J20+K20-L20)*Conversions!$C$4) -> 0 | N20: ='Emissions Database'!BS10 -> 0 | O20: Annual Emissions [MT F-gas] = (IB – IE + P – S + CB – CE) ∙ 4.535 x 10-4 [MT/lb]
M21: =IF(F21="Non-HFC",0,(G21-H21+I21-J21+K21-L21)*Conversions!$C$4) -> 0 | N21: ='Emissions Database'!BS11 -> 0 | O21: Where:
M22: =IF(F22="Non-HFC",0,(G22-H22+I22-J22+K22-L22)*Conversions!$C$4) -> 0 | N22: ='Emissions Database'!BS12 -> 0 | O22: IB = Quantity of F-gas in storage at beginning of inventory year [lb]
M23: =IF(F23="Non-HFC",0,(G23-H23+I23-J23+K23-L23)*Conversions!$C$4) -> 0 | N23: ='Emissions Database'!BS13 -> 0 | O23: IE = Quantity of F-gas in storage at end of inventory year [lb]
M24: =IF(F24="Non-HFC",0,(G24-H24+I24-J24+K24-L24)*Conversions!$C$4) -> 0 | N24: ='Emissions Database'!BS14 -> 0 | O24: P = Sum of all F-gas acquisitions [lb]
M25: =IF(F25="Non-HFC",0,(G25-H25+I25-J25+K25-L25)*Conversions!$C$4) -> 0 | N25: ='Emissions Database'!BS15 -> 0 | O25: S = Sum of all F-gas disbursements [lb]
M26: =IF(F26="Non-HFC",0,(G26-H26+I26-J26+K26-L26)*Conversions!$C$4) -> 0 | N26: ='Emissions Database'!BS16 -> 0 | O26: CB = Total capacity of F-gas in equipment at beginning of inventory year [lb]
M27: =IF(F27="Non-HFC",0,(G27-H27+I27-J27+K27-L27)*Conversions!$C$4) -> 0 | N27: ='Emissions Database'!BS17 -> 0 | O27: C­E = Total capacity of F-gas in equipment at end of inventory year [lb]
M28: =IF(F28="Non-HFC",0,(G28-H28+I28-J28+K28-L28)*Conversions!$C$4) -> 0 | N28: ='Emissions Database'!BS18 -> 0 | O28: http://www.whitehouse.gov/administration/eop/ceq/sustainability/fed-ghg
M29: =IF(F29="Non-HFC",0,(G29-H29+I29-J29+K29-L29)*Conversions!$C$4) -> 0 | N29: ='Emissions Database'!BS19 -> 0 | O29: WARNING! You have entered data resulting in negative emissions. While this is possible using this emission estimation methodology, and acceptable for FEMP reporting purposes, using a more advanced approach will result in more accurate emissions for the current year (as opposed to year-over-year).
M30: =IF(F30="Non-HFC",0,(G30-H30+I30-J30+K30-L30)*Conversions!$C$4) -> 0 | N30: ='Emissions Database'!BS20 -> 0
M31: =IF(F31="Non-HFC",0,(G31-H31+I31-J31+K31-L31)*Conversions!$C$4) -> 0 | N31: ='Emissions Database'!BS21 -> 0
M32: =IF(F32="Non-HFC",0,(G32-H32+I32-J32+K32-L32)*Conversions!$C$4) -> 0 | N32: ='Emissions Database'!BS22 -> 0
M33: =IF(F33="Non-HFC",0,(G33-H33+I33-J33+K33-L33)*Conversions!$C$4) -> 0 | N33: ='Emissions Database'!BS23 -> 0
M34: =IF(F34="Non-HFC",0,(G34-H34+I34-J34+K34-L34)*Conversions!$C$4) -> 0 | N34: ='Emissions Database'!BS24 -> 0
M35: =IF(F35="Non-HFC",0,(G35-H35+I35-J35+K35-L35)*Conversions!$C$4) -> 0 | N35: ='Emissions Database'!BS25 -> 0
M36: =IF(F36="Non-HFC",0,(G36-H36+I36-J36+K36-L36)*Conversions!$C$4) -> 0 | N36: ='Emissions Database'!BS26 -> 0
M37: =IF(F37="Non-HFC",0,(G37-H37+I37-J37+K37-L37)*Conversions!$C$4) -> 0 | N37: ='Emissions Database'!BS27 -> 0
M38: =IF(F38="Non-HFC",0,(G38-H38+I38-J38+K38-L38)*Conversions!$C$4) -> 0 | N38: ='Emissions Database'!BS28 -> 0
M39: =IF(F39="Non-HFC",0,(G39-H39+I39-J39+K39-L39)*Conversions!$C$4) -> 0 | N39: ='Emissions Database'!BS29 -> 0
M40: =IF(F40="Non-HFC",0,(G40-H40+I40-J40+K40-L40)*Conversions!$C$4) -> 0 | N40: ='Emissions Database'!BS30 -> 0
M41: =IF(F41="Non-HFC",0,(G41-H41+I41-J41+K41-L41)*Conversions!$C$4) -> 0 | N41: ='Emissions Database'!BS31 -> 0
M42: =IF(F42="Non-HFC",0,(G42-H42+I42-J42+K42-L42)*Conversions!$C$4) -> 0 | N42: ='Emissions Database'!BS32 -> 0
M43: =IF(F43="Non-HFC",0,(G43-H43+I43-J43+K43-L43)*Conversions!$C$4) -> 0 | N43: ='Emissions Database'!BS33 -> 0
M44: =IF(F44="Non-HFC",0,(G44-H44+I44-J44+K44-L44)*Conversions!$C$4) -> 0 | N44: ='Emissions Database'!BS34 -> 0
M45: =IF(F45="Non-HFC",0,(G45-H45+I45-J45+K45-L45)*Conversions!$C$4) -> 0 | N45: ='Emissions Database'!BS35 -> 0
M46: =IF(F46="Non-HFC",0,(G46-H46+I46-J46+K46-L46)*Conversions!$C$4) -> 0 | N46: ='Emissions Database'!BS36 -> 0
M47: =IF(F47="Non-HFC",0,(G47-H47+I47-J47+K47-L47)*Conversions!$C$4) -> 0 | N47: ='Emissions Database'!BS37 -> 0
M48: =IF(F48="Non-HFC",0,(G48-H48+I48-J48+K48-L48)*Conversions!$C$4) -> 0 | N48: ='Emissions Database'!BS38 -> 0
M49: =IF(F49="Non-HFC",0,(G49-H49+I49-J49+K49-L49)*Conversions!$C$4) -> 0 | N49: ='Emissions Database'!BS39 -> 0
M50: =IF(F50="Non-HFC",0,(G50-H50+I50-J50+K50-L50)*Conversions!$C$4) -> 0 | N50: ='Emissions Database'!BS40 -> 0
M51: =IF(F51="Non-HFC",0,(G51-H51+I51-J51+K51-L51)*Conversions!$C$4) -> 0 | N51: ='Emissions Database'!BS41 -> 0
M52: =IF(F52="Non-HFC",0,(G52-H52+I52-J52+K52-L52)*Conversions!$C$4) -> 0 | N52: ='Emissions Database'!BS42 -> 0
M53: =IF(F53="Non-HFC",0,(G53-H53+I53-J53+K53-L53)*Conversions!$C$4) -> 0 | N53: ='Emissions Database'!BS43 -> 0
C54: Total | M54: =SUM(M14:M53) -> 0 | N54: =SUM(N14:N53) -> 0

Sheet Equipment Assumptions (hidden)
B2: Equipment Assumptions
B5: Equipment assumptions are listed below, including default leak, service, and recovery rates, equipment lifetimes, and the default share of equipment that use HFCs.
B7: Unit Technical Specification Assumptions
B8: Equipment Type | C8: Capacity per Unit (kg) | D8: Installation Emission Factor k (% of capacity) | E8: Operating Emission Factor x (% of capacity/yr) | F8: Refrigerant Remaining at Disposal y (% of capacity) | G8: Recovery Efficiency z (% of remaining) | H8: Unit Lifetime (Years) | I8: Unit Turnover Rate (%) | J8: Default F-Gas | K8: Default Installation Emissions (kg F-Gas / Unit Capacity) | L8: Default Operation Emissions (kg F-Gas / Unit Capacity) | M8: Default Disposal Emissions (kg F-Gas / Unit Capacity)
B9: ='Default Values'!B5 -> Household refrigerators and/or freezers | C9: ='Default Values'!C5 -> 0.15 | D9: ='Default Values'!D5 -> 0 | E9: ='Default Values'!E5 -> 0.005 | F9: ='Default Values'!F5 -> 0.91 | G9: ='Default Values'!G5 -> 0.31 | H9: ='Default Values'!H5 -> 14 | I9: ='Default Values'!I5 -> 0.07142857143 | J9: ='Default Values'!J5 -> R-134a | K9: ='Default Values'!K5 -> 0 | L9: ='Default Values'!L5 -> 0.00075 | M9: ='Default Values'!M5 -> 0.0067275
B10: ='Default Values'!B6 -> Room A/C | C10: ='Default Values'!C6 -> 0.5 | D10: ='Default Values'!D6 -> 0 | E10: ='Default Values'!E6 -> 0.009 | F10: ='Default Values'!F6 -> 0.94 | G10: ='Default Values'!G6 -> 0.21 | H10: ='Default Values'!H6 -> 12 | I10: ='Default Values'!I6 -> 0.08333333333 | J10: ='Default Values'!J6 -> R-410A | K10: ='Default Values'!K6 -> 0 | L10: ='Default Values'!L6 -> 0.0045 | M10: ='Default Values'!M6 -> 0.03094166667
B11: ='Default Values'!B7 -> Other commercial A/C and heat pumps | C11: ='Default Values'!C7 -> 13 | D11: ='Default Values'!D7 -> 0 | E11: ='Default Values'!E7 -> 0.08 | F11: ='Default Values'!F7 -> 0.8 | G11: ='Default Values'!G7 -> 0.7 | H11: ='Default Values'!H7 -> 25 | I11: ='Default Values'!I7 -> 0.04 | J11: ='Default Values'!J7 -> R-410A | K11: ='Default Values'!K7 -> 0 | L11: ='Default Values'!L7 -> 1.04 | M11: ='Default Values'!M7 -> 0.1248
B12: ='Default Values'!B8 -> Other residential A/C and heat pumps | C12: ='Default Values'!C8 -> 5 | D12: ='Default Values'!D8 -> 0 | E12: ='Default Values'!E8 -> 0.08 | F12: ='Default Values'!F8 -> 0.8 | G12: ='Default Values'!G8 -> 0.5 | H12: ='Default Values'!H8 -> 15 | I12: ='Default Values'!I8 -> 0.06666666667 | J12: ='Default Values'!J8 -> R-410A | K12: ='Default Values'!K8 -> 0 | L12: ='Default Values'!L8 -> 0.4 | M12: ='Default Values'!M8 -> 0.1333333333
B13: ='Default Values'!B9 -> IPR | C13: ='Default Values'!C9 -> 3640 | D13: ='Default Values'!D9 -> 0.03 | E13: ='Default Values'!E9 -> 0.25 | F13: ='Default Values'!F9 -> 0.8 | G13: ='Default Values'!G9 -> 0.8 | H13: ='Default Values'!H9 -> 25 | I13: ='Default Values'!I9 -> 0.04 | J13: ='Default Values'!J9 -> R-134a | K13: ='Default Values'!K9 -> 4.368 | L13: ='Default Values'!L9 -> 910 | M13: ='Default Values'!M9 -> 23.296
B14: ='Default Values'!B10 -> Medium cold storage | C14: ='Default Values'!C10 -> 565 | D14: ='Default Values'!D10 -> 0.01 | E14: ='Default Values'!E10 -> 0.25 | F14: ='Default Values'!F10 -> 0.8 | G14: ='Default Values'!G10 -> 0.8 | H14: ='Default Values'!H10 -> 25 | I14: ='Default Values'!I10 -> 0.04 | J14: ='Default Values'!J10 -> R-404A | K14: ='Default Values'!K10 -> 0.226 | L14: ='Default Values'!L10 -> 141.25 | M14: ='Default Values'!M10 -> 3.616
B15: ='Default Values'!B11 -> Large cold storage | C15: ='Default Values'!C11 -> 7546 | D15: ='Default Values'!D11 -> 0.01 | E15: ='Default Values'!E11 -> 0.25 | F15: ='Default Values'!F11 -> 0.8 | G15: ='Default Values'!G11 -> 0.8 | H15: ='Default Values'!H11 -> 25 | I15: ='Default Values'!I11 -> 0.04 | J15: ='Default Values'!J11 -> R-404A | K15: ='Default Values'!K11 -> 3.0184 | L15: ='Default Values'!L11 -> 1886.5 | M15: ='Default Values'!M11 -> 48.2944
B16: ='Default Values'!B12 -> Chillers | C16: ='Default Values'!C12 -> 500 | D16: ='Default Values'!D12 -> 0.005 | E16: ='Default Values'!E12 -> 0.02 | F16: ='Default Values'!F12 -> 0.95 | G16: ='Default Values'!G12 -> 0.85 | H16: ='Default Values'!H12 -> 23 | I16: ='Default Values'!I12 -> 0.04347826087 | J16: ='Default Values'!J12 -> R-134a | K16: ='Default Values'!K12 -> 0.1086956522 | L16: ='Default Values'!L12 -> 10 | M16: ='Default Values'!M12 -> 3.097826087
B17: ='Default Values'!B13 -> Stand-alone retail refrigerators and freezers | C17: ='Default Values'!C13 -> 0.4 | D17: ='Default Values'!D13 -> 0 | E17: ='Default Values'!E13 -> 0.01 | F17: ='Default Values'!F13 -> 0.9 | G17: ='Default Values'!G13 -> 0.25 | H17: ='Default Values'!H13 -> 10 | I17: ='Default Values'!I13 -> 0.1 | J17: ='Default Values'!J13 -> R-134a | K17: ='Default Values'!K13 -> 0 | L17: ='Default Values'!L13 -> 0.004 | M17: ='Default Values'!M13 -> 0.027
B18: ='Default Values'!B14 -> Walk-in refrigerators and freezers | C18: ='Default Values'!C14 -> 10 | D18: ='Default Values'!D14 -> 0.02 | E18: ='Default Values'!E14 -> 0.12 | F18: ='Default Values'!F14 -> 0.9 | G18: ='Default Values'!G14 -> 0.7 | H18: ='Default Values'!H14 -> 20 | I18: ='Default Values'!I14 -> 0.05 | J18: ='Default Values'!J14 -> R-404A | K18: ='Default Values'!K14 -> 0.01 | L18: ='Default Values'!L14 -> 1.2 | M18: ='Default Values'!M14 -> 0.135
B19: ='Default Values'!B15 -> Supermarket refrigeration and condensing units | C19: ='Default Values'!C15 -> 1360 | D19: ='Default Values'!D15 -> 0.02 | E19: ='Default Values'!E15 -> 0.25 | F19: ='Default Values'!F15 -> 0.9 | G19: ='Default Values'!G15 -> 0.85 | H19: ='Default Values'!H15 -> 18 | I19: ='Default Values'!I15 -> 0.05555555556 | J19: ='Default Values'!J15 -> R-404A | K19: ='Default Values'!K15 -> 1.511111111 | L19: ='Default Values'!L15 -> 340 | M19: ='Default Values'!M15 -> 10.2
B20: ='Default Values'!B16 -> Refrigerated transport - land | C20: ='Default Values'!C16 -> 6 | D20: ='Default Values'!D16 -> 0 | E20: ='Default Values'!E16 -> 0.2 | F20: ='Default Values'!F16 -> 0.5 | G20: ='Default Values'!G16 -> 0.6 | H20: ='Default Values'!H16 -> 12 | I20: ='Default Values'!I16 -> 0.08333333333 | J20: ='Default Values'!J16 -> R-134a | K20: ='Default Values'!K16 -> 0 | L20: ='Default Values'!L16 -> 1.2 | M20: ='Default Values'!M16 -> 0.1
B21: ='Default Values'!B17 -> Refrigerated transport - marine | C21: ='Default Values'!C17 -> 6 | D21: ='Default Values'!D17 -> 0 | E21: ='Default Values'!E17 -> 0.2 | F21: ='Default Values'!F17 -> 0.5 | G21: ='Default Values'!G17 -> 0.6 | H21: ='Default Values'!H17 -> 12 | I21: ='Default Values'!I17 -> 0.08333333333 | J21: ='Default Values'!J17 -> R-134a | K21: ='Default Values'!K17 -> 0 | L21: ='Default Values'!L17 -> 1.2 | M21: ='Default Values'!M17 -> 0.1
B22: ='Default Values'!B18 -> Passenger car A/C | C22: ='Default Values'!C18 -> 0.6 | D22: ='Default Values'!D18 -> 0 | E22: ='Default Values'!E18 -> 0.089 | F22: ='Default Values'!F18 -> 0.5 | G22: ='Default Values'!G18 -> 0.2 | H22: ='Default Values'!H18 -> 12 | I22: ='Default Values'!I18 -> 0.08333333333 | J22: ='Default Values'!J18 -> R-134a | K22: ='Default Values'!K18 -> 0 | L22: ='Default Values'!L18 -> 0.0534 | M22: ='Default Values'!M18 -> 0.02
B23: ='Default Values'!B19 -> Light-duty or heavy-duty truck A/C | C23: ='Default Values'!C19 -> 0.8 | D23: ='Default Values'!D19 -> 0 | E23: ='Default Values'!E19 -> 0.089 | F23: ='Default Values'!F19 -> 0.5 | G23: ='Default Values'!G19 -> 0.2 | H23: ='Default Values'!H19 -> 12 | I23: ='Default Values'!I19 -> 0.08333333333 | J23: ='Default Values'!J19 -> R-134a | K23: ='Default Values'!K19 -> 0 | L23: ='Default Values'!L19 -> 0.0712 | M23: ='Default Values'!M19 -> 0.02666666667
B24: ='Default Values'!B20 -> Bus A/C | C24: ='Default Values'!C20 -> 5 | D24: ='Default Values'!D20 -> 0 | E24: ='Default Values'!E20 -> 0.1 | F24: ='Default Values'!F20 -> 0.5 | G24: ='Default Values'!G20 -> 0.4 | H24: ='Default Values'!H20 -> 12 | I24: ='Default Values'!I20 -> 0.08333333333 | J24: ='Default Values'!J20 -> R-134a | K24: ='Default Values'!K20 -> 0 | L24: ='Default Values'!L20 -> 0.5 | M24: ='Default Values'!M20 -> 0.125
B26: Reporting Year | C26: =Inputs!E12 -> 2016
B28: Share of units for an end use in a given year that use HFCs (Rounded %)
B29: These assumptions feed into Simplified Screening 1 and Simplified Screening 2 and "discount" emissions from the default HFC type in each approach. If the user specifies a refrigerant in Simplified Screening 1, the discount is not applied to that selection.
B30: Reporting Year | C30: Household refrigerators and/or freezers | D30: Room A/C | E30: Other commercial A/C and heat pumps | F30: Other residential A/C and heat pumps | G30: Medium cold storage | H30: Large cold storage | I30: Chillers | J30: Stand-alone retail refrigerators and freezers | K30: Walk-in refrigerators and freezers | L30: Supermarket refrigeration and condensing units | M30: Refrigerated transport - land | N30: Refrigerated transport - marine | O30: Passenger car A/C | P30: Light-duty or heavy-duty truck A/C | Q30: Bus A/C
B31: Selected Year | C31: =VLOOKUP($C$26,$B$32:$Q$52,COLUMNS($B$30:C30),0) -> 1 | D31: =VLOOKUP($C$26,$B$32:$Q$52,COLUMNS($B$30:D30),0) -> 0.6 | E31: =VLOOKUP($C$26,$B$32:$Q$52,COLUMNS($B$30:E30),0) -> 0.5 | F31: =VLOOKUP($C$26,$B$32:$Q$52,COLUMNS($B$30:F30),0) -> 0.5 | G31: =VLOOKUP($C$26,$B$32:$Q$52,COLUMNS($B$30:G30),0) -> 0.6 | H31: =VLOOKUP($C$26,$B$32:$Q$52,COLUMNS($B$30:H30),0) -> 0.6 | I31: =VLOOKUP($C$26,$B$32:$Q$52,COLUMNS($B$30:I30),0) -> 0.4 | J31: =VLOOKUP($C$26,$B$32:$Q$52,COLUMNS($B$30:J30),0) -> 1 | K31: =VLOOKUP($C$26,$B$32:$Q$52,COLUMNS($B$30:K30),0) -> 0.6 | L31: =VLOOKUP($C$26,$B$32:$Q$52,COLUMNS($B$30:L30),0) -> 0.6 | M31: =VLOOKUP($C$26,$B$32:$Q$52,COLUMNS($B$30:M30),0) -> 1 | N31: =VLOOKUP($C$26,$B$32:$Q$52,COLUMNS($B$30:N30),0) -> 1 | O31: =VLOOKUP($C$26,$B$32:$Q$52,COLUMNS($B$30:O30),0) -> 1 | P31: =VLOOKUP($C$26,$B$32:$Q$52,COLUMNS($B$30:P30),0) -> 1 | Q31: =VLOOKUP($C$26,$B$32:$Q$52,COLUMNS($B$30:Q30),0) -> 0.9
A32: =IF(B32=$C$26,"Selection","") ->  | B32: 2010 | C32: 1 | D32: 0.1 | E32: 0.1 | F32: 0.2 | G32: 0.3 | H32: 0.3 | I32: 0.2 | J32: 1 | K32: 0.3 | L32: 0.4 | M32: 1 | N32: 1 | O32: 1 | P32: 1 | Q32: 0.7
B33: 2011 | C33: 1 | D33: 0.2 | E33: 0.2 | F33: 0.2 | G33: 0.4 | H33: 0.4 | I33: 0.2 | J33: 1 | K33: 0.3 | L33: 0.4 | M33: 1 | N33: 1 | O33: 1 | P33: 1 | Q33: 0.7
B34: 2012 | C34: 1 | D34: 0.3 | E34: 0.2 | F34: 0.3 | G34: 0.4 | H34: 0.4 | I34: 0.3 | J34: 1 | K34: 0.4 | L34: 0.5 | M34: 1 | N34: 1 | O34: 1 | P34: 1 | Q34: 0.8
B35: 2013 | C35: 1 | D35: 0.3 | E35: 0.3 | F35: 0.3 | G35: 0.5 | H35: 0.5 | I35: 0.3 | J35: 1 | K35: 0.5 | L35: 0.5 | M35: 1 | N35: 1 | O35: 1 | P35: 1 | Q35: 0.8
A36: =IF(B36=$C$26,"Selection","") ->  | B36: 2014 | C36: 1 | D36: 0.4 | E36: 0.3 | F36: 0.4 | G36: 0.5 | H36: 0.5 | I36: 0.3 | J36: 1 | K36: 0.5 | L36: 0.5 | M36: 1 | N36: 1 | O36: 1 | P36: 1 | Q36: 0.9
A37: =IF(B37=$C$26,"Selection","") ->  | B37: 2015 | C37: 1 | D37: 0.5 | E37: 0.4 | F37: 0.5 | G37: 0.6 | H37: 0.6 | I37: 0.4 | J37: 1 | K37: 0.6 | L37: 0.6 | M37: 1 | N37: 1 | O37: 1 | P37: 1 | Q37: 0.9
A38: Selection | B38: 2016 | C38: 1 | D38: 0.6 | E38: 0.5 | F38: 0.5 | G38: 0.6 | H38: 0.6 | I38: 0.4 | J38: 1 | K38: 0.6 | L38: 0.6 | M38: 1 | N38: 1 | O38: 1 | P38: 1 | Q38: 0.9
B39: 2017 | C39: 1 | D39: 0.7 | E39: 0.5 | F39: 0.6 | G39: 0.6 | H39: 0.6 | I39: 0.5 | J39: 0.9 | K39: 0.7 | L39: 0.7 | M39: 1 | N39: 1 | O39: 1 | P39: 1 | Q39: 1
B40: 2018 | C40: 1 | D40: 0.8 | E40: 0.6 | F40: 0.7 | G40: 0.7 | H40: 0.7 | I40: 0.5 | J40: 0.9 | K40: 0.7 | L40: 0.7 | M40: 1 | N40: 1 | O40: 0.9 | P40: 0.9 | Q40: 1
B41: 2019 | C41: 1 | D41: 0.9 | E41: 0.7 | F41: 0.7 | G41: 0.7 | H41: 0.7 | I41: 0.6 | J41: 0.9 | K41: 0.7 | L41: 0.7 | M41: 1 | N41: 1 | O41: 0.9 | P41: 0.9 | Q41: 1
B42: 2020 | C42: 1 | D42: 1 | E42: 0.7 | F42: 0.8 | G42: 0.7 | H42: 0.7 | I42: 0.6 | J42: 0.8 | K42: 0.8 | L42: 0.8 | M42: 1 | N42: 1 | O42: 0.8 | P42: 0.8 | Q42: 1
B43: 2021 | C43: 1 | D43: 1 | E43: 0.8 | F43: 0.9 | G43: 0.7 | H43: 0.7 | I43: 0.6 | J43: 0.8 | K43: 0.8 | L43: 0.8 | M43: 1 | N43: 1 | O43: 0.7 | P43: 0.8 | Q43: 1
B44: 2022 | C44: 1 | D44: 1 | E44: 0.9 | F44: 0.9 | G44: 0.8 | H44: 0.8 | I44: 0.7 | J44: 0.8 | K44: 0.8 | L44: 0.9 | M44: 1 | N44: 1 | O44: 0.7 | P44: 0.7 | Q44: 1
B45: 2023 | C45: 1 | D45: 1 | E45: 1 | F45: 1 | G45: 0.8 | H45: 0.8 | I45: 0.7 | J45: 0.7 | K45: 0.9 | L45: 0.9 | M45: 1 | N45: 1 | O45: 0.6 | P45: 0.6 | Q45: 1
B46: 2024 | C46: 1 | D46: 1 | E46: 1 | F46: 1 | G46: 0.8 | H46: 0.8 | I46: 0.8 | J46: 0.7 | K46: 0.9 | L46: 0.9 | M46: 1 | N46: 1 | O46: 0.5 | P46: 0.6 | Q46: 1
B47: 2025 | C47: 1 | D47: 1 | E47: 1 | F47: 1 | G47: 0.8 | H47: 0.8 | I47: 0.8 | J47: 0.7 | K47: 0.9 | L47: 1 | M47: 1 | N47: 1 | O47: 0.5 | P47: 0.5 | Q47: 1
B48: 2026 | C48: 1 | D48: 1 | E48: 1 | F48: 1 | G48: 0.8 | H48: 0.8 | I48: 0.8 | J48: 0.7 | K48: 0.9 | L48: 1 | M48: 1 | N48: 1 | O48: 0.4 | P48: 0.5 | Q48: 1
B49: 2027 | C49: 1 | D49: 1 | E49: 1 | F49: 1 | G49: 0.9 | H49: 0.9 | I49: 0.9 | J49: 0.7 | K49: 1 | L49: 1 | M49: 1 | N49: 1 | O49: 0.4 | P49: 0.4 | Q49: 1
B50: 2028 | C50: 1 | D50: 1 | E50: 1 | F50: 1 | G50: 0.9 | H50: 0.9 | I50: 0.9 | J50: 0.7 | K50: 1 | L50: 1 | M50: 1 | N50: 1 | O50: 0.3 | P50: 0.3 | Q50: 1
B51: 2029 | C51: 1 | D51: 1 | E51: 1 | F51: 1 | G51: 0.9 | H51: 0.9 | I51: 0.9 | J51: 0.7 | K51: 1 | L51: 1 | M51: 1 | N51: 1 | O51: 0.3 | P51: 0.3 | Q51: 1
B52: 2030 | C52: 1 | D52: 1 | E52: 1 | F52: 1 | G52: 0.9 | H52: 0.9 | I52: 0.9 | J52: 0.7 | K52: 1 | L52: 1 | M52: 1 | N52: 1 | O52: 0.2 | P52: 0.2 | Q52: 1
B53: Source: EPA's Vintaging Model v4.4 (2014)

Sheet Building Customization (hidden)
B2: Building Customization
B5: Use this page to customize the share of each building type that uses AC, as well as the share of schools that have cafeterias for the Simplified Screening 2 approach.
B7: A/C and Cafeteria Customization for Buildings
B8: These percentages will be applied uniformly for a particular building type in the Simplified Screening 2 Approach
B9: Federal Building Type | C9: Share of buildings / vehicles with AC (% of total square feet of all buildings for each type) | D9: Share of Schools that have Cafeterias (% of schools by square feet)
B10: Office | C10: 1
B11: School | C11: 1 | D11: 1
B12: Family housing | C12: 1
B13: Dormitories/barracks | C13: 1
B14: Post office | C14: 1
B15: Prisons and detention centers | C15: 1
B16: Museum | C16: 1
B17: Other institutional uses | C17: 1
B18: Supermarkets/commissaries | C18: 1
B19: Warehouse, service & industrial | C19: 1
B20: Refrigerated warehouse
B21: Communications systems | C21: 1
B22: Navigation and traffic aids | C22: 1
B23: Hospital | C23: 1
B24: Laboratories | C24: 1
B25: Passenger vehicles | C25: 1
B26: Light-duty or heavy-duty trucks | C26: 1
B27: Buses | C27: 1
B28: Refrigerated transport - land
B29: Refrigerated transport - marine

Sheet GHG_Emissions
C2: GHG Emissions Summary
C4: Click on the drop-down menu below to view the various breakdowns in HFC emissions from your equipment, or to refresh the chart when new data is entered.
C5: Note: If you are comparing the same emissions using multiple calculation approaches, choose the "Calculation Approach Comparison" report.
B8: =IF(D12="",1,21-COUNTIF($D$12:$D$32,"")) -> 1
B9: 1 | D9: =VLOOKUP($J$11&"_"&$B9,$A$51:$E$204,COLUMNS($A$54:$D$54),0) -> GHG Emissions by Location (MT CO2-e)
B10: 2 | D10: =VLOOKUP($J$11&"_"&$B10,$A$51:$E$204,COLUMNS($A$54:$D$54),0) -> Facility or region name | E10: Total GHG emissions (MT CO2-e) | F10: % of total emissions | J10: 1
B11: 3 | D11: =IF(J10=7,"","Total") -> Total | E11: =IF(J10=7,"",SUM(E12:E32)) -> 0 | F11: =IF(J10=7,"",E11/E$131) ->  | J11: =IF(VLOOKUP(J10,Lists!$B$58:$C$64,2,0)=Lists!$C$64,Lists!$C$63,VLOOKUP(J10,Lists!$B$58:$C$64,2,0)) -> Location
B12: 4 | D12: =VLOOKUP($J$11&"_"&$B12,$A$51:$E$204,COLUMNS($A$54:$D$54),0) -> Agency (unspecified) | E12: =VLOOKUP($J$11&"_"&$B12,$A$51:$E$204,COLUMNS($A$54:$E$54),0) -> 0 | F12: =IF(D12="","",IF($J$10=7,"",E12/E$11)) -> 
B13: 5 | F13: =IF(D13="","",IF($J$10=7,"",E13/E$11)) -> 
B14: 6
B15: 7
B16: 8
B17: 9
B18: 10
B19: 11
B20: 12
B21: 13
B22: 14
B23: 15
B24: 16
B25: 17
B26: 18
B27: 19
B28: 20
B29: 21
B30: 22
B31: 23
B32: 24
A51: =Lists!$C$58&"_"&B9 -> Location_1 | D51: GHG Emissions by Location (MT CO2-e)
A52: =Lists!$C$58&"_"&B10 -> Location_2 | D52: Facility or region name | E52: Total GHG emissions (MT CO2-e) | F52: % of total emissions
A53: =Lists!$C$58&"_"&B11 -> Location_3 | B53: =21-COUNTIF(D54:D74,"") -> 1 | D53: Total | E53: =SUM(E54:E74) -> 0 | F53: =E53/$E$53 -> 
A54: =Lists!$C$58&"_"&B12 -> Location_4 | D54: =IF(Inputs!D15=0,"",Inputs!D15) -> Agency (unspecified) | E54: =IF($D54="","",SUMIF('Emissions Database'!$C$4:$C$203,$D54,'Emissions Database'!$BS$4:$BS$203)) -> 0 | F54: =IF(D54="","",E54/$E$53) -> 
A55: =Lists!$C$58&"_"&B13 -> Location_5 | D55: =IF(Inputs!D16=0,"",Inputs!D16) ->  | E55: =IF($D55="","",SUMIF('Emissions Database'!$C$4:$C$203,$D55,'Emissions Database'!$BS$4:$BS$203)) ->  | F55: =IF(D55="","",E55/$E$53) -> 
A56: =Lists!$C$58&"_"&B14 -> Location_6 | D56: =IF(Inputs!D17=0,"",Inputs!D17) ->  | E56: =IF($D56="","",SUMIF('Emissions Database'!$C$4:$C$203,$D56,'Emissions Database'!$BS$4:$BS$203)) ->  | F56: =IF(D56="","",E56/$E$53) -> 
A57: =Lists!$C$58&"_"&B15 -> Location_7 | D57: =IF(Inputs!D18=0,"",Inputs!D18) ->  | E57: =IF($D57="","",SUMIF('Emissions Database'!$C$4:$C$203,$D57,'Emissions Database'!$BS$4:$BS$203)) ->  | F57: =IF(D57="","",E57/$E$53) -> 
A58: =Lists!$C$58&"_"&B16 -> Location_8 | D58: =IF(Inputs!D19=0,"",Inputs!D19) ->  | E58: =IF($D58="","",SUMIF('Emissions Database'!$C$4:$C$203,$D58,'Emissions Database'!$BS$4:$BS$203)) ->  | F58: =IF(D58="","",E58/$E$53) -> 
A59: =Lists!$C$58&"_"&B17 -> Location_9 | D59: =IF(Inputs!D20=0,"",Inputs!D20) ->  | E59: =IF($D59="","",SUMIF('Emissions Database'!$C$4:$C$203,$D59,'Emissions Database'!$BS$4:$BS$203)) ->  | F59: =IF(D59="","",E59/$E$53) -> 
A60: =Lists!$C$58&"_"&B18 -> Location_10 | D60: =IF(Inputs!D21=0,"",Inputs!D21) ->  | E60: =IF($D60="","",SUMIF('Emissions Database'!$C$4:$C$203,$D60,'Emissions Database'!$BS$4:$BS$203)) -> 
A61: =Lists!$C$58&"_"&B19 -> Location_11 | D61: =IF(Inputs!D22=0,"",Inputs!D22) ->  | E61: =IF($D61="","",SUMIF('Emissions Database'!$C$4:$C$203,$D61,'Emissions Database'!$BS$4:$BS$203)) -> 
A62: =Lists!$C$58&"_"&B20 -> Location_12 | D62: =IF(Inputs!D23=0,"",Inputs!D23) ->  | E62: =IF($D62="","",SUMIF('Emissions Database'!$C$4:$C$203,$D62,'Emissions Database'!$BS$4:$BS$203)) -> 
A63: =Lists!$C$58&"_"&B21 -> Location_13 | D63: =IF(Inputs!D24=0,"",Inputs!D24) ->  | E63: =IF($D63="","",SUMIF('Emissions Database'!$C$4:$C$203,$D63,'Emissions Database'!$BS$4:$BS$203)) -> 
A64: =Lists!$C$58&"_"&B22 -> Location_14 | D64: =IF(Inputs!D25=0,"",Inputs!D25) ->  | E64: =IF($D64="","",SUMIF('Emissions Database'!$C$4:$C$203,$D64,'Emissions Database'!$BS$4:$BS$203)) -> 
A65: =Lists!$C$58&"_"&B23 -> Location_15 | D65: =IF(Inputs!D26=0,"",Inputs!D26) ->  | E65: =IF($D65="","",SUMIF('Emissions Database'!$C$4:$C$203,$D65,'Emissions Database'!$BS$4:$BS$203)) -> 
A66: =Lists!$C$58&"_"&B24 -> Location_16 | D66: =IF(Inputs!D27=0,"",Inputs!D27) ->  | E66: =IF($D66="","",SUMIF('Emissions Database'!$C$4:$C$203,$D66,'Emissions Database'!$BS$4:$BS$203)) -> 
A67: =Lists!$C$58&"_"&B25 -> Location_17 | D67: =IF(Inputs!D28=0,"",Inputs!D28) ->  | E67: =IF($D67="","",SUMIF('Emissions Database'!$C$4:$C$203,$D67,'Emissions Database'!$BS$4:$BS$203)) -> 
A68: =Lists!$C$58&"_"&B26 -> Location_18 | D68: =IF(Inputs!D29=0,"",Inputs!D29) ->  | E68: =IF($D68="","",SUMIF('Emissions Database'!$C$4:$C$203,$D68,'Emissions Database'!$BS$4:$BS$203)) -> 
A69: =Lists!$C$58&"_"&B27 -> Location_19 | D69: =IF(Inputs!D30=0,"",Inputs!D30) ->  | E69: =IF($D69="","",SUMIF('Emissions Database'!$C$4:$C$203,$D69,'Emissions Database'!$BS$4:$BS$203)) -> 
A70: =Lists!$C$58&"_"&B28 -> Location_20 | D70: =IF(Inputs!D31=0,"",Inputs!D31) ->  | E70: =IF($D70="","",SUMIF('Emissions Database'!$C$4:$C$203,$D70,'Emissions Database'!$BS$4:$BS$203)) -> 
A71: =Lists!$C$58&"_"&B29 -> Location_21 | D71: =IF(Inputs!D32=0,"",Inputs!D32) ->  | E71: =IF($D71="","",SUMIF('Emissions Database'!$C$4:$C$203,$D71,'Emissions Database'!$BS$4:$BS$203)) -> 
A72: =Lists!$C$58&"_"&B30 -> Location_22 | D72: =IF(Inputs!D33=0,"",Inputs!D33) ->  | E72: =IF($D72="","",SUMIF('Emissions Database'!$C$4:$C$203,$D72,'Emissions Database'!$BS$4:$BS$203)) -> 
A73: =Lists!$C$58&"_"&B31 -> Location_23 | D73: =IF(Inputs!D34=0,"",Inputs!D34) ->  | E73: =IF($D73="","",SUMIF('Emissions Database'!$C$4:$C$203,$D73,'Emissions Database'!$BS$4:$BS$203)) -> 
A74: =Lists!$C$58&"_"&B32 -> Location_24 | D74: =IF(Inputs!D35=0,"",Inputs!D35) ->  | E74: =IF($D74="","",SUMIF('Emissions Database'!$C$4:$C$203,$D74,'Emissions Database'!$BS$4:$BS$203)) -> 
A77: =Lists!$C$59&"_"&B9 -> Federal Building Type_1 | D77: GHG Emissions by Federal Building Type (MT CO2-e)
A78: =Lists!$C$59&"_"&B10 -> Federal Building Type_2 | D78: Federal building type | E78: Total GHG emissions (MT CO2-e) | F78: % of total emissions
A79: =Lists!$C$59&"_"&B11 -> Federal Building Type_3 | B79: =18-COUNTIF(D80:D97,"") -> 1 | D79: Total | E79: ='Emissions Database'!BS204 -> 0 | F79: =E79/$E$53 -> 
A80: =Lists!$C$59&"_"&B12 -> Federal Building Type_4 | D80: Non-Specified | E80: =E79-SUM(E81:E100) -> 0 | F80: =IF(D80="","",E80/$E$79) -> 
A81: =Lists!$C$59&"_"&B13 -> Federal Building Type_5 | B81: 1 | D81: =IF(COUNTIF(Lists!$B$3:$B$22,$B81)=0,"",VLOOKUP($B81,Lists!$B$3:$C$22,2,0)) ->  | E81: =IF(D81="","",SUMIF('Emissions Database'!$D$4:$D$203,$D81,'Emissions Database'!$BS$4:$BS$203)) -> 
A82: =Lists!$C$59&"_"&B14 -> Federal Building Type_6 | B82: 2 | D82: =IF(COUNTIF(Lists!$B$3:$B$22,$B82)=0,"",VLOOKUP($B82,Lists!$B$3:$C$22,2,0)) ->  | E82: =IF(D82="","",SUMIF('Emissions Database'!$D$4:$D$203,$D82,'Emissions Database'!$BS$4:$BS$203)) -> 
A83: =Lists!$C$59&"_"&B15 -> Federal Building Type_7 | B83: 3 | D83: =IF(COUNTIF(Lists!$B$3:$B$22,$B83)=0,"",VLOOKUP($B83,Lists!$B$3:$C$22,2,0)) ->  | E83: =IF(D83="","",SUMIF('Emissions Database'!$D$4:$D$203,$D83,'Emissions Database'!$BS$4:$BS$203)) -> 
A84: =Lists!$C$59&"_"&B16 -> Federal Building Type_8 | B84: 4 | D84: =IF(COUNTIF(Lists!$B$3:$B$22,$B84)=0,"",VLOOKUP($B84,Lists!$B$3:$C$22,2,0)) ->  | E84: =IF(D84="","",SUMIF('Emissions Database'!$D$4:$D$203,$D84,'Emissions Database'!$BS$4:$BS$203)) -> 
A85: =Lists!$C$59&"_"&B17 -> Federal Building Type_9 | B85: 5 | D85: =IF(COUNTIF(Lists!$B$3:$B$22,$B85)=0,"",VLOOKUP($B85,Lists!$B$3:$C$22,2,0)) ->  | E85: =IF(D85="","",SUMIF('Emissions Database'!$D$4:$D$203,$D85,'Emissions Database'!$BS$4:$BS$203)) -> 
A86: =Lists!$C$59&"_"&B18 -> Federal Building Type_10 | B86: 6 | D86: =IF(COUNTIF(Lists!$B$3:$B$22,$B86)=0,"",VLOOKUP($B86,Lists!$B$3:$C$22,2,0)) ->  | E86: =IF(D86="","",SUMIF('Emissions Database'!$D$4:$D$203,$D86,'Emissions Database'!$BS$4:$BS$203)) -> 
A87: =Lists!$C$59&"_"&B19 -> Federal Building Type_11 | B87: 7 | D87: =IF(COUNTIF(Lists!$B$3:$B$22,$B87)=0,"",VLOOKUP($B87,Lists!$B$3:$C$22,2,0)) ->  | E87: =IF(D87="","",SUMIF('Emissions Database'!$D$4:$D$203,$D87,'Emissions Database'!$BS$4:$BS$203)) -> 
A88: =Lists!$C$59&"_"&B20 -> Federal Building Type_12 | B88: 8 | D88: =IF(COUNTIF(Lists!$B$3:$B$22,$B88)=0,"",VLOOKUP($B88,Lists!$B$3:$C$22,2,0)) ->  | E88: =IF(D88="","",SUMIF('Emissions Database'!$D$4:$D$203,$D88,'Emissions Database'!$BS$4:$BS$203)) -> 
A89: =Lists!$C$59&"_"&B21 -> Federal Building Type_13 | B89: 9 | D89: =IF(COUNTIF(Lists!$B$3:$B$22,$B89)=0,"",VLOOKUP($B89,Lists!$B$3:$C$22,2,0)) ->  | E89: =IF(D89="","",SUMIF('Emissions Database'!$D$4:$D$203,$D89,'Emissions Database'!$BS$4:$BS$203)) -> 
A90: =Lists!$C$59&"_"&B22 -> Federal Building Type_14 | B90: 10 | D90: =IF(COUNTIF(Lists!$B$3:$B$22,$B90)=0,"",VLOOKUP($B90,Lists!$B$3:$C$22,2,0)) ->  | E90: =IF(D90="","",SUMIF('Emissions Database'!$D$4:$D$203,$D90,'Emissions Database'!$BS$4:$BS$203)) -> 
A91: =Lists!$C$59&"_"&B23 -> Federal Building Type_15 | B91: 11 | D91: =IF(COUNTIF(Lists!$B$3:$B$22,$B91)=0,"",VLOOKUP($B91,Lists!$B$3:$C$22,2,0)) ->  | E91: =IF(D91="","",SUMIF('Emissions Database'!$D$4:$D$203,$D91,'Emissions Database'!$BS$4:$BS$203)) ->  | F91: =IF(D91="","",E91/$E$79) -> 
A92: =Lists!$C$59&"_"&B24 -> Federal Building Type_16 | B92: 12 | D92: =IF(COUNTIF(Lists!$B$3:$B$22,$B92)=0,"",VLOOKUP($B92,Lists!$B$3:$C$22,2,0)) ->  | E92: =IF(D92="","",SUMIF('Emissions Database'!$D$4:$D$203,$D92,'Emissions Database'!$BS$4:$BS$203)) -> 
A93: =Lists!$C$59&"_"&B25 -> Federal Building Type_17 | B93: 13 | D93: =IF(COUNTIF(Lists!$B$3:$B$22,$B93)=0,"",VLOOKUP($B93,Lists!$B$3:$C$22,2,0)) ->  | E93: =IF(D93="","",SUMIF('Emissions Database'!$D$4:$D$203,$D93,'Emissions Database'!$BS$4:$BS$203)) -> 
A94: =Lists!$C$59&"_"&B26 -> Federal Building Type_18 | B94: 14 | D94: =IF(COUNTIF(Lists!$B$3:$B$22,$B94)=0,"",VLOOKUP($B94,Lists!$B$3:$C$22,2,0)) ->  | E94: =IF(D94="","",SUMIF('Emissions Database'!$D$4:$D$203,$D94,'Emissions Database'!$BS$4:$BS$203)) -> 
A95: =Lists!$C$59&"_"&B27 -> Federal Building Type_19 | B95: 15 | D95: =IF(COUNTIF(Lists!$B$3:$B$22,$B95)=0,"",VLOOKUP($B95,Lists!$B$3:$C$22,2,0)) ->  | E95: =IF(D95="","",SUMIF('Emissions Database'!$D$4:$D$203,$D95,'Emissions Database'!$BS$4:$BS$203)) -> 
A96: =Lists!$C$59&"_"&B28 -> Federal Building Type_20 | B96: 16 | D96: =IF(COUNTIF(Lists!$B$3:$B$22,$B96)=0,"",VLOOKUP($B96,Lists!$B$3:$C$22,2,0)) ->  | E96: =IF(D96="","",SUMIF('Emissions Database'!$D$4:$D$203,$D96,'Emissions Database'!$BS$4:$BS$203)) -> 
A97: =Lists!$C$59&"_"&B29 -> Federal Building Type_21 | B97: 17 | D97: =IF(COUNTIF(Lists!$B$3:$B$22,$B97)=0,"",VLOOKUP($B97,Lists!$B$3:$C$22,2,0)) ->  | E97: =IF(D97="","",SUMIF('Emissions Database'!$D$4:$D$203,$D97,'Emissions Database'!$BS$4:$BS$203)) ->  | F97: =IF(D97="","",E97/$E$79) -> 
A98: =Lists!$C$59&"_"&B30 -> Federal Building Type_22 | D98: ="" ->  | E98: ="" ->  | F98: ="" -> 
A99: =Lists!$C$59&"_"&B31 -> Federal Building Type_23 | D99: ="" ->  | E99: ="" ->  | F99: ="" -> 
A100: =Lists!$C$59&"_"&B32 -> Federal Building Type_24 | D100: ="" ->  | E100: ="" ->  | F100: ="" -> 
A103: =Lists!$C$60&"_"&B9 -> Equipment Category_1 | D103: GHG Emissions by Equipment Category (MT CO2-e)
A104: =Lists!$C$60&"_"&B10 -> Equipment Category_2 | D104: Broad equipment category | E104: Total GHG emissions (MT CO2-e) | F104: % of total emissions
A105: =Lists!$C$60&"_"&B11 -> Equipment Category_3 | B105: =10-COUNTIF(D106:D115,"") -> 1 | D105: Total | E105: ='Emissions Database'!BS204 -> 0 | F105: =E105/$E$53 -> 
A106: =Lists!$C$60&"_"&B12 -> Equipment Category_4 | D106: Non-Specified | E106: =E105-SUM(E107:E115) -> 0 | F106: =IF(D106="","",E106/$E$79) -> 
A107: =Lists!$C$60&"_"&B13 -> Equipment Category_5 | B107: 1 | D107: =IF(COUNTIF(Lists!$B$28:$B$35,$B107)=0,"",VLOOKUP($B107,Lists!$B$28:$C$35,2,0)) ->  | E107: =IF(D107="","",SUMIF('Emissions Database'!$CK$3:$CS$3,$D107,'Emissions Database'!$CK$204:$CS$204)) -> 
A108: =Lists!$C$60&"_"&B14 -> Equipment Category_6 | B108: 2 | D108: =IF(COUNTIF(Lists!$B$28:$B$35,$B108)=0,"",VLOOKUP($B108,Lists!$B$28:$C$35,2,0)) ->  | E108: =IF(D108="","",SUMIF('Emissions Database'!$CK$3:$CS$3,$D108,'Emissions Database'!$CK$204:$CS$204)) -> 
A109: =Lists!$C$60&"_"&B15 -> Equipment Category_7 | B109: 3 | D109: =IF(COUNTIF(Lists!$B$28:$B$35,$B109)=0,"",VLOOKUP($B109,Lists!$B$28:$C$35,2,0)) ->  | E109: =IF(D109="","",SUMIF('Emissions Database'!$CK$3:$CS$3,$D109,'Emissions Database'!$CK$204:$CS$204)) -> 
A110: =Lists!$C$60&"_"&B16 -> Equipment Category_8 | B110: 4 | D110: =IF(COUNTIF(Lists!$B$28:$B$35,$B110)=0,"",VLOOKUP($B110,Lists!$B$28:$C$35,2,0)) ->  | E110: =IF(D110="","",SUMIF('Emissions Database'!$CK$3:$CS$3,$D110,'Emissions Database'!$CK$204:$CS$204)) -> 
A111: =Lists!$C$60&"_"&B17 -> Equipment Category_9 | B111: 5 | D111: =IF(COUNTIF(Lists!$B$28:$B$35,$B111)=0,"",VLOOKUP($B111,Lists!$B$28:$C$35,2,0)) ->  | E111: =IF(D111="","",SUMIF('Emissions Database'!$CK$3:$CS$3,$D111,'Emissions Database'!$CK$204:$CS$204)) -> 
A112: =Lists!$C$60&"_"&B18 -> Equipment Category_10 | B112: 6 | D112: =IF(COUNTIF(Lists!$B$28:$B$35,$B112)=0,"",VLOOKUP($B112,Lists!$B$28:$C$35,2,0)) ->  | E112: =IF(D112="","",SUMIF('Emissions Database'!$CK$3:$CS$3,$D112,'Emissions Database'!$CK$204:$CS$204)) -> 
A113: =Lists!$C$60&"_"&B19 -> Equipment Category_11 | B113: 7 | D113: =IF(COUNTIF(Lists!$B$28:$B$35,$B113)=0,"",VLOOKUP($B113,Lists!$B$28:$C$35,2,0)) ->  | E113: =IF(D113="","",SUMIF('Emissions Database'!$CK$3:$CS$3,$D113,'Emissions Database'!$CK$204:$CS$204)) -> 
A114: =Lists!$C$60&"_"&B20 -> Equipment Category_12 | B114: 8 | D114: =IF(COUNTIF(Lists!$B$28:$B$35,$B114)=0,"",VLOOKUP($B114,Lists!$B$28:$C$35,2,0)) ->  | E114: =IF(D114="","",SUMIF('Emissions Database'!$CK$3:$CS$3,$D114,'Emissions Database'!$CK$204:$CS$204)) -> 
A115: =Lists!$C$60&"_"&B21 -> Equipment Category_13 | B115: 9 | D115: =IF(COUNTIF(Lists!$B$28:$B$35,$B115)=0,"",VLOOKUP($B115,Lists!$B$28:$C$35,2,0)) ->  | E115: =IF(D115="","",SUMIF('Emissions Database'!$CK$3:$CS$3,$D115,'Emissions Database'!$CK$204:$CS$204)) -> 
A116: =Lists!$C$60&"_"&B22 -> Equipment Category_14 | D116: ="" ->  | E116: ="" ->  | F116: ="" -> 
A117: =Lists!$C$60&"_"&B23 -> Equipment Category_15 | D117: ="" ->  | E117: ="" ->  | F117: ="" -> 
A118: =Lists!$C$60&"_"&B24 -> Equipment Category_16 | D118: ="" ->  | E118: ="" ->  | F118: ="" -> 
A119: =Lists!$C$60&"_"&B25 -> Equipment Category_17 | D119: ="" ->  | E119: ="" ->  | F119: ="" -> 
A120: =Lists!$C$60&"_"&B26 -> Equipment Category_18 | D120: ="" ->  | E120: ="" ->  | F120: ="" -> 
A121: =Lists!$C$60&"_"&B27 -> Equipment Category_19 | D121: ="" ->  | E121: ="" ->  | F121: ="" -> 
A122: =Lists!$C$60&"_"&B28 -> Equipment Category_20 | D122: ="" ->  | E122: ="" ->  | F122: ="" -> 
A123: =Lists!$C$60&"_"&B29 -> Equipment Category_21 | D123: ="" ->  | E123: ="" ->  | F123: ="" -> 
A124: =Lists!$C$60&"_"&B30 -> Equipment Category_22 | D124: ="" ->  | E124: ="" ->  | F124: ="" -> 
A125: =Lists!$C$60&"_"&B31 -> Equipment Category_23 | D125: ="" ->  | E125: ="" ->  | F125: ="" -> 
A126: =Lists!$C$60&"_"&B32 -> Equipment Category_24 | D126: ="" ->  | E126: ="" ->  | F126: ="" -> 
A129: =Lists!$C$61&"_"&B9 -> Greenhouse Gas Type_1 | D129: GHG Emissions by Greenhouse Gas (MT CO2-e)
A130: =Lists!$C$61&"_"&B10 -> Greenhouse Gas Type_2 | D130: Greenhouse gas | E130: Total GHG emissions (MT CO2-e) | F130: % of total emissions
A131: =Lists!$C$61&"_"&B11 -> Greenhouse Gas Type_3 | D131: Total | E131: =SUM(E132:E152) -> 0 | F131: =E131/E$131 -> 
A132: =Lists!$C$61&"_"&B12 -> Greenhouse Gas Type_4 | B132: 1 | D132: =IF(COUNTIF(Lists!$E$67:$R$67,$B132)=0,"",HLOOKUP($B132,Lists!$E$67:$R$69,ROWS(Lists!$E$67:$E$69),0)) ->  | E132: =IF($D132="","",SUMIF('Emissions Database'!$BE$3:$BR$3,$D132,'Emissions Database'!$BE$204:$BR$204)) ->  | F132: =IF(D132="","",E132/E$131) -> 
A133: =Lists!$C$61&"_"&B13 -> Greenhouse Gas Type_5 | B133: 2 | D133: =IF(COUNTIF(Lists!$E$67:$R$67,$B133)=0,"",HLOOKUP($B133,Lists!$E$67:$R$69,ROWS(Lists!$E$67:$E$69),0)) ->  | E133: =IF($D133="","",SUMIF('Emissions Database'!$BE$3:$BR$3,$D133,'Emissions Database'!$BE$204:$BR$204)) ->  | F133: =IF(D133="","",E133/$E$131) -> 
A134: =Lists!$C$61&"_"&B14 -> Greenhouse Gas Type_6 | B134: 3 | D134: =IF(COUNTIF(Lists!$E$67:$R$67,$B134)=0,"",HLOOKUP($B134,Lists!$E$67:$R$69,ROWS(Lists!$E$67:$E$69),0)) ->  | E134: =IF($D134="","",SUMIF('Emissions Database'!$BE$3:$BR$3,$D134,'Emissions Database'!$BE$204:$BR$204)) -> 
A135: =Lists!$C$61&"_"&B15 -> Greenhouse Gas Type_7 | B135: 4 | D135: =IF(COUNTIF(Lists!$E$67:$R$67,$B135)=0,"",HLOOKUP($B135,Lists!$E$67:$R$69,ROWS(Lists!$E$67:$E$69),0)) ->  | E135: =IF($D135="","",SUMIF('Emissions Database'!$BE$3:$BR$3,$D135,'Emissions Database'!$BE$204:$BR$204)) -> 
A136: =Lists!$C$61&"_"&B16 -> Greenhouse Gas Type_8 | B136: 5 | D136: =IF(COUNTIF(Lists!$E$67:$R$67,$B136)=0,"",HLOOKUP($B136,Lists!$E$67:$R$69,ROWS(Lists!$E$67:$E$69),0)) ->  | E136: =IF($D136="","",SUMIF('Emissions Database'!$BE$3:$BR$3,$D136,'Emissions Database'!$BE$204:$BR$204)) -> 
A137: =Lists!$C$61&"_"&B17 -> Greenhouse Gas Type_9 | B137: 6 | D137: =IF(COUNTIF(Lists!$E$67:$R$67,$B137)=0,"",HLOOKUP($B137,Lists!$E$67:$R$69,ROWS(Lists!$E$67:$E$69),0)) ->  | E137: =IF($D137="","",SUMIF('Emissions Database'!$BE$3:$BR$3,$D137,'Emissions Database'!$BE$204:$BR$204)) -> 
A138: =Lists!$C$61&"_"&B18 -> Greenhouse Gas Type_10 | B138: 7 | D138: =IF(COUNTIF(Lists!$E$67:$R$67,$B138)=0,"",HLOOKUP($B138,Lists!$E$67:$R$69,ROWS(Lists!$E$67:$E$69),0)) ->  | E138: =IF($D138="","",SUMIF('Emissions Database'!$BE$3:$BR$3,$D138,'Emissions Database'!$BE$204:$BR$204)) -> 
A139: =Lists!$C$61&"_"&B19 -> Greenhouse Gas Type_11 | B139: 8 | D139: =IF(COUNTIF(Lists!$E$67:$R$67,$B139)=0,"",HLOOKUP($B139,Lists!$E$67:$R$69,ROWS(Lists!$E$67:$E$69),0)) ->  | E139: =IF($D139="","",SUMIF('Emissions Database'!$BE$3:$BR$3,$D139,'Emissions Database'!$BE$204:$BR$204)) -> 
A140: =Lists!$C$61&"_"&B20 -> Greenhouse Gas Type_12 | B140: 9 | D140: =IF(COUNTIF(Lists!$E$67:$R$67,$B140)=0,"",HLOOKUP($B140,Lists!$E$67:$R$69,ROWS(Lists!$E$67:$E$69),0)) ->  | E140: =IF($D140="","",SUMIF('Emissions Database'!$BE$3:$BR$3,$D140,'Emissions Database'!$BE$204:$BR$204)) -> 
A141: =Lists!$C$61&"_"&B21 -> Greenhouse Gas Type_13 | B141: 10 | D141: =IF(COUNTIF(Lists!$E$67:$R$67,$B141)=0,"",HLOOKUP($B141,Lists!$E$67:$R$69,ROWS(Lists!$E$67:$E$69),0)) ->  | E141: =IF($D141="","",SUMIF('Emissions Database'!$BE$3:$BR$3,$D141,'Emissions Database'!$BE$204:$BR$204)) -> 
A142: =Lists!$C$61&"_"&B22 -> Greenhouse Gas Type_14 | B142: 11 | D142: =IF(COUNTIF(Lists!$E$67:$R$67,$B142)=0,"",HLOOKUP($B142,Lists!$E$67:$R$69,ROWS(Lists!$E$67:$E$69),0)) ->  | E142: =IF($D142="","",SUMIF('Emissions Database'!$BE$3:$BR$3,$D142,'Emissions Database'!$BE$204:$BR$204)) -> 
A143: =Lists!$C$61&"_"&B23 -> Greenhouse Gas Type_15 | B143: 12 | D143: =IF(COUNTIF(Lists!$E$67:$R$67,$B143)=0,"",HLOOKUP($B143,Lists!$E$67:$R$69,ROWS(Lists!$E$67:$E$69),0)) ->  | E143: =IF($D143="","",SUMIF('Emissions Database'!$BE$3:$BR$3,$D143,'Emissions Database'!$BE$204:$BR$204)) -> 
A144: =Lists!$C$61&"_"&B24 -> Greenhouse Gas Type_16 | B144: 13 | D144: =IF(COUNTIF(Lists!$E$67:$R$67,$B144)=0,"",HLOOKUP($B144,Lists!$E$67:$R$69,ROWS(Lists!$E$67:$E$69),0)) ->  | E144: =IF($D144="","",SUMIF('Emissions Database'!$BE$3:$BR$3,$D144,'Emissions Database'!$BE$204:$BR$204)) -> 
A145: =Lists!$C$61&"_"&B25 -> Greenhouse Gas Type_17 | B145: 14 | D145: =IF(COUNTIF(Lists!$E$67:$R$67,$B145)=0,"",HLOOKUP($B145,Lists!$E$67:$R$69,ROWS(Lists!$E$67:$E$69),0)) ->  | E145: =IF($D145="","",SUMIF('Emissions Database'!$BE$3:$BR$3,$D145,'Emissions Database'!$BE$204:$BR$204)) ->  | F145: =IF(D145="","",E145/$E$131) -> 
A146: =Lists!$C$61&"_"&B26 -> Greenhouse Gas Type_18 | D146: ="" ->  | E146: ="" ->  | F146: ="" -> 
A147: =Lists!$C$61&"_"&B27 -> Greenhouse Gas Type_19 | D147: ="" ->  | E147: ="" ->  | F147: ="" -> 
A148: =Lists!$C$61&"_"&B28 -> Greenhouse Gas Type_20 | D148: ="" ->  | E148: ="" ->  | F148: ="" -> 
A149: =Lists!$C$61&"_"&B29 -> Greenhouse Gas Type_21 | D149: ="" ->  | E149: ="" ->  | F149: ="" -> 
A150: =Lists!$C$61&"_"&B30 -> Greenhouse Gas Type_22 | D150: ="" ->  | E150: ="" ->  | F150: ="" -> 
A151: =Lists!$C$61&"_"&B31 -> Greenhouse Gas Type_23 | D151: ="" ->  | E151: ="" ->  | F151: ="" -> 
A152: =Lists!$C$61&"_"&B32 -> Greenhouse Gas Type_24 | D152: ="" ->  | E152: ="" ->  | F152: ="" -> 
A155: =Lists!$C$63&"_"&B9 -> Calculation Approach_1 | D155: GHG Emissions by Calculation Approach (MT CO2-e)
A156: =Lists!$C$63&"_"&B10 -> Calculation Approach_2 | D156: Calculation approach | E156: Total GHG emissions (MT CO2-e) | F156: % of total emissions
A157: =Lists!$C$63&"_"&B11 -> Calculation Approach_3 | D157: Total | E157: =SUM(E158:E178) -> 0 | F157: =E157/E$157 -> 
A158: =Lists!$C$63&"_"&B12 -> Calculation Approach_4 | B158: 1 | D158: =IF(COUNTIF('Emissions Database'!$A$206:$A$210,B158)=0,"",VLOOKUP(B158,'Emissions Database'!$A$206:$B$210,2,0)) ->  | E158: =IF(D158="","",SUMIF('Emissions Database'!$B$4:$B$203,$D158,'Emissions Database'!$BS$4:$BS$203)) ->  | F158: =IF(D158="","",E158/E$157) -> 
A159: =Lists!$C$63&"_"&B13 -> Calculation Approach_5 | B159: 2 | D159: =IF(COUNTIF('Emissions Database'!$A$206:$A$210,B159)=0,"",VLOOKUP(B159,'Emissions Database'!$A$206:$B$210,2,0)) ->  | E159: =IF(D159="","",SUMIF('Emissions Database'!$B$4:$B$203,$D159,'Emissions Database'!$BS$4:$BS$203)) ->  | F159: =IF(D159="","",E159/E$157) -> 
A160: =Lists!$C$63&"_"&B14 -> Calculation Approach_6 | B160: 3 | D160: =IF(COUNTIF('Emissions Database'!$A$206:$A$210,B160)=0,"",VLOOKUP(B160,'Emissions Database'!$A$206:$B$210,2,0)) ->  | E160: =IF(D160="","",SUMIF('Emissions Database'!$B$4:$B$203,$D160,'Emissions Database'!$BS$4:$BS$203)) ->  | F160: =IF(D160="","",E160/E$157) -> 
A161: =Lists!$C$63&"_"&B15 -> Calculation Approach_7 | B161: 4 | D161: =IF(COUNTIF('Emissions Database'!$A$206:$A$210,B161)=0,"",VLOOKUP(B161,'Emissions Database'!$A$206:$B$210,2,0)) ->  | E161: =IF(D161="","",SUMIF('Emissions Database'!$B$4:$B$203,$D161,'Emissions Database'!$BS$4:$BS$203)) ->  | F161: =IF(D161="","",E161/E$157) -> 
A162: =Lists!$C$63&"_"&B16 -> Calculation Approach_8 | B162: 5 | D162: =IF(COUNTIF('Emissions Database'!$A$206:$A$210,B162)=0,"",VLOOKUP(B162,'Emissions Database'!$A$206:$B$210,2,0)) ->  | E162: =IF(D162="","",SUMIF('Emissions Database'!$B$4:$B$203,$D162,'Emissions Database'!$BS$4:$BS$203)) ->  | F162: =IF(D162="","",E162/E$157) -> 
A163: =Lists!$C$63&"_"&B17 -> Calculation Approach_9 | D163: ="" ->  | E163: ="" ->  | F163: ="" -> 
A164: =Lists!$C$63&"_"&B18 -> Calculation Approach_10 | D164: ="" ->  | E164: ="" ->  | F164: ="" -> 
A165: =Lists!$C$63&"_"&B19 -> Calculation Approach_11 | D165: ="" ->  | E165: ="" ->  | F165: ="" -> 
A166: =Lists!$C$63&"_"&B20 -> Calculation Approach_12 | D166: ="" ->  | E166: ="" ->  | F166: ="" -> 
A167: =Lists!$C$63&"_"&B21 -> Calculation Approach_13 | D167: ="" ->  | E167: ="" ->  | F167: ="" -> 
A168: =Lists!$C$63&"_"&B22 -> Calculation Approach_14 | D168: ="" ->  | E168: ="" ->  | F168: ="" -> 
A169: =Lists!$C$63&"_"&B23 -> Calculation Approach_15 | D169: ="" ->  | E169: ="" ->  | F169: ="" -> 
A170: =Lists!$C$63&"_"&B24 -> Calculation Approach_16 | D170: ="" ->  | E170: ="" ->  | F170: ="" -> 
A171: =Lists!$C$63&"_"&B25 -> Calculation Approach_17 | D171: ="" ->  | E171: ="" ->  | F171: ="" -> 
A172: =Lists!$C$63&"_"&B26 -> Calculation Approach_18 | D172: ="" ->  | E172: ="" ->  | F172: ="" -> 
A173: =Lists!$C$63&"_"&B27 -> Calculation Approach_19 | D173: ="" ->  | E173: ="" ->  | F173: ="" -> 
A174: =Lists!$C$63&"_"&B28 -> Calculation Approach_20 | D174: ="" ->  | E174: ="" ->  | F174: ="" -> 
A175: =Lists!$C$63&"_"&B29 -> Calculation Approach_21 | D175: ="" ->  | E175: ="" ->  | F175: ="" -> 
A176: =Lists!$C$63&"_"&B30 -> Calculation Approach_22 | D176: ="" ->  | E176: ="" ->  | F176: ="" -> 
A177: =Lists!$C$63&"_"&B31 -> Calculation Approach_23 | D177: ="" ->  | E177: ="" ->  | F177: ="" -> 
A178: =Lists!$C$63&"_"&B32 -> Calculation Approach_24 | D178: ="" ->  | E178: ="" ->  | F178: ="" -> 
A181: =Lists!$C$62&"_"&B9 -> Equipment Use Stage_1 | D181: GHG Emissions by Equipment Use Stage (MT CO2-e)
A182: =Lists!$C$62&"_"&B10 -> Equipment Use Stage_2 | D182: Equipment Use Stage | E182: Total GHG Emissions (MT CO2-e) | F182: % of Total Emissions
A183: =Lists!$C$62&"_"&B11 -> Equipment Use Stage_3 | D183: Total | E183: ='Emissions Database'!$BS$204 -> 0 | F183: =E183/E$183 -> 
A184: =Lists!$C$62&"_"&B12 -> Equipment Use Stage_4 | D184: Non-Specified | E184: =E183-SUM(E185:E187) -> 0 | F184: =IF(D184="","",E184/E$183) -> 
A185: =Lists!$C$62&"_"&B13 -> Equipment Use Stage_5 | D185: Equipment Installation | E185: ='Emissions Database'!Z204 -> 0 | F185: =IF(D185="","",E185/E$183) -> 
A186: =Lists!$C$62&"_"&B14 -> Equipment Use Stage_6 | D186: Equipment Operation | E186: ='Emissions Database'!AO204 -> 0 | F186: =IF(D186="","",E186/E$183) -> 
A187: =Lists!$C$62&"_"&B15 -> Equipment Use Stage_7 | D187: Equipment Disposal | E187: ='Emissions Database'!BD204 -> 0 | F187: =IF(D187="","",E187/E$183) -> 
A188: =Lists!$C$62&"_"&B16 -> Equipment Use Stage_8 | D188: ="" ->  | E188: ="" ->  | F188: ="" -> 
A189: =Lists!$C$62&"_"&B17 -> Equipment Use Stage_9 | D189: ="" ->  | E189: ="" ->  | F189: ="" -> 
A190: =Lists!$C$62&"_"&B18 -> Equipment Use Stage_10 | D190: ="" ->  | E190: ="" ->  | F190: ="" -> 
A191: =Lists!$C$62&"_"&B19 -> Equipment Use Stage_11 | D191: ="" ->  | E191: ="" ->  | F191: ="" -> 
A192: =Lists!$C$62&"_"&B20 -> Equipment Use Stage_12 | D192: ="" ->  | E192: ="" ->  | F192: ="" -> 
A193: =Lists!$C$62&"_"&B21 -> Equipment Use Stage_13 | D193: ="" ->  | E193: ="" ->  | F193: ="" -> 
A194: =Lists!$C$62&"_"&B22 -> Equipment Use Stage_14 | D194: ="" ->  | E194: ="" ->  | F194: ="" -> 
A195: =Lists!$C$62&"_"&B23 -> Equipment Use Stage_15 | D195: ="" ->  | E195: ="" ->  | F195: ="" -> 
A196: =Lists!$C$62&"_"&B24 -> Equipment Use Stage_16 | D196: ="" ->  | E196: ="" ->  | F196: ="" -> 
A197: =Lists!$C$62&"_"&B25 -> Equipment Use Stage_17 | D197: ="" ->  | E197: ="" ->  | F197: ="" -> 
A198: =Lists!$C$62&"_"&B26 -> Equipment Use Stage_18 | D198: ="" ->  | E198: ="" ->  | F198: ="" -> 
A199: =Lists!$C$62&"_"&B27 -> Equipment Use Stage_19 | D199: ="" ->  | E199: ="" ->  | F199: ="" -> 
A200: =Lists!$C$62&"_"&B28 -> Equipment Use Stage_20 | D200: ="" ->  | E200: ="" ->  | F200: ="" -> 
A201: =Lists!$C$62&"_"&B29 -> Equipment Use Stage_21 | D201: ="" ->  | E201: ="" ->  | F201: ="" -> 
A202: =Lists!$C$62&"_"&B30 -> Equipment Use Stage_22 | D202: ="" ->  | E202: ="" ->  | F202: ="" -> 
A203: =Lists!$C$62&"_"&B31 -> Equipment Use Stage_23 | D203: ="" ->  | E203: ="" ->  | F203: ="" -> 
A204: =Lists!$C$62&"_"&B32 -> Equipment Use Stage_24 | D204: ="" ->  | E204: ="" ->  | F204: ="" -> 

Sheet FacilityBreakdown
C2: Facility Breakdown Summary
C4: Click on the drop-down menu below to view the various breakdowns in HFC emissions from your equipment, presented by facility type.
C5: Note: You may also need to click on the drop down menu to refresh your data if you have recently entered new data.
C14: 1
C29: =IF($C$14=1,C58,IF($C$14=2,C81,IF($C$14=3,C104,""))) -> GHG Emissions by Equipment Category (MT CO2-e)
C30: =IF($C$14=1,C59,IF($C$14=2,C82,IF($C$14=3,C105,""))) -> Federal building type | D30: Total | E30: Non-Specified | P30: =IF($C$14=1,P59,IF($C$14=2,P82,IF($C$14=3,P105,""))) -> 
B31: =21-COUNTIF(E30:Y30,"") -> 1 | C31: =IF($C$14=1,C60,IF($C$14=2,C83,IF($C$14=3,C106,""))) -> Total | D31: 0 | E31: 0 | P31: =IF($C$14=1,P60,IF($C$14=2,P83,IF($C$14=3,P106,""))) -> 
B32: =18-COUNTIF(C32:C49,"") -> 1 | C32: =IF($C$14=1,C61,IF($C$14=2,C84,IF($C$14=3,C107,""))) -> Non-Specified | D32: 0 | E32: 0 | P32: =IF($C$14=1,P61,IF($C$14=2,P84,IF($C$14=3,P107,""))) -> 
C33: =IF($C$14=1,C62,IF($C$14=2,C85,IF($C$14=3,C108,""))) ->  | P33: =IF($C$14=1,P62,IF($C$14=2,P85,IF($C$14=3,P108,""))) -> 
C34: =IF($C$14=1,C63,IF($C$14=2,C86,IF($C$14=3,C109,""))) ->  | P34: =IF($C$14=1,P63,IF($C$14=2,P86,IF($C$14=3,P109,""))) -> 
C35: =IF($C$14=1,C64,IF($C$14=2,C87,IF($C$14=3,C110,""))) ->  | P35: =IF($C$14=1,P64,IF($C$14=2,P87,IF($C$14=3,P110,""))) -> 
C36: =IF($C$14=1,C65,IF($C$14=2,C88,IF($C$14=3,C111,""))) ->  | P36: =IF($C$14=1,P65,IF($C$14=2,P88,IF($C$14=3,P111,""))) -> 
C37: =IF($C$14=1,C66,IF($C$14=2,C89,IF($C$14=3,C112,""))) ->  | P37: =IF($C$14=1,P66,IF($C$14=2,P89,IF($C$14=3,P112,""))) -> 
C38: =IF($C$14=1,C67,IF($C$14=2,C90,IF($C$14=3,C113,""))) ->  | P38: =IF($C$14=1,P67,IF($C$14=2,P90,IF($C$14=3,P113,""))) -> 
C39: =IF($C$14=1,C68,IF($C$14=2,C91,IF($C$14=3,C114,""))) ->  | P39: =IF($C$14=1,P68,IF($C$14=2,P91,IF($C$14=3,P114,""))) -> 
C40: =IF($C$14=1,C69,IF($C$14=2,C92,IF($C$14=3,C115,""))) ->  | P40: =IF($C$14=1,P69,IF($C$14=2,P92,IF($C$14=3,P115,""))) -> 
C41: =IF($C$14=1,C70,IF($C$14=2,C93,IF($C$14=3,C116,""))) ->  | P41: =IF($C$14=1,P70,IF($C$14=2,P93,IF($C$14=3,P116,""))) -> 
C42: =IF($C$14=1,C71,IF($C$14=2,C94,IF($C$14=3,C117,""))) ->  | P42: =IF($C$14=1,P71,IF($C$14=2,P94,IF($C$14=3,P117,""))) -> 
C43: =IF($C$14=1,C72,IF($C$14=2,C95,IF($C$14=3,C118,""))) ->  | P43: =IF($C$14=1,P72,IF($C$14=2,P95,IF($C$14=3,P118,""))) -> 
C44: =IF($C$14=1,C73,IF($C$14=2,C96,IF($C$14=3,C119,""))) ->  | P44: =IF($C$14=1,P73,IF($C$14=2,P96,IF($C$14=3,P119,""))) -> 
C45: =IF($C$14=1,C74,IF($C$14=2,C97,IF($C$14=3,C120,""))) ->  | P45: =IF($C$14=1,P74,IF($C$14=2,P97,IF($C$14=3,P120,""))) -> 
C46: =IF($C$14=1,C75,IF($C$14=2,C98,IF($C$14=3,C121,""))) ->  | P46: =IF($C$14=1,P75,IF($C$14=2,P98,IF($C$14=3,P121,""))) -> 
C47: =IF($C$14=1,C76,IF($C$14=2,C99,IF($C$14=3,C122,""))) ->  | P47: =IF($C$14=1,P76,IF($C$14=2,P99,IF($C$14=3,P122,""))) -> 
C48: =IF($C$14=1,C77,IF($C$14=2,C100,IF($C$14=3,C123,""))) ->  | P48: =IF($C$14=1,P77,IF($C$14=2,P100,IF($C$14=3,P123,""))) -> 
C58: GHG Emissions by Equipment Category (MT CO2-e) | F58: 1 | G58: 2 | H58: 3 | I58: 4 | J58: 5 | K58: 6 | L58: 7 | M58: 8 | N58: 9 | O58: 10 | P58: 11 | Q58: 12 | R58: 13 | S58: 14 | T58: 15 | U58: 16 | V58: 17 | W58: 18 | X58: 19 | Y58: 20
C59: Federal building type | D59: Total | E59: Non-Specified | F59: =IF(COUNTIF(Lists!$B$28:$B$35,F58)>0,VLOOKUP(F58,Lists!$B$28:$C$35,2,0),"") ->  | G59: =IF(COUNTIF(Lists!$B$28:$B$35,G58)>0,VLOOKUP(G58,Lists!$B$28:$C$35,2,0),"") ->  | H59: =IF(COUNTIF(Lists!$B$28:$B$35,H58)>0,VLOOKUP(H58,Lists!$B$28:$C$35,2,0),"") ->  | I59: =IF(COUNTIF(Lists!$B$28:$B$35,I58)>0,VLOOKUP(I58,Lists!$B$28:$C$35,2,0),"") ->  | J59: =IF(COUNTIF(Lists!$B$28:$B$35,J58)>0,VLOOKUP(J58,Lists!$B$28:$C$35,2,0),"") ->  | K59: =IF(COUNTIF(Lists!$B$28:$B$35,K58)>0,VLOOKUP(K58,Lists!$B$28:$C$35,2,0),"") ->  | L59: =IF(COUNTIF(Lists!$B$28:$B$35,L58)>0,VLOOKUP(L58,Lists!$B$28:$C$35,2,0),"") ->  | M59: =IF(COUNTIF(Lists!$B$28:$B$35,M58)>0,VLOOKUP(M58,Lists!$B$28:$C$35,2,0),"") ->  | N59: =IF(COUNTIF(Lists!$B$28:$B$35,N58)>0,VLOOKUP(N58,Lists!$B$28:$C$35,2,0),"") ->  | O59: ="" ->  | P59: ="" ->  | Q59: ="" ->  | R59: ="" ->  | S59: ="" ->  | T59: ="" ->  | U59: ="" ->  | V59: ="" ->  | W59: ="" ->  | X59: ="" ->  | Y59: ="" -> 
C60: Total | D60: ='Emissions Database'!$BS$204 -> 0 | E60: =D60-SUM(F60:N60) -> 0 | F60: =IF(F$59="","",SUMIF('Emissions Database'!$CK$3:$CS$3,F$59,'Emissions Database'!$CK$204:$CS$204)) ->  | G60: =IF(G$59="","",SUMIF('Emissions Database'!$CK$3:$CS$3,G$59,'Emissions Database'!$CK$204:$CS$204)) ->  | H60: =IF(H$59="","",SUMIF('Emissions Database'!$CK$3:$CS$3,H$59,'Emissions Database'!$CK$204:$CS$204)) ->  | I60: =IF(I$59="","",SUMIF('Emissions Database'!$CK$3:$CS$3,I$59,'Emissions Database'!$CK$204:$CS$204)) ->  | J60: =IF(J$59="","",SUMIF('Emissions Database'!$CK$3:$CS$3,J$59,'Emissions Database'!$CK$204:$CS$204)) ->  | K60: =IF(K$59="","",SUMIF('Emissions Database'!$CK$3:$CS$3,K$59,'Emissions Database'!$CK$204:$CS$204)) ->  | L60: =IF(L$59="","",SUMIF('Emissions Database'!$CK$3:$CS$3,L$59,'Emissions Database'!$CK$204:$CS$204)) ->  | M60: =IF(M$59="","",SUMIF('Emissions Database'!$CK$3:$CS$3,M$59,'Emissions Database'!$CK$204:$CS$204)) ->  | N60: =IF(N$59="","",SUMIF('Emissions Database'!$CK$3:$CS$3,N$59,'Emissions Database'!$CK$204:$CS$204)) ->  | O60: ="" ->  | P60: ="" ->  | Q60: ="" ->  | R60: ="" ->  | S60: ="" ->  | T60: ="" ->  | U60: ="" ->  | V60: ="" ->  | W60: ="" ->  | X60: ="" ->  | Y60: ="" -> 
C61: Non-Specified | D61: =D60-SUM(D62:D78) -> 0 | E61: =E60-SUM(E62:E78) -> 0 | F61: =IF(F59="","",F60-SUM(F62:F78)) ->  | G61: =IF(G59="","",G60-SUM(G62:G78)) ->  | O61: ="" ->  | P61: ="" ->  | Q61: ="" ->  | R61: ="" ->  | S61: ="" ->  | T61: ="" ->  | U61: ="" ->  | V61: ="" ->  | W61: ="" ->  | X61: ="" ->  | Y61: ="" -> 
B62: 1 | C62: =IF(COUNTIF(Lists!$B$3:$B$22,B62)=0,"",VLOOKUP(B62,Lists!$B$3:$C$22,2,0)) ->  | D62: =IF($C62="","",SUMIF('Emissions Database'!$B$232:$B$251,$C62,'Emissions Database'!$BS$232:$BS$251)) ->  | E62: =IF(C62="","",D62-SUM(F62:N62)) ->  | F62: =IF(OR(F$59="",$C62=""),"",HLOOKUP(F$59,'Emissions Database'!$CK$3:$CS$251,MATCH($C62,'Emissions Database'!$B$3:$B$251,0),0)) ->  | G62: =IF(OR(G$59="",$C62=""),"",HLOOKUP(G$59,'Emissions Database'!$CK$3:$CS$251,MATCH($C62,'Emissions Database'!$B$3:$B$251,0),0)) ->  | H62: =IF(OR(H$59="",$C62=""),"",HLOOKUP(H$59,'Emissions Database'!$CK$3:$CS$251,MATCH($C62,'Emissions Database'!$B$3:$B$251,0),0)) ->  | I62: =IF(OR(I$59="",$C62=""),"",HLOOKUP(I$59,'Emissions Database'!$CK$3:$CS$251,MATCH($C62,'Emissions Database'!$B$3:$B$251,0),0)) ->  | J62: =IF(OR(J$59="",$C62=""),"",HLOOKUP(J$59,'Emissions Database'!$CK$3:$CS$251,MATCH($C62,'Emissions Database'!$B$3:$B$251,0),0)) ->  | K62: =IF(OR(K$59="",$C62=""),"",HLOOKUP(K$59,'Emissions Database'!$CK$3:$CS$251,MATCH($C62,'Emissions Database'!$B$3:$B$251,0),0)) ->  | L62: =IF(OR(L$59="",$C62=""),"",HLOOKUP(L$59,'Emissions Database'!$CK$3:$CS$251,MATCH($C62,'Emissions Database'!$B$3:$B$251,0),0)) ->  | M62: =IF(OR(M$59="",$C62=""),"",HLOOKUP(M$59,'Emissions Database'!$CK$3:$CS$251,MATCH($C62,'Emissions Database'!$B$3:$B$251,0),0)) ->  | N62: =IF(OR(N$59="",$C62=""),"",HLOOKUP(N$59,'Emissions Database'!$CK$3:$CS$251,MATCH($C62,'Emissions Database'!$B$3:$B$251,0),0)) ->  | O62: ="" ->  | P62: ="" ->  | Q62: ="" ->  | R62: ="" ->  | S62: ="" ->  | T62: ="" ->  | U62: ="" ->  | V62: ="" ->  | W62: ="" ->  | X62: ="" ->  | Y62: ="" -> 
B63: 2 | C63: =IF(COUNTIF(Lists!$B$3:$B$22,B63)=0,"",VLOOKUP(B63,Lists!$B$3:$C$22,2,0)) ->  | D63: =IF($C63="","",SUMIF('Emissions Database'!$B$232:$B$251,$C63,'Emissions Database'!$BS$232:$BS$251)) ->  | E63: =IF(C63="","",D63-SUM(F63:N63)) ->  | F63: =IF(OR(F$59="",$C63=""),"",HLOOKUP(F$59,'Emissions Database'!$CK$3:$CS$251,MATCH($C63,'Emissions Database'!$B$3:$B$251,0),0)) ->  | G63: =IF(OR(G$59="",$C63=""),"",HLOOKUP(G$59,'Emissions Database'!$CK$3:$CS$251,MATCH($C63,'Emissions Database'!$B$3:$B$251,0),0)) ->  | H63: =IF(OR(H$59="",$C63=""),"",HLOOKUP(H$59,'Emissions Database'!$CK$3:$CS$251,MATCH($C63,'Emissions Database'!$B$3:$B$251,0),0)) ->  | I63: =IF(OR(I$59="",$C63=""),"",HLOOKUP(I$59,'Emissions Database'!$CK$3:$CS$251,MATCH($C63,'Emissions Database'!$B$3:$B$251,0),0)) ->  | J63: =IF(OR(J$59="",$C63=""),"",HLOOKUP(J$59,'Emissions Database'!$CK$3:$CS$251,MATCH($C63,'Emissions Database'!$B$3:$B$251,0),0)) ->  | K63: =IF(OR(K$59="",$C63=""),"",HLOOKUP(K$59,'Emissions Database'!$CK$3:$CS$251,MATCH($C63,'Emissions Database'!$B$3:$B$251,0),0)) ->  | L63: =IF(OR(L$59="",$C63=""),"",HLOOKUP(L$59,'Emissions Database'!$CK$3:$CS$251,MATCH($C63,'Emissions Database'!$B$3:$B$251,0),0)) ->  | M63: =IF(OR(M$59="",$C63=""),"",HLOOKUP(M$59,'Emissions Database'!$CK$3:$CS$251,MATCH($C63,'Emissions Database'!$B$3:$B$251,0),0)) ->  | N63: =IF(OR(N$59="",$C63=""),"",HLOOKUP(N$59,'Emissions Database'!$CK$3:$CS$251,MATCH($C63,'Emissions Database'!$B$3:$B$251,0),0)) ->  | O63: ="" ->  | P63: ="" ->  | Q63: ="" ->  | R63: ="" ->  | S63: ="" ->  | T63: ="" ->  | U63: ="" ->  | V63: ="" ->  | W63: ="" ->  | X63: ="" ->  | Y63: ="" -> 
B64: 3 | C64: =IF(COUNTIF(Lists!$B$3:$B$22,B64)=0,"",VLOOKUP(B64,Lists!$B$3:$C$22,2,0)) ->  | D64: =IF($C64="","",SUMIF('Emissions Database'!$B$232:$B$251,$C64,'Emissions Database'!$BS$232:$BS$251)) ->  | F64: =IF(OR(F$59="",$C64=""),"",HLOOKUP(F$59,'Emissions Database'!$CK$3:$CS$251,MATCH($C64,'Emissions Database'!$B$3:$B$251,0),0)) ->  | G64: =IF(OR(G$59="",$C64=""),"",HLOOKUP(G$59,'Emissions Database'!$CK$3:$CS$251,MATCH($C64,'Emissions Database'!$B$3:$B$251,0),0)) ->  | H64: =IF(OR(H$59="",$C64=""),"",HLOOKUP(H$59,'Emissions Database'!$CK$3:$CS$251,MATCH($C64,'Emissions Database'!$B$3:$B$251,0),0)) ->  | I64: =IF(OR(I$59="",$C64=""),"",HLOOKUP(I$59,'Emissions Database'!$CK$3:$CS$251,MATCH($C64,'Emissions Database'!$B$3:$B$251,0),0)) ->  | J64: =IF(OR(J$59="",$C64=""),"",HLOOKUP(J$59,'Emissions Database'!$CK$3:$CS$251,MATCH($C64,'Emissions Database'!$B$3:$B$251,0),0)) ->  | K64: =IF(OR(K$59="",$C64=""),"",HLOOKUP(K$59,'Emissions Database'!$CK$3:$CS$251,MATCH($C64,'Emissions Database'!$B$3:$B$251,0),0)) ->  | L64: =IF(OR(L$59="",$C64=""),"",HLOOKUP(L$59,'Emissions Database'!$CK$3:$CS$251,MATCH($C64,'Emissions Database'!$B$3:$B$251,0),0)) ->  | M64: =IF(OR(M$59="",$C64=""),"",HLOOKUP(M$59,'Emissions Database'!$CK$3:$CS$251,MATCH($C64,'Emissions Database'!$B$3:$B$251,0),0)) ->  | N64: =IF(OR(N$59="",$C64=""),"",HLOOKUP(N$59,'Emissions Database'!$CK$3:$CS$251,MATCH($C64,'Emissions Database'!$B$3:$B$251,0),0)) ->  | O64: ="" ->  | P64: ="" ->  | Q64: ="" ->  | R64: ="" ->  | S64: ="" ->  | T64: ="" ->  | U64: ="" ->  | V64: ="" ->  | W64: ="" ->  | X64: ="" ->  | Y64: ="" -> 
B65: 4 | C65: =IF(COUNTIF(Lists!$B$3:$B$22,B65)=0,"",VLOOKUP(B65,Lists!$B$3:$C$22,2,0)) ->  | D65: =IF($C65="","",SUMIF('Emissions Database'!$B$232:$B$251,$C65,'Emissions Database'!$BS$232:$BS$251)) ->  | F65: =IF(OR(F$59="",$C65=""),"",HLOOKUP(F$59,'Emissions Database'!$CK$3:$CS$251,MATCH($C65,'Emissions Database'!$B$3:$B$251,0),0)) ->  | G65: =IF(OR(G$59="",$C65=""),"",HLOOKUP(G$59,'Emissions Database'!$CK$3:$CS$251,MATCH($C65,'Emissions Database'!$B$3:$B$251,0),0)) ->  | H65: =IF(OR(H$59="",$C65=""),"",HLOOKUP(H$59,'Emissions Database'!$CK$3:$CS$251,MATCH($C65,'Emissions Database'!$B$3:$B$251,0),0)) ->  | I65: =IF(OR(I$59="",$C65=""),"",HLOOKUP(I$59,'Emissions Database'!$CK$3:$CS$251,MATCH($C65,'Emissions Database'!$B$3:$B$251,0),0)) ->  | J65: =IF(OR(J$59="",$C65=""),"",HLOOKUP(J$59,'Emissions Database'!$CK$3:$CS$251,MATCH($C65,'Emissions Database'!$B$3:$B$251,0),0)) ->  | K65: =IF(OR(K$59="",$C65=""),"",HLOOKUP(K$59,'Emissions Database'!$CK$3:$CS$251,MATCH($C65,'Emissions Database'!$B$3:$B$251,0),0)) ->  | L65: =IF(OR(L$59="",$C65=""),"",HLOOKUP(L$59,'Emissions Database'!$CK$3:$CS$251,MATCH($C65,'Emissions Database'!$B$3:$B$251,0),0)) ->  | M65: =IF(OR(M$59="",$C65=""),"",HLOOKUP(M$59,'Emissions Database'!$CK$3:$CS$251,MATCH($C65,'Emissions Database'!$B$3:$B$251,0),0)) ->  | N65: =IF(OR(N$59="",$C65=""),"",HLOOKUP(N$59,'Emissions Database'!$CK$3:$CS$251,MATCH($C65,'Emissions Database'!$B$3:$B$251,0),0)) ->  | O65: ="" ->  | P65: ="" ->  | Q65: ="" ->  | R65: ="" ->  | S65: ="" ->  | T65: ="" ->  | U65: ="" ->  | V65: ="" ->  | W65: ="" ->  | X65: ="" ->  | Y65: ="" -> 
B66: 5 | C66: =IF(COUNTIF(Lists!$B$3:$B$22,B66)=0,"",VLOOKUP(B66,Lists!$B$3:$C$22,2,0)) ->  | D66: =IF($C66="","",SUMIF('Emissions Database'!$B$232:$B$251,$C66,'Emissions Database'!$BS$232:$BS$251)) ->  | F66: =IF(OR(F$59="",$C66=""),"",HLOOKUP(F$59,'Emissions Database'!$CK$3:$CS$251,MATCH($C66,'Emissions Database'!$B$3:$B$251,0),0)) ->  | G66: =IF(OR(G$59="",$C66=""),"",HLOOKUP(G$59,'Emissions Database'!$CK$3:$CS$251,MATCH($C66,'Emissions Database'!$B$3:$B$251,0),0)) ->  | H66: =IF(OR(H$59="",$C66=""),"",HLOOKUP(H$59,'Emissions Database'!$CK$3:$CS$251,MATCH($C66,'Emissions Database'!$B$3:$B$251,0),0)) ->  | I66: =IF(OR(I$59="",$C66=""),"",HLOOKUP(I$59,'Emissions Database'!$CK$3:$CS$251,MATCH($C66,'Emissions Database'!$B$3:$B$251,0),0)) ->  | J66: =IF(OR(J$59="",$C66=""),"",HLOOKUP(J$59,'Emissions Database'!$CK$3:$CS$251,MATCH($C66,'Emissions Database'!$B$3:$B$251,0),0)) ->  | K66: =IF(OR(K$59="",$C66=""),"",HLOOKUP(K$59,'Emissions Database'!$CK$3:$CS$251,MATCH($C66,'Emissions Database'!$B$3:$B$251,0),0)) ->  | L66: =IF(OR(L$59="",$C66=""),"",HLOOKUP(L$59,'Emissions Database'!$CK$3:$CS$251,MATCH($C66,'Emissions Database'!$B$3:$B$251,0),0)) ->  | M66: =IF(OR(M$59="",$C66=""),"",HLOOKUP(M$59,'Emissions Database'!$CK$3:$CS$251,MATCH($C66,'Emissions Database'!$B$3:$B$251,0),0)) ->  | N66: =IF(OR(N$59="",$C66=""),"",HLOOKUP(N$59,'Emissions Database'!$CK$3:$CS$251,MATCH($C66,'Emissions Database'!$B$3:$B$251,0),0)) ->  | O66: ="" ->  | P66: ="" ->  | Q66: ="" ->  | R66: ="" ->  | S66: ="" ->  | T66: ="" ->  | U66: ="" ->  | V66: ="" ->  | W66: ="" ->  | X66: ="" ->  | Y66: ="" -> 
B67: 6 | C67: =IF(COUNTIF(Lists!$B$3:$B$22,B67)=0,"",VLOOKUP(B67,Lists!$B$3:$C$22,2,0)) ->  | D67: =IF($C67="","",SUMIF('Emissions Database'!$B$232:$B$251,$C67,'Emissions Database'!$BS$232:$BS$251)) ->  | F67: =IF(OR(F$59="",$C67=""),"",HLOOKUP(F$59,'Emissions Database'!$CK$3:$CS$251,MATCH($C67,'Emissions Database'!$B$3:$B$251,0),0)) ->  | G67: =IF(OR(G$59="",$C67=""),"",HLOOKUP(G$59,'Emissions Database'!$CK$3:$CS$251,MATCH($C67,'Emissions Database'!$B$3:$B$251,0),0)) ->  | H67: =IF(OR(H$59="",$C67=""),"",HLOOKUP(H$59,'Emissions Database'!$CK$3:$CS$251,MATCH($C67,'Emissions Database'!$B$3:$B$251,0),0)) ->  | I67: =IF(OR(I$59="",$C67=""),"",HLOOKUP(I$59,'Emissions Database'!$CK$3:$CS$251,MATCH($C67,'Emissions Database'!$B$3:$B$251,0),0)) ->  | J67: =IF(OR(J$59="",$C67=""),"",HLOOKUP(J$59,'Emissions Database'!$CK$3:$CS$251,MATCH($C67,'Emissions Database'!$B$3:$B$251,0),0)) ->  | K67: =IF(OR(K$59="",$C67=""),"",HLOOKUP(K$59,'Emissions Database'!$CK$3:$CS$251,MATCH($C67,'Emissions Database'!$B$3:$B$251,0),0)) ->  | L67: =IF(OR(L$59="",$C67=""),"",HLOOKUP(L$59,'Emissions Database'!$CK$3:$CS$251,MATCH($C67,'Emissions Database'!$B$3:$B$251,0),0)) ->  | M67: =IF(OR(M$59="",$C67=""),"",HLOOKUP(M$59,'Emissions Database'!$CK$3:$CS$251,MATCH($C67,'Emissions Database'!$B$3:$B$251,0),0)) ->  | N67: =IF(OR(N$59="",$C67=""),"",HLOOKUP(N$59,'Emissions Database'!$CK$3:$CS$251,MATCH($C67,'Emissions Database'!$B$3:$B$251,0),0)) ->  | O67: ="" ->  | P67: ="" ->  | Q67: ="" ->  | R67: ="" ->  | S67: ="" ->  | T67: ="" ->  | U67: ="" ->  | V67: ="" ->  | W67: ="" ->  | X67: ="" ->  | Y67: ="" -> 
B68: 7 | C68: =IF(COUNTIF(Lists!$B$3:$B$22,B68)=0,"",VLOOKUP(B68,Lists!$B$3:$C$22,2,0)) ->  | D68: =IF($C68="","",SUMIF('Emissions Database'!$B$232:$B$251,$C68,'Emissions Database'!$BS$232:$BS$251)) ->  | F68: =IF(OR(F$59="",$C68=""),"",HLOOKUP(F$59,'Emissions Database'!$CK$3:$CS$251,MATCH($C68,'Emissions Database'!$B$3:$B$251,0),0)) ->  | G68: =IF(OR(G$59="",$C68=""),"",HLOOKUP(G$59,'Emissions Database'!$CK$3:$CS$251,MATCH($C68,'Emissions Database'!$B$3:$B$251,0),0)) ->  | H68: =IF(OR(H$59="",$C68=""),"",HLOOKUP(H$59,'Emissions Database'!$CK$3:$CS$251,MATCH($C68,'Emissions Database'!$B$3:$B$251,0),0)) ->  | I68: =IF(OR(I$59="",$C68=""),"",HLOOKUP(I$59,'Emissions Database'!$CK$3:$CS$251,MATCH($C68,'Emissions Database'!$B$3:$B$251,0),0)) ->  | J68: =IF(OR(J$59="",$C68=""),"",HLOOKUP(J$59,'Emissions Database'!$CK$3:$CS$251,MATCH($C68,'Emissions Database'!$B$3:$B$251,0),0)) ->  | K68: =IF(OR(K$59="",$C68=""),"",HLOOKUP(K$59,'Emissions Database'!$CK$3:$CS$251,MATCH($C68,'Emissions Database'!$B$3:$B$251,0),0)) ->  | L68: =IF(OR(L$59="",$C68=""),"",HLOOKUP(L$59,'Emissions Database'!$CK$3:$CS$251,MATCH($C68,'Emissions Database'!$B$3:$B$251,0),0)) ->  | M68: =IF(OR(M$59="",$C68=""),"",HLOOKUP(M$59,'Emissions Database'!$CK$3:$CS$251,MATCH($C68,'Emissions Database'!$B$3:$B$251,0),0)) ->  | N68: =IF(OR(N$59="",$C68=""),"",HLOOKUP(N$59,'Emissions Database'!$CK$3:$CS$251,MATCH($C68,'Emissions Database'!$B$3:$B$251,0),0)) ->  | O68: ="" ->  | P68: ="" ->  | Q68: ="" ->  | R68: ="" ->  | S68: ="" ->  | T68: ="" ->  | U68: ="" ->  | V68: ="" ->  | W68: ="" ->  | X68: ="" ->  | Y68: ="" -> 
B69: 8 | C69: =IF(COUNTIF(Lists!$B$3:$B$22,B69)=0,"",VLOOKUP(B69,Lists!$B$3:$C$22,2,0)) ->  | D69: =IF($C69="","",SUMIF('Emissions Database'!$B$232:$B$251,$C69,'Emissions Database'!$BS$232:$BS$251)) ->  | F69: =IF(OR(F$59="",$C69=""),"",HLOOKUP(F$59,'Emissions Database'!$CK$3:$CS$251,MATCH($C69,'Emissions Database'!$B$3:$B$251,0),0)) ->  | G69: =IF(OR(G$59="",$C69=""),"",HLOOKUP(G$59,'Emissions Database'!$CK$3:$CS$251,MATCH($C69,'Emissions Database'!$B$3:$B$251,0),0)) ->  | H69: =IF(OR(H$59="",$C69=""),"",HLOOKUP(H$59,'Emissions Database'!$CK$3:$CS$251,MATCH($C69,'Emissions Database'!$B$3:$B$251,0),0)) ->  | I69: =IF(OR(I$59="",$C69=""),"",HLOOKUP(I$59,'Emissions Database'!$CK$3:$CS$251,MATCH($C69,'Emissions Database'!$B$3:$B$251,0),0)) ->  | J69: =IF(OR(J$59="",$C69=""),"",HLOOKUP(J$59,'Emissions Database'!$CK$3:$CS$251,MATCH($C69,'Emissions Database'!$B$3:$B$251,0),0)) ->  | K69: =IF(OR(K$59="",$C69=""),"",HLOOKUP(K$59,'Emissions Database'!$CK$3:$CS$251,MATCH($C69,'Emissions Database'!$B$3:$B$251,0),0)) ->  | L69: =IF(OR(L$59="",$C69=""),"",HLOOKUP(L$59,'Emissions Database'!$CK$3:$CS$251,MATCH($C69,'Emissions Database'!$B$3:$B$251,0),0)) ->  | M69: =IF(OR(M$59="",$C69=""),"",HLOOKUP(M$59,'Emissions Database'!$CK$3:$CS$251,MATCH($C69,'Emissions Database'!$B$3:$B$251,0),0)) ->  | N69: =IF(OR(N$59="",$C69=""),"",HLOOKUP(N$59,'Emissions Database'!$CK$3:$CS$251,MATCH($C69,'Emissions Database'!$B$3:$B$251,0),0)) ->  | O69: ="" ->  | P69: ="" ->  | Q69: ="" ->  | R69: ="" ->  | S69: ="" ->  | T69: ="" ->  | U69: ="" ->  | V69: ="" ->  | W69: ="" ->  | X69: ="" ->  | Y69: ="" -> 
B70: 9 | C70: =IF(COUNTIF(Lists!$B$3:$B$22,B70)=0,"",VLOOKUP(B70,Lists!$B$3:$C$22,2,0)) ->  | D70: =IF($C70="","",SUMIF('Emissions Database'!$B$232:$B$251,$C70,'Emissions Database'!$BS$232:$BS$251)) ->  | F70: =IF(OR(F$59="",$C70=""),"",HLOOKUP(F$59,'Emissions Database'!$CK$3:$CS$251,MATCH($C70,'Emissions Database'!$B$3:$B$251,0),0)) ->  | G70: =IF(OR(G$59="",$C70=""),"",HLOOKUP(G$59,'Emissions Database'!$CK$3:$CS$251,MATCH($C70,'Emissions Database'!$B$3:$B$251,0),0)) ->  | H70: =IF(OR(H$59="",$C70=""),"",HLOOKUP(H$59,'Emissions Database'!$CK$3:$CS$251,MATCH($C70,'Emissions Database'!$B$3:$B$251,0),0)) ->  | I70: =IF(OR(I$59="",$C70=""),"",HLOOKUP(I$59,'Emissions Database'!$CK$3:$CS$251,MATCH($C70,'Emissions Database'!$B$3:$B$251,0),0)) ->  | J70: =IF(OR(J$59="",$C70=""),"",HLOOKUP(J$59,'Emissions Database'!$CK$3:$CS$251,MATCH($C70,'Emissions Database'!$B$3:$B$251,0),0)) ->  | K70: =IF(OR(K$59="",$C70=""),"",HLOOKUP(K$59,'Emissions Database'!$CK$3:$CS$251,MATCH($C70,'Emissions Database'!$B$3:$B$251,0),0)) ->  | L70: =IF(OR(L$59="",$C70=""),"",HLOOKUP(L$59,'Emissions Database'!$CK$3:$CS$251,MATCH($C70,'Emissions Database'!$B$3:$B$251,0),0)) ->  | M70: =IF(OR(M$59="",$C70=""),"",HLOOKUP(M$59,'Emissions Database'!$CK$3:$CS$251,MATCH($C70,'Emissions Database'!$B$3:$B$251,0),0)) ->  | N70: =IF(OR(N$59="",$C70=""),"",HLOOKUP(N$59,'Emissions Database'!$CK$3:$CS$251,MATCH($C70,'Emissions Database'!$B$3:$B$251,0),0)) ->  | O70: ="" ->  | P70: ="" ->  | Q70: ="" ->  | R70: ="" ->  | S70: ="" ->  | T70: ="" ->  | U70: ="" ->  | V70: ="" ->  | W70: ="" ->  | X70: ="" ->  | Y70: ="" -> 
B71: 10 | C71: =IF(COUNTIF(Lists!$B$3:$B$22,B71)=0,"",VLOOKUP(B71,Lists!$B$3:$C$22,2,0)) ->  | D71: =IF($C71="","",SUMIF('Emissions Database'!$B$232:$B$251,$C71,'Emissions Database'!$BS$232:$BS$251)) ->  | E71: =IF(C71="","",D71-SUM(F71:N71)) ->  | F71: =IF(OR(F$59="",$C71=""),"",HLOOKUP(F$59,'Emissions Database'!$CK$3:$CS$251,MATCH($C71,'Emissions Database'!$B$3:$B$251,0),0)) ->  | G71: =IF(OR(G$59="",$C71=""),"",HLOOKUP(G$59,'Emissions Database'!$CK$3:$CS$251,MATCH($C71,'Emissions Database'!$B$3:$B$251,0),0)) ->  | H71: =IF(OR(H$59="",$C71=""),"",HLOOKUP(H$59,'Emissions Database'!$CK$3:$CS$251,MATCH($C71,'Emissions Database'!$B$3:$B$251,0),0)) ->  | I71: =IF(OR(I$59="",$C71=""),"",HLOOKUP(I$59,'Emissions Database'!$CK$3:$CS$251,MATCH($C71,'Emissions Database'!$B$3:$B$251,0),0)) ->  | J71: =IF(OR(J$59="",$C71=""),"",HLOOKUP(J$59,'Emissions Database'!$CK$3:$CS$251,MATCH($C71,'Emissions Database'!$B$3:$B$251,0),0)) ->  | K71: =IF(OR(K$59="",$C71=""),"",HLOOKUP(K$59,'Emissions Database'!$CK$3:$CS$251,MATCH($C71,'Emissions Database'!$B$3:$B$251,0),0)) ->  | L71: =IF(OR(L$59="",$C71=""),"",HLOOKUP(L$59,'Emissions Database'!$CK$3:$CS$251,MATCH($C71,'Emissions Database'!$B$3:$B$251,0),0)) ->  | M71: =IF(OR(M$59="",$C71=""),"",HLOOKUP(M$59,'Emissions Database'!$CK$3:$CS$251,MATCH($C71,'Emissions Database'!$B$3:$B$251,0),0)) ->  | N71: =IF(OR(N$59="",$C71=""),"",HLOOKUP(N$59,'Emissions Database'!$CK$3:$CS$251,MATCH($C71,'Emissions Database'!$B$3:$B$251,0),0)) ->  | O71: ="" ->  | P71: ="" ->  | Q71: ="" ->  | R71: ="" ->  | S71: ="" ->  | T71: ="" ->  | U71: ="" ->  | V71: ="" ->  | W71: ="" ->  | X71: ="" ->  | Y71: ="" -> 
B72: 11 | C72: =IF(COUNTIF(Lists!$B$3:$B$22,B72)=0,"",VLOOKUP(B72,Lists!$B$3:$C$22,2,0)) ->  | D72: =IF($C72="","",SUMIF('Emissions Database'!$B$232:$B$251,$C72,'Emissions Database'!$BS$232:$BS$251)) ->  | F72: =IF(OR(F$59="",$C72=""),"",HLOOKUP(F$59,'Emissions Database'!$CK$3:$CS$251,MATCH($C72,'Emissions Database'!$B$3:$B$251,0),0)) ->  | G72: =IF(OR(G$59="",$C72=""),"",HLOOKUP(G$59,'Emissions Database'!$CK$3:$CS$251,MATCH($C72,'Emissions Database'!$B$3:$B$251,0),0)) ->  | H72: =IF(OR(H$59="",$C72=""),"",HLOOKUP(H$59,'Emissions Database'!$CK$3:$CS$251,MATCH($C72,'Emissions Database'!$B$3:$B$251,0),0)) ->  | I72: =IF(OR(I$59="",$C72=""),"",HLOOKUP(I$59,'Emissions Database'!$CK$3:$CS$251,MATCH($C72,'Emissions Database'!$B$3:$B$251,0),0)) ->  | J72: =IF(OR(J$59="",$C72=""),"",HLOOKUP(J$59,'Emissions Database'!$CK$3:$CS$251,MATCH($C72,'Emissions Database'!$B$3:$B$251,0),0)) ->  | K72: =IF(OR(K$59="",$C72=""),"",HLOOKUP(K$59,'Emissions Database'!$CK$3:$CS$251,MATCH($C72,'Emissions Database'!$B$3:$B$251,0),0)) ->  | L72: =IF(OR(L$59="",$C72=""),"",HLOOKUP(L$59,'Emissions Database'!$CK$3:$CS$251,MATCH($C72,'Emissions Database'!$B$3:$B$251,0),0)) ->  | M72: =IF(OR(M$59="",$C72=""),"",HLOOKUP(M$59,'Emissions Database'!$CK$3:$CS$251,MATCH($C72,'Emissions Database'!$B$3:$B$251,0),0)) ->  | N72: =IF(OR(N$59="",$C72=""),"",HLOOKUP(N$59,'Emissions Database'!$CK$3:$CS$251,MATCH($C72,'Emissions Database'!$B$3:$B$251,0),0)) ->  | O72: ="" ->  | P72: ="" ->  | Q72: ="" ->  | R72: ="" ->  | S72: ="" ->  | T72: ="" ->  | U72: ="" ->  | V72: ="" ->  | W72: ="" ->  | X72: ="" ->  | Y72: ="" -> 
B73: 12 | C73: =IF(COUNTIF(Lists!$B$3:$B$22,B73)=0,"",VLOOKUP(B73,Lists!$B$3:$C$22,2,0)) ->  | D73: =IF($C73="","",SUMIF('Emissions Database'!$B$232:$B$251,$C73,'Emissions Database'!$BS$232:$BS$251)) ->  | F73: =IF(OR(F$59="",$C73=""),"",HLOOKUP(F$59,'Emissions Database'!$CK$3:$CS$251,MATCH($C73,'Emissions Database'!$B$3:$B$251,0),0)) ->  | G73: =IF(OR(G$59="",$C73=""),"",HLOOKUP(G$59,'Emissions Database'!$CK$3:$CS$251,MATCH($C73,'Emissions Database'!$B$3:$B$251,0),0)) ->  | H73: =IF(OR(H$59="",$C73=""),"",HLOOKUP(H$59,'Emissions Database'!$CK$3:$CS$251,MATCH($C73,'Emissions Database'!$B$3:$B$251,0),0)) ->  | I73: =IF(OR(I$59="",$C73=""),"",HLOOKUP(I$59,'Emissions Database'!$CK$3:$CS$251,MATCH($C73,'Emissions Database'!$B$3:$B$251,0),0)) ->  | J73: =IF(OR(J$59="",$C73=""),"",HLOOKUP(J$59,'Emissions Database'!$CK$3:$CS$251,MATCH($C73,'Emissions Database'!$B$3:$B$251,0),0)) ->  | K73: =IF(OR(K$59="",$C73=""),"",HLOOKUP(K$59,'Emissions Database'!$CK$3:$CS$251,MATCH($C73,'Emissions Database'!$B$3:$B$251,0),0)) ->  | L73: =IF(OR(L$59="",$C73=""),"",HLOOKUP(L$59,'Emissions Database'!$CK$3:$CS$251,MATCH($C73,'Emissions Database'!$B$3:$B$251,0),0)) ->  | M73: =IF(OR(M$59="",$C73=""),"",HLOOKUP(M$59,'Emissions Database'!$CK$3:$CS$251,MATCH($C73,'Emissions Database'!$B$3:$B$251,0),0)) ->  | N73: =IF(OR(N$59="",$C73=""),"",HLOOKUP(N$59,'Emissions Database'!$CK$3:$CS$251,MATCH($C73,'Emissions Database'!$B$3:$B$251,0),0)) ->  | O73: ="" ->  | P73: ="" ->  | Q73: ="" ->  | R73: ="" ->  | S73: ="" ->  | T73: ="" ->  | U73: ="" ->  | V73: ="" ->  | W73: ="" ->  | X73: ="" ->  | Y73: ="" -> 
B74: 13 | C74: =IF(COUNTIF(Lists!$B$3:$B$22,B74)=0,"",VLOOKUP(B74,Lists!$B$3:$C$22,2,0)) ->  | D74: =IF($C74="","",SUMIF('Emissions Database'!$B$232:$B$251,$C74,'Emissions Database'!$BS$232:$BS$251)) ->  | F74: =IF(OR(F$59="",$C74=""),"",HLOOKUP(F$59,'Emissions Database'!$CK$3:$CS$251,MATCH($C74,'Emissions Database'!$B$3:$B$251,0),0)) ->  | G74: =IF(OR(G$59="",$C74=""),"",HLOOKUP(G$59,'Emissions Database'!$CK$3:$CS$251,MATCH($C74,'Emissions Database'!$B$3:$B$251,0),0)) ->  | H74: =IF(OR(H$59="",$C74=""),"",HLOOKUP(H$59,'Emissions Database'!$CK$3:$CS$251,MATCH($C74,'Emissions Database'!$B$3:$B$251,0),0)) ->  | I74: =IF(OR(I$59="",$C74=""),"",HLOOKUP(I$59,'Emissions Database'!$CK$3:$CS$251,MATCH($C74,'Emissions Database'!$B$3:$B$251,0),0)) ->  | J74: =IF(OR(J$59="",$C74=""),"",HLOOKUP(J$59,'Emissions Database'!$CK$3:$CS$251,MATCH($C74,'Emissions Database'!$B$3:$B$251,0),0)) ->  | K74: =IF(OR(K$59="",$C74=""),"",HLOOKUP(K$59,'Emissions Database'!$CK$3:$CS$251,MATCH($C74,'Emissions Database'!$B$3:$B$251,0),0)) ->  | L74: =IF(OR(L$59="",$C74=""),"",HLOOKUP(L$59,'Emissions Database'!$CK$3:$CS$251,MATCH($C74,'Emissions Database'!$B$3:$B$251,0),0)) ->  | M74: =IF(OR(M$59="",$C74=""),"",HLOOKUP(M$59,'Emissions Database'!$CK$3:$CS$251,MATCH($C74,'Emissions Database'!$B$3:$B$251,0),0)) ->  | N74: =IF(OR(N$59="",$C74=""),"",HLOOKUP(N$59,'Emissions Database'!$CK$3:$CS$251,MATCH($C74,'Emissions Database'!$B$3:$B$251,0),0)) ->  | O74: ="" ->  | P74: ="" ->  | Q74: ="" ->  | R74: ="" ->  | S74: ="" ->  | T74: ="" ->  | U74: ="" ->  | V74: ="" ->  | W74: ="" ->  | X74: ="" ->  | Y74: ="" -> 
B75: 14 | C75: =IF(COUNTIF(Lists!$B$3:$B$22,B75)=0,"",VLOOKUP(B75,Lists!$B$3:$C$22,2,0)) ->  | D75: =IF($C75="","",SUMIF('Emissions Database'!$B$232:$B$251,$C75,'Emissions Database'!$BS$232:$BS$251)) ->  | F75: =IF(OR(F$59="",$C75=""),"",HLOOKUP(F$59,'Emissions Database'!$CK$3:$CS$251,MATCH($C75,'Emissions Database'!$B$3:$B$251,0),0)) ->  | G75: =IF(OR(G$59="",$C75=""),"",HLOOKUP(G$59,'Emissions Database'!$CK$3:$CS$251,MATCH($C75,'Emissions Database'!$B$3:$B$251,0),0)) ->  | H75: =IF(OR(H$59="",$C75=""),"",HLOOKUP(H$59,'Emissions Database'!$CK$3:$CS$251,MATCH($C75,'Emissions Database'!$B$3:$B$251,0),0)) ->  | I75: =IF(OR(I$59="",$C75=""),"",HLOOKUP(I$59,'Emissions Database'!$CK$3:$CS$251,MATCH($C75,'Emissions Database'!$B$3:$B$251,0),0)) ->  | J75: =IF(OR(J$59="",$C75=""),"",HLOOKUP(J$59,'Emissions Database'!$CK$3:$CS$251,MATCH($C75,'Emissions Database'!$B$3:$B$251,0),0)) ->  | K75: =IF(OR(K$59="",$C75=""),"",HLOOKUP(K$59,'Emissions Database'!$CK$3:$CS$251,MATCH($C75,'Emissions Database'!$B$3:$B$251,0),0)) ->  | L75: =IF(OR(L$59="",$C75=""),"",HLOOKUP(L$59,'Emissions Database'!$CK$3:$CS$251,MATCH($C75,'Emissions Database'!$B$3:$B$251,0),0)) ->  | M75: =IF(OR(M$59="",$C75=""),"",HLOOKUP(M$59,'Emissions Database'!$CK$3:$CS$251,MATCH($C75,'Emissions Database'!$B$3:$B$251,0),0)) ->  | N75: =IF(OR(N$59="",$C75=""),"",HLOOKUP(N$59,'Emissions Database'!$CK$3:$CS$251,MATCH($C75,'Emissions Database'!$B$3:$B$251,0),0)) ->  | O75: ="" ->  | P75: ="" ->  | Q75: ="" ->  | R75: ="" ->  | S75: ="" ->  | T75: ="" ->  | U75: ="" ->  | V75: ="" ->  | W75: ="" ->  | X75: ="" ->  | Y75: ="" -> 
B76: 15 | C76: =IF(COUNTIF(Lists!$B$3:$B$22,B76)=0,"",VLOOKUP(B76,Lists!$B$3:$C$22,2,0)) ->  | D76: =IF($C76="","",SUMIF('Emissions Database'!$B$232:$B$251,$C76,'Emissions Database'!$BS$232:$BS$251)) ->  | F76: =IF(OR(F$59="",$C76=""),"",HLOOKUP(F$59,'Emissions Database'!$CK$3:$CS$251,MATCH($C76,'Emissions Database'!$B$3:$B$251,0),0)) ->  | G76: =IF(OR(G$59="",$C76=""),"",HLOOKUP(G$59,'Emissions Database'!$CK$3:$CS$251,MATCH($C76,'Emissions Database'!$B$3:$B$251,0),0)) ->  | H76: =IF(OR(H$59="",$C76=""),"",HLOOKUP(H$59,'Emissions Database'!$CK$3:$CS$251,MATCH($C76,'Emissions Database'!$B$3:$B$251,0),0)) ->  | I76: =IF(OR(I$59="",$C76=""),"",HLOOKUP(I$59,'Emissions Database'!$CK$3:$CS$251,MATCH($C76,'Emissions Database'!$B$3:$B$251,0),0)) ->  | J76: =IF(OR(J$59="",$C76=""),"",HLOOKUP(J$59,'Emissions Database'!$CK$3:$CS$251,MATCH($C76,'Emissions Database'!$B$3:$B$251,0),0)) ->  | K76: =IF(OR(K$59="",$C76=""),"",HLOOKUP(K$59,'Emissions Database'!$CK$3:$CS$251,MATCH($C76,'Emissions Database'!$B$3:$B$251,0),0)) ->  | L76: =IF(OR(L$59="",$C76=""),"",HLOOKUP(L$59,'Emissions Database'!$CK$3:$CS$251,MATCH($C76,'Emissions Database'!$B$3:$B$251,0),0)) ->  | M76: =IF(OR(M$59="",$C76=""),"",HLOOKUP(M$59,'Emissions Database'!$CK$3:$CS$251,MATCH($C76,'Emissions Database'!$B$3:$B$251,0),0)) ->  | N76: =IF(OR(N$59="",$C76=""),"",HLOOKUP(N$59,'Emissions Database'!$CK$3:$CS$251,MATCH($C76,'Emissions Database'!$B$3:$B$251,0),0)) ->  | O76: ="" ->  | P76: ="" ->  | Q76: ="" ->  | R76: ="" ->  | S76: ="" ->  | T76: ="" ->  | U76: ="" ->  | V76: ="" ->  | W76: ="" ->  | X76: ="" ->  | Y76: ="" -> 
B77: 16 | C77: =IF(COUNTIF(Lists!$B$3:$B$22,B77)=0,"",VLOOKUP(B77,Lists!$B$3:$C$22,2,0)) ->  | D77: =IF($C77="","",SUMIF('Emissions Database'!$B$232:$B$251,$C77,'Emissions Database'!$BS$232:$BS$251)) ->  | F77: =IF(OR(F$59="",$C77=""),"",HLOOKUP(F$59,'Emissions Database'!$CK$3:$CS$251,MATCH($C77,'Emissions Database'!$B$3:$B$251,0),0)) ->  | G77: =IF(OR(G$59="",$C77=""),"",HLOOKUP(G$59,'Emissions Database'!$CK$3:$CS$251,MATCH($C77,'Emissions Database'!$B$3:$B$251,0),0)) ->  | H77: =IF(OR(H$59="",$C77=""),"",HLOOKUP(H$59,'Emissions Database'!$CK$3:$CS$251,MATCH($C77,'Emissions Database'!$B$3:$B$251,0),0)) ->  | I77: =IF(OR(I$59="",$C77=""),"",HLOOKUP(I$59,'Emissions Database'!$CK$3:$CS$251,MATCH($C77,'Emissions Database'!$B$3:$B$251,0),0)) ->  | J77: =IF(OR(J$59="",$C77=""),"",HLOOKUP(J$59,'Emissions Database'!$CK$3:$CS$251,MATCH($C77,'Emissions Database'!$B$3:$B$251,0),0)) ->  | K77: =IF(OR(K$59="",$C77=""),"",HLOOKUP(K$59,'Emissions Database'!$CK$3:$CS$251,MATCH($C77,'Emissions Database'!$B$3:$B$251,0),0)) ->  | L77: =IF(OR(L$59="",$C77=""),"",HLOOKUP(L$59,'Emissions Database'!$CK$3:$CS$251,MATCH($C77,'Emissions Database'!$B$3:$B$251,0),0)) ->  | M77: =IF(OR(M$59="",$C77=""),"",HLOOKUP(M$59,'Emissions Database'!$CK$3:$CS$251,MATCH($C77,'Emissions Database'!$B$3:$B$251,0),0)) ->  | N77: =IF(OR(N$59="",$C77=""),"",HLOOKUP(N$59,'Emissions Database'!$CK$3:$CS$251,MATCH($C77,'Emissions Database'!$B$3:$B$251,0),0)) ->  | O77: ="" ->  | P77: ="" ->  | Q77: ="" ->  | R77: ="" ->  | S77: ="" ->  | T77: ="" ->  | U77: ="" ->  | V77: ="" ->  | W77: ="" ->  | X77: ="" ->  | Y77: ="" -> 
B78: 17 | C78: =IF(COUNTIF(Lists!$B$3:$B$22,B78)=0,"",VLOOKUP(B78,Lists!$B$3:$C$22,2,0)) ->  | D78: =IF($C78="","",SUMIF('Emissions Database'!$B$232:$B$251,$C78,'Emissions Database'!$BS$232:$BS$251)) ->  | E78: =IF(C78="","",D78-SUM(F78:N78)) ->  | F78: =IF(OR(F$59="",$C78=""),"",HLOOKUP(F$59,'Emissions Database'!$CK$3:$CS$251,MATCH($C78,'Emissions Database'!$B$3:$B$251,0),0)) ->  | G78: =IF(OR(G$59="",$C78=""),"",HLOOKUP(G$59,'Emissions Database'!$CK$3:$CS$251,MATCH($C78,'Emissions Database'!$B$3:$B$251,0),0)) ->  | H78: =IF(OR(H$59="",$C78=""),"",HLOOKUP(H$59,'Emissions Database'!$CK$3:$CS$251,MATCH($C78,'Emissions Database'!$B$3:$B$251,0),0)) ->  | I78: =IF(OR(I$59="",$C78=""),"",HLOOKUP(I$59,'Emissions Database'!$CK$3:$CS$251,MATCH($C78,'Emissions Database'!$B$3:$B$251,0),0)) ->  | J78: =IF(OR(J$59="",$C78=""),"",HLOOKUP(J$59,'Emissions Database'!$CK$3:$CS$251,MATCH($C78,'Emissions Database'!$B$3:$B$251,0),0)) ->  | K78: =IF(OR(K$59="",$C78=""),"",HLOOKUP(K$59,'Emissions Database'!$CK$3:$CS$251,MATCH($C78,'Emissions Database'!$B$3:$B$251,0),0)) ->  | L78: =IF(OR(L$59="",$C78=""),"",HLOOKUP(L$59,'Emissions Database'!$CK$3:$CS$251,MATCH($C78,'Emissions Database'!$B$3:$B$251,0),0)) ->  | M78: =IF(OR(M$59="",$C78=""),"",HLOOKUP(M$59,'Emissions Database'!$CK$3:$CS$251,MATCH($C78,'Emissions Database'!$B$3:$B$251,0),0)) ->  | N78: =IF(OR(N$59="",$C78=""),"",HLOOKUP(N$59,'Emissions Database'!$CK$3:$CS$251,MATCH($C78,'Emissions Database'!$B$3:$B$251,0),0)) ->  | O78: ="" ->  | P78: ="" ->  | Q78: ="" ->  | R78: ="" ->  | S78: ="" ->  | T78: ="" ->  | U78: ="" ->  | V78: ="" ->  | W78: ="" ->  | X78: ="" ->  | Y78: ="" -> 
C81: GHG Emissions by GHG Type (MT CO2-e) | E81: 1 | F81: 2 | G81: 3 | H81: 4 | I81: 5 | J81: 6 | K81: 7 | L81: 8 | M81: 9 | N81: 10 | O81: 11 | P81: 12 | Q81: 13 | R81: 14 | S81: 15 | T81: 16 | U81: 17 | V81: 18 | W81: 19 | X81: 20 | Y81: 21
C82: Federal building type | D82: Total | E82: =IF(COUNTIF(Lists!$E$67:$R$67,E$81)=0,"",HLOOKUP(E$81,Lists!$E$67:$R$69,ROWS(Lists!$E$67:$E$69),0)) ->  | F82: =IF(COUNTIF(Lists!$E$67:$R$67,F$81)=0,"",HLOOKUP(F$81,Lists!$E$67:$R$69,ROWS(Lists!$E$67:$E$69),0)) ->  | G82: =IF(COUNTIF(Lists!$E$67:$R$67,G$81)=0,"",HLOOKUP(G$81,Lists!$E$67:$R$69,ROWS(Lists!$E$67:$E$69),0)) ->  | H82: =IF(COUNTIF(Lists!$E$67:$R$67,H$81)=0,"",HLOOKUP(H$81,Lists!$E$67:$R$69,ROWS(Lists!$E$67:$E$69),0)) ->  | I82: =IF(COUNTIF(Lists!$E$67:$R$67,I$81)=0,"",HLOOKUP(I$81,Lists!$E$67:$R$69,ROWS(Lists!$E$67:$E$69),0)) ->  | J82: =IF(COUNTIF(Lists!$E$67:$R$67,J$81)=0,"",HLOOKUP(J$81,Lists!$E$67:$R$69,ROWS(Lists!$E$67:$E$69),0)) ->  | K82: =IF(COUNTIF(Lists!$E$67:$R$67,K$81)=0,"",HLOOKUP(K$81,Lists!$E$67:$R$69,ROWS(Lists!$E$67:$E$69),0)) ->  | L82: =IF(COUNTIF(Lists!$E$67:$R$67,L$81)=0,"",HLOOKUP(L$81,Lists!$E$67:$R$69,ROWS(Lists!$E$67:$E$69),0)) ->  | M82: =IF(COUNTIF(Lists!$E$67:$R$67,M$81)=0,"",HLOOKUP(M$81,Lists!$E$67:$R$69,ROWS(Lists!$E$67:$E$69),0)) ->  | N82: =IF(COUNTIF(Lists!$E$67:$R$67,N$81)=0,"",HLOOKUP(N$81,Lists!$E$67:$R$69,ROWS(Lists!$E$67:$E$69),0)) ->  | O82: =IF(COUNTIF(Lists!$E$67:$R$67,O$81)=0,"",HLOOKUP(O$81,Lists!$E$67:$R$69,ROWS(Lists!$E$67:$E$69),0)) ->  | P82: =IF(COUNTIF(Lists!$E$67:$R$67,P$81)=0,"",HLOOKUP(P$81,Lists!$E$67:$R$69,ROWS(Lists!$E$67:$E$69),0)) ->  | Q82: =IF(COUNTIF(Lists!$E$67:$R$67,Q$81)=0,"",HLOOKUP(Q$81,Lists!$E$67:$R$69,ROWS(Lists!$E$67:$E$69),0)) ->  | R82: =IF(COUNTIF(Lists!$E$67:$R$67,R$81)=0,"",HLOOKUP(R$81,Lists!$E$67:$R$69,ROWS(Lists!$E$67:$E$69),0)) ->  | S82: ="" ->  | T82: ="" ->  | U82: ="" ->  | V82: ="" ->  | W82: ="" ->  | X82: ="" ->  | Y82: ="" -> 
C83: Total | D83: ='Emissions Database'!$BS$204 -> 0 | E83: =IF(E$82="","",SUMIF('Emissions Database'!$BE$3:$BR$3,E$82,'Emissions Database'!$BE$204:$BR$204)) ->  | F83: =IF(F$82="","",SUMIF('Emissions Database'!$BE$3:$BR$3,F$82,'Emissions Database'!$BE$204:$BR$204)) ->  | G83: =IF(G$82="","",SUMIF('Emissions Database'!$BE$3:$BR$3,G$82,'Emissions Database'!$BE$204:$BR$204)) ->  | H83: =IF(H$82="","",SUMIF('Emissions Database'!$BE$3:$BR$3,H$82,'Emissions Database'!$BE$204:$BR$204)) ->  | I83: =IF(I$82="","",SUMIF('Emissions Database'!$BE$3:$BR$3,I$82,'Emissions Database'!$BE$204:$BR$204)) ->  | J83: =IF(J$82="","",SUMIF('Emissions Database'!$BE$3:$BR$3,J$82,'Emissions Database'!$BE$204:$BR$204)) ->  | K83: =IF(K$82="","",SUMIF('Emissions Database'!$BE$3:$BR$3,K$82,'Emissions Database'!$BE$204:$BR$204)) ->  | L83: =IF(L$82="","",SUMIF('Emissions Database'!$BE$3:$BR$3,L$82,'Emissions Database'!$BE$204:$BR$204)) ->  | M83: =IF(M$82="","",SUMIF('Emissions Database'!$BE$3:$BR$3,M$82,'Emissions Database'!$BE$204:$BR$204)) ->  | N83: =IF(N$82="","",SUMIF('Emissions Database'!$BE$3:$BR$3,N$82,'Emissions Database'!$BE$204:$BR$204)) ->  | O83: =IF(O$82="","",SUMIF('Emissions Database'!$BE$3:$BR$3,O$82,'Emissions Database'!$BE$204:$BR$204)) ->  | P83: =IF(P$82="","",SUMIF('Emissions Database'!$BE$3:$BR$3,P$82,'Emissions Database'!$BE$204:$BR$204)) ->  | Q83: =IF(Q$82="","",SUMIF('Emissions Database'!$BE$3:$BR$3,Q$82,'Emissions Database'!$BE$204:$BR$204)) ->  | R83: =IF(R$82="","",SUMIF('Emissions Database'!$BE$3:$BR$3,R$82,'Emissions Database'!$BE$204:$BR$204)) ->  | S83: ="" ->  | T83: ="" ->  | U83: ="" ->  | V83: ="" ->  | W83: ="" ->  | X83: ="" ->  | Y83: ="" -> 
C84: Non-Specified | D84: =D83-SUM(D85:D101) -> 0 | E84: =IF(E82="","",E83-SUM(E85:E101)) ->  | F84: =IF(F82="","",F83-SUM(F85:F101)) ->  | S84: ="" ->  | T84: ="" ->  | U84: ="" ->  | V84: ="" ->  | W84: ="" ->  | X84: ="" ->  | Y84: ="" -> 
B85: 1 | C85: =IF(COUNTIF(Lists!$B$3:$B$22,B85)=0,"",VLOOKUP(B85,Lists!$B$3:$C$22,2,0)) ->  | D85: =IF($C85="","",SUMIF('Emissions Database'!$B$232:$B$251,$C85,'Emissions Database'!$BS$232:$BS$251)) ->  | E85: =IF(OR(E$82="",$C85=""),"",HLOOKUP(E$82,'Emissions Database'!$BE$3:$BR$251,MATCH($C85,'Emissions Database'!$B$3:$B$251,0),0)) ->  | F85: =IF(OR(F$82="",$C85=""),"",HLOOKUP(F$82,'Emissions Database'!$BE$3:$BR$251,MATCH($C85,'Emissions Database'!$B$3:$B$251,0),0)) ->  | G85: =IF(OR(G$82="",$C85=""),"",HLOOKUP(G$82,'Emissions Database'!$BE$3:$BR$251,MATCH($C85,'Emissions Database'!$B$3:$B$251,0),0)) ->  | H85: =IF(OR(H$82="",$C85=""),"",HLOOKUP(H$82,'Emissions Database'!$BE$3:$BR$251,MATCH($C85,'Emissions Database'!$B$3:$B$251,0),0)) ->  | I85: =IF(OR(I$82="",$C85=""),"",HLOOKUP(I$82,'Emissions Database'!$BE$3:$BR$251,MATCH($C85,'Emissions Database'!$B$3:$B$251,0),0)) ->  | J85: =IF(OR(J$82="",$C85=""),"",HLOOKUP(J$82,'Emissions Database'!$BE$3:$BR$251,MATCH($C85,'Emissions Database'!$B$3:$B$251,0),0)) ->  | K85: =IF(OR(K$82="",$C85=""),"",HLOOKUP(K$82,'Emissions Database'!$BE$3:$BR$251,MATCH($C85,'Emissions Database'!$B$3:$B$251,0),0)) ->  | L85: =IF(OR(L$82="",$C85=""),"",HLOOKUP(L$82,'Emissions Database'!$BE$3:$BR$251,MATCH($C85,'Emissions Database'!$B$3:$B$251,0),0)) ->  | M85: =IF(OR(M$82="",$C85=""),"",HLOOKUP(M$82,'Emissions Database'!$BE$3:$BR$251,MATCH($C85,'Emissions Database'!$B$3:$B$251,0),0)) ->  | N85: =IF(OR(N$82="",$C85=""),"",HLOOKUP(N$82,'Emissions Database'!$BE$3:$BR$251,MATCH($C85,'Emissions Database'!$B$3:$B$251,0),0)) ->  | O85: =IF(OR(O$82="",$C85=""),"",HLOOKUP(O$82,'Emissions Database'!$BE$3:$BR$251,MATCH($C85,'Emissions Database'!$B$3:$B$251,0),0)) ->  | P85: =IF(OR(P$82="",$C85=""),"",HLOOKUP(P$82,'Emissions Database'!$BE$3:$BR$251,MATCH($C85,'Emissions Database'!$B$3:$B$251,0),0)) ->  | Q85: =IF(OR(Q$82="",$C85=""),"",HLOOKUP(Q$82,'Emissions Database'!$BE$3:$BR$251,MATCH($C85,'Emissions Database'!$B$3:$B$251,0),0)) ->  | R85: =IF(OR(R$82="",$C85=""),"",HLOOKUP(R$82,'Emissions Database'!$BE$3:$BR$251,MATCH($C85,'Emissions Database'!$B$3:$B$251,0),0)) ->  | S85: ="" ->  | T85: ="" ->  | U85: ="" ->  | V85: ="" ->  | W85: ="" ->  | X85: ="" ->  | Y85: ="" -> 
B86: 2 | C86: =IF(COUNTIF(Lists!$B$3:$B$22,B86)=0,"",VLOOKUP(B86,Lists!$B$3:$C$22,2,0)) ->  | D86: =IF($C86="","",SUMIF('Emissions Database'!$B$232:$B$251,$C86,'Emissions Database'!$BS$232:$BS$251)) ->  | E86: =IF(OR(E$82="",$C86=""),"",HLOOKUP(E$82,'Emissions Database'!$BE$3:$BR$251,MATCH($C86,'Emissions Database'!$B$3:$B$251,0),0)) ->  | F86: =IF(OR(F$82="",$C86=""),"",HLOOKUP(F$82,'Emissions Database'!$BE$3:$BR$251,MATCH($C86,'Emissions Database'!$B$3:$B$251,0),0)) ->  | G86: =IF(OR(G$82="",$C86=""),"",HLOOKUP(G$82,'Emissions Database'!$BE$3:$BR$251,MATCH($C86,'Emissions Database'!$B$3:$B$251,0),0)) ->  | H86: =IF(OR(H$82="",$C86=""),"",HLOOKUP(H$82,'Emissions Database'!$BE$3:$BR$251,MATCH($C86,'Emissions Database'!$B$3:$B$251,0),0)) ->  | I86: =IF(OR(I$82="",$C86=""),"",HLOOKUP(I$82,'Emissions Database'!$BE$3:$BR$251,MATCH($C86,'Emissions Database'!$B$3:$B$251,0),0)) ->  | J86: =IF(OR(J$82="",$C86=""),"",HLOOKUP(J$82,'Emissions Database'!$BE$3:$BR$251,MATCH($C86,'Emissions Database'!$B$3:$B$251,0),0)) ->  | K86: =IF(OR(K$82="",$C86=""),"",HLOOKUP(K$82,'Emissions Database'!$BE$3:$BR$251,MATCH($C86,'Emissions Database'!$B$3:$B$251,0),0)) ->  | L86: =IF(OR(L$82="",$C86=""),"",HLOOKUP(L$82,'Emissions Database'!$BE$3:$BR$251,MATCH($C86,'Emissions Database'!$B$3:$B$251,0),0)) ->  | M86: =IF(OR(M$82="",$C86=""),"",HLOOKUP(M$82,'Emissions Database'!$BE$3:$BR$251,MATCH($C86,'Emissions Database'!$B$3:$B$251,0),0)) ->  | N86: =IF(OR(N$82="",$C86=""),"",HLOOKUP(N$82,'Emissions Database'!$BE$3:$BR$251,MATCH($C86,'Emissions Database'!$B$3:$B$251,0),0)) ->  | O86: =IF(OR(O$82="",$C86=""),"",HLOOKUP(O$82,'Emissions Database'!$BE$3:$BR$251,MATCH($C86,'Emissions Database'!$B$3:$B$251,0),0)) ->  | P86: =IF(OR(P$82="",$C86=""),"",HLOOKUP(P$82,'Emissions Database'!$BE$3:$BR$251,MATCH($C86,'Emissions Database'!$B$3:$B$251,0),0)) ->  | Q86: =IF(OR(Q$82="",$C86=""),"",HLOOKUP(Q$82,'Emissions Database'!$BE$3:$BR$251,MATCH($C86,'Emissions Database'!$B$3:$B$251,0),0)) ->  | R86: =IF(OR(R$82="",$C86=""),"",HLOOKUP(R$82,'Emissions Database'!$BE$3:$BR$251,MATCH($C86,'Emissions Database'!$B$3:$B$251,0),0)) ->  | S86: ="" ->  | T86: ="" ->  | U86: ="" ->  | V86: ="" ->  | W86: ="" ->  | X86: ="" ->  | Y86: ="" -> 
B87: 3 | C87: =IF(COUNTIF(Lists!$B$3:$B$22,B87)=0,"",VLOOKUP(B87,Lists!$B$3:$C$22,2,0)) ->  | D87: =IF($C87="","",SUMIF('Emissions Database'!$B$232:$B$251,$C87,'Emissions Database'!$BS$232:$BS$251)) ->  | E87: =IF(OR(E$82="",$C87=""),"",HLOOKUP(E$82,'Emissions Database'!$BE$3:$BR$251,MATCH($C87,'Emissions Database'!$B$3:$B$251,0),0)) ->  | F87: =IF(OR(F$82="",$C87=""),"",HLOOKUP(F$82,'Emissions Database'!$BE$3:$BR$251,MATCH($C87,'Emissions Database'!$B$3:$B$251,0),0)) ->  | G87: =IF(OR(G$82="",$C87=""),"",HLOOKUP(G$82,'Emissions Database'!$BE$3:$BR$251,MATCH($C87,'Emissions Database'!$B$3:$B$251,0),0)) ->  | H87: =IF(OR(H$82="",$C87=""),"",HLOOKUP(H$82,'Emissions Database'!$BE$3:$BR$251,MATCH($C87,'Emissions Database'!$B$3:$B$251,0),0)) ->  | I87: =IF(OR(I$82="",$C87=""),"",HLOOKUP(I$82,'Emissions Database'!$BE$3:$BR$251,MATCH($C87,'Emissions Database'!$B$3:$B$251,0),0)) ->  | J87: =IF(OR(J$82="",$C87=""),"",HLOOKUP(J$82,'Emissions Database'!$BE$3:$BR$251,MATCH($C87,'Emissions Database'!$B$3:$B$251,0),0)) ->  | K87: =IF(OR(K$82="",$C87=""),"",HLOOKUP(K$82,'Emissions Database'!$BE$3:$BR$251,MATCH($C87,'Emissions Database'!$B$3:$B$251,0),0)) ->  | L87: =IF(OR(L$82="",$C87=""),"",HLOOKUP(L$82,'Emissions Database'!$BE$3:$BR$251,MATCH($C87,'Emissions Database'!$B$3:$B$251,0),0)) ->  | M87: =IF(OR(M$82="",$C87=""),"",HLOOKUP(M$82,'Emissions Database'!$BE$3:$BR$251,MATCH($C87,'Emissions Database'!$B$3:$B$251,0),0)) ->  | N87: =IF(OR(N$82="",$C87=""),"",HLOOKUP(N$82,'Emissions Database'!$BE$3:$BR$251,MATCH($C87,'Emissions Database'!$B$3:$B$251,0),0)) ->  | O87: =IF(OR(O$82="",$C87=""),"",HLOOKUP(O$82,'Emissions Database'!$BE$3:$BR$251,MATCH($C87,'Emissions Database'!$B$3:$B$251,0),0)) ->  | P87: =IF(OR(P$82="",$C87=""),"",HLOOKUP(P$82,'Emissions Database'!$BE$3:$BR$251,MATCH($C87,'Emissions Database'!$B$3:$B$251,0),0)) ->  | Q87: =IF(OR(Q$82="",$C87=""),"",HLOOKUP(Q$82,'Emissions Database'!$BE$3:$BR$251,MATCH($C87,'Emissions Database'!$B$3:$B$251,0),0)) ->  | R87: =IF(OR(R$82="",$C87=""),"",HLOOKUP(R$82,'Emissions Database'!$BE$3:$BR$251,MATCH($C87,'Emissions Database'!$B$3:$B$251,0),0)) ->  | S87: ="" ->  | T87: ="" ->  | U87: ="" ->  | V87: ="" ->  | W87: ="" ->  | X87: ="" ->  | Y87: ="" -> 
B88: 4 | C88: =IF(COUNTIF(Lists!$B$3:$B$22,B88)=0,"",VLOOKUP(B88,Lists!$B$3:$C$22,2,0)) ->  | D88: =IF($C88="","",SUMIF('Emissions Database'!$B$232:$B$251,$C88,'Emissions Database'!$BS$232:$BS$251)) ->  | E88: =IF(OR(E$82="",$C88=""),"",HLOOKUP(E$82,'Emissions Database'!$BE$3:$BR$251,MATCH($C88,'Emissions Database'!$B$3:$B$251,0),0)) ->  | F88: =IF(OR(F$82="",$C88=""),"",HLOOKUP(F$82,'Emissions Database'!$BE$3:$BR$251,MATCH($C88,'Emissions Database'!$B$3:$B$251,0),0)) ->  | G88: =IF(OR(G$82="",$C88=""),"",HLOOKUP(G$82,'Emissions Database'!$BE$3:$BR$251,MATCH($C88,'Emissions Database'!$B$3:$B$251,0),0)) ->  | H88: =IF(OR(H$82="",$C88=""),"",HLOOKUP(H$82,'Emissions Database'!$BE$3:$BR$251,MATCH($C88,'Emissions Database'!$B$3:$B$251,0),0)) ->  | I88: =IF(OR(I$82="",$C88=""),"",HLOOKUP(I$82,'Emissions Database'!$BE$3:$BR$251,MATCH($C88,'Emissions Database'!$B$3:$B$251,0),0)) ->  | J88: =IF(OR(J$82="",$C88=""),"",HLOOKUP(J$82,'Emissions Database'!$BE$3:$BR$251,MATCH($C88,'Emissions Database'!$B$3:$B$251,0),0)) ->  | K88: =IF(OR(K$82="",$C88=""),"",HLOOKUP(K$82,'Emissions Database'!$BE$3:$BR$251,MATCH($C88,'Emissions Database'!$B$3:$B$251,0),0)) ->  | L88: =IF(OR(L$82="",$C88=""),"",HLOOKUP(L$82,'Emissions Database'!$BE$3:$BR$251,MATCH($C88,'Emissions Database'!$B$3:$B$251,0),0)) ->  | M88: =IF(OR(M$82="",$C88=""),"",HLOOKUP(M$82,'Emissions Database'!$BE$3:$BR$251,MATCH($C88,'Emissions Database'!$B$3:$B$251,0),0)) ->  | N88: =IF(OR(N$82="",$C88=""),"",HLOOKUP(N$82,'Emissions Database'!$BE$3:$BR$251,MATCH($C88,'Emissions Database'!$B$3:$B$251,0),0)) ->  | O88: =IF(OR(O$82="",$C88=""),"",HLOOKUP(O$82,'Emissions Database'!$BE$3:$BR$251,MATCH($C88,'Emissions Database'!$B$3:$B$251,0),0)) ->  | P88: =IF(OR(P$82="",$C88=""),"",HLOOKUP(P$82,'Emissions Database'!$BE$3:$BR$251,MATCH($C88,'Emissions Database'!$B$3:$B$251,0),0)) ->  | Q88: =IF(OR(Q$82="",$C88=""),"",HLOOKUP(Q$82,'Emissions Database'!$BE$3:$BR$251,MATCH($C88,'Emissions Database'!$B$3:$B$251,0),0)) ->  | R88: =IF(OR(R$82="",$C88=""),"",HLOOKUP(R$82,'Emissions Database'!$BE$3:$BR$251,MATCH($C88,'Emissions Database'!$B$3:$B$251,0),0)) ->  | S88: ="" ->  | T88: ="" ->  | U88: ="" ->  | V88: ="" ->  | W88: ="" ->  | X88: ="" ->  | Y88: ="" -> 
B89: 5 | C89: =IF(COUNTIF(Lists!$B$3:$B$22,B89)=0,"",VLOOKUP(B89,Lists!$B$3:$C$22,2,0)) ->  | D89: =IF($C89="","",SUMIF('Emissions Database'!$B$232:$B$251,$C89,'Emissions Database'!$BS$232:$BS$251)) ->  | E89: =IF(OR(E$82="",$C89=""),"",HLOOKUP(E$82,'Emissions Database'!$BE$3:$BR$251,MATCH($C89,'Emissions Database'!$B$3:$B$251,0),0)) ->  | F89: =IF(OR(F$82="",$C89=""),"",HLOOKUP(F$82,'Emissions Database'!$BE$3:$BR$251,MATCH($C89,'Emissions Database'!$B$3:$B$251,0),0)) ->  | G89: =IF(OR(G$82="",$C89=""),"",HLOOKUP(G$82,'Emissions Database'!$BE$3:$BR$251,MATCH($C89,'Emissions Database'!$B$3:$B$251,0),0)) ->  | H89: =IF(OR(H$82="",$C89=""),"",HLOOKUP(H$82,'Emissions Database'!$BE$3:$BR$251,MATCH($C89,'Emissions Database'!$B$3:$B$251,0),0)) ->  | I89: =IF(OR(I$82="",$C89=""),"",HLOOKUP(I$82,'Emissions Database'!$BE$3:$BR$251,MATCH($C89,'Emissions Database'!$B$3:$B$251,0),0)) ->  | J89: =IF(OR(J$82="",$C89=""),"",HLOOKUP(J$82,'Emissions Database'!$BE$3:$BR$251,MATCH($C89,'Emissions Database'!$B$3:$B$251,0),0)) ->  | K89: =IF(OR(K$82="",$C89=""),"",HLOOKUP(K$82,'Emissions Database'!$BE$3:$BR$251,MATCH($C89,'Emissions Database'!$B$3:$B$251,0),0)) ->  | L89: =IF(OR(L$82="",$C89=""),"",HLOOKUP(L$82,'Emissions Database'!$BE$3:$BR$251,MATCH($C89,'Emissions Database'!$B$3:$B$251,0),0)) ->  | M89: =IF(OR(M$82="",$C89=""),"",HLOOKUP(M$82,'Emissions Database'!$BE$3:$BR$251,MATCH($C89,'Emissions Database'!$B$3:$B$251,0),0)) ->  | N89: =IF(OR(N$82="",$C89=""),"",HLOOKUP(N$82,'Emissions Database'!$BE$3:$BR$251,MATCH($C89,'Emissions Database'!$B$3:$B$251,0),0)) ->  | O89: =IF(OR(O$82="",$C89=""),"",HLOOKUP(O$82,'Emissions Database'!$BE$3:$BR$251,MATCH($C89,'Emissions Database'!$B$3:$B$251,0),0)) ->  | P89: =IF(OR(P$82="",$C89=""),"",HLOOKUP(P$82,'Emissions Database'!$BE$3:$BR$251,MATCH($C89,'Emissions Database'!$B$3:$B$251,0),0)) ->  | Q89: =IF(OR(Q$82="",$C89=""),"",HLOOKUP(Q$82,'Emissions Database'!$BE$3:$BR$251,MATCH($C89,'Emissions Database'!$B$3:$B$251,0),0)) ->  | R89: =IF(OR(R$82="",$C89=""),"",HLOOKUP(R$82,'Emissions Database'!$BE$3:$BR$251,MATCH($C89,'Emissions Database'!$B$3:$B$251,0),0)) ->  | S89: ="" ->  | T89: ="" ->  | U89: ="" ->  | V89: ="" ->  | W89: ="" ->  | X89: ="" ->  | Y89: ="" -> 
B90: 6 | C90: =IF(COUNTIF(Lists!$B$3:$B$22,B90)=0,"",VLOOKUP(B90,Lists!$B$3:$C$22,2,0)) ->  | D90: =IF($C90="","",SUMIF('Emissions Database'!$B$232:$B$251,$C90,'Emissions Database'!$BS$232:$BS$251)) ->  | E90: =IF(OR(E$82="",$C90=""),"",HLOOKUP(E$82,'Emissions Database'!$BE$3:$BR$251,MATCH($C90,'Emissions Database'!$B$3:$B$251,0),0)) ->  | F90: =IF(OR(F$82="",$C90=""),"",HLOOKUP(F$82,'Emissions Database'!$BE$3:$BR$251,MATCH($C90,'Emissions Database'!$B$3:$B$251,0),0)) ->  | G90: =IF(OR(G$82="",$C90=""),"",HLOOKUP(G$82,'Emissions Database'!$BE$3:$BR$251,MATCH($C90,'Emissions Database'!$B$3:$B$251,0),0)) ->  | H90: =IF(OR(H$82="",$C90=""),"",HLOOKUP(H$82,'Emissions Database'!$BE$3:$BR$251,MATCH($C90,'Emissions Database'!$B$3:$B$251,0),0)) ->  | I90: =IF(OR(I$82="",$C90=""),"",HLOOKUP(I$82,'Emissions Database'!$BE$3:$BR$251,MATCH($C90,'Emissions Database'!$B$3:$B$251,0),0)) ->  | J90: =IF(OR(J$82="",$C90=""),"",HLOOKUP(J$82,'Emissions Database'!$BE$3:$BR$251,MATCH($C90,'Emissions Database'!$B$3:$B$251,0),0)) ->  | K90: =IF(OR(K$82="",$C90=""),"",HLOOKUP(K$82,'Emissions Database'!$BE$3:$BR$251,MATCH($C90,'Emissions Database'!$B$3:$B$251,0),0)) ->  | L90: =IF(OR(L$82="",$C90=""),"",HLOOKUP(L$82,'Emissions Database'!$BE$3:$BR$251,MATCH($C90,'Emissions Database'!$B$3:$B$251,0),0)) ->  | M90: =IF(OR(M$82="",$C90=""),"",HLOOKUP(M$82,'Emissions Database'!$BE$3:$BR$251,MATCH($C90,'Emissions Database'!$B$3:$B$251,0),0)) ->  | N90: =IF(OR(N$82="",$C90=""),"",HLOOKUP(N$82,'Emissions Database'!$BE$3:$BR$251,MATCH($C90,'Emissions Database'!$B$3:$B$251,0),0)) ->  | O90: =IF(OR(O$82="",$C90=""),"",HLOOKUP(O$82,'Emissions Database'!$BE$3:$BR$251,MATCH($C90,'Emissions Database'!$B$3:$B$251,0),0)) ->  | P90: =IF(OR(P$82="",$C90=""),"",HLOOKUP(P$82,'Emissions Database'!$BE$3:$BR$251,MATCH($C90,'Emissions Database'!$B$3:$B$251,0),0)) ->  | Q90: =IF(OR(Q$82="",$C90=""),"",HLOOKUP(Q$82,'Emissions Database'!$BE$3:$BR$251,MATCH($C90,'Emissions Database'!$B$3:$B$251,0),0)) ->  | R90: =IF(OR(R$82="",$C90=""),"",HLOOKUP(R$82,'Emissions Database'!$BE$3:$BR$251,MATCH($C90,'Emissions Database'!$B$3:$B$251,0),0)) ->  | S90: ="" ->  | T90: ="" ->  | U90: ="" ->  | V90: ="" ->  | W90: ="" ->  | X90: ="" ->  | Y90: ="" -> 
B91: 7 | C91: =IF(COUNTIF(Lists!$B$3:$B$22,B91)=0,"",VLOOKUP(B91,Lists!$B$3:$C$22,2,0)) ->  | D91: =IF($C91="","",SUMIF('Emissions Database'!$B$232:$B$251,$C91,'Emissions Database'!$BS$232:$BS$251)) ->  | E91: =IF(OR(E$82="",$C91=""),"",HLOOKUP(E$82,'Emissions Database'!$BE$3:$BR$251,MATCH($C91,'Emissions Database'!$B$3:$B$251,0),0)) ->  | F91: =IF(OR(F$82="",$C91=""),"",HLOOKUP(F$82,'Emissions Database'!$BE$3:$BR$251,MATCH($C91,'Emissions Database'!$B$3:$B$251,0),0)) ->  | G91: =IF(OR(G$82="",$C91=""),"",HLOOKUP(G$82,'Emissions Database'!$BE$3:$BR$251,MATCH($C91,'Emissions Database'!$B$3:$B$251,0),0)) ->  | H91: =IF(OR(H$82="",$C91=""),"",HLOOKUP(H$82,'Emissions Database'!$BE$3:$BR$251,MATCH($C91,'Emissions Database'!$B$3:$B$251,0),0)) ->  | I91: =IF(OR(I$82="",$C91=""),"",HLOOKUP(I$82,'Emissions Database'!$BE$3:$BR$251,MATCH($C91,'Emissions Database'!$B$3:$B$251,0),0)) ->  | J91: =IF(OR(J$82="",$C91=""),"",HLOOKUP(J$82,'Emissions Database'!$BE$3:$BR$251,MATCH($C91,'Emissions Database'!$B$3:$B$251,0),0)) ->  | K91: =IF(OR(K$82="",$C91=""),"",HLOOKUP(K$82,'Emissions Database'!$BE$3:$BR$251,MATCH($C91,'Emissions Database'!$B$3:$B$251,0),0)) ->  | L91: =IF(OR(L$82="",$C91=""),"",HLOOKUP(L$82,'Emissions Database'!$BE$3:$BR$251,MATCH($C91,'Emissions Database'!$B$3:$B$251,0),0)) ->  | M91: =IF(OR(M$82="",$C91=""),"",HLOOKUP(M$82,'Emissions Database'!$BE$3:$BR$251,MATCH($C91,'Emissions Database'!$B$3:$B$251,0),0)) ->  | N91: =IF(OR(N$82="",$C91=""),"",HLOOKUP(N$82,'Emissions Database'!$BE$3:$BR$251,MATCH($C91,'Emissions Database'!$B$3:$B$251,0),0)) ->  | O91: =IF(OR(O$82="",$C91=""),"",HLOOKUP(O$82,'Emissions Database'!$BE$3:$BR$251,MATCH($C91,'Emissions Database'!$B$3:$B$251,0),0)) ->  | P91: =IF(OR(P$82="",$C91=""),"",HLOOKUP(P$82,'Emissions Database'!$BE$3:$BR$251,MATCH($C91,'Emissions Database'!$B$3:$B$251,0),0)) ->  | Q91: =IF(OR(Q$82="",$C91=""),"",HLOOKUP(Q$82,'Emissions Database'!$BE$3:$BR$251,MATCH($C91,'Emissions Database'!$B$3:$B$251,0),0)) ->  | R91: =IF(OR(R$82="",$C91=""),"",HLOOKUP(R$82,'Emissions Database'!$BE$3:$BR$251,MATCH($C91,'Emissions Database'!$B$3:$B$251,0),0)) ->  | S91: ="" ->  | T91: ="" ->  | U91: ="" ->  | V91: ="" ->  | W91: ="" ->  | X91: ="" ->  | Y91: ="" -> 
B92: 8 | C92: =IF(COUNTIF(Lists!$B$3:$B$22,B92)=0,"",VLOOKUP(B92,Lists!$B$3:$C$22,2,0)) ->  | D92: =IF($C92="","",SUMIF('Emissions Database'!$B$232:$B$251,$C92,'Emissions Database'!$BS$232:$BS$251)) ->  | E92: =IF(OR(E$82="",$C92=""),"",HLOOKUP(E$82,'Emissions Database'!$BE$3:$BR$251,MATCH($C92,'Emissions Database'!$B$3:$B$251,0),0)) ->  | F92: =IF(OR(F$82="",$C92=""),"",HLOOKUP(F$82,'Emissions Database'!$BE$3:$BR$251,MATCH($C92,'Emissions Database'!$B$3:$B$251,0),0)) ->  | G92: =IF(OR(G$82="",$C92=""),"",HLOOKUP(G$82,'Emissions Database'!$BE$3:$BR$251,MATCH($C92,'Emissions Database'!$B$3:$B$251,0),0)) ->  | H92: =IF(OR(H$82="",$C92=""),"",HLOOKUP(H$82,'Emissions Database'!$BE$3:$BR$251,MATCH($C92,'Emissions Database'!$B$3:$B$251,0),0)) ->  | I92: =IF(OR(I$82="",$C92=""),"",HLOOKUP(I$82,'Emissions Database'!$BE$3:$BR$251,MATCH($C92,'Emissions Database'!$B$3:$B$251,0),0)) ->  | J92: =IF(OR(J$82="",$C92=""),"",HLOOKUP(J$82,'Emissions Database'!$BE$3:$BR$251,MATCH($C92,'Emissions Database'!$B$3:$B$251,0),0)) ->  | K92: =IF(OR(K$82="",$C92=""),"",HLOOKUP(K$82,'Emissions Database'!$BE$3:$BR$251,MATCH($C92,'Emissions Database'!$B$3:$B$251,0),0)) ->  | L92: =IF(OR(L$82="",$C92=""),"",HLOOKUP(L$82,'Emissions Database'!$BE$3:$BR$251,MATCH($C92,'Emissions Database'!$B$3:$B$251,0),0)) ->  | M92: =IF(OR(M$82="",$C92=""),"",HLOOKUP(M$82,'Emissions Database'!$BE$3:$BR$251,MATCH($C92,'Emissions Database'!$B$3:$B$251,0),0)) ->  | N92: =IF(OR(N$82="",$C92=""),"",HLOOKUP(N$82,'Emissions Database'!$BE$3:$BR$251,MATCH($C92,'Emissions Database'!$B$3:$B$251,0),0)) ->  | O92: =IF(OR(O$82="",$C92=""),"",HLOOKUP(O$82,'Emissions Database'!$BE$3:$BR$251,MATCH($C92,'Emissions Database'!$B$3:$B$251,0),0)) ->  | P92: =IF(OR(P$82="",$C92=""),"",HLOOKUP(P$82,'Emissions Database'!$BE$3:$BR$251,MATCH($C92,'Emissions Database'!$B$3:$B$251,0),0)) ->  | Q92: =IF(OR(Q$82="",$C92=""),"",HLOOKUP(Q$82,'Emissions Database'!$BE$3:$BR$251,MATCH($C92,'Emissions Database'!$B$3:$B$251,0),0)) ->  | R92: =IF(OR(R$82="",$C92=""),"",HLOOKUP(R$82,'Emissions Database'!$BE$3:$BR$251,MATCH($C92,'Emissions Database'!$B$3:$B$251,0),0)) ->  | S92: ="" ->  | T92: ="" ->  | U92: ="" ->  | V92: ="" ->  | W92: ="" ->  | X92: ="" ->  | Y92: ="" -> 
B93: 9 | C93: =IF(COUNTIF(Lists!$B$3:$B$22,B93)=0,"",VLOOKUP(B93,Lists!$B$3:$C$22,2,0)) ->  | D93: =IF($C93="","",SUMIF('Emissions Database'!$B$232:$B$251,$C93,'Emissions Database'!$BS$232:$BS$251)) ->  | E93: =IF(OR(E$82="",$C93=""),"",HLOOKUP(E$82,'Emissions Database'!$BE$3:$BR$251,MATCH($C93,'Emissions Database'!$B$3:$B$251,0),0)) ->  | F93: =IF(OR(F$82="",$C93=""),"",HLOOKUP(F$82,'Emissions Database'!$BE$3:$BR$251,MATCH($C93,'Emissions Database'!$B$3:$B$251,0),0)) ->  | G93: =IF(OR(G$82="",$C93=""),"",HLOOKUP(G$82,'Emissions Database'!$BE$3:$BR$251,MATCH($C93,'Emissions Database'!$B$3:$B$251,0),0)) ->  | H93: =IF(OR(H$82="",$C93=""),"",HLOOKUP(H$82,'Emissions Database'!$BE$3:$BR$251,MATCH($C93,'Emissions Database'!$B$3:$B$251,0),0)) ->  | I93: =IF(OR(I$82="",$C93=""),"",HLOOKUP(I$82,'Emissions Database'!$BE$3:$BR$251,MATCH($C93,'Emissions Database'!$B$3:$B$251,0),0)) ->  | J93: =IF(OR(J$82="",$C93=""),"",HLOOKUP(J$82,'Emissions Database'!$BE$3:$BR$251,MATCH($C93,'Emissions Database'!$B$3:$B$251,0),0)) ->  | K93: =IF(OR(K$82="",$C93=""),"",HLOOKUP(K$82,'Emissions Database'!$BE$3:$BR$251,MATCH($C93,'Emissions Database'!$B$3:$B$251,0),0)) ->  | L93: =IF(OR(L$82="",$C93=""),"",HLOOKUP(L$82,'Emissions Database'!$BE$3:$BR$251,MATCH($C93,'Emissions Database'!$B$3:$B$251,0),0)) ->  | M93: =IF(OR(M$82="",$C93=""),"",HLOOKUP(M$82,'Emissions Database'!$BE$3:$BR$251,MATCH($C93,'Emissions Database'!$B$3:$B$251,0),0)) ->  | N93: =IF(OR(N$82="",$C93=""),"",HLOOKUP(N$82,'Emissions Database'!$BE$3:$BR$251,MATCH($C93,'Emissions Database'!$B$3:$B$251,0),0)) ->  | O93: =IF(OR(O$82="",$C93=""),"",HLOOKUP(O$82,'Emissions Database'!$BE$3:$BR$251,MATCH($C93,'Emissions Database'!$B$3:$B$251,0),0)) ->  | P93: =IF(OR(P$82="",$C93=""),"",HLOOKUP(P$82,'Emissions Database'!$BE$3:$BR$251,MATCH($C93,'Emissions Database'!$B$3:$B$251,0),0)) ->  | Q93: =IF(OR(Q$82="",$C93=""),"",HLOOKUP(Q$82,'Emissions Database'!$BE$3:$BR$251,MATCH($C93,'Emissions Database'!$B$3:$B$251,0),0)) ->  | R93: =IF(OR(R$82="",$C93=""),"",HLOOKUP(R$82,'Emissions Database'!$BE$3:$BR$251,MATCH($C93,'Emissions Database'!$B$3:$B$251,0),0)) ->  | S93: ="" ->  | T93: ="" ->  | U93: ="" ->  | V93: ="" ->  | W93: ="" ->  | X93: ="" ->  | Y93: ="" -> 
B94: 10 | C94: =IF(COUNTIF(Lists!$B$3:$B$22,B94)=0,"",VLOOKUP(B94,Lists!$B$3:$C$22,2,0)) ->  | D94: =IF($C94="","",SUMIF('Emissions Database'!$B$232:$B$251,$C94,'Emissions Database'!$BS$232:$BS$251)) ->  | E94: =IF(OR(E$82="",$C94=""),"",HLOOKUP(E$82,'Emissions Database'!$BE$3:$BR$251,MATCH($C94,'Emissions Database'!$B$3:$B$251,0),0)) ->  | F94: =IF(OR(F$82="",$C94=""),"",HLOOKUP(F$82,'Emissions Database'!$BE$3:$BR$251,MATCH($C94,'Emissions Database'!$B$3:$B$251,0),0)) ->  | G94: =IF(OR(G$82="",$C94=""),"",HLOOKUP(G$82,'Emissions Database'!$BE$3:$BR$251,MATCH($C94,'Emissions Database'!$B$3:$B$251,0),0)) ->  | H94: =IF(OR(H$82="",$C94=""),"",HLOOKUP(H$82,'Emissions Database'!$BE$3:$BR$251,MATCH($C94,'Emissions Database'!$B$3:$B$251,0),0)) ->  | I94: =IF(OR(I$82="",$C94=""),"",HLOOKUP(I$82,'Emissions Database'!$BE$3:$BR$251,MATCH($C94,'Emissions Database'!$B$3:$B$251,0),0)) ->  | J94: =IF(OR(J$82="",$C94=""),"",HLOOKUP(J$82,'Emissions Database'!$BE$3:$BR$251,MATCH($C94,'Emissions Database'!$B$3:$B$251,0),0)) ->  | K94: =IF(OR(K$82="",$C94=""),"",HLOOKUP(K$82,'Emissions Database'!$BE$3:$BR$251,MATCH($C94,'Emissions Database'!$B$3:$B$251,0),0)) ->  | L94: =IF(OR(L$82="",$C94=""),"",HLOOKUP(L$82,'Emissions Database'!$BE$3:$BR$251,MATCH($C94,'Emissions Database'!$B$3:$B$251,0),0)) ->  | M94: =IF(OR(M$82="",$C94=""),"",HLOOKUP(M$82,'Emissions Database'!$BE$3:$BR$251,MATCH($C94,'Emissions Database'!$B$3:$B$251,0),0)) ->  | N94: =IF(OR(N$82="",$C94=""),"",HLOOKUP(N$82,'Emissions Database'!$BE$3:$BR$251,MATCH($C94,'Emissions Database'!$B$3:$B$251,0),0)) ->  | O94: =IF(OR(O$82="",$C94=""),"",HLOOKUP(O$82,'Emissions Database'!$BE$3:$BR$251,MATCH($C94,'Emissions Database'!$B$3:$B$251,0),0)) ->  | P94: =IF(OR(P$82="",$C94=""),"",HLOOKUP(P$82,'Emissions Database'!$BE$3:$BR$251,MATCH($C94,'Emissions Database'!$B$3:$B$251,0),0)) ->  | Q94: =IF(OR(Q$82="",$C94=""),"",HLOOKUP(Q$82,'Emissions Database'!$BE$3:$BR$251,MATCH($C94,'Emissions Database'!$B$3:$B$251,0),0)) ->  | R94: =IF(OR(R$82="",$C94=""),"",HLOOKUP(R$82,'Emissions Database'!$BE$3:$BR$251,MATCH($C94,'Emissions Database'!$B$3:$B$251,0),0)) ->  | S94: ="" ->  | T94: ="" ->  | U94: ="" ->  | V94: ="" ->  | W94: ="" ->  | X94: ="" ->  | Y94: ="" -> 
B95: 11 | C95: =IF(COUNTIF(Lists!$B$3:$B$22,B95)=0,"",VLOOKUP(B95,Lists!$B$3:$C$22,2,0)) ->  | D95: =IF($C95="","",SUMIF('Emissions Database'!$B$232:$B$251,$C95,'Emissions Database'!$BS$232:$BS$251)) ->  | E95: =IF(OR(E$82="",$C95=""),"",HLOOKUP(E$82,'Emissions Database'!$BE$3:$BR$251,MATCH($C95,'Emissions Database'!$B$3:$B$251,0),0)) ->  | F95: =IF(OR(F$82="",$C95=""),"",HLOOKUP(F$82,'Emissions Database'!$BE$3:$BR$251,MATCH($C95,'Emissions Database'!$B$3:$B$251,0),0)) ->  | G95: =IF(OR(G$82="",$C95=""),"",HLOOKUP(G$82,'Emissions Database'!$BE$3:$BR$251,MATCH($C95,'Emissions Database'!$B$3:$B$251,0),0)) ->  | H95: =IF(OR(H$82="",$C95=""),"",HLOOKUP(H$82,'Emissions Database'!$BE$3:$BR$251,MATCH($C95,'Emissions Database'!$B$3:$B$251,0),0)) ->  | I95: =IF(OR(I$82="",$C95=""),"",HLOOKUP(I$82,'Emissions Database'!$BE$3:$BR$251,MATCH($C95,'Emissions Database'!$B$3:$B$251,0),0)) ->  | J95: =IF(OR(J$82="",$C95=""),"",HLOOKUP(J$82,'Emissions Database'!$BE$3:$BR$251,MATCH($C95,'Emissions Database'!$B$3:$B$251,0),0)) ->  | K95: =IF(OR(K$82="",$C95=""),"",HLOOKUP(K$82,'Emissions Database'!$BE$3:$BR$251,MATCH($C95,'Emissions Database'!$B$3:$B$251,0),0)) ->  | L95: =IF(OR(L$82="",$C95=""),"",HLOOKUP(L$82,'Emissions Database'!$BE$3:$BR$251,MATCH($C95,'Emissions Database'!$B$3:$B$251,0),0)) ->  | M95: =IF(OR(M$82="",$C95=""),"",HLOOKUP(M$82,'Emissions Database'!$BE$3:$BR$251,MATCH($C95,'Emissions Database'!$B$3:$B$251,0),0)) ->  | N95: =IF(OR(N$82="",$C95=""),"",HLOOKUP(N$82,'Emissions Database'!$BE$3:$BR$251,MATCH($C95,'Emissions Database'!$B$3:$B$251,0),0)) ->  | O95: =IF(OR(O$82="",$C95=""),"",HLOOKUP(O$82,'Emissions Database'!$BE$3:$BR$251,MATCH($C95,'Emissions Database'!$B$3:$B$251,0),0)) ->  | P95: =IF(OR(P$82="",$C95=""),"",HLOOKUP(P$82,'Emissions Database'!$BE$3:$BR$251,MATCH($C95,'Emissions Database'!$B$3:$B$251,0),0)) ->  | Q95: =IF(OR(Q$82="",$C95=""),"",HLOOKUP(Q$82,'Emissions Database'!$BE$3:$BR$251,MATCH($C95,'Emissions Database'!$B$3:$B$251,0),0)) ->  | R95: =IF(OR(R$82="",$C95=""),"",HLOOKUP(R$82,'Emissions Database'!$BE$3:$BR$251,MATCH($C95,'Emissions Database'!$B$3:$B$251,0),0)) ->  | S95: ="" ->  | T95: ="" ->  | U95: ="" ->  | V95: ="" ->  | W95: ="" ->  | X95: ="" ->  | Y95: ="" -> 
B96: 12 | C96: =IF(COUNTIF(Lists!$B$3:$B$22,B96)=0,"",VLOOKUP(B96,Lists!$B$3:$C$22,2,0)) ->  | D96: =IF($C96="","",SUMIF('Emissions Database'!$B$232:$B$251,$C96,'Emissions Database'!$BS$232:$BS$251)) ->  | E96: =IF(OR(E$82="",$C96=""),"",HLOOKUP(E$82,'Emissions Database'!$BE$3:$BR$251,MATCH($C96,'Emissions Database'!$B$3:$B$251,0),0)) ->  | F96: =IF(OR(F$82="",$C96=""),"",HLOOKUP(F$82,'Emissions Database'!$BE$3:$BR$251,MATCH($C96,'Emissions Database'!$B$3:$B$251,0),0)) ->  | G96: =IF(OR(G$82="",$C96=""),"",HLOOKUP(G$82,'Emissions Database'!$BE$3:$BR$251,MATCH($C96,'Emissions Database'!$B$3:$B$251,0),0)) ->  | H96: =IF(OR(H$82="",$C96=""),"",HLOOKUP(H$82,'Emissions Database'!$BE$3:$BR$251,MATCH($C96,'Emissions Database'!$B$3:$B$251,0),0)) ->  | I96: =IF(OR(I$82="",$C96=""),"",HLOOKUP(I$82,'Emissions Database'!$BE$3:$BR$251,MATCH($C96,'Emissions Database'!$B$3:$B$251,0),0)) ->  | J96: =IF(OR(J$82="",$C96=""),"",HLOOKUP(J$82,'Emissions Database'!$BE$3:$BR$251,MATCH($C96,'Emissions Database'!$B$3:$B$251,0),0)) ->  | K96: =IF(OR(K$82="",$C96=""),"",HLOOKUP(K$82,'Emissions Database'!$BE$3:$BR$251,MATCH($C96,'Emissions Database'!$B$3:$B$251,0),0)) ->  | L96: =IF(OR(L$82="",$C96=""),"",HLOOKUP(L$82,'Emissions Database'!$BE$3:$BR$251,MATCH($C96,'Emissions Database'!$B$3:$B$251,0),0)) ->  | M96: =IF(OR(M$82="",$C96=""),"",HLOOKUP(M$82,'Emissions Database'!$BE$3:$BR$251,MATCH($C96,'Emissions Database'!$B$3:$B$251,0),0)) ->  | N96: =IF(OR(N$82="",$C96=""),"",HLOOKUP(N$82,'Emissions Database'!$BE$3:$BR$251,MATCH($C96,'Emissions Database'!$B$3:$B$251,0),0)) ->  | O96: =IF(OR(O$82="",$C96=""),"",HLOOKUP(O$82,'Emissions Database'!$BE$3:$BR$251,MATCH($C96,'Emissions Database'!$B$3:$B$251,0),0)) ->  | P96: =IF(OR(P$82="",$C96=""),"",HLOOKUP(P$82,'Emissions Database'!$BE$3:$BR$251,MATCH($C96,'Emissions Database'!$B$3:$B$251,0),0)) ->  | Q96: =IF(OR(Q$82="",$C96=""),"",HLOOKUP(Q$82,'Emissions Database'!$BE$3:$BR$251,MATCH($C96,'Emissions Database'!$B$3:$B$251,0),0)) ->  | R96: =IF(OR(R$82="",$C96=""),"",HLOOKUP(R$82,'Emissions Database'!$BE$3:$BR$251,MATCH($C96,'Emissions Database'!$B$3:$B$251,0),0)) ->  | S96: ="" ->  | T96: ="" ->  | U96: ="" ->  | V96: ="" ->  | W96: ="" ->  | X96: ="" ->  | Y96: ="" -> 
B97: 13 | C97: =IF(COUNTIF(Lists!$B$3:$B$22,B97)=0,"",VLOOKUP(B97,Lists!$B$3:$C$22,2,0)) ->  | D97: =IF($C97="","",SUMIF('Emissions Database'!$B$232:$B$251,$C97,'Emissions Database'!$BS$232:$BS$251)) ->  | E97: =IF(OR(E$82="",$C97=""),"",HLOOKUP(E$82,'Emissions Database'!$BE$3:$BR$251,MATCH($C97,'Emissions Database'!$B$3:$B$251,0),0)) ->  | F97: =IF(OR(F$82="",$C97=""),"",HLOOKUP(F$82,'Emissions Database'!$BE$3:$BR$251,MATCH($C97,'Emissions Database'!$B$3:$B$251,0),0)) ->  | G97: =IF(OR(G$82="",$C97=""),"",HLOOKUP(G$82,'Emissions Database'!$BE$3:$BR$251,MATCH($C97,'Emissions Database'!$B$3:$B$251,0),0)) ->  | H97: =IF(OR(H$82="",$C97=""),"",HLOOKUP(H$82,'Emissions Database'!$BE$3:$BR$251,MATCH($C97,'Emissions Database'!$B$3:$B$251,0),0)) ->  | I97: =IF(OR(I$82="",$C97=""),"",HLOOKUP(I$82,'Emissions Database'!$BE$3:$BR$251,MATCH($C97,'Emissions Database'!$B$3:$B$251,0),0)) ->  | J97: =IF(OR(J$82="",$C97=""),"",HLOOKUP(J$82,'Emissions Database'!$BE$3:$BR$251,MATCH($C97,'Emissions Database'!$B$3:$B$251,0),0)) ->  | K97: =IF(OR(K$82="",$C97=""),"",HLOOKUP(K$82,'Emissions Database'!$BE$3:$BR$251,MATCH($C97,'Emissions Database'!$B$3:$B$251,0),0)) ->  | L97: =IF(OR(L$82="",$C97=""),"",HLOOKUP(L$82,'Emissions Database'!$BE$3:$BR$251,MATCH($C97,'Emissions Database'!$B$3:$B$251,0),0)) ->  | M97: =IF(OR(M$82="",$C97=""),"",HLOOKUP(M$82,'Emissions Database'!$BE$3:$BR$251,MATCH($C97,'Emissions Database'!$B$3:$B$251,0),0)) ->  | N97: =IF(OR(N$82="",$C97=""),"",HLOOKUP(N$82,'Emissions Database'!$BE$3:$BR$251,MATCH($C97,'Emissions Database'!$B$3:$B$251,0),0)) ->  | O97: =IF(OR(O$82="",$C97=""),"",HLOOKUP(O$82,'Emissions Database'!$BE$3:$BR$251,MATCH($C97,'Emissions Database'!$B$3:$B$251,0),0)) ->  | P97: =IF(OR(P$82="",$C97=""),"",HLOOKUP(P$82,'Emissions Database'!$BE$3:$BR$251,MATCH($C97,'Emissions Database'!$B$3:$B$251,0),0)) ->  | Q97: =IF(OR(Q$82="",$C97=""),"",HLOOKUP(Q$82,'Emissions Database'!$BE$3:$BR$251,MATCH($C97,'Emissions Database'!$B$3:$B$251,0),0)) ->  | R97: =IF(OR(R$82="",$C97=""),"",HLOOKUP(R$82,'Emissions Database'!$BE$3:$BR$251,MATCH($C97,'Emissions Database'!$B$3:$B$251,0),0)) ->  | S97: ="" ->  | T97: ="" ->  | U97: ="" ->  | V97: ="" ->  | W97: ="" ->  | X97: ="" ->  | Y97: ="" -> 
B98: 14 | C98: =IF(COUNTIF(Lists!$B$3:$B$22,B98)=0,"",VLOOKUP(B98,Lists!$B$3:$C$22,2,0)) ->  | D98: =IF($C98="","",SUMIF('Emissions Database'!$B$232:$B$251,$C98,'Emissions Database'!$BS$232:$BS$251)) ->  | E98: =IF(OR(E$82="",$C98=""),"",HLOOKUP(E$82,'Emissions Database'!$BE$3:$BR$251,MATCH($C98,'Emissions Database'!$B$3:$B$251,0),0)) ->  | F98: =IF(OR(F$82="",$C98=""),"",HLOOKUP(F$82,'Emissions Database'!$BE$3:$BR$251,MATCH($C98,'Emissions Database'!$B$3:$B$251,0),0)) ->  | G98: =IF(OR(G$82="",$C98=""),"",HLOOKUP(G$82,'Emissions Database'!$BE$3:$BR$251,MATCH($C98,'Emissions Database'!$B$3:$B$251,0),0)) ->  | H98: =IF(OR(H$82="",$C98=""),"",HLOOKUP(H$82,'Emissions Database'!$BE$3:$BR$251,MATCH($C98,'Emissions Database'!$B$3:$B$251,0),0)) ->  | I98: =IF(OR(I$82="",$C98=""),"",HLOOKUP(I$82,'Emissions Database'!$BE$3:$BR$251,MATCH($C98,'Emissions Database'!$B$3:$B$251,0),0)) ->  | J98: =IF(OR(J$82="",$C98=""),"",HLOOKUP(J$82,'Emissions Database'!$BE$3:$BR$251,MATCH($C98,'Emissions Database'!$B$3:$B$251,0),0)) ->  | K98: =IF(OR(K$82="",$C98=""),"",HLOOKUP(K$82,'Emissions Database'!$BE$3:$BR$251,MATCH($C98,'Emissions Database'!$B$3:$B$251,0),0)) ->  | L98: =IF(OR(L$82="",$C98=""),"",HLOOKUP(L$82,'Emissions Database'!$BE$3:$BR$251,MATCH($C98,'Emissions Database'!$B$3:$B$251,0),0)) ->  | M98: =IF(OR(M$82="",$C98=""),"",HLOOKUP(M$82,'Emissions Database'!$BE$3:$BR$251,MATCH($C98,'Emissions Database'!$B$3:$B$251,0),0)) ->  | N98: =IF(OR(N$82="",$C98=""),"",HLOOKUP(N$82,'Emissions Database'!$BE$3:$BR$251,MATCH($C98,'Emissions Database'!$B$3:$B$251,0),0)) ->  | O98: =IF(OR(O$82="",$C98=""),"",HLOOKUP(O$82,'Emissions Database'!$BE$3:$BR$251,MATCH($C98,'Emissions Database'!$B$3:$B$251,0),0)) ->  | P98: =IF(OR(P$82="",$C98=""),"",HLOOKUP(P$82,'Emissions Database'!$BE$3:$BR$251,MATCH($C98,'Emissions Database'!$B$3:$B$251,0),0)) ->  | Q98: =IF(OR(Q$82="",$C98=""),"",HLOOKUP(Q$82,'Emissions Database'!$BE$3:$BR$251,MATCH($C98,'Emissions Database'!$B$3:$B$251,0),0)) ->  | R98: =IF(OR(R$82="",$C98=""),"",HLOOKUP(R$82,'Emissions Database'!$BE$3:$BR$251,MATCH($C98,'Emissions Database'!$B$3:$B$251,0),0)) ->  | S98: ="" ->  | T98: ="" ->  | U98: ="" ->  | V98: ="" ->  | W98: ="" ->  | X98: ="" ->  | Y98: ="" -> 
B99: 15 | C99: =IF(COUNTIF(Lists!$B$3:$B$22,B99)=0,"",VLOOKUP(B99,Lists!$B$3:$C$22,2,0)) ->  | D99: =IF($C99="","",SUMIF('Emissions Database'!$B$232:$B$251,$C99,'Emissions Database'!$BS$232:$BS$251)) ->  | E99: =IF(OR(E$82="",$C99=""),"",HLOOKUP(E$82,'Emissions Database'!$BE$3:$BR$251,MATCH($C99,'Emissions Database'!$B$3:$B$251,0),0)) ->  | F99: =IF(OR(F$82="",$C99=""),"",HLOOKUP(F$82,'Emissions Database'!$BE$3:$BR$251,MATCH($C99,'Emissions Database'!$B$3:$B$251,0),0)) ->  | G99: =IF(OR(G$82="",$C99=""),"",HLOOKUP(G$82,'Emissions Database'!$BE$3:$BR$251,MATCH($C99,'Emissions Database'!$B$3:$B$251,0),0)) ->  | H99: =IF(OR(H$82="",$C99=""),"",HLOOKUP(H$82,'Emissions Database'!$BE$3:$BR$251,MATCH($C99,'Emissions Database'!$B$3:$B$251,0),0)) ->  | I99: =IF(OR(I$82="",$C99=""),"",HLOOKUP(I$82,'Emissions Database'!$BE$3:$BR$251,MATCH($C99,'Emissions Database'!$B$3:$B$251,0),0)) ->  | J99: =IF(OR(J$82="",$C99=""),"",HLOOKUP(J$82,'Emissions Database'!$BE$3:$BR$251,MATCH($C99,'Emissions Database'!$B$3:$B$251,0),0)) ->  | K99: =IF(OR(K$82="",$C99=""),"",HLOOKUP(K$82,'Emissions Database'!$BE$3:$BR$251,MATCH($C99,'Emissions Database'!$B$3:$B$251,0),0)) ->  | L99: =IF(OR(L$82="",$C99=""),"",HLOOKUP(L$82,'Emissions Database'!$BE$3:$BR$251,MATCH($C99,'Emissions Database'!$B$3:$B$251,0),0)) ->  | M99: =IF(OR(M$82="",$C99=""),"",HLOOKUP(M$82,'Emissions Database'!$BE$3:$BR$251,MATCH($C99,'Emissions Database'!$B$3:$B$251,0),0)) ->  | N99: =IF(OR(N$82="",$C99=""),"",HLOOKUP(N$82,'Emissions Database'!$BE$3:$BR$251,MATCH($C99,'Emissions Database'!$B$3:$B$251,0),0)) ->  | O99: =IF(OR(O$82="",$C99=""),"",HLOOKUP(O$82,'Emissions Database'!$BE$3:$BR$251,MATCH($C99,'Emissions Database'!$B$3:$B$251,0),0)) ->  | P99: =IF(OR(P$82="",$C99=""),"",HLOOKUP(P$82,'Emissions Database'!$BE$3:$BR$251,MATCH($C99,'Emissions Database'!$B$3:$B$251,0),0)) ->  | Q99: =IF(OR(Q$82="",$C99=""),"",HLOOKUP(Q$82,'Emissions Database'!$BE$3:$BR$251,MATCH($C99,'Emissions Database'!$B$3:$B$251,0),0)) ->  | R99: =IF(OR(R$82="",$C99=""),"",HLOOKUP(R$82,'Emissions Database'!$BE$3:$BR$251,MATCH($C99,'Emissions Database'!$B$3:$B$251,0),0)) ->  | S99: ="" ->  | T99: ="" ->  | U99: ="" ->  | V99: ="" ->  | W99: ="" ->  | X99: ="" ->  | Y99: ="" -> 
B100: 16 | C100: =IF(COUNTIF(Lists!$B$3:$B$22,B100)=0,"",VLOOKUP(B100,Lists!$B$3:$C$22,2,0)) ->  | D100: =IF($C100="","",SUMIF('Emissions Database'!$B$232:$B$251,$C100,'Emissions Database'!$BS$232:$BS$251)) ->  | E100: =IF(OR(E$82="",$C100=""),"",HLOOKUP(E$82,'Emissions Database'!$BE$3:$BR$251,MATCH($C100,'Emissions Database'!$B$3:$B$251,0),0)) ->  | F100: =IF(OR(F$82="",$C100=""),"",HLOOKUP(F$82,'Emissions Database'!$BE$3:$BR$251,MATCH($C100,'Emissions Database'!$B$3:$B$251,0),0)) ->  | G100: =IF(OR(G$82="",$C100=""),"",HLOOKUP(G$82,'Emissions Database'!$BE$3:$BR$251,MATCH($C100,'Emissions Database'!$B$3:$B$251,0),0)) ->  | H100: =IF(OR(H$82="",$C100=""),"",HLOOKUP(H$82,'Emissions Database'!$BE$3:$BR$251,MATCH($C100,'Emissions Database'!$B$3:$B$251,0),0)) ->  | I100: =IF(OR(I$82="",$C100=""),"",HLOOKUP(I$82,'Emissions Database'!$BE$3:$BR$251,MATCH($C100,'Emissions Database'!$B$3:$B$251,0),0)) ->  | J100: =IF(OR(J$82="",$C100=""),"",HLOOKUP(J$82,'Emissions Database'!$BE$3:$BR$251,MATCH($C100,'Emissions Database'!$B$3:$B$251,0),0)) ->  | K100: =IF(OR(K$82="",$C100=""),"",HLOOKUP(K$82,'Emissions Database'!$BE$3:$BR$251,MATCH($C100,'Emissions Database'!$B$3:$B$251,0),0)) ->  | L100: =IF(OR(L$82="",$C100=""),"",HLOOKUP(L$82,'Emissions Database'!$BE$3:$BR$251,MATCH($C100,'Emissions Database'!$B$3:$B$251,0),0)) ->  | M100: =IF(OR(M$82="",$C100=""),"",HLOOKUP(M$82,'Emissions Database'!$BE$3:$BR$251,MATCH($C100,'Emissions Database'!$B$3:$B$251,0),0)) ->  | N100: =IF(OR(N$82="",$C100=""),"",HLOOKUP(N$82,'Emissions Database'!$BE$3:$BR$251,MATCH($C100,'Emissions Database'!$B$3:$B$251,0),0)) ->  | O100: =IF(OR(O$82="",$C100=""),"",HLOOKUP(O$82,'Emissions Database'!$BE$3:$BR$251,MATCH($C100,'Emissions Database'!$B$3:$B$251,0),0)) ->  | P100: =IF(OR(P$82="",$C100=""),"",HLOOKUP(P$82,'Emissions Database'!$BE$3:$BR$251,MATCH($C100,'Emissions Database'!$B$3:$B$251,0),0)) ->  | Q100: =IF(OR(Q$82="",$C100=""),"",HLOOKUP(Q$82,'Emissions Database'!$BE$3:$BR$251,MATCH($C100,'Emissions Database'!$B$3:$B$251,0),0)) ->  | R100: =IF(OR(R$82="",$C100=""),"",HLOOKUP(R$82,'Emissions Database'!$BE$3:$BR$251,MATCH($C100,'Emissions Database'!$B$3:$B$251,0),0)) ->  | S100: ="" ->  | T100: ="" ->  | U100: ="" ->  | V100: ="" ->  | W100: ="" ->  | X100: ="" ->  | Y100: ="" -> 
B101: 17 | C101: =IF(COUNTIF(Lists!$B$3:$B$22,B101)=0,"",VLOOKUP(B101,Lists!$B$3:$C$22,2,0)) ->  | D101: =IF($C101="","",SUMIF('Emissions Database'!$B$232:$B$251,$C101,'Emissions Database'!$BS$232:$BS$251)) ->  | E101: =IF(OR(E$82="",$C101=""),"",HLOOKUP(E$82,'Emissions Database'!$BE$3:$BR$251,MATCH($C101,'Emissions Database'!$B$3:$B$251,0),0)) ->  | F101: =IF(OR(F$82="",$C101=""),"",HLOOKUP(F$82,'Emissions Database'!$BE$3:$BR$251,MATCH($C101,'Emissions Database'!$B$3:$B$251,0),0)) ->  | G101: =IF(OR(G$82="",$C101=""),"",HLOOKUP(G$82,'Emissions Database'!$BE$3:$BR$251,MATCH($C101,'Emissions Database'!$B$3:$B$251,0),0)) ->  | H101: =IF(OR(H$82="",$C101=""),"",HLOOKUP(H$82,'Emissions Database'!$BE$3:$BR$251,MATCH($C101,'Emissions Database'!$B$3:$B$251,0),0)) ->  | I101: =IF(OR(I$82="",$C101=""),"",HLOOKUP(I$82,'Emissions Database'!$BE$3:$BR$251,MATCH($C101,'Emissions Database'!$B$3:$B$251,0),0)) ->  | J101: =IF(OR(J$82="",$C101=""),"",HLOOKUP(J$82,'Emissions Database'!$BE$3:$BR$251,MATCH($C101,'Emissions Database'!$B$3:$B$251,0),0)) ->  | K101: =IF(OR(K$82="",$C101=""),"",HLOOKUP(K$82,'Emissions Database'!$BE$3:$BR$251,MATCH($C101,'Emissions Database'!$B$3:$B$251,0),0)) ->  | L101: =IF(OR(L$82="",$C101=""),"",HLOOKUP(L$82,'Emissions Database'!$BE$3:$BR$251,MATCH($C101,'Emissions Database'!$B$3:$B$251,0),0)) ->  | M101: =IF(OR(M$82="",$C101=""),"",HLOOKUP(M$82,'Emissions Database'!$BE$3:$BR$251,MATCH($C101,'Emissions Database'!$B$3:$B$251,0),0)) ->  | N101: =IF(OR(N$82="",$C101=""),"",HLOOKUP(N$82,'Emissions Database'!$BE$3:$BR$251,MATCH($C101,'Emissions Database'!$B$3:$B$251,0),0)) ->  | O101: =IF(OR(O$82="",$C101=""),"",HLOOKUP(O$82,'Emissions Database'!$BE$3:$BR$251,MATCH($C101,'Emissions Database'!$B$3:$B$251,0),0)) ->  | P101: =IF(OR(P$82="",$C101=""),"",HLOOKUP(P$82,'Emissions Database'!$BE$3:$BR$251,MATCH($C101,'Emissions Database'!$B$3:$B$251,0),0)) ->  | Q101: =IF(OR(Q$82="",$C101=""),"",HLOOKUP(Q$82,'Emissions Database'!$BE$3:$BR$251,MATCH($C101,'Emissions Database'!$B$3:$B$251,0),0)) ->  | R101: =IF(OR(R$82="",$C101=""),"",HLOOKUP(R$82,'Emissions Database'!$BE$3:$BR$251,MATCH($C101,'Emissions Database'!$B$3:$B$251,0),0)) ->  | S101: ="" ->  | T101: ="" ->  | U101: ="" ->  | V101: ="" ->  | W101: ="" ->  | X101: ="" ->  | Y101: ="" -> 
C104: GHG Emissions by Location (MT CO2-e)
C105: Federal building type | D105: Total | E105: =IF(Inputs!$D$15=0,"",Inputs!$D$15) -> Agency (unspecified) | F105: =IF(Inputs!$D$16=0,"",Inputs!$D$16) ->  | G105: =IF(Inputs!$D$17=0,"",Inputs!$D$17) ->  | H105: =IF(Inputs!$D$18=0,"",Inputs!$D$18) ->  | I105: =IF(Inputs!$D$19=0,"",Inputs!$D$19) ->  | J105: =IF(Inputs!$D$20=0,"",Inputs!$D$20) ->  | K105: =IF(Inputs!$D$21=0,"",Inputs!$D$21) ->  | L105: =IF(Inputs!$D$22=0,"",Inputs!$D$22) ->  | M105: =IF(Inputs!$D$23=0,"",Inputs!$D$23) ->  | N105: =IF(Inputs!$D$24=0,"",Inputs!$D$24) ->  | O105: =IF(Inputs!$D$25=0,"",Inputs!$D$25) ->  | P105: =IF(Inputs!$D$26=0,"",Inputs!$D$26) ->  | Q105: =IF(Inputs!$D$27=0,"",Inputs!$D$27) ->  | R105: =IF(Inputs!$D$28=0,"",Inputs!$D$28) ->  | S105: =IF(Inputs!$D$29=0,"",Inputs!$D$29) ->  | T105: =IF(Inputs!$D$30=0,"",Inputs!$D$30) ->  | U105: =IF(Inputs!$D$31=0,"",Inputs!$D$31) ->  | V105: =IF(Inputs!$D$32=0,"",Inputs!$D$32) ->  | W105: =IF(Inputs!$D$33=0,"",Inputs!$D$33) ->  | X105: =IF(Inputs!$D$34=0,"",Inputs!$D$34) ->  | Y105: =IF(Inputs!$D$35=0,"",Inputs!$D$35) -> 
C106: Total | D106: ='Emissions Database'!$BS$204 -> 0 | E106: =IF(E$105="","",SUMIF('Emissions Database'!$CU$3:$DO$3,E$105,'Emissions Database'!$CU$204:$DO$204)) -> 0 | F106: =IF(F$105="","",SUMIF('Emissions Database'!$CU$3:$DO$3,F$105,'Emissions Database'!$CU$204:$DO$204)) ->  | G106: =IF(G$105="","",SUMIF('Emissions Database'!$CU$3:$DO$3,G$105,'Emissions Database'!$CU$204:$DO$204)) ->  | H106: =IF(H$105="","",SUMIF('Emissions Database'!$CU$3:$DO$3,H$105,'Emissions Database'!$CU$204:$DO$204)) ->  | I106: =IF(I$105="","",SUMIF('Emissions Database'!$CU$3:$DO$3,I$105,'Emissions Database'!$CU$204:$DO$204)) ->  | J106: =IF(J$105="","",SUMIF('Emissions Database'!$CU$3:$DO$3,J$105,'Emissions Database'!$CU$204:$DO$204)) ->  | K106: =IF(K$105="","",SUMIF('Emissions Database'!$CU$3:$DO$3,K$105,'Emissions Database'!$CU$204:$DO$204)) ->  | L106: =IF(L$105="","",SUMIF('Emissions Database'!$CU$3:$DO$3,L$105,'Emissions Database'!$CU$204:$DO$204)) ->  | M106: =IF(M$105="","",SUMIF('Emissions Database'!$CU$3:$DO$3,M$105,'Emissions Database'!$CU$204:$DO$204)) ->  | N106: =IF(N$105="","",SUMIF('Emissions Database'!$CU$3:$DO$3,N$105,'Emissions Database'!$CU$204:$DO$204)) ->  | O106: =IF(O$105="","",SUMIF('Emissions Database'!$CU$3:$DO$3,O$105,'Emissions Database'!$CU$204:$DO$204)) ->  | P106: =IF(P$105="","",SUMIF('Emissions Database'!$CU$3:$DO$3,P$105,'Emissions Database'!$CU$204:$DO$204)) ->  | Q106: =IF(Q$105="","",SUMIF('Emissions Database'!$CU$3:$DO$3,Q$105,'Emissions Database'!$CU$204:$DO$204)) ->  | R106: =IF(R$105="","",SUMIF('Emissions Database'!$CU$3:$DO$3,R$105,'Emissions Database'!$CU$204:$DO$204)) ->  | S106: =IF(S$105="","",SUMIF('Emissions Database'!$CU$3:$DO$3,S$105,'Emissions Database'!$CU$204:$DO$204)) ->  | T106: =IF(T$105="","",SUMIF('Emissions Database'!$CU$3:$DO$3,T$105,'Emissions Database'!$CU$204:$DO$204)) ->  | U106: =IF(U$105="","",SUMIF('Emissions Database'!$CU$3:$DO$3,U$105,'Emissions Database'!$CU$204:$DO$204)) ->  | V106: =IF(V$105="","",SUMIF('Emissions Database'!$CU$3:$DO$3,V$105,'Emissions Database'!$CU$204:$DO$204)) ->  | W106: =IF(W$105="","",SUMIF('Emissions Database'!$CU$3:$DO$3,W$105,'Emissions Database'!$CU$204:$DO$204)) ->  | X106: =IF(X$105="","",SUMIF('Emissions Database'!$CU$3:$DO$3,X$105,'Emissions Database'!$CU$204:$DO$204)) ->  | Y106: =IF(Y$105="","",SUMIF('Emissions Database'!$CU$3:$DO$3,Y$105,'Emissions Database'!$CU$204:$DO$204)) -> 
C107: Non-Specified | D107: =D106-SUM(D108:D124) -> 0 | E107: =IF(E105="","",E106-SUM(E108:E124)) -> 0 | F107: =IF(F105="","",F106-SUM(F108:F124)) -> 
B108: 1 | C108: =IF(COUNTIF(Lists!$B$3:$B$22,B108)=0,"",VLOOKUP(B108,Lists!$B$3:$C$22,2,0)) ->  | D108: =IF($C108="","",SUMIF('Emissions Database'!$B$232:$B$251,$C108,'Emissions Database'!$BS$232:$BS$251)) ->  | E108: =IF(OR(E$105="",$C108=""),"",HLOOKUP(E$105,'Emissions Database'!$CU$3:$DO$251,MATCH($C108,'Emissions Database'!$B$3:$B$251,0),0)) ->  | F108: =IF(OR(F$105="",$C108=""),"",HLOOKUP(F$105,'Emissions Database'!$CU$3:$DO$251,MATCH($C108,'Emissions Database'!$B$3:$B$251,0),0)) ->  | G108: =IF(OR(G$105="",$C108=""),"",HLOOKUP(G$105,'Emissions Database'!$CU$3:$DO$251,MATCH($C108,'Emissions Database'!$B$3:$B$251,0),0)) ->  | H108: =IF(OR(H$105="",$C108=""),"",HLOOKUP(H$105,'Emissions Database'!$CU$3:$DO$251,MATCH($C108,'Emissions Database'!$B$3:$B$251,0),0)) ->  | I108: =IF(OR(I$105="",$C108=""),"",HLOOKUP(I$105,'Emissions Database'!$CU$3:$DO$251,MATCH($C108,'Emissions Database'!$B$3:$B$251,0),0)) ->  | J108: =IF(OR(J$105="",$C108=""),"",HLOOKUP(J$105,'Emissions Database'!$CU$3:$DO$251,MATCH($C108,'Emissions Database'!$B$3:$B$251,0),0)) ->  | K108: =IF(OR(K$105="",$C108=""),"",HLOOKUP(K$105,'Emissions Database'!$CU$3:$DO$251,MATCH($C108,'Emissions Database'!$B$3:$B$251,0),0)) ->  | L108: =IF(OR(L$105="",$C108=""),"",HLOOKUP(L$105,'Emissions Database'!$CU$3:$DO$251,MATCH($C108,'Emissions Database'!$B$3:$B$251,0),0)) ->  | M108: =IF(OR(M$105="",$C108=""),"",HLOOKUP(M$105,'Emissions Database'!$CU$3:$DO$251,MATCH($C108,'Emissions Database'!$B$3:$B$251,0),0)) ->  | N108: =IF(OR(N$105="",$C108=""),"",HLOOKUP(N$105,'Emissions Database'!$CU$3:$DO$251,MATCH($C108,'Emissions Database'!$B$3:$B$251,0),0)) ->  | O108: =IF(OR(O$105="",$C108=""),"",HLOOKUP(O$105,'Emissions Database'!$CU$3:$DO$251,MATCH($C108,'Emissions Database'!$B$3:$B$251,0),0)) ->  | P108: =IF(OR(P$105="",$C108=""),"",HLOOKUP(P$105,'Emissions Database'!$CU$3:$DO$251,MATCH($C108,'Emissions Database'!$B$3:$B$251,0),0)) ->  | Q108: =IF(OR(Q$105="",$C108=""),"",HLOOKUP(Q$105,'Emissions Database'!$CU$3:$DO$251,MATCH($C108,'Emissions Database'!$B$3:$B$251,0),0)) ->  | R108: =IF(OR(R$105="",$C108=""),"",HLOOKUP(R$105,'Emissions Database'!$CU$3:$DO$251,MATCH($C108,'Emissions Database'!$B$3:$B$251,0),0)) ->  | S108: =IF(OR(S$105="",$C108=""),"",HLOOKUP(S$105,'Emissions Database'!$CU$3:$DO$251,MATCH($C108,'Emissions Database'!$B$3:$B$251,0),0)) ->  | T108: =IF(OR(T$105="",$C108=""),"",HLOOKUP(T$105,'Emissions Database'!$CU$3:$DO$251,MATCH($C108,'Emissions Database'!$B$3:$B$251,0),0)) ->  | U108: =IF(OR(U$105="",$C108=""),"",HLOOKUP(U$105,'Emissions Database'!$CU$3:$DO$251,MATCH($C108,'Emissions Database'!$B$3:$B$251,0),0)) ->  | V108: =IF(OR(V$105="",$C108=""),"",HLOOKUP(V$105,'Emissions Database'!$CU$3:$DO$251,MATCH($C108,'Emissions Database'!$B$3:$B$251,0),0)) ->  | W108: =IF(OR(W$105="",$C108=""),"",HLOOKUP(W$105,'Emissions Database'!$CU$3:$DO$251,MATCH($C108,'Emissions Database'!$B$3:$B$251,0),0)) ->  | X108: =IF(OR(X$105="",$C108=""),"",HLOOKUP(X$105,'Emissions Database'!$CU$3:$DO$251,MATCH($C108,'Emissions Database'!$B$3:$B$251,0),0)) ->  | Y108: =IF(OR(Y$105="",$C108=""),"",HLOOKUP(Y$105,'Emissions Database'!$CU$3:$DO$251,MATCH($C108,'Emissions Database'!$B$3:$B$251,0),0)) -> 
B109: 2 | C109: =IF(COUNTIF(Lists!$B$3:$B$22,B109)=0,"",VLOOKUP(B109,Lists!$B$3:$C$22,2,0)) ->  | D109: =IF($C109="","",SUMIF('Emissions Database'!$B$232:$B$251,$C109,'Emissions Database'!$BS$232:$BS$251)) ->  | E109: =IF(OR(E$105="",$C109=""),"",HLOOKUP(E$105,'Emissions Database'!$CU$3:$DO$251,MATCH($C109,'Emissions Database'!$B$3:$B$251,0),0)) ->  | F109: =IF(OR(F$105="",$C109=""),"",HLOOKUP(F$105,'Emissions Database'!$CU$3:$DO$251,MATCH($C109,'Emissions Database'!$B$3:$B$251,0),0)) ->  | G109: =IF(OR(G$105="",$C109=""),"",HLOOKUP(G$105,'Emissions Database'!$CU$3:$DO$251,MATCH($C109,'Emissions Database'!$B$3:$B$251,0),0)) ->  | H109: =IF(OR(H$105="",$C109=""),"",HLOOKUP(H$105,'Emissions Database'!$CU$3:$DO$251,MATCH($C109,'Emissions Database'!$B$3:$B$251,0),0)) ->  | I109: =IF(OR(I$105="",$C109=""),"",HLOOKUP(I$105,'Emissions Database'!$CU$3:$DO$251,MATCH($C109,'Emissions Database'!$B$3:$B$251,0),0)) ->  | J109: =IF(OR(J$105="",$C109=""),"",HLOOKUP(J$105,'Emissions Database'!$CU$3:$DO$251,MATCH($C109,'Emissions Database'!$B$3:$B$251,0),0)) ->  | K109: =IF(OR(K$105="",$C109=""),"",HLOOKUP(K$105,'Emissions Database'!$CU$3:$DO$251,MATCH($C109,'Emissions Database'!$B$3:$B$251,0),0)) ->  | L109: =IF(OR(L$105="",$C109=""),"",HLOOKUP(L$105,'Emissions Database'!$CU$3:$DO$251,MATCH($C109,'Emissions Database'!$B$3:$B$251,0),0)) ->  | M109: =IF(OR(M$105="",$C109=""),"",HLOOKUP(M$105,'Emissions Database'!$CU$3:$DO$251,MATCH($C109,'Emissions Database'!$B$3:$B$251,0),0)) ->  | N109: =IF(OR(N$105="",$C109=""),"",HLOOKUP(N$105,'Emissions Database'!$CU$3:$DO$251,MATCH($C109,'Emissions Database'!$B$3:$B$251,0),0)) ->  | O109: =IF(OR(O$105="",$C109=""),"",HLOOKUP(O$105,'Emissions Database'!$CU$3:$DO$251,MATCH($C109,'Emissions Database'!$B$3:$B$251,0),0)) ->  | P109: =IF(OR(P$105="",$C109=""),"",HLOOKUP(P$105,'Emissions Database'!$CU$3:$DO$251,MATCH($C109,'Emissions Database'!$B$3:$B$251,0),0)) ->  | Q109: =IF(OR(Q$105="",$C109=""),"",HLOOKUP(Q$105,'Emissions Database'!$CU$3:$DO$251,MATCH($C109,'Emissions Database'!$B$3:$B$251,0),0)) ->  | R109: =IF(OR(R$105="",$C109=""),"",HLOOKUP(R$105,'Emissions Database'!$CU$3:$DO$251,MATCH($C109,'Emissions Database'!$B$3:$B$251,0),0)) ->  | S109: =IF(OR(S$105="",$C109=""),"",HLOOKUP(S$105,'Emissions Database'!$CU$3:$DO$251,MATCH($C109,'Emissions Database'!$B$3:$B$251,0),0)) ->  | T109: =IF(OR(T$105="",$C109=""),"",HLOOKUP(T$105,'Emissions Database'!$CU$3:$DO$251,MATCH($C109,'Emissions Database'!$B$3:$B$251,0),0)) ->  | U109: =IF(OR(U$105="",$C109=""),"",HLOOKUP(U$105,'Emissions Database'!$CU$3:$DO$251,MATCH($C109,'Emissions Database'!$B$3:$B$251,0),0)) ->  | V109: =IF(OR(V$105="",$C109=""),"",HLOOKUP(V$105,'Emissions Database'!$CU$3:$DO$251,MATCH($C109,'Emissions Database'!$B$3:$B$251,0),0)) ->  | W109: =IF(OR(W$105="",$C109=""),"",HLOOKUP(W$105,'Emissions Database'!$CU$3:$DO$251,MATCH($C109,'Emissions Database'!$B$3:$B$251,0),0)) ->  | X109: =IF(OR(X$105="",$C109=""),"",HLOOKUP(X$105,'Emissions Database'!$CU$3:$DO$251,MATCH($C109,'Emissions Database'!$B$3:$B$251,0),0)) ->  | Y109: =IF(OR(Y$105="",$C109=""),"",HLOOKUP(Y$105,'Emissions Database'!$CU$3:$DO$251,MATCH($C109,'Emissions Database'!$B$3:$B$251,0),0)) -> 
B110: 3 | C110: =IF(COUNTIF(Lists!$B$3:$B$22,B110)=0,"",VLOOKUP(B110,Lists!$B$3:$C$22,2,0)) ->  | D110: =IF($C110="","",SUMIF('Emissions Database'!$B$232:$B$251,$C110,'Emissions Database'!$BS$232:$BS$251)) ->  | E110: =IF(OR(E$105="",$C110=""),"",HLOOKUP(E$105,'Emissions Database'!$CU$3:$DO$251,MATCH($C110,'Emissions Database'!$B$3:$B$251,0),0)) ->  | F110: =IF(OR(F$105="",$C110=""),"",HLOOKUP(F$105,'Emissions Database'!$CU$3:$DO$251,MATCH($C110,'Emissions Database'!$B$3:$B$251,0),0)) ->  | G110: =IF(OR(G$105="",$C110=""),"",HLOOKUP(G$105,'Emissions Database'!$CU$3:$DO$251,MATCH($C110,'Emissions Database'!$B$3:$B$251,0),0)) ->  | H110: =IF(OR(H$105="",$C110=""),"",HLOOKUP(H$105,'Emissions Database'!$CU$3:$DO$251,MATCH($C110,'Emissions Database'!$B$3:$B$251,0),0)) ->  | I110: =IF(OR(I$105="",$C110=""),"",HLOOKUP(I$105,'Emissions Database'!$CU$3:$DO$251,MATCH($C110,'Emissions Database'!$B$3:$B$251,0),0)) ->  | J110: =IF(OR(J$105="",$C110=""),"",HLOOKUP(J$105,'Emissions Database'!$CU$3:$DO$251,MATCH($C110,'Emissions Database'!$B$3:$B$251,0),0)) ->  | K110: =IF(OR(K$105="",$C110=""),"",HLOOKUP(K$105,'Emissions Database'!$CU$3:$DO$251,MATCH($C110,'Emissions Database'!$B$3:$B$251,0),0)) ->  | L110: =IF(OR(L$105="",$C110=""),"",HLOOKUP(L$105,'Emissions Database'!$CU$3:$DO$251,MATCH($C110,'Emissions Database'!$B$3:$B$251,0),0)) ->  | M110: =IF(OR(M$105="",$C110=""),"",HLOOKUP(M$105,'Emissions Database'!$CU$3:$DO$251,MATCH($C110,'Emissions Database'!$B$3:$B$251,0),0)) ->  | N110: =IF(OR(N$105="",$C110=""),"",HLOOKUP(N$105,'Emissions Database'!$CU$3:$DO$251,MATCH($C110,'Emissions Database'!$B$3:$B$251,0),0)) ->  | O110: =IF(OR(O$105="",$C110=""),"",HLOOKUP(O$105,'Emissions Database'!$CU$3:$DO$251,MATCH($C110,'Emissions Database'!$B$3:$B$251,0),0)) ->  | P110: =IF(OR(P$105="",$C110=""),"",HLOOKUP(P$105,'Emissions Database'!$CU$3:$DO$251,MATCH($C110,'Emissions Database'!$B$3:$B$251,0),0)) ->  | Q110: =IF(OR(Q$105="",$C110=""),"",HLOOKUP(Q$105,'Emissions Database'!$CU$3:$DO$251,MATCH($C110,'Emissions Database'!$B$3:$B$251,0),0)) ->  | R110: =IF(OR(R$105="",$C110=""),"",HLOOKUP(R$105,'Emissions Database'!$CU$3:$DO$251,MATCH($C110,'Emissions Database'!$B$3:$B$251,0),0)) ->  | S110: =IF(OR(S$105="",$C110=""),"",HLOOKUP(S$105,'Emissions Database'!$CU$3:$DO$251,MATCH($C110,'Emissions Database'!$B$3:$B$251,0),0)) ->  | T110: =IF(OR(T$105="",$C110=""),"",HLOOKUP(T$105,'Emissions Database'!$CU$3:$DO$251,MATCH($C110,'Emissions Database'!$B$3:$B$251,0),0)) ->  | U110: =IF(OR(U$105="",$C110=""),"",HLOOKUP(U$105,'Emissions Database'!$CU$3:$DO$251,MATCH($C110,'Emissions Database'!$B$3:$B$251,0),0)) ->  | V110: =IF(OR(V$105="",$C110=""),"",HLOOKUP(V$105,'Emissions Database'!$CU$3:$DO$251,MATCH($C110,'Emissions Database'!$B$3:$B$251,0),0)) ->  | W110: =IF(OR(W$105="",$C110=""),"",HLOOKUP(W$105,'Emissions Database'!$CU$3:$DO$251,MATCH($C110,'Emissions Database'!$B$3:$B$251,0),0)) ->  | X110: =IF(OR(X$105="",$C110=""),"",HLOOKUP(X$105,'Emissions Database'!$CU$3:$DO$251,MATCH($C110,'Emissions Database'!$B$3:$B$251,0),0)) ->  | Y110: =IF(OR(Y$105="",$C110=""),"",HLOOKUP(Y$105,'Emissions Database'!$CU$3:$DO$251,MATCH($C110,'Emissions Database'!$B$3:$B$251,0),0)) -> 
B111: 4 | C111: =IF(COUNTIF(Lists!$B$3:$B$22,B111)=0,"",VLOOKUP(B111,Lists!$B$3:$C$22,2,0)) ->  | D111: =IF($C111="","",SUMIF('Emissions Database'!$B$232:$B$251,$C111,'Emissions Database'!$BS$232:$BS$251)) ->  | E111: =IF(OR(E$105="",$C111=""),"",HLOOKUP(E$105,'Emissions Database'!$CU$3:$DO$251,MATCH($C111,'Emissions Database'!$B$3:$B$251,0),0)) ->  | F111: =IF(OR(F$105="",$C111=""),"",HLOOKUP(F$105,'Emissions Database'!$CU$3:$DO$251,MATCH($C111,'Emissions Database'!$B$3:$B$251,0),0)) ->  | G111: =IF(OR(G$105="",$C111=""),"",HLOOKUP(G$105,'Emissions Database'!$CU$3:$DO$251,MATCH($C111,'Emissions Database'!$B$3:$B$251,0),0)) ->  | H111: =IF(OR(H$105="",$C111=""),"",HLOOKUP(H$105,'Emissions Database'!$CU$3:$DO$251,MATCH($C111,'Emissions Database'!$B$3:$B$251,0),0)) ->  | I111: =IF(OR(I$105="",$C111=""),"",HLOOKUP(I$105,'Emissions Database'!$CU$3:$DO$251,MATCH($C111,'Emissions Database'!$B$3:$B$251,0),0)) ->  | J111: =IF(OR(J$105="",$C111=""),"",HLOOKUP(J$105,'Emissions Database'!$CU$3:$DO$251,MATCH($C111,'Emissions Database'!$B$3:$B$251,0),0)) ->  | K111: =IF(OR(K$105="",$C111=""),"",HLOOKUP(K$105,'Emissions Database'!$CU$3:$DO$251,MATCH($C111,'Emissions Database'!$B$3:$B$251,0),0)) ->  | L111: =IF(OR(L$105="",$C111=""),"",HLOOKUP(L$105,'Emissions Database'!$CU$3:$DO$251,MATCH($C111,'Emissions Database'!$B$3:$B$251,0),0)) ->  | M111: =IF(OR(M$105="",$C111=""),"",HLOOKUP(M$105,'Emissions Database'!$CU$3:$DO$251,MATCH($C111,'Emissions Database'!$B$3:$B$251,0),0)) ->  | N111: =IF(OR(N$105="",$C111=""),"",HLOOKUP(N$105,'Emissions Database'!$CU$3:$DO$251,MATCH($C111,'Emissions Database'!$B$3:$B$251,0),0)) ->  | O111: =IF(OR(O$105="",$C111=""),"",HLOOKUP(O$105,'Emissions Database'!$CU$3:$DO$251,MATCH($C111,'Emissions Database'!$B$3:$B$251,0),0)) ->  | P111: =IF(OR(P$105="",$C111=""),"",HLOOKUP(P$105,'Emissions Database'!$CU$3:$DO$251,MATCH($C111,'Emissions Database'!$B$3:$B$251,0),0)) ->  | Q111: =IF(OR(Q$105="",$C111=""),"",HLOOKUP(Q$105,'Emissions Database'!$CU$3:$DO$251,MATCH($C111,'Emissions Database'!$B$3:$B$251,0),0)) ->  | R111: =IF(OR(R$105="",$C111=""),"",HLOOKUP(R$105,'Emissions Database'!$CU$3:$DO$251,MATCH($C111,'Emissions Database'!$B$3:$B$251,0),0)) ->  | S111: =IF(OR(S$105="",$C111=""),"",HLOOKUP(S$105,'Emissions Database'!$CU$3:$DO$251,MATCH($C111,'Emissions Database'!$B$3:$B$251,0),0)) ->  | T111: =IF(OR(T$105="",$C111=""),"",HLOOKUP(T$105,'Emissions Database'!$CU$3:$DO$251,MATCH($C111,'Emissions Database'!$B$3:$B$251,0),0)) ->  | U111: =IF(OR(U$105="",$C111=""),"",HLOOKUP(U$105,'Emissions Database'!$CU$3:$DO$251,MATCH($C111,'Emissions Database'!$B$3:$B$251,0),0)) ->  | V111: =IF(OR(V$105="",$C111=""),"",HLOOKUP(V$105,'Emissions Database'!$CU$3:$DO$251,MATCH($C111,'Emissions Database'!$B$3:$B$251,0),0)) ->  | W111: =IF(OR(W$105="",$C111=""),"",HLOOKUP(W$105,'Emissions Database'!$CU$3:$DO$251,MATCH($C111,'Emissions Database'!$B$3:$B$251,0),0)) ->  | X111: =IF(OR(X$105="",$C111=""),"",HLOOKUP(X$105,'Emissions Database'!$CU$3:$DO$251,MATCH($C111,'Emissions Database'!$B$3:$B$251,0),0)) ->  | Y111: =IF(OR(Y$105="",$C111=""),"",HLOOKUP(Y$105,'Emissions Database'!$CU$3:$DO$251,MATCH($C111,'Emissions Database'!$B$3:$B$251,0),0)) -> 
B112: 5 | C112: =IF(COUNTIF(Lists!$B$3:$B$22,B112)=0,"",VLOOKUP(B112,Lists!$B$3:$C$22,2,0)) ->  | D112: =IF($C112="","",SUMIF('Emissions Database'!$B$232:$B$251,$C112,'Emissions Database'!$BS$232:$BS$251)) ->  | E112: =IF(OR(E$105="",$C112=""),"",HLOOKUP(E$105,'Emissions Database'!$CU$3:$DO$251,MATCH($C112,'Emissions Database'!$B$3:$B$251,0),0)) ->  | F112: =IF(OR(F$105="",$C112=""),"",HLOOKUP(F$105,'Emissions Database'!$CU$3:$DO$251,MATCH($C112,'Emissions Database'!$B$3:$B$251,0),0)) ->  | G112: =IF(OR(G$105="",$C112=""),"",HLOOKUP(G$105,'Emissions Database'!$CU$3:$DO$251,MATCH($C112,'Emissions Database'!$B$3:$B$251,0),0)) ->  | H112: =IF(OR(H$105="",$C112=""),"",HLOOKUP(H$105,'Emissions Database'!$CU$3:$DO$251,MATCH($C112,'Emissions Database'!$B$3:$B$251,0),0)) ->  | I112: =IF(OR(I$105="",$C112=""),"",HLOOKUP(I$105,'Emissions Database'!$CU$3:$DO$251,MATCH($C112,'Emissions Database'!$B$3:$B$251,0),0)) ->  | J112: =IF(OR(J$105="",$C112=""),"",HLOOKUP(J$105,'Emissions Database'!$CU$3:$DO$251,MATCH($C112,'Emissions Database'!$B$3:$B$251,0),0)) ->  | K112: =IF(OR(K$105="",$C112=""),"",HLOOKUP(K$105,'Emissions Database'!$CU$3:$DO$251,MATCH($C112,'Emissions Database'!$B$3:$B$251,0),0)) ->  | L112: =IF(OR(L$105="",$C112=""),"",HLOOKUP(L$105,'Emissions Database'!$CU$3:$DO$251,MATCH($C112,'Emissions Database'!$B$3:$B$251,0),0)) ->  | M112: =IF(OR(M$105="",$C112=""),"",HLOOKUP(M$105,'Emissions Database'!$CU$3:$DO$251,MATCH($C112,'Emissions Database'!$B$3:$B$251,0),0)) ->  | N112: =IF(OR(N$105="",$C112=""),"",HLOOKUP(N$105,'Emissions Database'!$CU$3:$DO$251,MATCH($C112,'Emissions Database'!$B$3:$B$251,0),0)) ->  | O112: =IF(OR(O$105="",$C112=""),"",HLOOKUP(O$105,'Emissions Database'!$CU$3:$DO$251,MATCH($C112,'Emissions Database'!$B$3:$B$251,0),0)) ->  | P112: =IF(OR(P$105="",$C112=""),"",HLOOKUP(P$105,'Emissions Database'!$CU$3:$DO$251,MATCH($C112,'Emissions Database'!$B$3:$B$251,0),0)) ->  | Q112: =IF(OR(Q$105="",$C112=""),"",HLOOKUP(Q$105,'Emissions Database'!$CU$3:$DO$251,MATCH($C112,'Emissions Database'!$B$3:$B$251,0),0)) ->  | R112: =IF(OR(R$105="",$C112=""),"",HLOOKUP(R$105,'Emissions Database'!$CU$3:$DO$251,MATCH($C112,'Emissions Database'!$B$3:$B$251,0),0)) ->  | S112: =IF(OR(S$105="",$C112=""),"",HLOOKUP(S$105,'Emissions Database'!$CU$3:$DO$251,MATCH($C112,'Emissions Database'!$B$3:$B$251,0),0)) ->  | T112: =IF(OR(T$105="",$C112=""),"",HLOOKUP(T$105,'Emissions Database'!$CU$3:$DO$251,MATCH($C112,'Emissions Database'!$B$3:$B$251,0),0)) ->  | U112: =IF(OR(U$105="",$C112=""),"",HLOOKUP(U$105,'Emissions Database'!$CU$3:$DO$251,MATCH($C112,'Emissions Database'!$B$3:$B$251,0),0)) ->  | V112: =IF(OR(V$105="",$C112=""),"",HLOOKUP(V$105,'Emissions Database'!$CU$3:$DO$251,MATCH($C112,'Emissions Database'!$B$3:$B$251,0),0)) ->  | W112: =IF(OR(W$105="",$C112=""),"",HLOOKUP(W$105,'Emissions Database'!$CU$3:$DO$251,MATCH($C112,'Emissions Database'!$B$3:$B$251,0),0)) ->  | X112: =IF(OR(X$105="",$C112=""),"",HLOOKUP(X$105,'Emissions Database'!$CU$3:$DO$251,MATCH($C112,'Emissions Database'!$B$3:$B$251,0),0)) ->  | Y112: =IF(OR(Y$105="",$C112=""),"",HLOOKUP(Y$105,'Emissions Database'!$CU$3:$DO$251,MATCH($C112,'Emissions Database'!$B$3:$B$251,0),0)) -> 
B113: 6 | C113: =IF(COUNTIF(Lists!$B$3:$B$22,B113)=0,"",VLOOKUP(B113,Lists!$B$3:$C$22,2,0)) ->  | D113: =IF($C113="","",SUMIF('Emissions Database'!$B$232:$B$251,$C113,'Emissions Database'!$BS$232:$BS$251)) ->  | E113: =IF(OR(E$105="",$C113=""),"",HLOOKUP(E$105,'Emissions Database'!$CU$3:$DO$251,MATCH($C113,'Emissions Database'!$B$3:$B$251,0),0)) ->  | F113: =IF(OR(F$105="",$C113=""),"",HLOOKUP(F$105,'Emissions Database'!$CU$3:$DO$251,MATCH($C113,'Emissions Database'!$B$3:$B$251,0),0)) ->  | G113: =IF(OR(G$105="",$C113=""),"",HLOOKUP(G$105,'Emissions Database'!$CU$3:$DO$251,MATCH($C113,'Emissions Database'!$B$3:$B$251,0),0)) ->  | H113: =IF(OR(H$105="",$C113=""),"",HLOOKUP(H$105,'Emissions Database'!$CU$3:$DO$251,MATCH($C113,'Emissions Database'!$B$3:$B$251,0),0)) ->  | I113: =IF(OR(I$105="",$C113=""),"",HLOOKUP(I$105,'Emissions Database'!$CU$3:$DO$251,MATCH($C113,'Emissions Database'!$B$3:$B$251,0),0)) ->  | J113: =IF(OR(J$105="",$C113=""),"",HLOOKUP(J$105,'Emissions Database'!$CU$3:$DO$251,MATCH($C113,'Emissions Database'!$B$3:$B$251,0),0)) ->  | K113: =IF(OR(K$105="",$C113=""),"",HLOOKUP(K$105,'Emissions Database'!$CU$3:$DO$251,MATCH($C113,'Emissions Database'!$B$3:$B$251,0),0)) ->  | L113: =IF(OR(L$105="",$C113=""),"",HLOOKUP(L$105,'Emissions Database'!$CU$3:$DO$251,MATCH($C113,'Emissions Database'!$B$3:$B$251,0),0)) ->  | M113: =IF(OR(M$105="",$C113=""),"",HLOOKUP(M$105,'Emissions Database'!$CU$3:$DO$251,MATCH($C113,'Emissions Database'!$B$3:$B$251,0),0)) ->  | N113: =IF(OR(N$105="",$C113=""),"",HLOOKUP(N$105,'Emissions Database'!$CU$3:$DO$251,MATCH($C113,'Emissions Database'!$B$3:$B$251,0),0)) ->  | O113: =IF(OR(O$105="",$C113=""),"",HLOOKUP(O$105,'Emissions Database'!$CU$3:$DO$251,MATCH($C113,'Emissions Database'!$B$3:$B$251,0),0)) ->  | P113: =IF(OR(P$105="",$C113=""),"",HLOOKUP(P$105,'Emissions Database'!$CU$3:$DO$251,MATCH($C113,'Emissions Database'!$B$3:$B$251,0),0)) ->  | Q113: =IF(OR(Q$105="",$C113=""),"",HLOOKUP(Q$105,'Emissions Database'!$CU$3:$DO$251,MATCH($C113,'Emissions Database'!$B$3:$B$251,0),0)) ->  | R113: =IF(OR(R$105="",$C113=""),"",HLOOKUP(R$105,'Emissions Database'!$CU$3:$DO$251,MATCH($C113,'Emissions Database'!$B$3:$B$251,0),0)) ->  | S113: =IF(OR(S$105="",$C113=""),"",HLOOKUP(S$105,'Emissions Database'!$CU$3:$DO$251,MATCH($C113,'Emissions Database'!$B$3:$B$251,0),0)) ->  | T113: =IF(OR(T$105="",$C113=""),"",HLOOKUP(T$105,'Emissions Database'!$CU$3:$DO$251,MATCH($C113,'Emissions Database'!$B$3:$B$251,0),0)) ->  | U113: =IF(OR(U$105="",$C113=""),"",HLOOKUP(U$105,'Emissions Database'!$CU$3:$DO$251,MATCH($C113,'Emissions Database'!$B$3:$B$251,0),0)) ->  | V113: =IF(OR(V$105="",$C113=""),"",HLOOKUP(V$105,'Emissions Database'!$CU$3:$DO$251,MATCH($C113,'Emissions Database'!$B$3:$B$251,0),0)) ->  | W113: =IF(OR(W$105="",$C113=""),"",HLOOKUP(W$105,'Emissions Database'!$CU$3:$DO$251,MATCH($C113,'Emissions Database'!$B$3:$B$251,0),0)) ->  | X113: =IF(OR(X$105="",$C113=""),"",HLOOKUP(X$105,'Emissions Database'!$CU$3:$DO$251,MATCH($C113,'Emissions Database'!$B$3:$B$251,0),0)) ->  | Y113: =IF(OR(Y$105="",$C113=""),"",HLOOKUP(Y$105,'Emissions Database'!$CU$3:$DO$251,MATCH($C113,'Emissions Database'!$B$3:$B$251,0),0)) -> 
B114: 7 | C114: =IF(COUNTIF(Lists!$B$3:$B$22,B114)=0,"",VLOOKUP(B114,Lists!$B$3:$C$22,2,0)) ->  | D114: =IF($C114="","",SUMIF('Emissions Database'!$B$232:$B$251,$C114,'Emissions Database'!$BS$232:$BS$251)) ->  | E114: =IF(OR(E$105="",$C114=""),"",HLOOKUP(E$105,'Emissions Database'!$CU$3:$DO$251,MATCH($C114,'Emissions Database'!$B$3:$B$251,0),0)) ->  | F114: =IF(OR(F$105="",$C114=""),"",HLOOKUP(F$105,'Emissions Database'!$CU$3:$DO$251,MATCH($C114,'Emissions Database'!$B$3:$B$251,0),0)) ->  | G114: =IF(OR(G$105="",$C114=""),"",HLOOKUP(G$105,'Emissions Database'!$CU$3:$DO$251,MATCH($C114,'Emissions Database'!$B$3:$B$251,0),0)) ->  | H114: =IF(OR(H$105="",$C114=""),"",HLOOKUP(H$105,'Emissions Database'!$CU$3:$DO$251,MATCH($C114,'Emissions Database'!$B$3:$B$251,0),0)) ->  | I114: =IF(OR(I$105="",$C114=""),"",HLOOKUP(I$105,'Emissions Database'!$CU$3:$DO$251,MATCH($C114,'Emissions Database'!$B$3:$B$251,0),0)) ->  | J114: =IF(OR(J$105="",$C114=""),"",HLOOKUP(J$105,'Emissions Database'!$CU$3:$DO$251,MATCH($C114,'Emissions Database'!$B$3:$B$251,0),0)) ->  | K114: =IF(OR(K$105="",$C114=""),"",HLOOKUP(K$105,'Emissions Database'!$CU$3:$DO$251,MATCH($C114,'Emissions Database'!$B$3:$B$251,0),0)) ->  | L114: =IF(OR(L$105="",$C114=""),"",HLOOKUP(L$105,'Emissions Database'!$CU$3:$DO$251,MATCH($C114,'Emissions Database'!$B$3:$B$251,0),0)) ->  | M114: =IF(OR(M$105="",$C114=""),"",HLOOKUP(M$105,'Emissions Database'!$CU$3:$DO$251,MATCH($C114,'Emissions Database'!$B$3:$B$251,0),0)) ->  | N114: =IF(OR(N$105="",$C114=""),"",HLOOKUP(N$105,'Emissions Database'!$CU$3:$DO$251,MATCH($C114,'Emissions Database'!$B$3:$B$251,0),0)) ->  | O114: =IF(OR(O$105="",$C114=""),"",HLOOKUP(O$105,'Emissions Database'!$CU$3:$DO$251,MATCH($C114,'Emissions Database'!$B$3:$B$251,0),0)) ->  | P114: =IF(OR(P$105="",$C114=""),"",HLOOKUP(P$105,'Emissions Database'!$CU$3:$DO$251,MATCH($C114,'Emissions Database'!$B$3:$B$251,0),0)) ->  | Q114: =IF(OR(Q$105="",$C114=""),"",HLOOKUP(Q$105,'Emissions Database'!$CU$3:$DO$251,MATCH($C114,'Emissions Database'!$B$3:$B$251,0),0)) ->  | R114: =IF(OR(R$105="",$C114=""),"",HLOOKUP(R$105,'Emissions Database'!$CU$3:$DO$251,MATCH($C114,'Emissions Database'!$B$3:$B$251,0),0)) ->  | S114: =IF(OR(S$105="",$C114=""),"",HLOOKUP(S$105,'Emissions Database'!$CU$3:$DO$251,MATCH($C114,'Emissions Database'!$B$3:$B$251,0),0)) ->  | T114: =IF(OR(T$105="",$C114=""),"",HLOOKUP(T$105,'Emissions Database'!$CU$3:$DO$251,MATCH($C114,'Emissions Database'!$B$3:$B$251,0),0)) ->  | U114: =IF(OR(U$105="",$C114=""),"",HLOOKUP(U$105,'Emissions Database'!$CU$3:$DO$251,MATCH($C114,'Emissions Database'!$B$3:$B$251,0),0)) ->  | V114: =IF(OR(V$105="",$C114=""),"",HLOOKUP(V$105,'Emissions Database'!$CU$3:$DO$251,MATCH($C114,'Emissions Database'!$B$3:$B$251,0),0)) ->  | W114: =IF(OR(W$105="",$C114=""),"",HLOOKUP(W$105,'Emissions Database'!$CU$3:$DO$251,MATCH($C114,'Emissions Database'!$B$3:$B$251,0),0)) ->  | X114: =IF(OR(X$105="",$C114=""),"",HLOOKUP(X$105,'Emissions Database'!$CU$3:$DO$251,MATCH($C114,'Emissions Database'!$B$3:$B$251,0),0)) ->  | Y114: =IF(OR(Y$105="",$C114=""),"",HLOOKUP(Y$105,'Emissions Database'!$CU$3:$DO$251,MATCH($C114,'Emissions Database'!$B$3:$B$251,0),0)) -> 
B115: 8 | C115: =IF(COUNTIF(Lists!$B$3:$B$22,B115)=0,"",VLOOKUP(B115,Lists!$B$3:$C$22,2,0)) ->  | D115: =IF($C115="","",SUMIF('Emissions Database'!$B$232:$B$251,$C115,'Emissions Database'!$BS$232:$BS$251)) ->  | E115: =IF(OR(E$105="",$C115=""),"",HLOOKUP(E$105,'Emissions Database'!$CU$3:$DO$251,MATCH($C115,'Emissions Database'!$B$3:$B$251,0),0)) ->  | F115: =IF(OR(F$105="",$C115=""),"",HLOOKUP(F$105,'Emissions Database'!$CU$3:$DO$251,MATCH($C115,'Emissions Database'!$B$3:$B$251,0),0)) ->  | G115: =IF(OR(G$105="",$C115=""),"",HLOOKUP(G$105,'Emissions Database'!$CU$3:$DO$251,MATCH($C115,'Emissions Database'!$B$3:$B$251,0),0)) ->  | H115: =IF(OR(H$105="",$C115=""),"",HLOOKUP(H$105,'Emissions Database'!$CU$3:$DO$251,MATCH($C115,'Emissions Database'!$B$3:$B$251,0),0)) ->  | I115: =IF(OR(I$105="",$C115=""),"",HLOOKUP(I$105,'Emissions Database'!$CU$3:$DO$251,MATCH($C115,'Emissions Database'!$B$3:$B$251,0),0)) ->  | J115: =IF(OR(J$105="",$C115=""),"",HLOOKUP(J$105,'Emissions Database'!$CU$3:$DO$251,MATCH($C115,'Emissions Database'!$B$3:$B$251,0),0)) ->  | K115: =IF(OR(K$105="",$C115=""),"",HLOOKUP(K$105,'Emissions Database'!$CU$3:$DO$251,MATCH($C115,'Emissions Database'!$B$3:$B$251,0),0)) ->  | L115: =IF(OR(L$105="",$C115=""),"",HLOOKUP(L$105,'Emissions Database'!$CU$3:$DO$251,MATCH($C115,'Emissions Database'!$B$3:$B$251,0),0)) ->  | M115: =IF(OR(M$105="",$C115=""),"",HLOOKUP(M$105,'Emissions Database'!$CU$3:$DO$251,MATCH($C115,'Emissions Database'!$B$3:$B$251,0),0)) ->  | N115: =IF(OR(N$105="",$C115=""),"",HLOOKUP(N$105,'Emissions Database'!$CU$3:$DO$251,MATCH($C115,'Emissions Database'!$B$3:$B$251,0),0)) ->  | O115: =IF(OR(O$105="",$C115=""),"",HLOOKUP(O$105,'Emissions Database'!$CU$3:$DO$251,MATCH($C115,'Emissions Database'!$B$3:$B$251,0),0)) ->  | P115: =IF(OR(P$105="",$C115=""),"",HLOOKUP(P$105,'Emissions Database'!$CU$3:$DO$251,MATCH($C115,'Emissions Database'!$B$3:$B$251,0),0)) ->  | Q115: =IF(OR(Q$105="",$C115=""),"",HLOOKUP(Q$105,'Emissions Database'!$CU$3:$DO$251,MATCH($C115,'Emissions Database'!$B$3:$B$251,0),0)) ->  | R115: =IF(OR(R$105="",$C115=""),"",HLOOKUP(R$105,'Emissions Database'!$CU$3:$DO$251,MATCH($C115,'Emissions Database'!$B$3:$B$251,0),0)) ->  | S115: =IF(OR(S$105="",$C115=""),"",HLOOKUP(S$105,'Emissions Database'!$CU$3:$DO$251,MATCH($C115,'Emissions Database'!$B$3:$B$251,0),0)) ->  | T115: =IF(OR(T$105="",$C115=""),"",HLOOKUP(T$105,'Emissions Database'!$CU$3:$DO$251,MATCH($C115,'Emissions Database'!$B$3:$B$251,0),0)) ->  | U115: =IF(OR(U$105="",$C115=""),"",HLOOKUP(U$105,'Emissions Database'!$CU$3:$DO$251,MATCH($C115,'Emissions Database'!$B$3:$B$251,0),0)) ->  | V115: =IF(OR(V$105="",$C115=""),"",HLOOKUP(V$105,'Emissions Database'!$CU$3:$DO$251,MATCH($C115,'Emissions Database'!$B$3:$B$251,0),0)) ->  | W115: =IF(OR(W$105="",$C115=""),"",HLOOKUP(W$105,'Emissions Database'!$CU$3:$DO$251,MATCH($C115,'Emissions Database'!$B$3:$B$251,0),0)) ->  | X115: =IF(OR(X$105="",$C115=""),"",HLOOKUP(X$105,'Emissions Database'!$CU$3:$DO$251,MATCH($C115,'Emissions Database'!$B$3:$B$251,0),0)) ->  | Y115: =IF(OR(Y$105="",$C115=""),"",HLOOKUP(Y$105,'Emissions Database'!$CU$3:$DO$251,MATCH($C115,'Emissions Database'!$B$3:$B$251,0),0)) -> 
B116: 9 | C116: =IF(COUNTIF(Lists!$B$3:$B$22,B116)=0,"",VLOOKUP(B116,Lists!$B$3:$C$22,2,0)) ->  | D116: =IF($C116="","",SUMIF('Emissions Database'!$B$232:$B$251,$C116,'Emissions Database'!$BS$232:$BS$251)) ->  | E116: =IF(OR(E$105="",$C116=""),"",HLOOKUP(E$105,'Emissions Database'!$CU$3:$DO$251,MATCH($C116,'Emissions Database'!$B$3:$B$251,0),0)) ->  | F116: =IF(OR(F$105="",$C116=""),"",HLOOKUP(F$105,'Emissions Database'!$CU$3:$DO$251,MATCH($C116,'Emissions Database'!$B$3:$B$251,0),0)) ->  | G116: =IF(OR(G$105="",$C116=""),"",HLOOKUP(G$105,'Emissions Database'!$CU$3:$DO$251,MATCH($C116,'Emissions Database'!$B$3:$B$251,0),0)) ->  | H116: =IF(OR(H$105="",$C116=""),"",HLOOKUP(H$105,'Emissions Database'!$CU$3:$DO$251,MATCH($C116,'Emissions Database'!$B$3:$B$251,0),0)) ->  | I116: =IF(OR(I$105="",$C116=""),"",HLOOKUP(I$105,'Emissions Database'!$CU$3:$DO$251,MATCH($C116,'Emissions Database'!$B$3:$B$251,0),0)) ->  | J116: =IF(OR(J$105="",$C116=""),"",HLOOKUP(J$105,'Emissions Database'!$CU$3:$DO$251,MATCH($C116,'Emissions Database'!$B$3:$B$251,0),0)) ->  | K116: =IF(OR(K$105="",$C116=""),"",HLOOKUP(K$105,'Emissions Database'!$CU$3:$DO$251,MATCH($C116,'Emissions Database'!$B$3:$B$251,0),0)) ->  | L116: =IF(OR(L$105="",$C116=""),"",HLOOKUP(L$105,'Emissions Database'!$CU$3:$DO$251,MATCH($C116,'Emissions Database'!$B$3:$B$251,0),0)) ->  | M116: =IF(OR(M$105="",$C116=""),"",HLOOKUP(M$105,'Emissions Database'!$CU$3:$DO$251,MATCH($C116,'Emissions Database'!$B$3:$B$251,0),0)) ->  | N116: =IF(OR(N$105="",$C116=""),"",HLOOKUP(N$105,'Emissions Database'!$CU$3:$DO$251,MATCH($C116,'Emissions Database'!$B$3:$B$251,0),0)) ->  | O116: =IF(OR(O$105="",$C116=""),"",HLOOKUP(O$105,'Emissions Database'!$CU$3:$DO$251,MATCH($C116,'Emissions Database'!$B$3:$B$251,0),0)) ->  | P116: =IF(OR(P$105="",$C116=""),"",HLOOKUP(P$105,'Emissions Database'!$CU$3:$DO$251,MATCH($C116,'Emissions Database'!$B$3:$B$251,0),0)) ->  | Q116: =IF(OR(Q$105="",$C116=""),"",HLOOKUP(Q$105,'Emissions Database'!$CU$3:$DO$251,MATCH($C116,'Emissions Database'!$B$3:$B$251,0),0)) ->  | R116: =IF(OR(R$105="",$C116=""),"",HLOOKUP(R$105,'Emissions Database'!$CU$3:$DO$251,MATCH($C116,'Emissions Database'!$B$3:$B$251,0),0)) ->  | S116: =IF(OR(S$105="",$C116=""),"",HLOOKUP(S$105,'Emissions Database'!$CU$3:$DO$251,MATCH($C116,'Emissions Database'!$B$3:$B$251,0),0)) ->  | T116: =IF(OR(T$105="",$C116=""),"",HLOOKUP(T$105,'Emissions Database'!$CU$3:$DO$251,MATCH($C116,'Emissions Database'!$B$3:$B$251,0),0)) ->  | U116: =IF(OR(U$105="",$C116=""),"",HLOOKUP(U$105,'Emissions Database'!$CU$3:$DO$251,MATCH($C116,'Emissions Database'!$B$3:$B$251,0),0)) ->  | V116: =IF(OR(V$105="",$C116=""),"",HLOOKUP(V$105,'Emissions Database'!$CU$3:$DO$251,MATCH($C116,'Emissions Database'!$B$3:$B$251,0),0)) ->  | W116: =IF(OR(W$105="",$C116=""),"",HLOOKUP(W$105,'Emissions Database'!$CU$3:$DO$251,MATCH($C116,'Emissions Database'!$B$3:$B$251,0),0)) ->  | X116: =IF(OR(X$105="",$C116=""),"",HLOOKUP(X$105,'Emissions Database'!$CU$3:$DO$251,MATCH($C116,'Emissions Database'!$B$3:$B$251,0),0)) ->  | Y116: =IF(OR(Y$105="",$C116=""),"",HLOOKUP(Y$105,'Emissions Database'!$CU$3:$DO$251,MATCH($C116,'Emissions Database'!$B$3:$B$251,0),0)) -> 
B117: 10 | C117: =IF(COUNTIF(Lists!$B$3:$B$22,B117)=0,"",VLOOKUP(B117,Lists!$B$3:$C$22,2,0)) ->  | D117: =IF($C117="","",SUMIF('Emissions Database'!$B$232:$B$251,$C117,'Emissions Database'!$BS$232:$BS$251)) ->  | E117: =IF(OR(E$105="",$C117=""),"",HLOOKUP(E$105,'Emissions Database'!$CU$3:$DO$251,MATCH($C117,'Emissions Database'!$B$3:$B$251,0),0)) ->  | F117: =IF(OR(F$105="",$C117=""),"",HLOOKUP(F$105,'Emissions Database'!$CU$3:$DO$251,MATCH($C117,'Emissions Database'!$B$3:$B$251,0),0)) ->  | G117: =IF(OR(G$105="",$C117=""),"",HLOOKUP(G$105,'Emissions Database'!$CU$3:$DO$251,MATCH($C117,'Emissions Database'!$B$3:$B$251,0),0)) ->  | H117: =IF(OR(H$105="",$C117=""),"",HLOOKUP(H$105,'Emissions Database'!$CU$3:$DO$251,MATCH($C117,'Emissions Database'!$B$3:$B$251,0),0)) ->  | I117: =IF(OR(I$105="",$C117=""),"",HLOOKUP(I$105,'Emissions Database'!$CU$3:$DO$251,MATCH($C117,'Emissions Database'!$B$3:$B$251,0),0)) ->  | J117: =IF(OR(J$105="",$C117=""),"",HLOOKUP(J$105,'Emissions Database'!$CU$3:$DO$251,MATCH($C117,'Emissions Database'!$B$3:$B$251,0),0)) ->  | K117: =IF(OR(K$105="",$C117=""),"",HLOOKUP(K$105,'Emissions Database'!$CU$3:$DO$251,MATCH($C117,'Emissions Database'!$B$3:$B$251,0),0)) ->  | L117: =IF(OR(L$105="",$C117=""),"",HLOOKUP(L$105,'Emissions Database'!$CU$3:$DO$251,MATCH($C117,'Emissions Database'!$B$3:$B$251,0),0)) ->  | M117: =IF(OR(M$105="",$C117=""),"",HLOOKUP(M$105,'Emissions Database'!$CU$3:$DO$251,MATCH($C117,'Emissions Database'!$B$3:$B$251,0),0)) ->  | N117: =IF(OR(N$105="",$C117=""),"",HLOOKUP(N$105,'Emissions Database'!$CU$3:$DO$251,MATCH($C117,'Emissions Database'!$B$3:$B$251,0),0)) ->  | O117: =IF(OR(O$105="",$C117=""),"",HLOOKUP(O$105,'Emissions Database'!$CU$3:$DO$251,MATCH($C117,'Emissions Database'!$B$3:$B$251,0),0)) ->  | P117: =IF(OR(P$105="",$C117=""),"",HLOOKUP(P$105,'Emissions Database'!$CU$3:$DO$251,MATCH($C117,'Emissions Database'!$B$3:$B$251,0),0)) ->  | Q117: =IF(OR(Q$105="",$C117=""),"",HLOOKUP(Q$105,'Emissions Database'!$CU$3:$DO$251,MATCH($C117,'Emissions Database'!$B$3:$B$251,0),0)) ->  | R117: =IF(OR(R$105="",$C117=""),"",HLOOKUP(R$105,'Emissions Database'!$CU$3:$DO$251,MATCH($C117,'Emissions Database'!$B$3:$B$251,0),0)) ->  | S117: =IF(OR(S$105="",$C117=""),"",HLOOKUP(S$105,'Emissions Database'!$CU$3:$DO$251,MATCH($C117,'Emissions Database'!$B$3:$B$251,0),0)) ->  | T117: =IF(OR(T$105="",$C117=""),"",HLOOKUP(T$105,'Emissions Database'!$CU$3:$DO$251,MATCH($C117,'Emissions Database'!$B$3:$B$251,0),0)) ->  | U117: =IF(OR(U$105="",$C117=""),"",HLOOKUP(U$105,'Emissions Database'!$CU$3:$DO$251,MATCH($C117,'Emissions Database'!$B$3:$B$251,0),0)) ->  | V117: =IF(OR(V$105="",$C117=""),"",HLOOKUP(V$105,'Emissions Database'!$CU$3:$DO$251,MATCH($C117,'Emissions Database'!$B$3:$B$251,0),0)) ->  | W117: =IF(OR(W$105="",$C117=""),"",HLOOKUP(W$105,'Emissions Database'!$CU$3:$DO$251,MATCH($C117,'Emissions Database'!$B$3:$B$251,0),0)) ->  | X117: =IF(OR(X$105="",$C117=""),"",HLOOKUP(X$105,'Emissions Database'!$CU$3:$DO$251,MATCH($C117,'Emissions Database'!$B$3:$B$251,0),0)) ->  | Y117: =IF(OR(Y$105="",$C117=""),"",HLOOKUP(Y$105,'Emissions Database'!$CU$3:$DO$251,MATCH($C117,'Emissions Database'!$B$3:$B$251,0),0)) -> 
B118: 11 | C118: =IF(COUNTIF(Lists!$B$3:$B$22,B118)=0,"",VLOOKUP(B118,Lists!$B$3:$C$22,2,0)) ->  | D118: =IF($C118="","",SUMIF('Emissions Database'!$B$232:$B$251,$C118,'Emissions Database'!$BS$232:$BS$251)) ->  | E118: =IF(OR(E$105="",$C118=""),"",HLOOKUP(E$105,'Emissions Database'!$CU$3:$DO$251,MATCH($C118,'Emissions Database'!$B$3:$B$251,0),0)) ->  | F118: =IF(OR(F$105="",$C118=""),"",HLOOKUP(F$105,'Emissions Database'!$CU$3:$DO$251,MATCH($C118,'Emissions Database'!$B$3:$B$251,0),0)) ->  | G118: =IF(OR(G$105="",$C118=""),"",HLOOKUP(G$105,'Emissions Database'!$CU$3:$DO$251,MATCH($C118,'Emissions Database'!$B$3:$B$251,0),0)) ->  | H118: =IF(OR(H$105="",$C118=""),"",HLOOKUP(H$105,'Emissions Database'!$CU$3:$DO$251,MATCH($C118,'Emissions Database'!$B$3:$B$251,0),0)) ->  | I118: =IF(OR(I$105="",$C118=""),"",HLOOKUP(I$105,'Emissions Database'!$CU$3:$DO$251,MATCH($C118,'Emissions Database'!$B$3:$B$251,0),0)) ->  | J118: =IF(OR(J$105="",$C118=""),"",HLOOKUP(J$105,'Emissions Database'!$CU$3:$DO$251,MATCH($C118,'Emissions Database'!$B$3:$B$251,0),0)) ->  | K118: =IF(OR(K$105="",$C118=""),"",HLOOKUP(K$105,'Emissions Database'!$CU$3:$DO$251,MATCH($C118,'Emissions Database'!$B$3:$B$251,0),0)) ->  | L118: =IF(OR(L$105="",$C118=""),"",HLOOKUP(L$105,'Emissions Database'!$CU$3:$DO$251,MATCH($C118,'Emissions Database'!$B$3:$B$251,0),0)) ->  | M118: =IF(OR(M$105="",$C118=""),"",HLOOKUP(M$105,'Emissions Database'!$CU$3:$DO$251,MATCH($C118,'Emissions Database'!$B$3:$B$251,0),0)) ->  | N118: =IF(OR(N$105="",$C118=""),"",HLOOKUP(N$105,'Emissions Database'!$CU$3:$DO$251,MATCH($C118,'Emissions Database'!$B$3:$B$251,0),0)) ->  | O118: =IF(OR(O$105="",$C118=""),"",HLOOKUP(O$105,'Emissions Database'!$CU$3:$DO$251,MATCH($C118,'Emissions Database'!$B$3:$B$251,0),0)) ->  | P118: =IF(OR(P$105="",$C118=""),"",HLOOKUP(P$105,'Emissions Database'!$CU$3:$DO$251,MATCH($C118,'Emissions Database'!$B$3:$B$251,0),0)) ->  | Q118: =IF(OR(Q$105="",$C118=""),"",HLOOKUP(Q$105,'Emissions Database'!$CU$3:$DO$251,MATCH($C118,'Emissions Database'!$B$3:$B$251,0),0)) ->  | R118: =IF(OR(R$105="",$C118=""),"",HLOOKUP(R$105,'Emissions Database'!$CU$3:$DO$251,MATCH($C118,'Emissions Database'!$B$3:$B$251,0),0)) ->  | S118: =IF(OR(S$105="",$C118=""),"",HLOOKUP(S$105,'Emissions Database'!$CU$3:$DO$251,MATCH($C118,'Emissions Database'!$B$3:$B$251,0),0)) ->  | T118: =IF(OR(T$105="",$C118=""),"",HLOOKUP(T$105,'Emissions Database'!$CU$3:$DO$251,MATCH($C118,'Emissions Database'!$B$3:$B$251,0),0)) ->  | U118: =IF(OR(U$105="",$C118=""),"",HLOOKUP(U$105,'Emissions Database'!$CU$3:$DO$251,MATCH($C118,'Emissions Database'!$B$3:$B$251,0),0)) ->  | V118: =IF(OR(V$105="",$C118=""),"",HLOOKUP(V$105,'Emissions Database'!$CU$3:$DO$251,MATCH($C118,'Emissions Database'!$B$3:$B$251,0),0)) ->  | W118: =IF(OR(W$105="",$C118=""),"",HLOOKUP(W$105,'Emissions Database'!$CU$3:$DO$251,MATCH($C118,'Emissions Database'!$B$3:$B$251,0),0)) ->  | X118: =IF(OR(X$105="",$C118=""),"",HLOOKUP(X$105,'Emissions Database'!$CU$3:$DO$251,MATCH($C118,'Emissions Database'!$B$3:$B$251,0),0)) ->  | Y118: =IF(OR(Y$105="",$C118=""),"",HLOOKUP(Y$105,'Emissions Database'!$CU$3:$DO$251,MATCH($C118,'Emissions Database'!$B$3:$B$251,0),0)) -> 
B119: 12 | C119: =IF(COUNTIF(Lists!$B$3:$B$22,B119)=0,"",VLOOKUP(B119,Lists!$B$3:$C$22,2,0)) ->  | D119: =IF($C119="","",SUMIF('Emissions Database'!$B$232:$B$251,$C119,'Emissions Database'!$BS$232:$BS$251)) ->  | E119: =IF(OR(E$105="",$C119=""),"",HLOOKUP(E$105,'Emissions Database'!$CU$3:$DO$251,MATCH($C119,'Emissions Database'!$B$3:$B$251,0),0)) ->  | F119: =IF(OR(F$105="",$C119=""),"",HLOOKUP(F$105,'Emissions Database'!$CU$3:$DO$251,MATCH($C119,'Emissions Database'!$B$3:$B$251,0),0)) ->  | G119: =IF(OR(G$105="",$C119=""),"",HLOOKUP(G$105,'Emissions Database'!$CU$3:$DO$251,MATCH($C119,'Emissions Database'!$B$3:$B$251,0),0)) ->  | H119: =IF(OR(H$105="",$C119=""),"",HLOOKUP(H$105,'Emissions Database'!$CU$3:$DO$251,MATCH($C119,'Emissions Database'!$B$3:$B$251,0),0)) ->  | I119: =IF(OR(I$105="",$C119=""),"",HLOOKUP(I$105,'Emissions Database'!$CU$3:$DO$251,MATCH($C119,'Emissions Database'!$B$3:$B$251,0),0)) ->  | J119: =IF(OR(J$105="",$C119=""),"",HLOOKUP(J$105,'Emissions Database'!$CU$3:$DO$251,MATCH($C119,'Emissions Database'!$B$3:$B$251,0),0)) ->  | K119: =IF(OR(K$105="",$C119=""),"",HLOOKUP(K$105,'Emissions Database'!$CU$3:$DO$251,MATCH($C119,'Emissions Database'!$B$3:$B$251,0),0)) ->  | L119: =IF(OR(L$105="",$C119=""),"",HLOOKUP(L$105,'Emissions Database'!$CU$3:$DO$251,MATCH($C119,'Emissions Database'!$B$3:$B$251,0),0)) ->  | M119: =IF(OR(M$105="",$C119=""),"",HLOOKUP(M$105,'Emissions Database'!$CU$3:$DO$251,MATCH($C119,'Emissions Database'!$B$3:$B$251,0),0)) ->  | N119: =IF(OR(N$105="",$C119=""),"",HLOOKUP(N$105,'Emissions Database'!$CU$3:$DO$251,MATCH($C119,'Emissions Database'!$B$3:$B$251,0),0)) ->  | O119: =IF(OR(O$105="",$C119=""),"",HLOOKUP(O$105,'Emissions Database'!$CU$3:$DO$251,MATCH($C119,'Emissions Database'!$B$3:$B$251,0),0)) ->  | P119: =IF(OR(P$105="",$C119=""),"",HLOOKUP(P$105,'Emissions Database'!$CU$3:$DO$251,MATCH($C119,'Emissions Database'!$B$3:$B$251,0),0)) ->  | Q119: =IF(OR(Q$105="",$C119=""),"",HLOOKUP(Q$105,'Emissions Database'!$CU$3:$DO$251,MATCH($C119,'Emissions Database'!$B$3:$B$251,0),0)) ->  | R119: =IF(OR(R$105="",$C119=""),"",HLOOKUP(R$105,'Emissions Database'!$CU$3:$DO$251,MATCH($C119,'Emissions Database'!$B$3:$B$251,0),0)) ->  | S119: =IF(OR(S$105="",$C119=""),"",HLOOKUP(S$105,'Emissions Database'!$CU$3:$DO$251,MATCH($C119,'Emissions Database'!$B$3:$B$251,0),0)) ->  | T119: =IF(OR(T$105="",$C119=""),"",HLOOKUP(T$105,'Emissions Database'!$CU$3:$DO$251,MATCH($C119,'Emissions Database'!$B$3:$B$251,0),0)) ->  | U119: =IF(OR(U$105="",$C119=""),"",HLOOKUP(U$105,'Emissions Database'!$CU$3:$DO$251,MATCH($C119,'Emissions Database'!$B$3:$B$251,0),0)) ->  | V119: =IF(OR(V$105="",$C119=""),"",HLOOKUP(V$105,'Emissions Database'!$CU$3:$DO$251,MATCH($C119,'Emissions Database'!$B$3:$B$251,0),0)) ->  | W119: =IF(OR(W$105="",$C119=""),"",HLOOKUP(W$105,'Emissions Database'!$CU$3:$DO$251,MATCH($C119,'Emissions Database'!$B$3:$B$251,0),0)) ->  | X119: =IF(OR(X$105="",$C119=""),"",HLOOKUP(X$105,'Emissions Database'!$CU$3:$DO$251,MATCH($C119,'Emissions Database'!$B$3:$B$251,0),0)) ->  | Y119: =IF(OR(Y$105="",$C119=""),"",HLOOKUP(Y$105,'Emissions Database'!$CU$3:$DO$251,MATCH($C119,'Emissions Database'!$B$3:$B$251,0),0)) -> 
B120: 13 | C120: =IF(COUNTIF(Lists!$B$3:$B$22,B120)=0,"",VLOOKUP(B120,Lists!$B$3:$C$22,2,0)) ->  | D120: =IF($C120="","",SUMIF('Emissions Database'!$B$232:$B$251,$C120,'Emissions Database'!$BS$232:$BS$251)) ->  | E120: =IF(OR(E$105="",$C120=""),"",HLOOKUP(E$105,'Emissions Database'!$CU$3:$DO$251,MATCH($C120,'Emissions Database'!$B$3:$B$251,0),0)) ->  | F120: =IF(OR(F$105="",$C120=""),"",HLOOKUP(F$105,'Emissions Database'!$CU$3:$DO$251,MATCH($C120,'Emissions Database'!$B$3:$B$251,0),0)) ->  | G120: =IF(OR(G$105="",$C120=""),"",HLOOKUP(G$105,'Emissions Database'!$CU$3:$DO$251,MATCH($C120,'Emissions Database'!$B$3:$B$251,0),0)) ->  | H120: =IF(OR(H$105="",$C120=""),"",HLOOKUP(H$105,'Emissions Database'!$CU$3:$DO$251,MATCH($C120,'Emissions Database'!$B$3:$B$251,0),0)) ->  | I120: =IF(OR(I$105="",$C120=""),"",HLOOKUP(I$105,'Emissions Database'!$CU$3:$DO$251,MATCH($C120,'Emissions Database'!$B$3:$B$251,0),0)) ->  | J120: =IF(OR(J$105="",$C120=""),"",HLOOKUP(J$105,'Emissions Database'!$CU$3:$DO$251,MATCH($C120,'Emissions Database'!$B$3:$B$251,0),0)) ->  | K120: =IF(OR(K$105="",$C120=""),"",HLOOKUP(K$105,'Emissions Database'!$CU$3:$DO$251,MATCH($C120,'Emissions Database'!$B$3:$B$251,0),0)) ->  | L120: =IF(OR(L$105="",$C120=""),"",HLOOKUP(L$105,'Emissions Database'!$CU$3:$DO$251,MATCH($C120,'Emissions Database'!$B$3:$B$251,0),0)) ->  | M120: =IF(OR(M$105="",$C120=""),"",HLOOKUP(M$105,'Emissions Database'!$CU$3:$DO$251,MATCH($C120,'Emissions Database'!$B$3:$B$251,0),0)) ->  | N120: =IF(OR(N$105="",$C120=""),"",HLOOKUP(N$105,'Emissions Database'!$CU$3:$DO$251,MATCH($C120,'Emissions Database'!$B$3:$B$251,0),0)) ->  | O120: =IF(OR(O$105="",$C120=""),"",HLOOKUP(O$105,'Emissions Database'!$CU$3:$DO$251,MATCH($C120,'Emissions Database'!$B$3:$B$251,0),0)) ->  | P120: =IF(OR(P$105="",$C120=""),"",HLOOKUP(P$105,'Emissions Database'!$CU$3:$DO$251,MATCH($C120,'Emissions Database'!$B$3:$B$251,0),0)) ->  | Q120: =IF(OR(Q$105="",$C120=""),"",HLOOKUP(Q$105,'Emissions Database'!$CU$3:$DO$251,MATCH($C120,'Emissions Database'!$B$3:$B$251,0),0)) ->  | R120: =IF(OR(R$105="",$C120=""),"",HLOOKUP(R$105,'Emissions Database'!$CU$3:$DO$251,MATCH($C120,'Emissions Database'!$B$3:$B$251,0),0)) ->  | S120: =IF(OR(S$105="",$C120=""),"",HLOOKUP(S$105,'Emissions Database'!$CU$3:$DO$251,MATCH($C120,'Emissions Database'!$B$3:$B$251,0),0)) ->  | T120: =IF(OR(T$105="",$C120=""),"",HLOOKUP(T$105,'Emissions Database'!$CU$3:$DO$251,MATCH($C120,'Emissions Database'!$B$3:$B$251,0),0)) ->  | U120: =IF(OR(U$105="",$C120=""),"",HLOOKUP(U$105,'Emissions Database'!$CU$3:$DO$251,MATCH($C120,'Emissions Database'!$B$3:$B$251,0),0)) ->  | V120: =IF(OR(V$105="",$C120=""),"",HLOOKUP(V$105,'Emissions Database'!$CU$3:$DO$251,MATCH($C120,'Emissions Database'!$B$3:$B$251,0),0)) ->  | W120: =IF(OR(W$105="",$C120=""),"",HLOOKUP(W$105,'Emissions Database'!$CU$3:$DO$251,MATCH($C120,'Emissions Database'!$B$3:$B$251,0),0)) ->  | X120: =IF(OR(X$105="",$C120=""),"",HLOOKUP(X$105,'Emissions Database'!$CU$3:$DO$251,MATCH($C120,'Emissions Database'!$B$3:$B$251,0),0)) ->  | Y120: =IF(OR(Y$105="",$C120=""),"",HLOOKUP(Y$105,'Emissions Database'!$CU$3:$DO$251,MATCH($C120,'Emissions Database'!$B$3:$B$251,0),0)) -> 
B121: 14 | C121: =IF(COUNTIF(Lists!$B$3:$B$22,B121)=0,"",VLOOKUP(B121,Lists!$B$3:$C$22,2,0)) ->  | D121: =IF($C121="","",SUMIF('Emissions Database'!$B$232:$B$251,$C121,'Emissions Database'!$BS$232:$BS$251)) ->  | E121: =IF(OR(E$105="",$C121=""),"",HLOOKUP(E$105,'Emissions Database'!$CU$3:$DO$251,MATCH($C121,'Emissions Database'!$B$3:$B$251,0),0)) ->  | F121: =IF(OR(F$105="",$C121=""),"",HLOOKUP(F$105,'Emissions Database'!$CU$3:$DO$251,MATCH($C121,'Emissions Database'!$B$3:$B$251,0),0)) ->  | G121: =IF(OR(G$105="",$C121=""),"",HLOOKUP(G$105,'Emissions Database'!$CU$3:$DO$251,MATCH($C121,'Emissions Database'!$B$3:$B$251,0),0)) ->  | H121: =IF(OR(H$105="",$C121=""),"",HLOOKUP(H$105,'Emissions Database'!$CU$3:$DO$251,MATCH($C121,'Emissions Database'!$B$3:$B$251,0),0)) ->  | I121: =IF(OR(I$105="",$C121=""),"",HLOOKUP(I$105,'Emissions Database'!$CU$3:$DO$251,MATCH($C121,'Emissions Database'!$B$3:$B$251,0),0)) ->  | J121: =IF(OR(J$105="",$C121=""),"",HLOOKUP(J$105,'Emissions Database'!$CU$3:$DO$251,MATCH($C121,'Emissions Database'!$B$3:$B$251,0),0)) ->  | K121: =IF(OR(K$105="",$C121=""),"",HLOOKUP(K$105,'Emissions Database'!$CU$3:$DO$251,MATCH($C121,'Emissions Database'!$B$3:$B$251,0),0)) ->  | L121: =IF(OR(L$105="",$C121=""),"",HLOOKUP(L$105,'Emissions Database'!$CU$3:$DO$251,MATCH($C121,'Emissions Database'!$B$3:$B$251,0),0)) ->  | M121: =IF(OR(M$105="",$C121=""),"",HLOOKUP(M$105,'Emissions Database'!$CU$3:$DO$251,MATCH($C121,'Emissions Database'!$B$3:$B$251,0),0)) ->  | N121: =IF(OR(N$105="",$C121=""),"",HLOOKUP(N$105,'Emissions Database'!$CU$3:$DO$251,MATCH($C121,'Emissions Database'!$B$3:$B$251,0),0)) ->  | O121: =IF(OR(O$105="",$C121=""),"",HLOOKUP(O$105,'Emissions Database'!$CU$3:$DO$251,MATCH($C121,'Emissions Database'!$B$3:$B$251,0),0)) ->  | P121: =IF(OR(P$105="",$C121=""),"",HLOOKUP(P$105,'Emissions Database'!$CU$3:$DO$251,MATCH($C121,'Emissions Database'!$B$3:$B$251,0),0)) ->  | Q121: =IF(OR(Q$105="",$C121=""),"",HLOOKUP(Q$105,'Emissions Database'!$CU$3:$DO$251,MATCH($C121,'Emissions Database'!$B$3:$B$251,0),0)) ->  | R121: =IF(OR(R$105="",$C121=""),"",HLOOKUP(R$105,'Emissions Database'!$CU$3:$DO$251,MATCH($C121,'Emissions Database'!$B$3:$B$251,0),0)) ->  | S121: =IF(OR(S$105="",$C121=""),"",HLOOKUP(S$105,'Emissions Database'!$CU$3:$DO$251,MATCH($C121,'Emissions Database'!$B$3:$B$251,0),0)) ->  | T121: =IF(OR(T$105="",$C121=""),"",HLOOKUP(T$105,'Emissions Database'!$CU$3:$DO$251,MATCH($C121,'Emissions Database'!$B$3:$B$251,0),0)) ->  | U121: =IF(OR(U$105="",$C121=""),"",HLOOKUP(U$105,'Emissions Database'!$CU$3:$DO$251,MATCH($C121,'Emissions Database'!$B$3:$B$251,0),0)) ->  | V121: =IF(OR(V$105="",$C121=""),"",HLOOKUP(V$105,'Emissions Database'!$CU$3:$DO$251,MATCH($C121,'Emissions Database'!$B$3:$B$251,0),0)) ->  | W121: =IF(OR(W$105="",$C121=""),"",HLOOKUP(W$105,'Emissions Database'!$CU$3:$DO$251,MATCH($C121,'Emissions Database'!$B$3:$B$251,0),0)) ->  | X121: =IF(OR(X$105="",$C121=""),"",HLOOKUP(X$105,'Emissions Database'!$CU$3:$DO$251,MATCH($C121,'Emissions Database'!$B$3:$B$251,0),0)) ->  | Y121: =IF(OR(Y$105="",$C121=""),"",HLOOKUP(Y$105,'Emissions Database'!$CU$3:$DO$251,MATCH($C121,'Emissions Database'!$B$3:$B$251,0),0)) -> 
B122: 15 | C122: =IF(COUNTIF(Lists!$B$3:$B$22,B122)=0,"",VLOOKUP(B122,Lists!$B$3:$C$22,2,0)) ->  | D122: =IF($C122="","",SUMIF('Emissions Database'!$B$232:$B$251,$C122,'Emissions Database'!$BS$232:$BS$251)) ->  | E122: =IF(OR(E$105="",$C122=""),"",HLOOKUP(E$105,'Emissions Database'!$CU$3:$DO$251,MATCH($C122,'Emissions Database'!$B$3:$B$251,0),0)) ->  | F122: =IF(OR(F$105="",$C122=""),"",HLOOKUP(F$105,'Emissions Database'!$CU$3:$DO$251,MATCH($C122,'Emissions Database'!$B$3:$B$251,0),0)) ->  | G122: =IF(OR(G$105="",$C122=""),"",HLOOKUP(G$105,'Emissions Database'!$CU$3:$DO$251,MATCH($C122,'Emissions Database'!$B$3:$B$251,0),0)) ->  | H122: =IF(OR(H$105="",$C122=""),"",HLOOKUP(H$105,'Emissions Database'!$CU$3:$DO$251,MATCH($C122,'Emissions Database'!$B$3:$B$251,0),0)) ->  | I122: =IF(OR(I$105="",$C122=""),"",HLOOKUP(I$105,'Emissions Database'!$CU$3:$DO$251,MATCH($C122,'Emissions Database'!$B$3:$B$251,0),0)) ->  | J122: =IF(OR(J$105="",$C122=""),"",HLOOKUP(J$105,'Emissions Database'!$CU$3:$DO$251,MATCH($C122,'Emissions Database'!$B$3:$B$251,0),0)) ->  | K122: =IF(OR(K$105="",$C122=""),"",HLOOKUP(K$105,'Emissions Database'!$CU$3:$DO$251,MATCH($C122,'Emissions Database'!$B$3:$B$251,0),0)) ->  | L122: =IF(OR(L$105="",$C122=""),"",HLOOKUP(L$105,'Emissions Database'!$CU$3:$DO$251,MATCH($C122,'Emissions Database'!$B$3:$B$251,0),0)) ->  | M122: =IF(OR(M$105="",$C122=""),"",HLOOKUP(M$105,'Emissions Database'!$CU$3:$DO$251,MATCH($C122,'Emissions Database'!$B$3:$B$251,0),0)) ->  | N122: =IF(OR(N$105="",$C122=""),"",HLOOKUP(N$105,'Emissions Database'!$CU$3:$DO$251,MATCH($C122,'Emissions Database'!$B$3:$B$251,0),0)) ->  | O122: =IF(OR(O$105="",$C122=""),"",HLOOKUP(O$105,'Emissions Database'!$CU$3:$DO$251,MATCH($C122,'Emissions Database'!$B$3:$B$251,0),0)) ->  | P122: =IF(OR(P$105="",$C122=""),"",HLOOKUP(P$105,'Emissions Database'!$CU$3:$DO$251,MATCH($C122,'Emissions Database'!$B$3:$B$251,0),0)) ->  | Q122: =IF(OR(Q$105="",$C122=""),"",HLOOKUP(Q$105,'Emissions Database'!$CU$3:$DO$251,MATCH($C122,'Emissions Database'!$B$3:$B$251,0),0)) ->  | R122: =IF(OR(R$105="",$C122=""),"",HLOOKUP(R$105,'Emissions Database'!$CU$3:$DO$251,MATCH($C122,'Emissions Database'!$B$3:$B$251,0),0)) ->  | S122: =IF(OR(S$105="",$C122=""),"",HLOOKUP(S$105,'Emissions Database'!$CU$3:$DO$251,MATCH($C122,'Emissions Database'!$B$3:$B$251,0),0)) ->  | T122: =IF(OR(T$105="",$C122=""),"",HLOOKUP(T$105,'Emissions Database'!$CU$3:$DO$251,MATCH($C122,'Emissions Database'!$B$3:$B$251,0),0)) ->  | U122: =IF(OR(U$105="",$C122=""),"",HLOOKUP(U$105,'Emissions Database'!$CU$3:$DO$251,MATCH($C122,'Emissions Database'!$B$3:$B$251,0),0)) ->  | V122: =IF(OR(V$105="",$C122=""),"",HLOOKUP(V$105,'Emissions Database'!$CU$3:$DO$251,MATCH($C122,'Emissions Database'!$B$3:$B$251,0),0)) ->  | W122: =IF(OR(W$105="",$C122=""),"",HLOOKUP(W$105,'Emissions Database'!$CU$3:$DO$251,MATCH($C122,'Emissions Database'!$B$3:$B$251,0),0)) ->  | X122: =IF(OR(X$105="",$C122=""),"",HLOOKUP(X$105,'Emissions Database'!$CU$3:$DO$251,MATCH($C122,'Emissions Database'!$B$3:$B$251,0),0)) ->  | Y122: =IF(OR(Y$105="",$C122=""),"",HLOOKUP(Y$105,'Emissions Database'!$CU$3:$DO$251,MATCH($C122,'Emissions Database'!$B$3:$B$251,0),0)) -> 
B123: 16 | C123: =IF(COUNTIF(Lists!$B$3:$B$22,B123)=0,"",VLOOKUP(B123,Lists!$B$3:$C$22,2,0)) ->  | D123: =IF($C123="","",SUMIF('Emissions Database'!$B$232:$B$251,$C123,'Emissions Database'!$BS$232:$BS$251)) ->  | E123: =IF(OR(E$105="",$C123=""),"",HLOOKUP(E$105,'Emissions Database'!$CU$3:$DO$251,MATCH($C123,'Emissions Database'!$B$3:$B$251,0),0)) ->  | F123: =IF(OR(F$105="",$C123=""),"",HLOOKUP(F$105,'Emissions Database'!$CU$3:$DO$251,MATCH($C123,'Emissions Database'!$B$3:$B$251,0),0)) ->  | G123: =IF(OR(G$105="",$C123=""),"",HLOOKUP(G$105,'Emissions Database'!$CU$3:$DO$251,MATCH($C123,'Emissions Database'!$B$3:$B$251,0),0)) ->  | H123: =IF(OR(H$105="",$C123=""),"",HLOOKUP(H$105,'Emissions Database'!$CU$3:$DO$251,MATCH($C123,'Emissions Database'!$B$3:$B$251,0),0)) ->  | I123: =IF(OR(I$105="",$C123=""),"",HLOOKUP(I$105,'Emissions Database'!$CU$3:$DO$251,MATCH($C123,'Emissions Database'!$B$3:$B$251,0),0)) ->  | J123: =IF(OR(J$105="",$C123=""),"",HLOOKUP(J$105,'Emissions Database'!$CU$3:$DO$251,MATCH($C123,'Emissions Database'!$B$3:$B$251,0),0)) ->  | K123: =IF(OR(K$105="",$C123=""),"",HLOOKUP(K$105,'Emissions Database'!$CU$3:$DO$251,MATCH($C123,'Emissions Database'!$B$3:$B$251,0),0)) ->  | L123: =IF(OR(L$105="",$C123=""),"",HLOOKUP(L$105,'Emissions Database'!$CU$3:$DO$251,MATCH($C123,'Emissions Database'!$B$3:$B$251,0),0)) ->  | M123: =IF(OR(M$105="",$C123=""),"",HLOOKUP(M$105,'Emissions Database'!$CU$3:$DO$251,MATCH($C123,'Emissions Database'!$B$3:$B$251,0),0)) ->  | N123: =IF(OR(N$105="",$C123=""),"",HLOOKUP(N$105,'Emissions Database'!$CU$3:$DO$251,MATCH($C123,'Emissions Database'!$B$3:$B$251,0),0)) ->  | O123: =IF(OR(O$105="",$C123=""),"",HLOOKUP(O$105,'Emissions Database'!$CU$3:$DO$251,MATCH($C123,'Emissions Database'!$B$3:$B$251,0),0)) ->  | P123: =IF(OR(P$105="",$C123=""),"",HLOOKUP(P$105,'Emissions Database'!$CU$3:$DO$251,MATCH($C123,'Emissions Database'!$B$3:$B$251,0),0)) ->  | Q123: =IF(OR(Q$105="",$C123=""),"",HLOOKUP(Q$105,'Emissions Database'!$CU$3:$DO$251,MATCH($C123,'Emissions Database'!$B$3:$B$251,0),0)) ->  | R123: =IF(OR(R$105="",$C123=""),"",HLOOKUP(R$105,'Emissions Database'!$CU$3:$DO$251,MATCH($C123,'Emissions Database'!$B$3:$B$251,0),0)) ->  | S123: =IF(OR(S$105="",$C123=""),"",HLOOKUP(S$105,'Emissions Database'!$CU$3:$DO$251,MATCH($C123,'Emissions Database'!$B$3:$B$251,0),0)) ->  | T123: =IF(OR(T$105="",$C123=""),"",HLOOKUP(T$105,'Emissions Database'!$CU$3:$DO$251,MATCH($C123,'Emissions Database'!$B$3:$B$251,0),0)) ->  | U123: =IF(OR(U$105="",$C123=""),"",HLOOKUP(U$105,'Emissions Database'!$CU$3:$DO$251,MATCH($C123,'Emissions Database'!$B$3:$B$251,0),0)) ->  | V123: =IF(OR(V$105="",$C123=""),"",HLOOKUP(V$105,'Emissions Database'!$CU$3:$DO$251,MATCH($C123,'Emissions Database'!$B$3:$B$251,0),0)) ->  | W123: =IF(OR(W$105="",$C123=""),"",HLOOKUP(W$105,'Emissions Database'!$CU$3:$DO$251,MATCH($C123,'Emissions Database'!$B$3:$B$251,0),0)) ->  | X123: =IF(OR(X$105="",$C123=""),"",HLOOKUP(X$105,'Emissions Database'!$CU$3:$DO$251,MATCH($C123,'Emissions Database'!$B$3:$B$251,0),0)) ->  | Y123: =IF(OR(Y$105="",$C123=""),"",HLOOKUP(Y$105,'Emissions Database'!$CU$3:$DO$251,MATCH($C123,'Emissions Database'!$B$3:$B$251,0),0)) -> 
B124: 17 | C124: =IF(COUNTIF(Lists!$B$3:$B$22,B124)=0,"",VLOOKUP(B124,Lists!$B$3:$C$22,2,0)) ->  | D124: =IF($C124="","",SUMIF('Emissions Database'!$B$232:$B$251,$C124,'Emissions Database'!$BS$232:$BS$251)) ->  | E124: =IF(OR(E$105="",$C124=""),"",HLOOKUP(E$105,'Emissions Database'!$CU$3:$DO$251,MATCH($C124,'Emissions Database'!$B$3:$B$251,0),0)) ->  | F124: =IF(OR(F$105="",$C124=""),"",HLOOKUP(F$105,'Emissions Database'!$CU$3:$DO$251,MATCH($C124,'Emissions Database'!$B$3:$B$251,0),0)) ->  | G124: =IF(OR(G$105="",$C124=""),"",HLOOKUP(G$105,'Emissions Database'!$CU$3:$DO$251,MATCH($C124,'Emissions Database'!$B$3:$B$251,0),0)) ->  | H124: =IF(OR(H$105="",$C124=""),"",HLOOKUP(H$105,'Emissions Database'!$CU$3:$DO$251,MATCH($C124,'Emissions Database'!$B$3:$B$251,0),0)) ->  | I124: =IF(OR(I$105="",$C124=""),"",HLOOKUP(I$105,'Emissions Database'!$CU$3:$DO$251,MATCH($C124,'Emissions Database'!$B$3:$B$251,0),0)) ->  | J124: =IF(OR(J$105="",$C124=""),"",HLOOKUP(J$105,'Emissions Database'!$CU$3:$DO$251,MATCH($C124,'Emissions Database'!$B$3:$B$251,0),0)) ->  | K124: =IF(OR(K$105="",$C124=""),"",HLOOKUP(K$105,'Emissions Database'!$CU$3:$DO$251,MATCH($C124,'Emissions Database'!$B$3:$B$251,0),0)) ->  | L124: =IF(OR(L$105="",$C124=""),"",HLOOKUP(L$105,'Emissions Database'!$CU$3:$DO$251,MATCH($C124,'Emissions Database'!$B$3:$B$251,0),0)) ->  | M124: =IF(OR(M$105="",$C124=""),"",HLOOKUP(M$105,'Emissions Database'!$CU$3:$DO$251,MATCH($C124,'Emissions Database'!$B$3:$B$251,0),0)) ->  | N124: =IF(OR(N$105="",$C124=""),"",HLOOKUP(N$105,'Emissions Database'!$CU$3:$DO$251,MATCH($C124,'Emissions Database'!$B$3:$B$251,0),0)) ->  | O124: =IF(OR(O$105="",$C124=""),"",HLOOKUP(O$105,'Emissions Database'!$CU$3:$DO$251,MATCH($C124,'Emissions Database'!$B$3:$B$251,0),0)) ->  | P124: =IF(OR(P$105="",$C124=""),"",HLOOKUP(P$105,'Emissions Database'!$CU$3:$DO$251,MATCH($C124,'Emissions Database'!$B$3:$B$251,0),0)) ->  | Q124: =IF(OR(Q$105="",$C124=""),"",HLOOKUP(Q$105,'Emissions Database'!$CU$3:$DO$251,MATCH($C124,'Emissions Database'!$B$3:$B$251,0),0)) ->  | R124: =IF(OR(R$105="",$C124=""),"",HLOOKUP(R$105,'Emissions Database'!$CU$3:$DO$251,MATCH($C124,'Emissions Database'!$B$3:$B$251,0),0)) ->  | S124: =IF(OR(S$105="",$C124=""),"",HLOOKUP(S$105,'Emissions Database'!$CU$3:$DO$251,MATCH($C124,'Emissions Database'!$B$3:$B$251,0),0)) ->  | T124: =IF(OR(T$105="",$C124=""),"",HLOOKUP(T$105,'Emissions Database'!$CU$3:$DO$251,MATCH($C124,'Emissions Database'!$B$3:$B$251,0),0)) ->  | U124: =IF(OR(U$105="",$C124=""),"",HLOOKUP(U$105,'Emissions Database'!$CU$3:$DO$251,MATCH($C124,'Emissions Database'!$B$3:$B$251,0),0)) ->  | V124: =IF(OR(V$105="",$C124=""),"",HLOOKUP(V$105,'Emissions Database'!$CU$3:$DO$251,MATCH($C124,'Emissions Database'!$B$3:$B$251,0),0)) ->  | W124: =IF(OR(W$105="",$C124=""),"",HLOOKUP(W$105,'Emissions Database'!$CU$3:$DO$251,MATCH($C124,'Emissions Database'!$B$3:$B$251,0),0)) ->  | X124: =IF(OR(X$105="",$C124=""),"",HLOOKUP(X$105,'Emissions Database'!$CU$3:$DO$251,MATCH($C124,'Emissions Database'!$B$3:$B$251,0),0)) ->  | Y124: =IF(OR(Y$105="",$C124=""),"",HLOOKUP(Y$105,'Emissions Database'!$CU$3:$DO$251,MATCH($C124,'Emissions Database'!$B$3:$B$251,0),0)) -> 
C126: Drop Down List
C127: Emissions by Equipment Category
C128: Emissions by GHG Type
C129: Emissions by Location

Sheet FEMP Report
B2: FEMP Summary
B5: This page compiles data from facilities into a format suitable for the FEMP workbook, "3.5 SCOPE 1 Mixed Refrigerants" input sheet.
B8: Refrigerant type | C8: Composition | D8: Quantity purchased / issued | E8: Unit of measure | F8: Quantity returned to supply | G8: Unit of measure
B9: R-23 | C9: R-23 | D9: =(SUMIF('Emissions Database'!$F$4:$F$123,B9,'Emissions Database'!$J$4:$J$123)+SUMIF('Emissions Database'!$F$124:$F$163,$B9,'Emissions Database'!$K$124:$K$163))/Conversions!$C$4+SUMIF('Default - Material Balance'!$F$14:$F$53,B9,'Default - Material Balance'!$J$14:$J$53)+SUMIF('Emissions Database'!$B$265:$B$344,$B9,'Emissions Database'!$C$265:$C$344) -> 0 | E9: lbs | F9: =SUMIF('Default - Material Balance'!$F$14:$F$53,B9,'Default - Material Balance'!$J$14:$J$53) -> 0 | G9: lbs
B10: R-32 | C10: R-32 | D10: =(SUMIF('Emissions Database'!$F$4:$F$123,B10,'Emissions Database'!$J$4:$J$123)+SUMIF('Emissions Database'!$F$124:$F$163,$B10,'Emissions Database'!$K$124:$K$163))/Conversions!$C$4+SUMIF('Default - Material Balance'!$F$14:$F$53,B10,'Default - Material Balance'!$J$14:$J$53)+SUMIF('Emissions Database'!$B$265:$B$344,$B10,'Emissions Database'!$C$265:$C$344) -> 0 | E10: lbs | F10: =SUMIF('Default - Material Balance'!$F$14:$F$53,B10,'Default - Material Balance'!$J$14:$J$53) -> 0 | G10: lbs
B11: R-41 | C11: R-41 | D11: =(SUMIF('Emissions Database'!$F$4:$F$123,B11,'Emissions Database'!$J$4:$J$123)+SUMIF('Emissions Database'!$F$124:$F$163,$B11,'Emissions Database'!$K$124:$K$163))/Conversions!$C$4+SUMIF('Default - Material Balance'!$F$14:$F$53,B11,'Default - Material Balance'!$J$14:$J$53)+SUMIF('Emissions Database'!$B$265:$B$344,$B11,'Emissions Database'!$C$265:$C$344) -> 0 | E11: lbs | F11: =SUMIF('Default - Material Balance'!$F$14:$F$53,B11,'Default - Material Balance'!$J$14:$J$53) -> 0 | G11: lbs
B12: R-125 | C12: R-125 | D12: =(SUMIF('Emissions Database'!$F$4:$F$123,B12,'Emissions Database'!$J$4:$J$123)+SUMIF('Emissions Database'!$F$124:$F$163,$B12,'Emissions Database'!$K$124:$K$163))/Conversions!$C$4+SUMIF('Default - Material Balance'!$F$14:$F$53,B12,'Default - Material Balance'!$J$14:$J$53)+SUMIF('Emissions Database'!$B$265:$B$344,$B12,'Emissions Database'!$C$265:$C$344) -> 0 | E12: lbs | F12: =SUMIF('Default - Material Balance'!$F$14:$F$53,B12,'Default - Material Balance'!$J$14:$J$53) -> 0 | G12: lbs
B13: R-134a | C13: R-134a | D13: =(SUMIF('Emissions Database'!$F$4:$F$123,B13,'Emissions Database'!$J$4:$J$123)+SUMIF('Emissions Database'!$F$124:$F$163,$B13,'Emissions Database'!$K$124:$K$163))/Conversions!$C$4+SUMIF('Default - Material Balance'!$F$14:$F$53,B13,'Default - Material Balance'!$J$14:$J$53)+SUMIF('Emissions Database'!$B$265:$B$344,$B13,'Emissions Database'!$C$265:$C$344) -> 0 | E13: lbs | F13: =SUMIF('Default - Material Balance'!$F$14:$F$53,B13,'Default - Material Balance'!$J$14:$J$53) -> 0 | G13: lbs
B14: R-143a | C14: R-143a | D14: =(SUMIF('Emissions Database'!$F$4:$F$123,B14,'Emissions Database'!$J$4:$J$123)+SUMIF('Emissions Database'!$F$124:$F$163,$B14,'Emissions Database'!$K$124:$K$163))/Conversions!$C$4+SUMIF('Default - Material Balance'!$F$14:$F$53,B14,'Default - Material Balance'!$J$14:$J$53)+SUMIF('Emissions Database'!$B$265:$B$344,$B14,'Emissions Database'!$C$265:$C$344) -> 0 | E14: lbs | F14: =SUMIF('Default - Material Balance'!$F$14:$F$53,B14,'Default - Material Balance'!$J$14:$J$53) -> 0 | G14: lbs
B15: R-152a | C15: R-152a | D15: =(SUMIF('Emissions Database'!$F$4:$F$123,B15,'Emissions Database'!$J$4:$J$123)+SUMIF('Emissions Database'!$F$124:$F$163,$B15,'Emissions Database'!$K$124:$K$163))/Conversions!$C$4+SUMIF('Default - Material Balance'!$F$14:$F$53,B15,'Default - Material Balance'!$J$14:$J$53)+SUMIF('Emissions Database'!$B$265:$B$344,$B15,'Emissions Database'!$C$265:$C$344) -> 0 | E15: lbs | F15: =SUMIF('Default - Material Balance'!$F$14:$F$53,B15,'Default - Material Balance'!$J$14:$J$53) -> 0 | G15: lbs
B16: R-227ea | C16: R-227ea | D16: =(SUMIF('Emissions Database'!$F$4:$F$123,B16,'Emissions Database'!$J$4:$J$123)+SUMIF('Emissions Database'!$F$124:$F$163,$B16,'Emissions Database'!$K$124:$K$163))/Conversions!$C$4+SUMIF('Default - Material Balance'!$F$14:$F$53,B16,'Default - Material Balance'!$J$14:$J$53)+SUMIF('Emissions Database'!$B$265:$B$344,$B16,'Emissions Database'!$C$265:$C$344) -> 0 | E16: lbs | F16: =SUMIF('Default - Material Balance'!$F$14:$F$53,B16,'Default - Material Balance'!$J$14:$J$53) -> 0 | G16: lbs
B17: R-236fa | C17: R-236fa | D17: =(SUMIF('Emissions Database'!$F$4:$F$123,B17,'Emissions Database'!$J$4:$J$123)+SUMIF('Emissions Database'!$F$124:$F$163,$B17,'Emissions Database'!$K$124:$K$163))/Conversions!$C$4+SUMIF('Default - Material Balance'!$F$14:$F$53,B17,'Default - Material Balance'!$J$14:$J$53)+SUMIF('Emissions Database'!$B$265:$B$344,$B17,'Emissions Database'!$C$265:$C$344) -> 0 | E17: lbs | F17: =SUMIF('Default - Material Balance'!$F$14:$F$53,B17,'Default - Material Balance'!$J$14:$J$53) -> 0 | G17: lbs
B18: R-245fa | C18: R-245fa | D18: =(SUMIF('Emissions Database'!$F$4:$F$123,B18,'Emissions Database'!$J$4:$J$123)+SUMIF('Emissions Database'!$F$124:$F$163,$B18,'Emissions Database'!$K$124:$K$163))/Conversions!$C$4+SUMIF('Default - Material Balance'!$F$14:$F$53,B18,'Default - Material Balance'!$J$14:$J$53)+SUMIF('Emissions Database'!$B$265:$B$344,$B18,'Emissions Database'!$C$265:$C$344) -> 0 | E18: lbs | F18: =SUMIF('Default - Material Balance'!$F$14:$F$53,B18,'Default - Material Balance'!$J$14:$J$53) -> 0 | G18: lbs
B19: R-14 | C19: R-14 | D19: =(SUMIF('Emissions Database'!$F$4:$F$123,B19,'Emissions Database'!$J$4:$J$123)+SUMIF('Emissions Database'!$F$124:$F$163,$B19,'Emissions Database'!$K$124:$K$163))/Conversions!$C$4+SUMIF('Default - Material Balance'!$F$14:$F$53,B19,'Default - Material Balance'!$J$14:$J$53)+SUMIF('Emissions Database'!$B$265:$B$344,$B19,'Emissions Database'!$C$265:$C$344) -> 0 | E19: lbs | F19: =SUMIF('Default - Material Balance'!$F$14:$F$53,B19,'Default - Material Balance'!$J$14:$J$53) -> 0 | G19: lbs
B20: R-116 | C20: R-116 | D20: =(SUMIF('Emissions Database'!$F$4:$F$123,B20,'Emissions Database'!$J$4:$J$123)+SUMIF('Emissions Database'!$F$124:$F$163,$B20,'Emissions Database'!$K$124:$K$163))/Conversions!$C$4+SUMIF('Default - Material Balance'!$F$14:$F$53,B20,'Default - Material Balance'!$J$14:$J$53)+SUMIF('Emissions Database'!$B$265:$B$344,$B20,'Emissions Database'!$C$265:$C$344) -> 0 | E20: lbs | F20: =SUMIF('Default - Material Balance'!$F$14:$F$53,B20,'Default - Material Balance'!$J$14:$J$53) -> 0 | G20: lbs
B21: R-218 | C21: R-218 | D21: =(SUMIF('Emissions Database'!$F$4:$F$123,B21,'Emissions Database'!$J$4:$J$123)+SUMIF('Emissions Database'!$F$124:$F$163,$B21,'Emissions Database'!$K$124:$K$163))/Conversions!$C$4+SUMIF('Default - Material Balance'!$F$14:$F$53,B21,'Default - Material Balance'!$J$14:$J$53)+SUMIF('Emissions Database'!$B$265:$B$344,$B21,'Emissions Database'!$C$265:$C$344) -> 0 | E21: lbs | F21: =SUMIF('Default - Material Balance'!$F$14:$F$53,B21,'Default - Material Balance'!$J$14:$J$53) -> 0 | G21: lbs
B22: R-C318 | C22: R-C318 | D22: =(SUMIF('Emissions Database'!$F$4:$F$123,B22,'Emissions Database'!$J$4:$J$123)+SUMIF('Emissions Database'!$F$124:$F$163,$B22,'Emissions Database'!$K$124:$K$163))/Conversions!$C$4+SUMIF('Default - Material Balance'!$F$14:$F$53,B22,'Default - Material Balance'!$J$14:$J$53)+SUMIF('Emissions Database'!$B$265:$B$344,$B22,'Emissions Database'!$C$265:$C$344) -> 0 | E22: lbs | F22: =SUMIF('Default - Material Balance'!$F$14:$F$53,B22,'Default - Material Balance'!$J$14:$J$53) -> 0 | G22: lbs
B23: R-401A | C23: R-22/152a/124 | D23: =(SUMIF('Emissions Database'!$F$4:$F$123,B23,'Emissions Database'!$J$4:$J$123)+SUMIF('Emissions Database'!$F$124:$F$163,$B23,'Emissions Database'!$K$124:$K$163))/Conversions!$C$4+SUMIF('Default - Material Balance'!$F$14:$F$53,B23,'Default - Material Balance'!$J$14:$J$53)+SUMIF('Emissions Database'!$B$265:$B$344,$B23,'Emissions Database'!$C$265:$C$344) -> 0 | E23: lbs | F23: =SUMIF('Default - Material Balance'!$F$14:$F$53,B23,'Default - Material Balance'!$J$14:$J$53) -> 0 | G23: lbs
B24: R-401B | C24: R-22/152a/124 | D24: =(SUMIF('Emissions Database'!$F$4:$F$123,B24,'Emissions Database'!$J$4:$J$123)+SUMIF('Emissions Database'!$F$124:$F$163,$B24,'Emissions Database'!$K$124:$K$163))/Conversions!$C$4+SUMIF('Default - Material Balance'!$F$14:$F$53,B24,'Default - Material Balance'!$J$14:$J$53)+SUMIF('Emissions Database'!$B$265:$B$344,$B24,'Emissions Database'!$C$265:$C$344) -> 0 | E24: lbs | F24: =SUMIF('Default - Material Balance'!$F$14:$F$53,B24,'Default - Material Balance'!$J$14:$J$53) -> 0 | G24: lbs
B25: R-401C | C25: R-22/152a/124 | D25: =(SUMIF('Emissions Database'!$F$4:$F$123,B25,'Emissions Database'!$J$4:$J$123)+SUMIF('Emissions Database'!$F$124:$F$163,$B25,'Emissions Database'!$K$124:$K$163))/Conversions!$C$4+SUMIF('Default - Material Balance'!$F$14:$F$53,B25,'Default - Material Balance'!$J$14:$J$53)+SUMIF('Emissions Database'!$B$265:$B$344,$B25,'Emissions Database'!$C$265:$C$344) -> 0 | E25: lbs | F25: =SUMIF('Default - Material Balance'!$F$14:$F$53,B25,'Default - Material Balance'!$J$14:$J$53) -> 0 | G25: lbs
B26: R-402A | C26: R-125/290/22 | D26: =(SUMIF('Emissions Database'!$F$4:$F$123,B26,'Emissions Database'!$J$4:$J$123)+SUMIF('Emissions Database'!$F$124:$F$163,$B26,'Emissions Database'!$K$124:$K$163))/Conversions!$C$4+SUMIF('Default - Material Balance'!$F$14:$F$53,B26,'Default - Material Balance'!$J$14:$J$53)+SUMIF('Emissions Database'!$B$265:$B$344,$B26,'Emissions Database'!$C$265:$C$344) -> 0 | E26: lbs | F26: =SUMIF('Default - Material Balance'!$F$14:$F$53,B26,'Default - Material Balance'!$J$14:$J$53) -> 0 | G26: lbs
B27: R-402B | C27: R-125/290/22 | D27: =(SUMIF('Emissions Database'!$F$4:$F$123,B27,'Emissions Database'!$J$4:$J$123)+SUMIF('Emissions Database'!$F$124:$F$163,$B27,'Emissions Database'!$K$124:$K$163))/Conversions!$C$4+SUMIF('Default - Material Balance'!$F$14:$F$53,B27,'Default - Material Balance'!$J$14:$J$53)+SUMIF('Emissions Database'!$B$265:$B$344,$B27,'Emissions Database'!$C$265:$C$344) -> 0 | E27: lbs | F27: =SUMIF('Default - Material Balance'!$F$14:$F$53,B27,'Default - Material Balance'!$J$14:$J$53) -> 0 | G27: lbs
B28: R-403A | C28: R-290/22/218 | D28: =(SUMIF('Emissions Database'!$F$4:$F$123,B28,'Emissions Database'!$J$4:$J$123)+SUMIF('Emissions Database'!$F$124:$F$163,$B28,'Emissions Database'!$K$124:$K$163))/Conversions!$C$4+SUMIF('Default - Material Balance'!$F$14:$F$53,B28,'Default - Material Balance'!$J$14:$J$53)+SUMIF('Emissions Database'!$B$265:$B$344,$B28,'Emissions Database'!$C$265:$C$344) -> 0 | E28: lbs | F28: =SUMIF('Default - Material Balance'!$F$14:$F$53,B28,'Default - Material Balance'!$J$14:$J$53) -> 0 | G28: lbs
B29: R-403B | C29: R-290/22/218 | D29: =(SUMIF('Emissions Database'!$F$4:$F$123,B29,'Emissions Database'!$J$4:$J$123)+SUMIF('Emissions Database'!$F$124:$F$163,$B29,'Emissions Database'!$K$124:$K$163))/Conversions!$C$4+SUMIF('Default - Material Balance'!$F$14:$F$53,B29,'Default - Material Balance'!$J$14:$J$53)+SUMIF('Emissions Database'!$B$265:$B$344,$B29,'Emissions Database'!$C$265:$C$344) -> 0 | E29: lbs | F29: =SUMIF('Default - Material Balance'!$F$14:$F$53,B29,'Default - Material Balance'!$J$14:$J$53) -> 0 | G29: lbs
B30: R-404A | C30: R-125/143a/134a | D30: =(SUMIF('Emissions Database'!$F$4:$F$123,B30,'Emissions Database'!$J$4:$J$123)+SUMIF('Emissions Database'!$F$124:$F$163,$B30,'Emissions Database'!$K$124:$K$163))/Conversions!$C$4+SUMIF('Default - Material Balance'!$F$14:$F$53,B30,'Default - Material Balance'!$J$14:$J$53)+SUMIF('Emissions Database'!$B$265:$B$344,$B30,'Emissions Database'!$C$265:$C$344) -> 0 | E30: lbs | F30: =SUMIF('Default - Material Balance'!$F$14:$F$53,B30,'Default - Material Balance'!$J$14:$J$53) -> 0 | G30: lbs
B31: R-405A | C31: R-22/152a/142b/C318 | D31: =(SUMIF('Emissions Database'!$F$4:$F$123,B31,'Emissions Database'!$J$4:$J$123)+SUMIF('Emissions Database'!$F$124:$F$163,$B31,'Emissions Database'!$K$124:$K$163))/Conversions!$C$4+SUMIF('Default - Material Balance'!$F$14:$F$53,B31,'Default - Material Balance'!$J$14:$J$53)+SUMIF('Emissions Database'!$B$265:$B$344,$B31,'Emissions Database'!$C$265:$C$344) -> 0 | E31: lbs | F31: =SUMIF('Default - Material Balance'!$F$14:$F$53,B31,'Default - Material Balance'!$J$14:$J$53) -> 0 | G31: lbs
B32: R-406A | C32: R-22/600a/142b | D32: =(SUMIF('Emissions Database'!$F$4:$F$123,B32,'Emissions Database'!$J$4:$J$123)+SUMIF('Emissions Database'!$F$124:$F$163,$B32,'Emissions Database'!$K$124:$K$163))/Conversions!$C$4+SUMIF('Default - Material Balance'!$F$14:$F$53,B32,'Default - Material Balance'!$J$14:$J$53)+SUMIF('Emissions Database'!$B$265:$B$344,$B32,'Emissions Database'!$C$265:$C$344) -> 0 | E32: lbs | F32: =SUMIF('Default - Material Balance'!$F$14:$F$53,B32,'Default - Material Balance'!$J$14:$J$53) -> 0 | G32: lbs
B33: R-407A | C33: R-32/125/134a | D33: =(SUMIF('Emissions Database'!$F$4:$F$123,B33,'Emissions Database'!$J$4:$J$123)+SUMIF('Emissions Database'!$F$124:$F$163,$B33,'Emissions Database'!$K$124:$K$163))/Conversions!$C$4+SUMIF('Default - Material Balance'!$F$14:$F$53,B33,'Default - Material Balance'!$J$14:$J$53)+SUMIF('Emissions Database'!$B$265:$B$344,$B33,'Emissions Database'!$C$265:$C$344) -> 0 | E33: lbs | F33: =SUMIF('Default - Material Balance'!$F$14:$F$53,B33,'Default - Material Balance'!$J$14:$J$53) -> 0 | G33: lbs
